Workbook

Sheet Key (hidden)
C4: Värikoodien selitykset
C6: Kovakoodatut inputit
C7: Välilehtien väliset linkit / kaavat
C8: Välilehtien väliset linkit / kaavat
C9: Kaavan muutos kesken rivin
C10: Tarkennettavat solut

Sheet Kontrolli (hidden)
B2: ="Skenaario: "&E5&"" -> Skenaario: Pienempi Hybridimalli + OPO + peruskysyntä | E2: Päällä oleva skenaario | U2: Herkkyystarkasteltava skenaario
U3: 6
E5: =+LOOKUP(E$6,I6:XN6,I5:XN5) -> Pienempi Hybridimalli + OPO + peruskysyntä | I5: Tonttivuokramalli + Exit | J5: Tonttivuokramalli going concern | K5: Infrastruktuurimaksu-malli | L5: Hybridimalli + peruskysyntä | M5: Pienempi Hybridimalli + peruskysyntä | N5: Pienempi Hybridimalli + OPO + peruskysyntä | O5: Tonttivuokramalli going concern + Positiivinen kysyntä | P5: Hybridimalli + positiivinen kysyntä | Q5: Pienempi Hybridimalli + positiivinen kysyntä | R5: Pienempi Hybridimalli + OPO+ positiivinen kysyntä | S5: [Syötä skenaario] | U5: =+LOOKUP(U$3,$I6:DI$6,$I5:DI$5) -> Pienempi Hybridimalli + OPO + peruskysyntä | W5: =+"Herkkyys skenaariolle "&" "&$U$3&": "&W8 -> Herkkyys skenaariolle 6: VPOn osuus 85% | X5: Herkkyys skenaariolle 6: VPOn osuus 95% | Y5: Herkkyys skenaariolle 6: Pitkän ajan VPOn korko 2% | Z5: Herkkyys skenaariolle 6: Pitkän ajan VPOn korko 4% | AA5: Herkkyys skenaariolle 6: Pääomalainan korko 4% | AB5: Herkkyys skenaariolle 6: Pääomalainan korko 6% | AC5: Herkkyys skenaariolle 6: EU-tuen osuus 10% | AD5: Herkkyys skenaariolle 6: EU-tuen osuus 15% | AE5: Herkkyys skenaariolle 6: Pitkän ajan inflaatio 1.5% | AF5: Herkkyys skenaariolle 6: Pitkän ajan inflaatio 2.5% | AG5: Herkkyys skenaariolle 6: Pääomalainan osuus 0% | AH5: Herkkyys skenaariolle 6: Pääomalainan osuus 10% | AI5: Herkkyys skenaariolle 6: [Syötä herkkyys] | AJ5: Herkkyys skenaariolle 6: [Syötä herkkyys] | AK5: Herkkyys skenaariolle 6: [Syötä herkkyys] | AL5: Herkkyys skenaariolle 6: [Syötä herkkyys] | AM5: Herkkyys skenaariolle 6: [Syötä herkkyys]
C6: Skenaariovalitsin | E6: 6 | I6: =+H6+1 -> 1 | J6: 2 | K6: 3 | L6: =+K6+1 -> 4 | M6: =+L6+1 -> 5 | N6: =+M6+1 -> 6 | O6: =+N6+1 -> 7 | P6: =+O6+1 -> 8 | Q6: =+P6+1 -> 9 | R6: =+Q6+1 -> 10 | S6: =+R6+1 -> 11 | U6: =+MAX($I6:T6)+1 -> 12 | W6: =+MAX($I6:V$6)+1 -> 13 | X6: =+MAX($I6:W$6)+1 -> 14 | Y6: =+MAX($I6:X$6)+1 -> 15 | Z6: =+MAX($I6:Y$6)+1 -> 16 | AA6: =+MAX($I6:Z$6)+1 -> 17 | AB6: =+MAX($I6:AA$6)+1 -> 18 | AC6: =+MAX($I6:AB$6)+1 -> 19 | AD6: =+MAX($I6:AC$6)+1 -> 20 | AE6: =+MAX($I6:AD$6)+1 -> 21 | AF6: =+MAX($I6:AE$6)+1 -> 22 | AG6: =+MAX($I6:AF$6)+1 -> 23 | AH6: =+MAX($I6:AG$6)+1 -> 24 | AI6: =+MAX($I6:AH$6)+1 -> 25 | AJ6: =+MAX($I6:AI$6)+1 -> 26 | AK6: =+MAX($I6:AJ$6)+1 -> 27 | AL6: =+MAX($I6:AK$6)+1 -> 28 | AM6: =+MAX($I6:AL$6)+1 -> 29
C7: Päälleajoja? | D7: =IF(COUNTA($F$12:F329),"Kyllä","Ei") -> Kyllä
E8: Live | G8: Perusmuuttujat | I8: =IF(+I5="","",I5) -> Tonttivuokramalli + Exit | J8: Tonttivuokramalli going concern | K8: Infrastruktuurimaksu-malli | L8: =IF(+L5="","",L5) -> Hybridimalli + peruskysyntä | M8: Pienempi Hybridimalli + peruskysyntä | N8: Pienempi Hybridimalli + OPO + peruskysyntä | O8: Tonttivuokramalli going concern + Positiivinen kysyntä | P8: Hybridimalli + positiivinen kysyntä | Q8: Pienempi Hybridimalli + positiivinen kysyntä | R8: Pienempi Hybridimalli + OPO+ positiivinen kysyntä | S8: [Syötä skenaario] | U8: =+U5 -> Pienempi Hybridimalli + OPO + peruskysyntä | W8: VPOn osuus 85% | X8: VPOn osuus 95% | Y8: Pitkän ajan VPOn korko 2% | Z8: Pitkän ajan VPOn korko 4% | AA8: Pääomalainan korko 4% | AB8: Pääomalainan korko 6% | AC8: EU-tuen osuus 10% | AD8: EU-tuen osuus 15% | AE8: Pitkän ajan inflaatio 1.5% | AF8: Pitkän ajan inflaatio 2.5% | AG8: Pääomalainan osuus 0% | AH8: Pääomalainan osuus 10% | AI8: [Syötä herkkyys] | AJ8: [Syötä herkkyys] | AK8: [Syötä herkkyys] | AL8: [Syötä herkkyys] | AM8: [Syötä herkkyys]
C10: Mallin mekaniikka
C12: Dashboard käytössä? (1=Kyllä, 0=Ei) | E12: =IF(ISBLANK($F12),LOOKUP($E$6,$I$6:$XN$6,$I12:$XN12),$F12) -> 1 | F12: 1 | G12: 0 | I12: =$G12 -> 0 | J12: 0 | K12: 0 | L12: 0 | M12: 0 | N12: 0 | O12: 0 | P12: 0 | Q12: 0 | R12: 0 | S12: 0 | U12: =+LOOKUP(U$3,$I$6:$DI$6,$I12:DI12) -> 0 | W12: =+IF(NOT(ISBLANK($U12)),$U12,"") -> 0 | X12: 0 | Y12: 0 | Z12: 0 | AA12: 0 | AB12: 0 | AC12: 0 | AD12: 0 | AE12: 0 | AF12: 0 | AG12: 0 | AH12: 0 | AI12: 0 | AJ12: 0 | AK12: 0 | AL12: 0 | AM12: 0
C14: Rakennusprojektien oletukset
C16: Lentorata
C18: Rakennusinvestointi (EURm) | E18: =IF($E$12=0,IF(ISBLANK($F18),LOOKUP($E$6,$I$6:$XN$6,$I18:$XN18),$F18),Herkkyystarkastelu!D13) -> 2650 | G18: =Herkkyystarkastelu!D13 -> 2650 | I18: =$G18 -> 2650 | J18: 2650 | K18: 2650 | L18: 2650 | M18: 2650 | N18: 2650 | O18: 2650 | P18: 2650 | Q18: 2650 | R18: 2650 | S18: 2650 | U18: =+LOOKUP(U$3,$I$6:$DI$6,$I18:DI18) -> 2650 | W18: =+IF(NOT(ISBLANK($U18)),$U18,"") -> 2650 | X18: =+IF(NOT(ISBLANK($U18)),$U18,"") -> 2650 | Y18: =+IF(NOT(ISBLANK($U18)),$U18,"") -> 2650 | Z18: 2650 | AA18: 2650 | AB18: 2650 | AC18: 2650 | AD18: 2650 | AE18: 2650 | AF18: 2650 | AG18: 2650 | AH18: 2650 | AI18: 2650 | AJ18: 2650 | AK18: 2650 | AL18: 2650 | AM18: 2650
C19: Rakennusinvestoinnin laskussa käytetty MAKU (2010=1) | E19: =IF(ISBLANK($F19),LOOKUP($E$6,$I$6:$XN$6,$I19:$XN19),$F19) -> 1.3 | G19: 1.3 | I19: 1.3 | J19: 1.3 | K19: 1.3 | L19: 1.3 | M19: 1.3 | N19: 1.3 | O19: 1.3 | P19: 1.3 | Q19: 1.3 | R19: 1.3 | S19: 1.3 | U19: =+LOOKUP(U$3,$I$6:$DI$6,$I19:DI19) -> 1.3 | W19: =+IF(NOT(ISBLANK($U19)),$U19,"") -> 1.3 | X19: 1.3 | Y19: 1.3 | Z19: 1.3 | AA19: 1.3 | AB19: 1.3 | AC19: 1.3 | AD19: 1.3 | AE19: 1.3 | AF19: 1.3 | AG19: 1.3 | AH19: 1.3 | AI19: 1.3 | AJ19: 1.3 | AK19: 1.3 | AL19: 1.3 | AM19: 1.3
C20: Radan pituus suuntaansa (km) | E20: =IF(ISBLANK($F20),LOOKUP($E$6,$I$6:$XN$6,$I20:$XN20),$F20) -> 28 | G20: 28 | I20: 28 | J20: 28 | K20: 28 | L20: 28 | M20: 28 | N20: 28 | O20: 28 | P20: 28 | Q20: 28 | R20: 28 | S20: 28 | U20: =+LOOKUP(U$3,$I$6:$DI$6,$I20:DI20) -> 28 | W20: 28 | X20: 28 | Y20: 28 | Z20: 28 | AA20: 28 | AB20: 28 | AC20: 28 | AD20: 28 | AE20: 28 | AF20: 28 | AG20: 28 | AH20: 28 | AI20: 28 | AJ20: 28 | AK20: 28 | AL20: 28 | AM20: 28
C21: Rataprojektin aloitusajankohta | E21: =IF(ISBLANK($F21),LOOKUP($E$6,$I$6:$XN$6,$I21:$XN21),$F21) -> 2019-01-01 | G21: 2019-01-01 | I21: =$G21 -> 2019-01-01 | J21: 2019-01-01 | K21: 2019-01-01 | L21: 2019-01-01 | M21: 2019-01-01 | N21: 2019-01-01 | O21: 2019-01-01 | P21: 2019-01-01 | Q21: 2019-01-01 | R21: 2019-01-01 | S21: 2019-01-01 | U21: =+LOOKUP(U$3,$I$6:$DI$6,$I21:DI21) -> 2019-01-01 | W21: 2019-01-01 | X21: 2019-01-01 | Y21: 2019-01-01 | Z21: 2019-01-01 | AA21: 2019-01-01 | AB21: 2019-01-01 | AC21: 2019-01-01 | AD21: 2019-01-01 | AE21: 2019-01-01 | AF21: 2019-01-01 | AG21: 2019-01-01 | AH21: 2019-01-01 | AI21: 2019-01-01 | AJ21: 2019-01-01 | AK21: 2019-01-01 | AL21: 2019-01-01 | AM21: 2019-01-01
C22: Radan valmistumisajankohta | E22: =IF(ISBLANK($F22),LOOKUP($E$6,$I$6:$XN$6,$I22:$XN22),$F22) -> 2032-01-01 | G22: 2032-01-01 | I22: =$G22 -> 2032-01-01 | J22: 2032-01-01 | K22: 2032-01-01 | L22: 2032-01-01 | M22: 2032-01-01 | N22: 2032-01-01 | O22: 2032-01-01 | P22: 2032-01-01 | Q22: 2032-01-01 | R22: 2032-01-01 | S22: 2032-01-01 | U22: =+LOOKUP(U$3,$I$6:$DI$6,$I22:DI22) -> 2032-01-01 | W22: 2032-01-01 | X22: 2032-01-01 | Y22: 2032-01-01 | Z22: 2032-01-01 | AA22: 2032-01-01 | AB22: 2032-01-01 | AC22: 2032-01-01 | AD22: 2032-01-01 | AE22: 2032-01-01 | AF22: 2032-01-01 | AG22: 2032-01-01 | AH22: 2032-01-01 | AI22: 2032-01-01 | AJ22: 2032-01-01 | AK22: 2032-01-01 | AL22: 2032-01-01 | AM22: 2032-01-01
C24: Kerava-Tampere - ratakäytävä
C26: Rakennusinvestointi (EURm) | E26: =IF($E$12=0,IF(ISBLANK($F26),LOOKUP($E$6,$I$6:$XN$6,$I26:$XN26),$F26),Herkkyystarkastelu!D14) -> 2800 | G26: 2800 | I26: =$G26 -> 2800 | J26: 2800 | K26: 2800 | L26: 2800 | M26: 2800 | N26: 2800 | O26: 2800 | P26: 2800 | Q26: 2800 | R26: 2800 | S26: 2800 | U26: =+LOOKUP(U$3,$I$6:$DI$6,$I26:DI26) -> 2800 | W26: =+IF(NOT(ISBLANK($U26)),$U26,"") -> 2800 | X26: =+IF(NOT(ISBLANK($U26)),$U26,"") -> 2800 | Y26: =+IF(NOT(ISBLANK($U26)),$U26,"") -> 2800 | Z26: 2800 | AA26: 2800 | AB26: 2800 | AC26: 2800 | AD26: 2800 | AE26: 2800 | AF26: 2800 | AG26: 2800 | AH26: 2800 | AI26: 2800 | AJ26: 2800 | AK26: 2800 | AL26: 2800 | AM26: 2800
C27: Rakennusinvestoinnin laskussa käytetty MAKU (2010=1) | E27: =IF(ISBLANK($F27),LOOKUP($E$6,$I$6:$XN$6,$I27:$XN27),$F27) -> 1.3 | G27: 1.3 | I27: 1.3 | J27: 1.3 | K27: 1.3 | L27: 1.3 | M27: 1.3 | N27: 1.3 | O27: 1.3 | P27: 1.3 | Q27: 1.3 | R27: 1.3 | S27: 1.3 | U27: =+LOOKUP(U$3,$I$6:$DI$6,$I27:DI27) -> 1.3 | W27: =+IF(NOT(ISBLANK($U27)),$U27,"") -> 1.3 | X27: 1.3 | Y27: 1.3 | Z27: 1.3 | AA27: 1.3 | AB27: 1.3 | AC27: 1.3 | AD27: 1.3 | AE27: 1.3 | AF27: 1.3 | AG27: 1.3 | AH27: 1.3 | AI27: 1.3 | AJ27: 1.3 | AK27: 1.3 | AL27: 1.3 | AM27: 1.3
C28: Radan pituus suuntaansa (km) | E28: =IF(ISBLANK($F28),LOOKUP($E$6,$I$6:$XN$6,$I28:$XN28),$F28) -> 140 | G28: 140 | I28: 140 | J28: 140 | K28: 140 | L28: 140 | M28: 140 | N28: 140 | O28: 140 | P28: 140 | Q28: 140 | R28: 140 | S28: 140 | U28: =+LOOKUP(U$3,$I$6:$DI$6,$I28:DI28) -> 140 | W28: 140 | X28: 140 | Y28: 140 | Z28: 140 | AA28: 140 | AB28: 140 | AC28: 140 | AD28: 140 | AE28: 140 | AF28: 140 | AG28: 140 | AH28: 140 | AI28: 140 | AJ28: 140 | AK28: 140 | AL28: 140 | AM28: 140
C29: Rataprojektin aloitusajankohta | E29: =IF(ISBLANK($F29),LOOKUP($E$6,$I$6:$XN$6,$I29:$XN29),$F29) -> 2019-01-01 | G29: 2019-01-01 | I29: 2019-01-01 | J29: 2019-01-01 | K29: 2019-01-01 | L29: 2019-01-01 | M29: 2019-01-01 | N29: 2019-01-01 | O29: 2019-01-01 | P29: 2019-01-01 | Q29: 2019-01-01 | R29: 2019-01-01 | S29: 2019-01-01 | U29: =+LOOKUP(U$3,$I$6:$DI$6,$I29:DI29) -> 2019-01-01 | W29: 2019-01-01 | X29: 2019-01-01 | Y29: 2019-01-01 | Z29: 2019-01-01 | AA29: 2019-01-01 | AB29: 2019-01-01 | AC29: 2019-01-01 | AD29: 2019-01-01 | AE29: 2019-01-01 | AF29: 2019-01-01 | AG29: 2019-01-01 | AH29: 2019-01-01 | AI29: 2019-01-01 | AJ29: 2019-01-01 | AK29: 2019-01-01 | AL29: 2019-01-01 | AM29: 2019-01-01
C30: Radan valmistumisajankohta | E30: =IF(ISBLANK($F30),LOOKUP($E$6,$I$6:$XN$6,$I30:$XN30),$F30) -> 2035-01-01 | G30: 2035-01-01 | I30: 2035-01-01 | J30: 2035-01-01 | K30: 2035-01-01 | L30: 2035-01-01 | M30: 2035-01-01 | N30: 2035-01-01 | O30: 2035-01-01 | P30: 2035-01-01 | Q30: 2035-01-01 | R30: 2035-01-01 | S30: 2035-01-01 | U30: =+LOOKUP(U$3,$I$6:$DI$6,$I30:DI30) -> 2035-01-01 | W30: 2035-01-01 | X30: 2035-01-01 | Y30: 2035-01-01 | Z30: 2035-01-01 | AA30: 2035-01-01 | AB30: 2035-01-01 | AC30: 2035-01-01 | AD30: 2035-01-01 | AE30: 2035-01-01 | AF30: 2035-01-01 | AG30: 2035-01-01 | AH30: 2035-01-01 | AI30: 2035-01-01 | AJ30: 2035-01-01 | AK30: 2035-01-01 | AL30: 2035-01-01 | AM30: 2035-01-01
C32: Makrotaloudelliset oletukset
C34: Yhteisövero | E34: =IF(ISBLANK($F34),LOOKUP($E$6,$I$6:$XN$6,$I34:$XN34),$F34) -> 0.2 | G34: 0.2 | I34: =$G34 -> 0.2 | J34: 0.2 | K34: 0.2 | L34: 0.2 | M34: 0.2 | N34: 0.2 | O34: 0.2 | P34: 0.2 | Q34: 0.2 | R34: 0.2 | S34: 0.2 | U34: =+LOOKUP(U$3,$I$6:$DI$6,$I34:DI34) -> 0.2 | W34: =+IF(NOT(ISBLANK($U34)),$U34,"") -> 0.2 | X34: 0.2 | Y34: 0.2 | Z34: 0.2 | AA34: 0.2 | AB34: 0.2 | AC34: 0.2 | AD34: 0.2 | AE34: 0.2 | AF34: 0.2 | AG34: 0.2 | AH34: 0.2 | AI34: 0.2 | AJ34: 0.2 | AK34: 0.2 | AL34: 0.2 | AM34: =+IF(NOT(ISBLANK($U34)),$U34,"") -> 0.2
C35: Arvonlisävero | E35: =IF(ISBLANK($F35),LOOKUP($E$6,$I$6:$XN$6,$I35:$XN35),$F35) -> 0.22 | G35: 0.22 | I35: 0.22 | J35: 0.22 | K35: 0.22 | L35: 0.22 | M35: 0.22 | N35: 0.22 | O35: 0.22 | P35: 0.22 | Q35: 0.22 | R35: 0.22 | S35: 0.22 | U35: =+LOOKUP(U$3,$I$6:$DI$6,$I35:DI35) -> 0.22 | W35: 0.22 | X35: 0.22 | Y35: 0.22 | Z35: 0.22 | AA35: 0.22 | AB35: 0.22 | AC35: 0.22 | AD35: 0.22 | AE35: =+IF(NOT(ISBLANK($U35)),$U35,"") -> 0.22 | AF35: 0.22 | AG35: 0.22 | AH35: 0.22 | AI35: 0.22 | AJ35: 0.22 | AK35: 0.22 | AL35: 0.22 | AM35: =+IF(NOT(ISBLANK($U35)),$U35,"") -> 0.22
C36: Pitkän aikavälin peruskorot | E36: =IF($E$12=0,IF(ISBLANK($F36),LOOKUP($E$6,$I$6:$XN$6,$I36:$XN36),$F36),Herkkyystarkastelu!D23) -> 0.025 | G36: 0.025 | I36: =$G36 -> 0.025 | J36: 0.025 | K36: 0.025 | L36: 0.025 | M36: 0.025 | N36: 0.025 | O36: 0.025 | P36: 0.025 | Q36: 0.025 | R36: 0.025 | S36: 0.025 | U36: =+LOOKUP(U$3,$I$6:$DI$6,$I36:DI36) -> 0.025 | W36: =+IF(NOT(ISBLANK($U36)),$U36,"") -> 0.025 | X36: =+IF(NOT(ISBLANK($U36)),$U36,"") -> 0.025 | Y36: 0.015 | Z36: 0.035 | AA36: =+IF(NOT(ISBLANK($U36)),$U36,"") -> 0.025 | AB36: =+IF(NOT(ISBLANK($U36)),$U36,"") -> 0.025 | AC36: 0.025 | AD36: 0.025 | AE36: 0.025 | AF36: 0.025 | AG36: 0.025 | AH36: 0.025 | AI36: 0.025 | AJ36: 0.025 | AK36: 0.025 | AL36: 0.025 | AM36: =+IF(NOT(ISBLANK($U36)),$U36,"") -> 0.025
C37: Terminaalikasvu-% | E37: =IF(ISBLANK($F37),LOOKUP($E$6,$I$6:$XN$6,$I37:$XN37),$F37) -> 0.02 | G37: 0.02 | I37: 0.02 | J37: 0.02 | K37: 0.02 | L37: 0.02 | M37: 0.02 | N37: 0.02 | O37: 0.02 | P37: 0.02 | Q37: 0.02 | R37: 0.02 | S37: 0.02 | U37: =+LOOKUP(U$3,$I$6:$DI$6,$I37:DI37) -> 0.02 | W37: =+IF(NOT(ISBLANK($U37)),$U37,"") -> 0.02 | X37: =+IF(NOT(ISBLANK($U37)),$U37,"") -> 0.02 | Y37: =+IF(NOT(ISBLANK($U37)),$U37,"") -> 0.02 | Z37: =+IF(NOT(ISBLANK($U37)),$U37,"") -> 0.02 | AA37: =+IF(NOT(ISBLANK($U37)),$U37,"") -> 0.02 | AB37: =+IF(NOT(ISBLANK($U37)),$U37,"") -> 0.02 | AC37: 0.02 | AD37: 0.02 | AE37: 0.02 | AF37: 0.02 | AG37: 0.02 | AH37: 0.02 | AI37: 0.02 | AJ37: 0.02 | AK37: 0.02 | AL37: 0.02 | AM37: =+IF(NOT(ISBLANK($U37)),$U37,"") -> 0.02
C39: Inflaatio (Maanrakennuskustannusindeksi)
C40: MAKU 2019 -> (2010=100) | E40: =IF($E$12=0,IF(ISBLANK($F40),LOOKUP($E$6,$I$6:$XN$6,$I40:$XN40),$F40),Herkkyystarkastelu!D9) -> 0.02 | G40: 0.02 | I40: 0.02 | J40: 0.02 | K40: 0.02 | L40: 0.02 | M40: 0.02 | N40: 0.02 | O40: 0.02 | P40: 0.02 | Q40: 0.02 | R40: 0.02 | S40: 0.02 | U40: =+LOOKUP(U$3,$I$6:$DI$6,$I40:DI40) -> 0.02 | W40: 0.02 | X40: 0.02 | Y40: 0.02 | Z40: 0.02 | AA40: 0.02 | AB40: 0.02 | AC40: 0.02 | AD40: 0.02 | AE40: 0.015 | AF40: 0.025 | AG40: =+IF(NOT(ISBLANK($U40)),$U40,"") -> 0.02 | AH40: 0.02 | AI40: 0.02 | AJ40: 0.02 | AK40: 0.02 | AL40: 0.02 | AM40: 0.02
C41: MAKU herkkyystarkastelu (2018->) | E41: =IF(ISBLANK($F41),LOOKUP($E$6,$I$6:$XN$6,$I41:$XN41),$F41) -> 0 | G41: 0 | I41: 0 | J41: 0 | K41: 0 | L41: 0 | M41: 0 | N41: 0 | O41: 0 | P41: 0 | Q41: 0 | R41: 0 | S41: 0 | U41: =+LOOKUP(U$3,$I$6:$DI$6,$I41:DI41) -> 0 | W41: 0 | X41: 0 | Y41: 0 | Z41: 0 | AA41: 0 | AB41: 0 | AC41: 0 | AD41: 0 | AE41: =+IF(NOT(ISBLANK($U41)),$U41,"") -> 0 | AF41: =+IF(NOT(ISBLANK($U41)),$U41,"") -> 0 | AG41: 0 | AH41: 0 | AI41: 0 | AJ41: 0 | AK41: 0 | AL41: 0 | AM41: 0
C42: Inflaatio =0 (1=Käytössä, 0=Ei käytössä) | E42: =IF(ISBLANK($F42),LOOKUP($E$6,$I$6:$XN$6,$I42:$XN42),$F42) -> 0 | G42: 0 | I42: 0 | J42: 0 | K42: 0 | L42: 0 | M42: 0 | N42: 0 | O42: 0 | P42: 0 | Q42: 0 | R42: 0 | S42: 0 | U42: =+LOOKUP(U$3,$I$6:$DI$6,$I42:DI42) -> 0 | W42: 0 | X42: 0 | Y42: 0 | Z42: 0 | AA42: 0 | AB42: 0 | AC42: 0 | AD42: 0 | AE42: =+IF(NOT(ISBLANK($U42)),$U42,"") -> 0 | AF42: =+IF(NOT(ISBLANK($U42)),$U42,"") -> 0 | AG42: 0 | AH42: 0 | AI42: 0 | AJ42: 0 | AK42: 0 | AL42: 0 | AM42: 0
C44: Rahoitusoletukset
C46: Oman pääoman tuottovaatimus (jäännösarvoa laskentaan) | E46: =IF(ISBLANK($F46),LOOKUP($E$6,$I$6:$XN$6,$I46:$XN46),$F46) -> 0.1 | G46: 0.1 | I46: =$G46 -> 0.1 | J46: 0.1 | K46: 0.1 | L46: 0.1 | M46: 0.1 | N46: 0.1 | O46: 0.1 | P46: 0.1 | Q46: 0.1 | R46: 0.1 | S46: 0.1 | U46: =+LOOKUP(U$3,$I$6:$DI$6,$I46:DI46) -> 0.1 | W46: =+IF(NOT(ISBLANK($U46)),$U46,"") -> 0.1 | X46: =+IF(NOT(ISBLANK($U46)),$U46,"") -> 0.1 | Y46: =+IF(NOT(ISBLANK($U46)),$U46,"") -> 0.1 | Z46: 0.1 | AA46: 0.1 | AB46: 0.1 | AC46: 0.1 | AD46: 0.1 | AE46: 0.1 | AF46: 0.1 | AG46: 0.1 | AH46: 0.1 | AI46: 0.1 | AJ46: 0.1 | AK46: 0.1 | AL46: 0.1 | AM46: 0.1
C48: EU-tuki
C49: Osuus kokonaisinvestoinnista | E49: =IF($E$12=0,IF(ISBLANK($F49),LOOKUP($E$6,$I$6:$XN$6,$I49:$XN49),$F49),Herkkyystarkastelu!D19) -> 0.2 | G49: 0.2 | I49: =$G49 -> 0.2 | J49: 0.2 | K49: 0.2 | L49: 0.2 | M49: 0.2 | N49: 0.2 | O49: 0.2 | P49: 0.2 | Q49: 0.2 | R49: 0.2 | S49: 0.2 | U49: =+LOOKUP(U$3,$I$6:$DI$6,$I49:DI49) -> 0.2 | W49: =+IF(NOT(ISBLANK($U49)),$U49,"") -> 0.2 | X49: 0.2 | Y49: 0.2 | Z49: 0.2 | AA49: 0.2 | AB49: 0.2 | AC49: 0.1 | AD49: 0.15 | AE49: =+IF(NOT(ISBLANK($U49)),$U49,"") -> 0.2 | AF49: 0.2 | AG49: 0.2 | AH49: 0.2 | AI49: 0.2 | AJ49: 0.2 | AK49: 0.2 | AL49: 0.2 | AM49: 0.2
C51: Vieras pääoma
C52: Vieraan pääoman osuus rahoitustarpeesta (EU-tuen jälkeen) | E52: =IF($E$12=0,IF(ISBLANK($F52),LOOKUP($E$6,$I$6:$XN$6,$I52:$XN52),$F52),Herkkyystarkastelu!D22) -> 0.65 | G52: 0.9 | I52: =$G52 -> 0.9 | J52: 0.9 | K52: 0.9 | L52: 0.9 | M52: 0.9 | N52: 0.65 | O52: 0.9 | P52: 0.9 | Q52: 0.9 | R52: 0.75 | S52: 0.9 | U52: =+LOOKUP(U$3,$I$6:$DI$6,$I52:DI52) -> 0.65 | W52: 0.85 | X52: 0.95 | Y52: =+IF(NOT(ISBLANK($U52)),$U52,"") -> 0.65 | Z52: =+IF(NOT(ISBLANK($U52)),$U52,"") -> 0.65 | AA52: =+IF(NOT(ISBLANK($U52)),$U52,"") -> 0.65 | AB52: =+IF(NOT(ISBLANK($U52)),$U52,"") -> 0.65 | AC52: =+IF(NOT(ISBLANK($U52)),$U52,"") -> 0.65 | AD52: 0.65 | AE52: 0.65 | AF52: 0.65 | AG52: 0.65 | AH52: 0.65 | AI52: 0.65 | AJ52: 0.65 | AK52: 0.65 | AL52: 0.65 | AM52: 0.65
C54: Rakennusajan laina - Lentorata
C55: Fasiliteetti käytössä? (1=Kyllä, 0=Ei) | E55: =IF(ISBLANK($F55),LOOKUP($E$6,$I$6:$XN$6,$I55:$XN55),$F55) -> 1 | G55: 1 | I55: =$G55 -> 1 | J55: 1 | K55: 1 | L55: 1 | M55: 1 | N55: 1 | O55: 1 | P55: 1 | Q55: 1 | R55: 1 | S55: 1 | U55: =+LOOKUP(U$3,$I$6:$DI$6,$I55:DI55) -> 1 | W55: =+IF(NOT(ISBLANK($U55)),$U55,"") -> 1 | X55: 1 | Y55: 1 | Z55: 1 | AA55: 1 | AB55: 1 | AC55: 1 | AD55: 1 | AE55: 1 | AF55: 1 | AG55: 1 | AH55: 1 | AI55: 1 | AJ55: 1 | AK55: 1 | AL55: 1 | AM55: =+IF(NOT(ISBLANK($U55)),$U55,"") -> 1
C56: Velan 1. erän nostopäivä | E56: =IF(ISBLANK($F56),LOOKUP($E$6,$I$6:$XN$6,$I56:$XN56),$F56) -> 2023-01-01 | G56: 2023-01-01 | I56: 2023-01-01 | J56: 2023-01-01 | K56: 2023-01-01 | L56: 2023-01-01 | M56: 2023-01-01 | N56: 2023-01-01 | O56: 2023-01-01 | P56: 2023-01-01 | Q56: 2023-01-01 | R56: 2023-01-01 | S56: 2023-01-01 | U56: =+LOOKUP(U$3,$I$6:$DI$6,$I56:DI56) -> 2023-01-01 | W56: 2023-01-01 | X56: 2023-01-01 | Y56: 2023-01-01 | Z56: 2023-01-01 | AA56: 2023-01-01 | AB56: 2023-01-01 | AC56: 2023-01-01 | AD56: 2023-01-01 | AE56: 2023-01-01 | AF56: 2023-01-01 | AG56: 2023-01-01 | AH56: 2023-01-01 | AI56: 2023-01-01 | AJ56: 2023-01-01 | AK56: 2023-01-01 | AL56: 2023-01-01 | AM56: 2023-01-01
C57: Laina-aika (vuotta) | E57: =IF(ISBLANK($F57),LOOKUP($E$6,$I$6:$XN$6,$I57:$XN57),$F57) -> 9 | G57: =YEARFRAC(G56,G22) -> 9 | I57: =$G57 -> 9 | J57: 9 | K57: 9 | L57: 9 | M57: 9 | N57: 9 | O57: 9 | P57: 9 | Q57: 9 | R57: 9 | S57: 9 | U57: =+LOOKUP(U$3,$I$6:$DI$6,$I57:DI57) -> 9 | W57: 9 | X57: 9 | Y57: 9 | Z57: 9 | AA57: 9 | AB57: 9 | AC57: 9 | AD57: 9 | AE57: 9 | AF57: 9 | AG57: 9 | AH57: 9 | AI57: 9 | AJ57: 9 | AK57: 9 | AL57: 9 | AM57: 9
C58: Suojaussuhde (totaalibalanssista) | E58: =IF(ISBLANK($F58),LOOKUP($E$6,$I$6:$XN$6,$I58:$XN58),$F58) -> 0 | G58: 0 | I58: 0 | J58: 0 | K58: 0 | L58: 0 | M58: 0 | N58: 0 | O58: 0 | P58: 0 | Q58: 0 | R58: 0 | S58: 0 | U58: =+LOOKUP(U$3,$I$6:$DI$6,$I58:DI58) -> 0 | W58: 0 | X58: 0 | Y58: 0 | Z58: 0 | AA58: 0 | AB58: 0 | AC58: 0 | AD58: 0 | AE58: 0 | AF58: 0 | AG58: 0 | AH58: 0 | AI58: 0 | AJ58: 0 | AK58: 0 | AL58: 0 | AM58: 0
C59: Marginaali | E59: =IF($E$12=0,IF(ISBLANK($F59),LOOKUP($E$6,$I$6:$XN$6,$I59:$XN59),$F59),Herkkyystarkastelu!$D$24) -> 0.005 | G59: 0.005 | I59: 0.005 | J59: 0.005 | K59: 0.005 | L59: 0.005 | M59: 0.005 | N59: 0.005 | O59: 0.005 | P59: 0.005 | Q59: 0.005 | R59: 0.005 | S59: 0.005 | U59: =+LOOKUP(U$3,$I$6:$DI$6,$I59:DI59) -> 0.005 | W59: 0.005 | X59: 0.005 | Y59: 0.005 | Z59: 0.005 | AA59: 0.005 | AB59: 0.005 | AC59: 0.005 | AD59: 0.005 | AE59: 0.005 | AF59: 0.005 | AG59: 0.005 | AH59: 0.005 | AI59: 0.005 | AJ59: 0.005 | AK59: 0.005 | AL59: 0.005 | AM59: 0.005
C60: Korkojen kapitalisointi (1=Kyllä, 0=Ei) | E60: =IF(ISBLANK($F60),LOOKUP($E$6,$I$6:$XN$6,$I60:$XN60),$F60) -> 1 | G60: 1 | I60: 1 | J60: 1 | K60: 1 | L60: 1 | M60: 1 | N60: 1 | O60: 1 | P60: 1 | Q60: 1 | R60: 1 | S60: 1 | U60: =+LOOKUP(U$3,$I$6:$DI$6,$I60:DI60) -> 1 | W60: 1 | X60: 1 | Y60: 1 | Z60: 1 | AA60: 1 | AB60: 1 | AC60: 1 | AD60: 1 | AE60: 1 | AF60: 1 | AG60: 1 | AH60: 1 | AI60: 1 | AJ60: 1 | AK60: 1 | AL60: 1 | AM60: 1
C61: Swap-korko (ml. luottomarginaali) | E61: =IF(ISBLANK($F61),LOOKUP($E$6,$I$6:$XN$6,$I61:$XN61),$F61) -> 0.015 | G61: 0.015 | I61: 0.015 | J61: 0.015 | K61: 0.015 | L61: 0.015 | M61: 0.015 | N61: 0.015 | O61: 0.015 | P61: 0.015 | Q61: 0.015 | R61: 0.015 | S61: 0.015 | U61: =+LOOKUP(U$3,$I$6:$DI$6,$I61:DI61) -> 0.015 | W61: 0.015 | X61: 0.015 | Y61: 0.015 | Z61: 0.015 | AA61: 0.015 | AB61: 0.015 | AC61: 0.015 | AD61: 0.015 | AE61: 0.015 | AF61: 0.015 | AG61: 0.015 | AH61: 0.015 | AI61: 0.015 | AJ61: 0.015 | AK61: 0.015 | AL61: 0.015 | AM61: 0.015
C62: Järjestelykustannus (velkamäärästä) | E62: =IF(ISBLANK($F62),LOOKUP($E$6,$I$6:$XN$6,$I62:$XN62),$F62) -> 0 | G62: 0 | I62: 0 | J62: 0 | K62: 0 | L62: 0 | M62: 0 | N62: 0 | O62: 0 | P62: 0 | Q62: 0 | R62: 0 | S62: 0 | U62: =+LOOKUP(U$3,$I$6:$DI$6,$I62:DI62) -> 0 | W62: 0 | X62: 0 | Y62: 0 | Z62: 0 | AA62: 0 | AB62: 0 | AC62: 0 | AD62: 0 | AE62: 0 | AF62: 0 | AG62: 0 | AH62: 0 | AI62: 0 | AJ62: 0 | AK62: 0 | AL62: 0 | AM62: 0
C63: Osittainen lyhentäminen rakennusaikana (1=Kyllä, 0=Ei) | E63: =IF(ISBLANK($F63),LOOKUP($E$6,$I$6:$XN$6,$I63:$XN63),$F63) -> 1 | G63: 1 | I63: 1 | J63: 1 | K63: 0 | L63: 1 | M63: 1 | N63: 1 | O63: 1 | P63: 1 | Q63: 1 | R63: 1 | S63: 1 | U63: =+LOOKUP(U$3,$I$6:$DI$6,$I63:DI63) -> 1 | W63: 1 | X63: 1 | Y63: 1 | Z63: 1 | AA63: 1 | AB63: 1 | AC63: 1 | AD63: 1 | AE63: 1 | AF63: 1 | AG63: 1 | AH63: 1 | AI63: 1 | AJ63: 1 | AK63: 1 | AL63: 1 | AM63: 1
C65: Rakennusajan laina - Kerava-Tampere -rata
C66: Fasiliteetti käytössä? (1=Kyllä, 0=Ei) | E66: =IF(ISBLANK($F66),LOOKUP($E$6,$I$6:$XN$6,$I66:$XN66),$F66) -> 1 | G66: 1 | I66: =$G66 -> 1 | J66: 1 | K66: 1 | L66: 1 | M66: 1 | N66: 1 | O66: 1 | P66: 1 | Q66: 1 | R66: 1 | S66: 1 | U66: =+LOOKUP(U$3,$I$6:$DI$6,$I66:DI66) -> 1 | W66: =+IF(NOT(ISBLANK($U66)),$U66,"") -> 1 | X66: 1 | Y66: 1 | Z66: 1 | AA66: 1 | AB66: 1 | AC66: 1 | AD66: 1 | AE66: 1 | AF66: 1 | AG66: 1 | AH66: 1 | AI66: 1 | AJ66: 1 | AK66: 1 | AL66: 1 | AM66: =+IF(NOT(ISBLANK($U66)),$U66,"") -> 1
C67: Velan 1. erän nostopäivä | E67: =IF(ISBLANK($F67),LOOKUP($E$6,$I$6:$XN$6,$I67:$XN67),$F67) -> 2026-01-01 | G67: 2026-01-01 | I67: 2026-01-01 | J67: 2026-01-01 | K67: 2026-01-01 | L67: 2026-01-01 | M67: 2026-01-01 | N67: 2026-01-01 | O67: 2026-01-01 | P67: 2026-01-01 | Q67: 2026-01-01 | R67: 2026-01-01 | S67: 2026-01-01 | U67: =+LOOKUP(U$3,$I$6:$DI$6,$I67:DI67) -> 2026-01-01 | W67: 2026-01-01 | X67: 2026-01-01 | Y67: 2026-01-01 | Z67: 2026-01-01 | AA67: 2026-01-01 | AB67: 2026-01-01 | AC67: 2026-01-01 | AD67: 2026-01-01 | AE67: 2026-01-01 | AF67: 2026-01-01 | AG67: 2026-01-01 | AH67: 2026-01-01 | AI67: 2026-01-01 | AJ67: 2026-01-01 | AK67: 2026-01-01 | AL67: 2026-01-01 | AM67: 2026-01-01
C68: Laina-aika (vuotta) | E68: =IF(ISBLANK($F68),LOOKUP($E$6,$I$6:$XN$6,$I68:$XN68),$F68) -> 9 | G68: =YEARFRAC(G67,G30) -> 9 | I68: 9 | J68: 9 | K68: 9 | L68: 9 | M68: 9 | N68: 9 | O68: 9 | P68: 9 | Q68: 9 | R68: 9 | S68: 9 | U68: =+LOOKUP(U$3,$I$6:$DI$6,$I68:DI68) -> 9 | W68: 9 | X68: 9 | Y68: 9 | Z68: 9 | AA68: 9 | AB68: 9 | AC68: 9 | AD68: 9 | AE68: 9 | AF68: 9 | AG68: 9 | AH68: 9 | AI68: 9 | AJ68: 9 | AK68: 9 | AL68: 9 | AM68: 9
C69: Suojaussuhde (totaalibalanssista) | E69: =IF(ISBLANK($F69),LOOKUP($E$6,$I$6:$XN$6,$I69:$XN69),$F69) -> 0 | G69: 0 | I69: 0 | J69: 0 | K69: 0 | L69: 0 | M69: 0 | N69: 0 | O69: 0 | P69: 0 | Q69: 0 | R69: 0 | S69: 0 | U69: =+LOOKUP(U$3,$I$6:$DI$6,$I69:DI69) -> 0 | W69: 0 | X69: 0 | Y69: 0 | Z69: 0 | AA69: 0 | AB69: 0 | AC69: 0 | AD69: 0 | AE69: 0 | AF69: 0 | AG69: 0 | AH69: 0 | AI69: 0 | AJ69: 0 | AK69: 0 | AL69: 0 | AM69: 0
C70: Marginaali | E70: =IF($E$12=0,IF(ISBLANK($F70),LOOKUP($E$6,$I$6:$XN$6,$I70:$XN70),$F70),Herkkyystarkastelu!$D$24) -> 0.005 | G70: 0.005 | I70: 0.005 | J70: 0.005 | K70: 0.005 | L70: 0.005 | M70: 0.005 | N70: 0.005 | O70: 0.005 | P70: 0.005 | Q70: 0.005 | R70: 0.005 | S70: 0.005 | U70: =+LOOKUP(U$3,$I$6:$DI$6,$I70:DI70) -> 0.005 | W70: 0.005 | X70: 0.005 | Y70: 0.005 | Z70: 0.005 | AA70: 0.005 | AB70: 0.005 | AC70: 0.005 | AD70: 0.005 | AE70: 0.005 | AF70: 0.005 | AG70: 0.005 | AH70: 0.005 | AI70: 0.005 | AJ70: 0.005 | AK70: 0.005 | AL70: 0.005 | AM70: 0.005
C71: Korkojen kapitalisointi (1=Kyllä, 0=Ei) | E71: =IF(ISBLANK($F71),LOOKUP($E$6,$I$6:$XN$6,$I71:$XN71),$F71) -> 1 | G71: 1 | I71: 1 | J71: 1 | K71: 1 | L71: 1 | M71: 1 | N71: 1 | O71: 1 | P71: 1 | Q71: 1 | R71: 1 | S71: 1 | U71: =+LOOKUP(U$3,$I$6:$DI$6,$I71:DI71) -> 1 | W71: 1 | X71: 1 | Y71: 1 | Z71: 1 | AA71: 1 | AB71: 1 | AC71: 1 | AD71: 1 | AE71: 1 | AF71: 1 | AG71: 1 | AH71: 1 | AI71: 1 | AJ71: 1 | AK71: 1 | AL71: 1 | AM71: 1
C72: Swap-korko (ml. luottomarginaali) | E72: =IF(ISBLANK($F72),LOOKUP($E$6,$I$6:$XN$6,$I72:$XN72),$F72) -> 0.011 | G72: 0.011 | I72: 0.011 | J72: 0.011 | K72: 0.011 | L72: 0.011 | M72: 0.011 | N72: 0.011 | O72: 0.011 | P72: 0.011 | Q72: 0.011 | R72: 0.011 | S72: 0.011 | U72: =+LOOKUP(U$3,$I$6:$DI$6,$I72:DI72) -> 0.011 | W72: 0.011 | X72: 0.011 | Y72: 0.011 | Z72: 0.011 | AA72: 0.011 | AB72: 0.011 | AC72: 0.011 | AD72: 0.011 | AE72: 0.011 | AF72: 0.011 | AG72: 0.011 | AH72: 0.011 | AI72: 0.011 | AJ72: 0.011 | AK72: 0.011 | AL72: 0.011 | AM72: 0.011
C73: Järjestelykustannus (velkamäärästä) | E73: =IF(ISBLANK($F73),LOOKUP($E$6,$I$6:$XN$6,$I73:$XN73),$F73) -> 0 | G73: 0 | I73: 0 | J73: 0 | K73: 0 | L73: 0 | M73: 0 | N73: 0 | O73: 0 | P73: 0 | Q73: 0 | R73: 0 | S73: 0 | U73: =+LOOKUP(U$3,$I$6:$DI$6,$I73:DI73) -> 0 | W73: 0 | X73: 0 | Y73: 0 | Z73: 0 | AA73: 0 | AB73: 0 | AC73: 0 | AD73: 0 | AE73: 0 | AF73: 0 | AG73: 0 | AH73: 0 | AI73: 0 | AJ73: 0 | AK73: 0 | AL73: 0 | AM73: 0
C74: Osittainen lyhentäminen rakennusaikana (1=Kyllä, 0=Ei) | E74: =IF(ISBLANK($F74),LOOKUP($E$6,$I$6:$XN$6,$I74:$XN74),$F74) -> 1 | G74: 1 | I74: 1 | J74: 1 | K74: 0 | L74: 1 | M74: 1 | N74: 1 | O74: 1 | P74: 1 | Q74: 1 | R74: 1 | S74: 1 | U74: =+LOOKUP(U$3,$I$6:$DI$6,$I74:DI74) -> 1 | W74: 1 | X74: 1 | Y74: 1 | Z74: 1 | AA74: 1 | AB74: 1 | AC74: 1 | AD74: 1 | AE74: 1 | AF74: 1 | AG74: 1 | AH74: 1 | AI74: 1 | AJ74: 1 | AK74: 1 | AL74: 1 | AM74: 1
C76: Seniorilaina A
C77: Fasiliteetti käytössä? (1=Kyllä, 0=Ei) | E77: =IF(ISBLANK($F77),LOOKUP($E$6,$I$6:$XN$6,$I77:$XN77),$F77) -> 1 | G77: 1 | I77: =$G77 -> 1 | J77: 1 | K77: 1 | L77: 1 | M77: 1 | N77: 1 | O77: 1 | P77: 1 | Q77: 1 | R77: 1 | S77: 1 | U77: =+LOOKUP(U$3,$I$6:$DI$6,$I77:DI77) -> 1 | W77: =+IF(NOT(ISBLANK($U77)),$U77,"") -> 1 | X77: =+IF(NOT(ISBLANK($U77)),$U77,"") -> 1 | Y77: =+IF(NOT(ISBLANK($U77)),$U77,"") -> 1 | Z77: 1 | AA77: 1 | AB77: 1 | AC77: 1 | AD77: 1 | AE77: 1 | AF77: 1 | AG77: 1 | AH77: 1 | AI77: 1 | AJ77: 1 | AK77: 1 | AL77: 1 | AM77: 1
C78: Lyhennysprofiili (1=Tasalyhennys, 2=Bullet, 3=Annuiteetti) | E78: 2 | G78: 2 | I78: 3 | J78: =$G78 -> 2 | K78: 3 | L78: =$G78 -> 2 | M78: 2 | N78: 2 | O78: 2 | P78: 2 | Q78: 2 | R78: 2 | S78: 2 | U78: =+LOOKUP(U$3,$I$6:$DI$6,$I78:DI78) -> 2 | W78: =+IF(NOT(ISBLANK($U78)),$U78,"") -> 2 | X78: 2 | Y78: 2 | Z78: 2 | AA78: 2 | AB78: 2 | AC78: 2 | AD78: 2 | AE78: 2 | AF78: 2 | AG78: 2 | AH78: 2 | AI78: 2 | AJ78: 2 | AK78: 2 | AL78: 2 | AM78: 2
C79: Laina-aika (vuotta) (jos ei Bullet) | E79: 40 | G79: 40 | I79: 40 | J79: 40 | K79: 65 | L79: 40 | M79: 40 | N79: 40 | O79: 40 | P79: 40 | Q79: 40 | R79: 40 | S79: 40 | U79: =+LOOKUP(U$3,$I$6:$DI$6,$I79:DI79) -> 40 | W79: 40 | X79: 40 | Y79: 40 | Z79: 40 | AA79: 40 | AB79: 40 | AC79: 40 | AD79: 40 | AE79: 40 | AF79: 40 | AG79: 40 | AH79: 40 | AI79: 40 | AJ79: 40 | AK79: 40 | AL79: 40 | AM79: 40
C80: Lainan uudelleenrahoitusperiodi (vuotta) (jos Bullet) | E80: 10 | G80: 10 | I80: 10 | J80: 10 | K80: 10 | L80: 10 | M80: 10 | N80: 10 | O80: 10 | P80: 10 | Q80: 10 | R80: 10 | S80: 10 | U80: =+LOOKUP(U$3,$I$6:$DI$6,$I80:DI80) -> 10 | W80: 10 | X80: 10 | Y80: 10 | Z80: 10 | AA80: 10 | AB80: 10 | AC80: 10 | AD80: 10 | AE80: 10 | AF80: 10 | AG80: 10 | AH80: 10 | AI80: 10 | AJ80: 10 | AK80: 10 | AL80: 10 | AM80: 10
C81: Uusiutuu laina-ajan jälkeen? (1=Kyllä, 0=Ei) | E81: 1 | G81: 1 | I81: 0 | J81: 1 | K81: 0 | L81: 1 | M81: 1 | N81: 1 | O81: 1 | P81: 1 | Q81: 1 | R81: 1 | S81: 1 | U81: =+LOOKUP(U$3,$I$6:$DI$6,$I81:DI81) -> 1 | W81: 1 | X81: 1 | Y81: 1 | Z81: 1 | AA81: 1 | AB81: 1 | AC81: 1 | AD81: 1 | AE81: 1 | AF81: 1 | AG81: 1 | AH81: 1 | AI81: 1 | AJ81: 1 | AK81: 1 | AL81: 1 | AM81: 1
C82: Suojaussuhde (totaalibalanssista) | E82: 0 | G82: 0 | I82: 0 | J82: 0 | K82: 0 | L82: 0 | M82: 0 | N82: 0 | O82: 0 | P82: 0 | Q82: 0 | R82: 0 | S82: 0 | U82: =+LOOKUP(U$3,$I$6:$DI$6,$I82:DI82) -> 0 | W82: 0 | X82: 0 | Y82: 0 | Z82: 0 | AA82: 0 | AB82: 0 | AC82: 0 | AD82: 0 | AE82: 0 | AF82: 0 | AG82: 0 | AH82: 0 | AI82: 0 | AJ82: 0 | AK82: 0 | AL82: 0 | AM82: 0
C83: Marginaali (Periodi 1) | E83: =IF($E$12=0,IF(ISBLANK($F83),LOOKUP($E$6,$I$6:$XN$6,$I83:$XN83),$F83),Herkkyystarkastelu!$D$24) -> 0.005 | G83: 0.005 | I83: 0.005 | J83: 0.005 | K83: 0.005 | L83: 0.005 | M83: 0.005 | N83: 0.005 | O83: 0.005 | P83: 0.005 | Q83: 0.005 | R83: 0.005 | S83: 0.005 | U83: =+LOOKUP(U$3,$I$6:$DI$6,$I83:DI83) -> 0.005 | W83: 0.005 | X83: 0.005 | Y83: 0.005 | Z83: 0.005 | AA83: 0.005 | AB83: 0.005 | AC83: 0.005 | AD83: 0.005 | AE83: 0.005 | AF83: 0.005 | AG83: 0.005 | AH83: 0.005 | AI83: 0.005 | AJ83: 0.005 | AK83: 0.005 | AL83: 0.005 | AM83: 0.005
C84: Marginaali (Periodi 2) | E84: =IF($E$12=0,IF(ISBLANK($F84),LOOKUP($E$6,$I$6:$XN$6,$I84:$XN84),$F84),Herkkyystarkastelu!$D$24) -> 0.005 | G84: 0.005 | I84: 0.005 | J84: 0.005 | K84: 0.005 | L84: 0.005 | M84: 0.005 | N84: 0.005 | O84: 0.005 | P84: 0.005 | Q84: 0.005 | R84: 0.005 | S84: 0.005 | U84: =+LOOKUP(U$3,$I$6:$DI$6,$I84:DI84) -> 0.005 | W84: 0.005 | X84: 0.005 | Y84: 0.005 | Z84: 0.005 | AA84: 0.005 | AB84: 0.005 | AC84: 0.005 | AD84: 0.005 | AE84: 0.005 | AF84: 0.005 | AG84: 0.005 | AH84: 0.005 | AI84: 0.005 | AJ84: 0.005 | AK84: 0.005 | AL84: 0.005 | AM84: 0.005
C85: Marginaaliperiodin 1 pituus (vuosia) | E85: =IF(ISBLANK($F85),LOOKUP($E$6,$I$6:$XN$6,$I85:$XN85),$F85) -> 0 | G85: 0 | I85: 0 | J85: 0 | K85: 0 | L85: 0 | M85: 0 | N85: 0 | O85: 0 | P85: 0 | Q85: 0 | R85: 0 | S85: 0 | U85: =+LOOKUP(U$3,$I$6:$DI$6,$I85:DI85) -> 0 | W85: 0 | X85: 0 | Y85: 0 | Z85: 0 | AA85: 0 | AB85: 0 | AC85: 0 | AD85: 0 | AE85: 0 | AF85: 0 | AG85: 0 | AH85: 0 | AI85: 0 | AJ85: 0 | AK85: 0 | AL85: 0 | AM85: 0
C86: Swap-korko (ml. luottomarginaali) | E86: =IF(ISBLANK($F86),LOOKUP($E$6,$I$6:$XN$6,$I86:$XN86),$F86) -> 0.011 | G86: 0.011 | I86: 0.011 | J86: 0.011 | K86: 0.011 | L86: 0.011 | M86: 0.011 | N86: 0.011 | O86: 0.011 | P86: 0.011 | Q86: 0.011 | R86: 0.011 | S86: 0.011 | U86: =+LOOKUP(U$3,$I$6:$DI$6,$I86:DI86) -> 0.011 | W86: 0.011 | X86: 0.011 | Y86: 0.011 | Z86: 0.011 | AA86: 0.011 | AB86: 0.011 | AC86: 0.011 | AD86: 0.011 | AE86: 0.011 | AF86: 0.011 | AG86: 0.011 | AH86: 0.011 | AI86: 0.011 | AJ86: 0.011 | AK86: 0.011 | AL86: 0.011 | AM86: 0.011
C87: Järjestelykustannus (velkamäärästä) | E87: =IF(ISBLANK($F87),LOOKUP($E$6,$I$6:$XN$6,$I87:$XN87),$F87) -> 0 | G87: 0 | I87: 0 | J87: 0 | K87: 0 | L87: 0 | M87: 0 | N87: 0 | O87: 0 | P87: 0 | Q87: 0 | R87: 0 | S87: 0 | U87: =+LOOKUP(U$3,$I$6:$DI$6,$I87:DI87) -> 0 | W87: 0 | X87: 0 | Y87: 0 | Z87: 0 | AA87: 0 | AB87: 0 | AC87: 0 | AD87: 0 | AE87: 0 | AF87: 0 | AG87: 0 | AH87: 0 | AI87: 0 | AJ87: 0 | AK87: 0 | AL87: 0 | AM87: 0
C88: Uudelleenjärjestely? | E88: =IF(ISBLANK($F88),LOOKUP($E$6,$I$6:$XN$6,$I88:$XN88),$F88) -> 0 | G88: 0 | I88: 0 | J88: 0 | K88: 1 | L88: 0 | M88: 0 | N88: 0 | O88: 0 | P88: 0 | Q88: 0 | R88: 0 | S88: 0 | U88: =+LOOKUP(U$3,$I$6:$DI$6,$I88:DI88) -> 0 | W88: 0 | X88: 0 | Y88: 0 | Z88: 0 | AA88: 0 | AB88: 0 | AC88: 0 | AD88: 0 | AE88: 0 | AF88: 0 | AG88: 0 | AH88: 0 | AI88: 0 | AJ88: 0 | AK88: 0 | AL88: 0 | AM88: 0
C89: Uudelleenjärjestelyn ajankohta | E89: =IF(ISBLANK($F89),LOOKUP($E$6,$I$6:$XN$6,$I89:$XN89),$F89) -> 2070-12-31 | G89: 2070-12-31 | I89: 2070-12-31 | J89: 2070-12-31 | K89: 2070-12-31 | L89: 2070-12-31 | M89: 2070-12-31 | N89: 2070-12-31 | O89: 2070-12-31 | P89: 2070-12-31 | Q89: 2070-12-31 | R89: 2070-12-31 | S89: 2070-12-31 | U89: =+LOOKUP(U$3,$I$6:$DI$6,$I89:DI89) -> 2070-12-31 | W89: 2070-12-31 | X89: 2070-12-31 | Y89: 2070-12-31 | Z89: 2070-12-31 | AA89: 2070-12-31 | AB89: 2070-12-31 | AC89: 2070-12-31 | AD89: 2070-12-31 | AE89: 2070-12-31 | AF89: 2070-12-31 | AG89: 2070-12-31 | AH89: 2070-12-31 | AI89: 2070-12-31 | AJ89: 2070-12-31 | AK89: 2070-12-31 | AL89: 2070-12-31 | AM89: 2070-12-31
C91: Seniorilaina B
C92: Fasiliteetti käytössä? (1=Kyllä, 0=Ei) | E92: =IF(ISBLANK($F92),LOOKUP($E$6,$I$6:$XN$6,$I92:$XN92),$F92) -> 1 | G92: 1 | I92: =$G92 -> 1 | J92: 1 | K92: 1 | L92: 1 | M92: 1 | N92: 1 | O92: 1 | P92: 1 | Q92: 1 | R92: 1 | S92: 1 | U92: =+LOOKUP(U$3,$I$6:$DI$6,$I92:DI92) -> 1 | W92: =+IF(NOT(ISBLANK($U92)),$U92,"") -> 1 | X92: =+IF(NOT(ISBLANK($U92)),$U92,"") -> 1 | Y92: =+IF(NOT(ISBLANK($U92)),$U92,"") -> 1 | Z92: 1 | AA92: 1 | AB92: 1 | AC92: 1 | AD92: 1 | AE92: 1 | AF92: 1 | AG92: 1 | AH92: 1 | AI92: 1 | AJ92: 1 | AK92: 1 | AL92: 1 | AM92: 1
C93: Lyhennysprofiili (1=Tasalyhennys, 2=Bullet, 3=Annuiteetti) | E93: 2 | G93: 2 | I93: 3 | J93: =$G93 -> 2 | K93: 3 | L93: =$G93 -> 2 | M93: 2 | N93: 2 | O93: 2 | P93: 2 | Q93: 2 | R93: 2 | S93: 2 | U93: =+LOOKUP(U$3,$I$6:$DI$6,$I93:DI93) -> 2 | W93: =+IF(NOT(ISBLANK($U93)),$U93,"") -> 2 | X93: 2 | Y93: 2 | Z93: 2 | AA93: 2 | AB93: 2 | AC93: 2 | AD93: 2 | AE93: 2 | AF93: 2 | AG93: 2 | AH93: 2 | AI93: 2 | AJ93: 2 | AK93: 2 | AL93: 2 | AM93: 2
C94: Laina-aika (vuotta) (jos ei Bullet) | E94: 40 | G94: 40 | I94: 40 | J94: 40 | K94: 65 | L94: 40 | M94: 40 | N94: 40 | O94: 40 | P94: 40 | Q94: 40 | R94: 40 | S94: 40 | U94: =+LOOKUP(U$3,$I$6:$DI$6,$I94:DI94) -> 40 | W94: 40 | X94: 40 | Y94: 40 | Z94: 40 | AA94: 40 | AB94: 40 | AC94: 40 | AD94: 40 | AE94: 40 | AF94: 40 | AG94: 40 | AH94: 40 | AI94: 40 | AJ94: 40 | AK94: 40 | AL94: 40 | AM94: 40
C95: Lainan uudelleenrahoitusperiodi (vuotta) (jos Bullet) | E95: 10 | G95: 10 | I95: 10 | J95: 10 | K95: 10 | L95: 10 | M95: 10 | N95: 10 | O95: 10 | P95: 10 | Q95: 10 | R95: 10 | S95: 10 | U95: =+LOOKUP(U$3,$I$6:$DI$6,$I95:DI95) -> 10 | W95: 10 | X95: 10 | Y95: 10 | Z95: 10 | AA95: 10 | AB95: 10 | AC95: 10 | AD95: 10 | AE95: 10 | AF95: 10 | AG95: 10 | AH95: 10 | AI95: 10 | AJ95: 10 | AK95: 10 | AL95: 10 | AM95: 10
C96: Uusiutuu laina-ajan jälkeen? (1=Kyllä, 0=Ei) | E96: 1 | G96: 1 | I96: 0 | J96: 1 | K96: 0 | L96: 1 | M96: 1 | N96: 1 | O96: 1 | P96: 1 | Q96: 1 | R96: 1 | S96: 1 | U96: =+LOOKUP(U$3,$I$6:$DI$6,$I96:DI96) -> 1 | W96: 1 | X96: 1 | Y96: 1 | Z96: 1 | AA96: 1 | AB96: 1 | AC96: 1 | AD96: 1 | AE96: 1 | AF96: 1 | AG96: 1 | AH96: 1 | AI96: 1 | AJ96: 1 | AK96: 1 | AL96: 1 | AM96: 1
C97: Suojaussuhde (totaalibalanssista) | E97: 0 | G97: 0 | I97: 0 | J97: 0 | K97: 0 | L97: 0 | M97: 0 | N97: 0 | O97: 0 | P97: 0 | Q97: 0 | R97: 0 | S97: 0 | U97: =+LOOKUP(U$3,$I$6:$DI$6,$I97:DI97) -> 0 | W97: 0 | X97: 0 | Y97: 0 | Z97: 0 | AA97: 0 | AB97: 0 | AC97: 0 | AD97: 0 | AE97: 0 | AF97: 0 | AG97: 0 | AH97: 0 | AI97: 0 | AJ97: 0 | AK97: 0 | AL97: 0 | AM97: 0
C98: Marginaali (Periodi 1) | E98: =IF($E$12=0,IF(ISBLANK($F98),LOOKUP($E$6,$I$6:$XN$6,$I98:$XN98),$F98),Herkkyystarkastelu!$D$24) -> 0.005 | G98: 0.005 | I98: 0.005 | J98: 0.005 | K98: 0.005 | L98: 0.005 | M98: 0.005 | N98: 0.005 | O98: 0.005 | P98: 0.005 | Q98: 0.005 | R98: 0.005 | S98: 0.005 | U98: =+LOOKUP(U$3,$I$6:$DI$6,$I98:DI98) -> 0.005 | W98: 0.005 | X98: 0.005 | Y98: 0.005 | Z98: 0.005 | AA98: 0.005 | AB98: 0.005 | AC98: 0.005 | AD98: 0.005 | AE98: 0.005 | AF98: 0.005 | AG98: 0.005 | AH98: 0.005 | AI98: 0.005 | AJ98: 0.005 | AK98: 0.005 | AL98: 0.005 | AM98: 0.005
C99: Marginaali (Periodi 2) | E99: =IF($E$12=0,IF(ISBLANK($F99),LOOKUP($E$6,$I$6:$XN$6,$I99:$XN99),$F99),Herkkyystarkastelu!$D$24) -> 0.005 | G99: 0.005 | I99: 0.005 | J99: 0.005 | K99: 0.005 | L99: 0.005 | M99: 0.005 | N99: 0.005 | O99: 0.005 | P99: 0.005 | Q99: 0.005 | R99: 0.005 | S99: 0.005 | U99: =+LOOKUP(U$3,$I$6:$DI$6,$I99:DI99) -> 0.005 | W99: 0.005 | X99: 0.005 | Y99: 0.005 | Z99: 0.005 | AA99: 0.005 | AB99: 0.005 | AC99: 0.005 | AD99: 0.005 | AE99: 0.005 | AF99: 0.005 | AG99: 0.005 | AH99: 0.005 | AI99: 0.005 | AJ99: 0.005 | AK99: 0.005 | AL99: 0.005 | AM99: 0.005
C100: Marginaaliperiodin 1 pituus (vuosia) | E100: =IF(ISBLANK($F100),LOOKUP($E$6,$I$6:$XN$6,$I100:$XN100),$F100) -> 0 | G100: 0 | I100: 0 | J100: 0 | K100: 0 | L100: 0 | M100: 0 | N100: 0 | O100: 0 | P100: 0 | Q100: 0 | R100: 0 | S100: 0 | U100: =+LOOKUP(U$3,$I$6:$DI$6,$I100:DI100) -> 0 | W100: 0 | X100: 0 | Y100: 0 | Z100: 0 | AA100: 0 | AB100: 0 | AC100: 0 | AD100: 0 | AE100: 0 | AF100: 0 | AG100: 0 | AH100: 0 | AI100: 0 | AJ100: 0 | AK100: 0 | AL100: 0 | AM100: 0
C101: Swap-korko (ml. luottomarginaali) | E101: =IF(ISBLANK($F101),LOOKUP($E$6,$I$6:$XN$6,$I101:$XN101),$F101) -> 0.011 | G101: 0.011 | I101: 0.011 | J101: 0.011 | K101: 0.011 | L101: 0.011 | M101: 0.011 | N101: 0.011 | O101: 0.011 | P101: 0.011 | Q101: 0.011 | R101: 0.011 | S101: 0.011 | U101: =+LOOKUP(U$3,$I$6:$DI$6,$I101:DI101) -> 0.011 | W101: 0.011 | X101: 0.011 | Y101: 0.011 | Z101: 0.011 | AA101: 0.011 | AB101: 0.011 | AC101: 0.011 | AD101: 0.011 | AE101: 0.011 | AF101: 0.011 | AG101: 0.011 | AH101: 0.011 | AI101: 0.011 | AJ101: 0.011 | AK101: 0.011 | AL101: 0.011 | AM101: 0.011
C102: Järjestelykustannus (velkamäärästä) | E102: =IF(ISBLANK($F102),LOOKUP($E$6,$I$6:$XN$6,$I102:$XN102),$F102) -> 0 | G102: 0 | I102: 0 | J102: 0 | K102: 0 | L102: 0 | M102: 0 | N102: 0 | O102: 0 | P102: 0 | Q102: 0 | R102: 0 | S102: 0 | U102: =+LOOKUP(U$3,$I$6:$DI$6,$I102:DI102) -> 0 | W102: 0 | X102: 0 | Y102: 0 | Z102: 0 | AA102: 0 | AB102: 0 | AC102: 0 | AD102: 0 | AE102: 0 | AF102: 0 | AG102: 0 | AH102: 0 | AI102: 0 | AJ102: 0 | AK102: 0 | AL102: 0 | AM102: 0
C103: Uudelleenjärjestely? | E103: =IF(ISBLANK($F103),LOOKUP($E$6,$I$6:$XN$6,$I103:$XN103),$F103) -> 0 | G103: 0 | I103: 0 | J103: 0 | K103: 1 | L103: 0 | M103: 0 | N103: 0 | O103: 0 | P103: 0 | Q103: 0 | R103: 0 | S103: 0 | U103: =+LOOKUP(U$3,$I$6:$DI$6,$I103:DI103) -> 0 | W103: 0 | X103: 0 | Y103: 0 | Z103: 0 | AA103: 0 | AB103: 0 | AC103: 0 | AD103: 0 | AE103: 0 | AF103: 0 | AG103: 0 | AH103: 0 | AI103: 0 | AJ103: 0 | AK103: 0 | AL103: 0 | AM103: 0
C104: Uudelleenjärjestelyn ajankohta | E104: =IF(ISBLANK($F104),LOOKUP($E$6,$I$6:$XN$6,$I104:$XN104),$F104) -> 2070-12-31 | G104: 2070-12-31 | I104: 2070-12-31 | J104: 2070-12-31 | K104: 2070-12-31 | L104: 2070-12-31 | M104: 2070-12-31 | N104: 2070-12-31 | O104: 2070-12-31 | P104: 2070-12-31 | Q104: 2070-12-31 | R104: 2070-12-31 | S104: 2070-12-31 | U104: =+LOOKUP(U$3,$I$6:$DI$6,$I104:DI104) -> 2070-12-31 | W104: 2070-12-31 | X104: 2070-12-31 | Y104: 2070-12-31 | Z104: 2070-12-31 | AA104: 2070-12-31 | AB104: 2070-12-31 | AC104: 2070-12-31 | AD104: 2070-12-31 | AE104: 2070-12-31 | AF104: 2070-12-31 | AG104: 2070-12-31 | AH104: 2070-12-31 | AI104: 2070-12-31 | AJ104: 2070-12-31 | AK104: 2070-12-31 | AL104: 2070-12-31 | AM104: 2070-12-31
C106: Seniorilaina C
C107: Fasiliteetti käytössä? (1=Kyllä, 0=Ei) | E107: =IF(ISBLANK($F107),LOOKUP($E$6,$I$6:$XN$6,$I107:$XN107),$F107) -> 0 | G107: 0 | I107: =$G107 -> 0 | J107: 0 | K107: 1 | L107: 0 | M107: 0 | N107: 0 | O107: 0 | P107: 0 | Q107: 0 | R107: 0 | S107: 0 | U107: =+LOOKUP(U$3,$I$6:$DI$6,$I107:DI107) -> 0 | W107: =+IF(NOT(ISBLANK($U107)),$U107,"") -> 0 | X107: 0 | Y107: 0 | Z107: 0 | AA107: 0 | AB107: 0 | AC107: 0 | AD107: 0 | AE107: 0 | AF107: 0 | AG107: 0 | AH107: 0 | AI107: 0 | AJ107: 0 | AK107: 0 | AL107: 0 | AM107: =+IF(NOT(ISBLANK($U107)),$U107,"") -> 0
C108: Uusimisperiodi (vuotta) | E108: =IF(ISBLANK($F108),LOOKUP($E$6,$I$6:$XN$6,$I108:$XN108),$F108) -> 10 | G108: 10 | I108: 10 | J108: 10 | K108: 10 | L108: 10 | M108: 10 | N108: 10 | O108: 10 | P108: 10 | Q108: 10 | R108: 10 | S108: 10 | U108: =+LOOKUP(U$3,$I$6:$DI$6,$I108:DI108) -> 10 | W108: 10 | X108: 10 | Y108: 10 | Z108: 10 | AA108: 10 | AB108: 10 | AC108: 10 | AD108: 10 | AE108: 10 | AF108: 10 | AG108: 10 | AH108: 10 | AI108: 10 | AJ108: 10 | AK108: 10 | AL108: 10 | AM108: 10
C109: Uusiutuu laina-ajan jälkeen? (1=Kyllä, 0=Ei) | E109: =IF(ISBLANK($F109),LOOKUP($E$6,$I$6:$XN$6,$I109:$XN109),$F109) -> 1 | G109: 1 | I109: 1 | J109: 1 | K109: 1 | L109: 1 | M109: 1 | N109: 1 | O109: 1 | P109: 1 | Q109: 1 | R109: 1 | S109: 1 | U109: =+LOOKUP(U$3,$I$6:$DI$6,$I109:DI109) -> 1 | W109: 1 | X109: 1 | Y109: 1 | Z109: 1 | AA109: 1 | AB109: 1 | AC109: 1 | AD109: 1 | AE109: 1 | AF109: 1 | AG109: 1 | AH109: 1 | AI109: 1 | AJ109: 1 | AK109: 1 | AL109: 1 | AM109: 1
C110: Suojaussuhde (totaalibalanssista) | E110: =IF(ISBLANK($F110),LOOKUP($E$6,$I$6:$XN$6,$I110:$XN110),$F110) -> 0 | G110: 0 | I110: 0 | J110: 0 | K110: 0 | L110: 0 | M110: 0 | N110: 0 | O110: 0 | P110: 0 | Q110: 0 | R110: 0 | S110: 0 | U110: =+LOOKUP(U$3,$I$6:$DI$6,$I110:DI110) -> 0 | W110: 0 | X110: 0 | Y110: 0 | Z110: 0 | AA110: 0 | AB110: 0 | AC110: 0 | AD110: 0 | AE110: 0 | AF110: 0 | AG110: 0 | AH110: 0 | AI110: 0 | AJ110: 0 | AK110: 0 | AL110: 0 | AM110: 0
C111: Marginaali | E111: =IF($E$12=0,IF(ISBLANK($F111),LOOKUP($E$6,$I$6:$XN$6,$I111:$XN111),$F111),Herkkyystarkastelu!$D$24) -> 0.005 | G111: 0.005 | I111: 0.005 | J111: 0.005 | K111: 0.005 | L111: 0.005 | M111: 0.005 | N111: 0.005 | O111: 0.005 | P111: 0.005 | Q111: 0.005 | R111: 0.005 | S111: 0.005 | U111: =+LOOKUP(U$3,$I$6:$DI$6,$I111:DI111) -> 0.005 | W111: 0.005 | X111: 0.005 | Y111: 0.005 | Z111: 0.005 | AA111: 0.005 | AB111: 0.005 | AC111: 0.005 | AD111: 0.005 | AE111: 0.005 | AF111: 0.005 | AG111: 0.005 | AH111: 0.005 | AI111: 0.005 | AJ111: 0.005 | AK111: 0.005 | AL111: 0.005 | AM111: 0.005
C112: Swap-korko (ml. luottomarginaali) | E112: =IF(ISBLANK($F112),LOOKUP($E$6,$I$6:$XN$6,$I112:$XN112),$F112) -> 0.011 | G112: 0.011 | I112: 0.011 | J112: 0.011 | K112: 0.011 | L112: 0.011 | M112: 0.011 | N112: 0.011 | O112: 0.011 | P112: 0.011 | Q112: 0.011 | R112: 0.011 | S112: 0.011 | U112: =+LOOKUP(U$3,$I$6:$DI$6,$I112:DI112) -> 0.011 | W112: 0.011 | X112: 0.011 | Y112: 0.011 | Z112: 0.011 | AA112: 0.011 | AB112: 0.011 | AC112: 0.011 | AD112: 0.011 | AE112: 0.011 | AF112: 0.011 | AG112: 0.011 | AH112: 0.011 | AI112: 0.011 | AJ112: 0.011 | AK112: 0.011 | AL112: 0.011 | AM112: 0.011
C113: Järjestelykustannus (velkamäärästä) | E113: =IF(ISBLANK($F113),LOOKUP($E$6,$I$6:$XN$6,$I113:$XN113),$F113) -> 0 | G113: 0 | I113: 0 | J113: 0 | K113: 0 | L113: 0 | M113: 0 | N113: 0 | O113: 0 | P113: 0 | Q113: 0 | R113: 0 | S113: 0 | U113: =+LOOKUP(U$3,$I$6:$DI$6,$I113:DI113) -> 0 | W113: 0 | X113: 0 | Y113: 0 | Z113: 0 | AA113: 0 | AB113: 0 | AC113: 0 | AD113: 0 | AE113: 0 | AF113: 0 | AG113: 0 | AH113: 0 | AI113: 0 | AJ113: 0 | AK113: 0 | AL113: 0 | AM113: 0
C115: SVOP - Sarjat A ja B
C116: Vain SVOP-rahoitus - Lentorata (vuotta projektin aloituksesta) | E116: =IF(ISBLANK($F116),LOOKUP($E$6,$I$6:$XN$6,$I116:$XN116),$F116) -> 4 | G116: 4 | I116: =$G116 -> 4 | J116: 4 | K116: 4 | L116: 4 | M116: 4 | N116: 4 | O116: 4 | P116: 4 | Q116: 4 | R116: 4 | S116: 4 | U116: =+LOOKUP(U$3,$I$6:$DI$6,$I116:DI116) -> 4 | W116: =+IF(NOT(ISBLANK($U116)),$U116,"") -> 4 | X116: 4 | Y116: 4 | Z116: 4 | AA116: 4 | AB116: 4 | AC116: 4 | AD116: 4 | AE116: 4 | AF116: 4 | AG116: 4 | AH116: 4 | AI116: 4 | AJ116: 4 | AK116: 4 | AL116: 4 | AM116: 4
C117: Vain SVOP-rahoitus - Kerava-Tampere- rata (vuotta projektin aloituksesta) | E117: =IF(ISBLANK($F117),LOOKUP($E$6,$I$6:$XN$6,$I117:$XN117),$F117) -> 7 | G117: 7 | I117: =$G117 -> 7 | J117: 7 | K117: 7 | L117: 7 | M117: 7 | N117: 7 | O117: 7 | P117: 7 | Q117: 7 | R117: 7 | S117: 7 | U117: =+LOOKUP(U$3,$I$6:$DI$6,$I117:DI117) -> 7 | W117: 7 | X117: 7 | Y117: 7 | Z117: 7 | AA117: 7 | AB117: 7 | AC117: 7 | AD117: 7 | AE117: 7 | AF117: 7 | AG117: 7 | AH117: 7 | AI117: 7 | AJ117: 7 | AK117: 7 | AL117: 7 | AM117: 7
C118: Osingonjaon 1. mahdollinen aloituspäivä | E118: =IF(ISBLANK($F118),LOOKUP($E$6,$I$6:$XN$6,$I118:$XN118),$F118) -> 2035-01-01 | G118: 2035-01-01 | I118: =$G118 -> 2035-01-01 | J118: 2035-01-01 | K118: 2070-01-01 | L118: 2035-01-01 | M118: 2035-01-01 | N118: 2035-01-01 | O118: 2035-01-01 | P118: 2035-01-01 | Q118: 2035-01-01 | R118: 2035-01-01 | S118: 2035-01-01 | U118: =+LOOKUP(U$3,$I$6:$DI$6,$I118:DI118) -> 2035-01-01 | W118: =+IF(NOT(ISBLANK($U118)),$U118,"") -> 2035-01-01 | X118: 2035-01-01 | Y118: 2035-01-01 | Z118: 2035-01-01 | AA118: 2035-01-01 | AB118: 2035-01-01 | AC118: 2035-01-01 | AD118: 2035-01-01 | AE118: 2035-01-01 | AF118: 2035-01-01 | AG118: 2035-01-01 | AH118: 2035-01-01 | AI118: 2035-01-01 | AJ118: 2035-01-01 | AK118: 2035-01-01 | AL118: 2035-01-01 | AM118: 2035-01-01
C120: SVOP - Sarja B
C121: Tonttiapportin arvo (EURm) | E121: =IF($E$12=0,IF(ISBLANK($F121),LOOKUP($E$6,$I$6:$XN$6,$I121:$XN121),$F121),Herkkyystarkastelu!D33) -> 400 | G121: 1000 | I121: =$G121 -> 1000 | J121: 1500 | K121: 1000 | L121: 800 | M121: 400 | N121: 400 | O121: 1200 | P121: 600 | Q121: 300 | R121: 300 | S121: 1000 | U121: =+LOOKUP(U$3,$I$6:$DI$6,$I121:DI121) -> 400 | W121: =+IF(NOT(ISBLANK($U121)),$U121,"") -> 400 | X121: 400 | Y121: 400 | Z121: 400 | AA121: 400 | AB121: 400 | AC121: 400 | AD121: 400 | AE121: 400 | AF121: 400 | AG121: 400 | AH121: 400 | AI121: 400 | AJ121: 400 | AK121: 400 | AL121: 400 | AM121: 400
C122: Tonttisijoituksen ajankohta | E122: =IF(ISBLANK($F122),LOOKUP($E$6,$I$6:$XN$6,$I122:$XN122),$F122) -> 2020-01-01 | G122: 2020-01-01 | I122: 2020-01-01 | J122: 2020-01-01 | K122: 2020-01-01 | L122: 2020-01-01 | M122: 2020-01-01 | N122: 2020-01-01 | O122: 2020-01-01 | P122: 2020-01-01 | Q122: 2020-01-01 | R122: 2020-01-01 | S122: 2020-01-01 | U122: =+LOOKUP(U$3,$I$6:$DI$6,$I122:DI122) -> 2020-01-01 | W122: 2020-01-01 | X122: 2020-01-01 | Y122: 2020-01-01 | Z122: 2020-01-01 | AA122: 2020-01-01 | AB122: 2020-01-01 | AC122: 2020-01-01 | AD122: 2020-01-01 | AE122: 2020-01-01 | AF122: 2020-01-01 | AG122: 2020-01-01 | AH122: 2020-01-01 | AI122: 2020-01-01 | AJ122: 2020-01-01 | AK122: 2020-01-01 | AL122: 2020-01-01 | AM122: 2020-01-01
C124: Pääomalaina
C125: Pääomalaina käytössä? | E125: =IF(ISBLANK($F125),LOOKUP($E$6,$I$6:$XN$6,$I125:$XN125),$F125) -> 1 | G125: 1 | I125: =$G125 -> 1 | J125: 1 | K125: 0 | L125: 1 | M125: 1 | N125: 1 | O125: 1 | P125: 1 | Q125: 1 | R125: 1 | S125: 1 | U125: =+LOOKUP(U$3,$I$6:$DI$6,$I125:DI125) -> 1 | W125: =+IF(NOT(ISBLANK($U125)),$U125,"") -> 1 | X125: 1 | Y125: 1 | Z125: 1 | AA125: 1 | AB125: 1 | AC125: 1 | AD125: 1 | AE125: 1 | AF125: 1 | AG125: 0 | AH125: =+IF(NOT(ISBLANK($U125)),$U125,"") -> 1 | AI125: 1 | AJ125: 1 | AK125: 1 | AL125: 1 | AM125: 1
C126: Pääomalainan määrän asettaminen (1=osuus OPOsta, 2= vakio) | E126: 2 | G126: 1 | I126: 1 | J126: 1 | K126: 1 | L126: 1 | M126: 1 | N126: 2 | O126: 1 | P126: 1 | Q126: 1 | R126: 2 | S126: 1 | U126: =+LOOKUP(U$3,$I$6:$DI$6,$I126:DI126) -> 2 | W126: 2 | X126: 2 | Y126: 2 | Z126: 2 | AA126: 2 | AB126: 2 | AC126: 2 | AD126: 2 | AE126: 2 | AF126: 2 | AG126: 2 | AH126: 2 | AI126: 2 | AJ126: 2 | AK126: 2 | AL126: 2 | AM126: 2
C127: Osuus omasta pääomasta (jos osuus OPOsta) | E127: 0.5 | G127: 0.5 | I127: 0.5 | J127: 0.5 | K127: 0 | L127: 0.5 | M127: 0.5 | N127: 0.5 | O127: 0.5 | P127: 0.5 | Q127: 0.5 | R127: 0.5 | S127: 0.5 | U127: =+LOOKUP(U$3,$I$6:$DI$6,$I127:DI127) -> 0.5 | W127: 0.5 | X127: 0.5 | Y127: 0.5 | Z127: 0.5 | AA127: 0.5 | AB127: 0.5 | AC127: 0.5 | AD127: 0.5 | AE127: 0.5 | AF127: 0.5 | AG127: 0 | AH127: 1 | AI127: =+IF(NOT(ISBLANK($U127)),$U127,"") -> 0.5 | AJ127: 0.5 | AK127: 0.5 | AL127: 0.5 | AM127: 0.5
C128: Takaisinmaksu (1=Kyllä, 0=Ei) | E128: 1 | G128: 1 | I128: 1 | J128: 1 | K128: 1 | L128: 1 | M128: 1 | N128: 1 | O128: 1 | P128: 1 | Q128: 1 | R128: 1 | S128: 1 | U128: =+LOOKUP(U$3,$I$6:$DI$6,$I128:DI128) -> 1 | W128: 1 | X128: 1 | Y128: 1 | Z128: 1 | AA128: 1 | AB128: 1 | AC128: 1 | AD128: 1 | AE128: 1 | AF128: 1 | AG128: =+IF(NOT(ISBLANK($U128)),$U128,"") -> 1 | AH128: 1 | AI128: 1 | AJ128: 1 | AK128: 1 | AL128: 1 | AM128: 1
C129: Tasalyhenteinen? (1=Kyllä, 0=Ei) | E129: 1 | G129: 1 | I129: 1 | J129: 1 | K129: 1 | L129: 1 | M129: 1 | N129: 1 | O129: 1 | P129: 1 | Q129: 1 | R129: 1 | S129: 1 | U129: =+LOOKUP(U$3,$I$6:$DI$6,$I129:DI129) -> 1 | W129: 1 | X129: 1 | Y129: 1 | Z129: 1 | AA129: 1 | AB129: 1 | AC129: 1 | AD129: 1 | AE129: 1 | AF129: 1 | AG129: 1 | AH129: 1 | AI129: 1 | AJ129: 1 | AK129: 1 | AL129: 1 | AM129: 1
C130: Tasalyhennysten periodi (vuotta) | E130: 40 | G130: 40 | I130: 40 | J130: 40 | K130: 40 | L130: 40 | M130: 40 | N130: 40 | O130: 40 | P130: 40 | Q130: 40 | R130: 40 | S130: 40 | U130: =+LOOKUP(U$3,$I$6:$DI$6,$I130:DI130) -> 40 | W130: 40 | X130: 40 | Y130: 40 | Z130: 40 | AA130: 40 | AB130: 40 | AC130: 40 | AD130: 40 | AE130: 40 | AF130: 40 | AG130: 40 | AH130: 40 | AI130: 40 | AJ130: 40 | AK130: 40 | AL130: 40 | AM130: 40
C131: Ensimmäisen noston ajankohta | E131: 2020-01-01 | G131: 2020-01-01 | I131: 2020-01-01 | J131: 2020-01-01 | K131: 2020-01-01 | L131: 2020-01-01 | M131: 2020-01-01 | N131: 2020-01-01 | O131: 2020-01-01 | P131: 2020-01-01 | Q131: 2020-01-01 | R131: 2020-01-01 | S131: 2020-01-01 | U131: =+LOOKUP(U$3,$I$6:$DI$6,$I131:DI131) -> 2020-01-01 | W131: 2020-01-01 | X131: 2020-01-01 | Y131: 2020-01-01 | Z131: 2020-01-01 | AA131: 2020-01-01 | AB131: 2020-01-01 | AC131: 2020-01-01 | AD131: 2020-01-01 | AE131: 2020-01-01 | AF131: 2020-01-01 | AG131: 2020-01-01 | AH131: 2020-01-01 | AI131: 2020-01-01 | AJ131: 2020-01-01 | AK131: 2020-01-01 | AL131: 2020-01-01 | AM131: 2020-01-01
C132: Korko | E132: =IF($E$12=0,IF(ISBLANK($F132),LOOKUP($E$6,$I$6:$XN$6,$I132:$XN132),$F132),Herkkyystarkastelu!D28) -> 0.05 | G132: 0.05 | I132: 0.05 | J132: 0.05 | K132: 0.05 | L132: 0.05 | M132: 0.05 | N132: 0.05 | O132: 0.05 | P132: 0.05 | Q132: 0.05 | R132: 0.05 | S132: 0.05 | U132: =+LOOKUP(U$3,$I$6:$DI$6,$I132:DI132) -> 0.05 | W132: =+IF(NOT(ISBLANK($U132)),$U132,"") -> 0.05 | X132: 0.05 | Y132: 0.05 | Z132: 0.05 | AA132: 0.04 | AB132: 0.06 | AC132: =+IF(NOT(ISBLANK($U132)),$U132,"") -> 0.05 | AD132: 0.05 | AE132: 0.05 | AF132: 0.05 | AG132: 0.05 | AH132: 0.05 | AI132: 0.05 | AJ132: 0.05 | AK132: 0.05 | AL132: 0.05 | AM132: 0.05
C133: Ensimmäinen mahdollinen koronmaksu | E133: =IF(ISBLANK($F133),LOOKUP($E$6,$I$6:$XN$6,$I133:$XN133),$F133) -> 2033-01-01 | G133: 2033-01-01 | I133: 2033-01-01 | J133: 2033-01-01 | K133: 2033-01-01 | L133: 2033-01-01 | M133: 2033-01-01 | N133: 2033-01-01 | O133: 2033-01-01 | P133: 2033-01-01 | Q133: 2033-01-01 | R133: 2033-01-01 | S133: 2033-01-01 | U133: =+LOOKUP(U$3,$I$6:$DI$6,$I133:DI133) -> 2033-01-01 | W133: 2033-01-01 | X133: 2033-01-01 | Y133: 2033-01-01 | Z133: 2033-01-01 | AA133: =+IF(NOT(ISBLANK($U133)),$U133,"") -> 2033-01-01 | AB133: =+IF(NOT(ISBLANK($U133)),$U133,"") -> 2033-01-01 | AC133: 2033-01-01 | AD133: 2033-01-01 | AE133: 2033-01-01 | AF133: 2033-01-01 | AG133: 2033-01-01 | AH133: 2033-01-01 | AI133: 2033-01-01 | AJ133: 2033-01-01 | AK133: 2033-01-01 | AL133: 2033-01-01 | AM133: 2033-01-01
C134: Ensimmäinen mahdollinen lyhennys | E134: =IF(ISBLANK($F134),LOOKUP($E$6,$I$6:$XN$6,$I134:$XN134),$F134) -> 2035-01-01 | G134: 2035-01-01 | I134: 2035-01-01 | J134: 2035-01-01 | K134: 2035-01-01 | L134: 2035-01-01 | M134: 2035-01-01 | N134: 2035-01-01 | O134: 2035-01-01 | P134: 2035-01-01 | Q134: 2035-01-01 | R134: 2035-01-01 | S134: 2035-01-01 | U134: =+LOOKUP(U$3,$I$6:$DI$6,$I134:DI134) -> 2035-01-01 | W134: 2035-01-01 | X134: 2035-01-01 | Y134: 2035-01-01 | Z134: 2035-01-01 | AA134: =+IF(NOT(ISBLANK($U134)),$U134,"") -> 2035-01-01 | AB134: =+IF(NOT(ISBLANK($U134)),$U134,"") -> 2035-01-01 | AC134: 2035-01-01 | AD134: 2035-01-01 | AE134: 2035-01-01 | AF134: 2035-01-01 | AG134: 2035-01-01 | AH134: 2035-01-01 | AI134: 2035-01-01 | AJ134: 2035-01-01 | AK134: 2035-01-01 | AL134: 2035-01-01 | AM134: 2035-01-01
C136: Operatiiviset oletukset
C138: Lentorata
C140: Junaoletukset
C141: SR2-veturin paino (t) | E141: =IF(ISBLANK($F141),LOOKUP($E$6,$I$6:$XN$6,$I141:$XN141),$F141) -> 83 | G141: 83 | I141: =$G141 -> 83 | J141: 83 | K141: 83 | L141: 83 | M141: 83 | N141: 83 | O141: 83 | P141: 83 | Q141: 83 | R141: 83 | S141: 83 | U141: =+LOOKUP(U$3,$I$6:$DI$6,$I141:DI141) -> 83 | W141: =+IF(NOT(ISBLANK($U141)),$U141,"") -> 83 | X141: 83 | Y141: 83 | Z141: 83 | AA141: 83 | AB141: 83 | AC141: 83 | AD141: 83 | AE141: 83 | AF141: 83 | AG141: 83 | AH141: 83 | AI141: 83 | AJ141: 83 | AK141: 83 | AL141: 83 | AM141: =+IF(NOT(ISBLANK($U141)),$U141,"") -> 83
C142: Intercity-vaunun paino (t) | E142: =IF(ISBLANK($F142),LOOKUP($E$6,$I$6:$XN$6,$I142:$XN142),$F142) -> 53 | G142: 53 | I142: 53 | J142: 53 | K142: 53 | L142: 53 | M142: 53 | N142: 53 | O142: 53 | P142: 53 | Q142: 53 | R142: 53 | S142: 53 | U142: =+LOOKUP(U$3,$I$6:$DI$6,$I142:DI142) -> 53 | W142: 53 | X142: 53 | Y142: 53 | Z142: 53 | AA142: 53 | AB142: 53 | AC142: 53 | AD142: 53 | AE142: 53 | AF142: 53 | AG142: 53 | AH142: 53 | AI142: 53 | AJ142: 53 | AK142: 53 | AL142: 53 | AM142: 53
C143: Intercity-vaunujen määrä perusyksikössä | E143: =IF(ISBLANK($F143),LOOKUP($E$6,$I$6:$XN$6,$I143:$XN143),$F143) -> 3 | G143: 3 | I143: 3 | J143: 3 | K143: 3 | L143: 3 | M143: 3 | N143: 3 | O143: 3 | P143: 3 | Q143: 3 | R143: 3 | S143: 3 | U143: =+LOOKUP(U$3,$I$6:$DI$6,$I143:DI143) -> 3 | W143: 3 | X143: 3 | Y143: 3 | Z143: 3 | AA143: 3 | AB143: 3 | AC143: 3 | AD143: 3 | AE143: 3 | AF143: 3 | AG143: 3 | AH143: 3 | AI143: 3 | AJ143: 3 | AK143: 3 | AL143: 3 | AM143: 3
C144: Intercity-junan kapasiteetti | E144: =IF(ISBLANK($F144),LOOKUP($E$6,$I$6:$XN$6,$I144:$XN144),$F144) -> 100 | G144: 100 | I144: 100 | J144: 100 | K144: 100 | L144: 100 | M144: 100 | N144: 100 | O144: 100 | P144: 100 | Q144: 100 | R144: 100 | S144: 100 | U144: =+LOOKUP(U$3,$I$6:$DI$6,$I144:DI144) -> 100 | W144: 100 | X144: 100 | Y144: 100 | Z144: 100 | AA144: 100 | AB144: 100 | AC144: 100 | AD144: 100 | AE144: 100 | AF144: 100 | AG144: 100 | AH144: 100 | AI144: 100 | AJ144: 100 | AK144: 100 | AL144: 100 | AM144: 100
C145: Lisäyksiköiden määrä per juna | E145: =IF(ISBLANK($F145),LOOKUP($E$6,$I$6:$XN$6,$I145:$XN145),$F145) -> 1 | G145: 1 | I145: 1 | J145: 1 | K145: 1 | L145: 1 | M145: 1 | N145: 1 | O145: 1 | P145: 1 | Q145: 1 | R145: 1 | S145: 1 | U145: =+LOOKUP(U$3,$I$6:$DI$6,$I145:DI145) -> 1 | W145: 1 | X145: 1 | Y145: 1 | Z145: 1 | AA145: 1 | AB145: 1 | AC145: 1 | AD145: 1 | AE145: 1 | AF145: 1 | AG145: 1 | AH145: 1 | AI145: 1 | AJ145: 1 | AK145: 1 | AL145: 1 | AM145: 1
C147: Matkustajamäärät
C148: Lentorataa käyttävien lentomatkustajien määrä poikkileikkausvuonna (m) | E148: =IF(ISBLANK($F148),LOOKUP($E$6,$I$6:$XN$6,$I148:$XN148),$F148) -> 2.03 | G148: 2.03 | I148: =$G148 -> 2.03 | J148: 2.03 | K148: 2.03 | L148: 2.03 | M148: 2.03 | N148: 2.03 | O148: 2.03 | P148: 2.03 | Q148: 2.03 | R148: 2.03 | S148: 2.03 | U148: =+LOOKUP(U$3,$I$6:$DI$6,$I148:DI148) -> 2.03 | W148: =+IF(NOT(ISBLANK($U148)),$U148,"") -> 2.03 | X148: 2.03 | Y148: 2.03 | Z148: 2.03 | AA148: 2.03 | AB148: 2.03 | AC148: 2.03 | AD148: 2.03 | AE148: 2.03 | AF148: 2.03 | AG148: 2.03 | AH148: 2.03 | AI148: 2.03 | AJ148: 2.03 | AK148: 2.03 | AL148: 2.03 | AM148: 2.03
C149: Poikkileikkausvuosi | E149: =IF(ISBLANK($F149),LOOKUP($E$6,$I$6:$XN$6,$I149:$XN149),$F149) -> 2050 | G149: 2050 | I149: 2050 | J149: 2050 | K149: 2050 | L149: 2050 | M149: 2050 | N149: 2050 | O149: 2050 | P149: 2050 | Q149: 2050 | R149: 2050 | S149: 2050 | U149: =+LOOKUP(U$3,$I$6:$DI$6,$I149:DI149) -> 2050 | W149: 2050 | X149: 2050 | Y149: 2050 | Z149: 2050 | AA149: 2050 | AB149: 2050 | AC149: 2050 | AD149: 2050 | AE149: 2050 | AF149: 2050 | AG149: 2050 | AH149: 2050 | AI149: 2050 | AJ149: 2050 | AK149: 2050 | AL149: 2050 | AM149: 2050
C150: Lentorataa käyttävien lentomatkustajien määrä (herkkyystarkastelu, +/- p.a.) | E150: =IF($E$12=0,IF(ISBLANK($F150),LOOKUP($E$6,$I$6:$XN$6,$I150:$XN150),$F150),Herkkyystarkastelu!D46) -> 0 | G150: 0 | I150: =$G150 -> 0 | J150: 0 | K150: 0 | L150: 0 | M150: 0 | N150: 0 | O150: 0 | P150: 0 | Q150: 0 | R150: 0 | S150: 0 | U150: =+LOOKUP(U$3,$I$6:$DI$6,$I150:DI150) -> 0 | W150: =+IF(NOT(ISBLANK($U150)),$U150,"") -> 0 | X150: 0 | Y150: 0 | Z150: 0 | AA150: 0 | AB150: 0 | AC150: 0 | AD150: 0 | AE150: 0 | AF150: 0 | AG150: 0 | AH150: 0 | AI150: 0 | AJ150: 0 | AK150: 0 | AL150: 0 | AM150: 0
C151: Lentorataa käyttävien kaukomatkustajien osuus junaa käyttävistä | E151: =IF(ISBLANK($F151),LOOKUP($E$6,$I$6:$XN$6,$I151:$XN151),$F151) -> 0.2 | G151: 0.2 | I151: 0.2 | J151: 0.2 | K151: 0.2 | L151: 0.2 | M151: 0.2 | N151: 0.2 | O151: 0.2 | P151: 0.2 | Q151: 0.2 | R151: 0.2 | S151: 0.2 | U151: =+LOOKUP(U$3,$I$6:$DI$6,$I151:DI151) -> 0.2 | W151: 0.2 | X151: 0.2 | Y151: 0.2 | Z151: 0.2 | AA151: 0.2 | AB151: 0.2 | AC151: 0.2 | AD151: 0.2 | AE151: 0.2 | AF151: 0.2 | AG151: 0.2 | AH151: 0.2 | AI151: 0.2 | AJ151: 0.2 | AK151: 0.2 | AL151: 0.2 | AM151: 0.2
C152: Lentorataa käyttävien kaukomatkustajien määrä (herkkyystarkastelu, +/- p.a.) | E152: =IF(ISBLANK($F152),LOOKUP($E$6,$I$6:$XN$6,$I152:$XN152),$F152) -> 0 | G152: 0 | I152: 0 | J152: 0 | K152: 0 | L152: 0 | M152: 0 | N152: 0 | O152: 0 | P152: 0 | Q152: 0 | R152: 0 | S152: 0 | U152: =+LOOKUP(U$3,$I$6:$DI$6,$I152:DI152) -> 0 | W152: 0 | X152: 0 | Y152: 0 | Z152: 0 | AA152: 0 | AB152: 0 | AC152: 0 | AD152: 0 | AE152: 0 | AF152: 0 | AG152: 0 | AH152: 0 | AI152: 0 | AJ152: 0 | AK152: 0 | AL152: 0 | AM152: 0
C154: Maksut
C155: Lipun hinta lentokenttämatkustajiile (EUR) | E155: =IF($E$12=0,IF(ISBLANK($F155),LOOKUP($E$6,$I$6:$XN$6,$I155:$XN155),$F155),Herkkyystarkastelu!D42) -> 7.08 | G155: 7.08 | I155: =$G155 -> 7.08 | J155: 7.08 | K155: 7.08 | L155: 7.08 | M155: 7.08 | N155: 7.08 | O155: 7.08 | P155: 7.08 | Q155: 7.08 | R155: 7.08 | S155: 7.08 | U155: =+LOOKUP(U$3,$I$6:$DI$6,$I155:DI155) -> 7.08 | W155: =+IF(NOT(ISBLANK($U155)),$U155,"") -> 7.08 | X155: 7.08 | Y155: 7.08 | Z155: 7.08 | AA155: 7.08 | AB155: 7.08 | AC155: 7.08 | AD155: 7.08 | AE155: 7.08 | AF155: 7.08 | AG155: 7.08 | AH155: 7.08 | AI155: 7.08 | AJ155: 7.08 | AK155: 7.08 | AL155: 7.08 | AM155: =+IF(NOT(ISBLANK($U155)),$U155,"") -> 7.08
C156: Investointimaksu (EUR/bruttotonnikilometri) | E156: =IF(ISBLANK($F156),LOOKUP($E$6,$I$6:$XN$6,$I156:$XN156),$F156) -> 0.0027 | G156: 0.0027 | I156: 0.0027 | J156: 0.0027 | K156: 0.0027 | L156: 0.0027 | M156: 0.0027 | N156: 0.0027 | O156: 0.0027 | P156: 0.0027 | Q156: 0.0027 | R156: 0.0027 | S156: 0.0027 | U156: =+LOOKUP(U$3,$I$6:$DI$6,$I156:DI156) -> 0.0027 | W156: 0.0027 | X156: 0.0027 | Y156: 0.0027 | Z156: 0.0027 | AA156: 0.0027 | AB156: 0.0027 | AC156: 0.0027 | AD156: 0.0027 | AE156: 0.0027 | AF156: 0.0027 | AG156: 0.0027 | AH156: 0.0027 | AI156: 0.0027 | AJ156: 0.0027 | AK156: 0.0027 | AL156: 0.0027 | AM156: 0.0027
C157: Ratamaksu (EUR/bruttotonnikilometri) | E157: =IF(ISBLANK($F157),LOOKUP($E$6,$I$6:$XN$6,$I157:$XN157),$F157) -> 0.001653 | G157: 0.001653 | I157: 0.001653 | J157: 0.001653 | K157: 0.001653 | L157: 0.001653 | M157: 0.001653 | N157: 0.001653 | O157: 0.001653 | P157: 0.001653 | Q157: 0.001653 | R157: 0.001653 | S157: 0.001653 | U157: =+LOOKUP(U$3,$I$6:$DI$6,$I157:DI157) -> 0.001653 | W157: 0.001653 | X157: 0.001653 | Y157: 0.001653 | Z157: 0.001653 | AA157: 0.001653 | AB157: 0.001653 | AC157: 0.001653 | AD157: 0.001653 | AE157: 0.001653 | AF157: 0.001653 | AG157: 0.001653 | AH157: 0.001653 | AI157: 0.001653 | AJ157: 0.001653 | AK157: 0.001653 | AL157: 0.001653 | AM157: 0.001653
C158: HSL-seutulipun hinta (EUR, sis. alv) | E158: =IF(ISBLANK($F158),LOOKUP($E$6,$I$6:$XN$6,$I158:$XN158),$F158) -> 2.7 | G158: 2.7 | I158: 2.7 | J158: 2.7 | K158: 2.7 | L158: 2.7 | M158: 2.7 | N158: 2.7 | O158: 2.7 | P158: 2.7 | Q158: 2.7 | R158: 2.7 | S158: 2.7 | U158: =+LOOKUP(U$3,$I$6:$DI$6,$I158:DI158) -> 2.7 | W158: 2.7 | X158: 2.7 | Y158: 2.7 | Z158: 2.7 | AA158: 2.7 | AB158: 2.7 | AC158: 2.7 | AD158: 2.7 | AE158: 2.7 | AF158: 2.7 | AG158: 2.7 | AH158: 2.7 | AI158: 2.7 | AJ158: 2.7 | AK158: 2.7 | AL158: 2.7 | AM158: 2.7
C160: Kustannukset
C161: Lentoradan kunnossapidon yksikköarvo (EURt/km) | E161: =IF(ISBLANK($F161),LOOKUP($E$6,$I$6:$XN$6,$I161:$XN161),$F161) -> 16 | G161: 16 | I161: =$G161 -> 16 | J161: 16 | K161: 16 | L161: 16 | M161: 16 | N161: 16 | O161: 16 | P161: 16 | Q161: 16 | R161: 16 | S161: 16 | U161: =+LOOKUP(U$3,$I$6:$DI$6,$I161:DI161) -> 16 | W161: =+IF(NOT(ISBLANK($U161)),$U161,"") -> 16 | X161: 16 | Y161: 16 | Z161: 16 | AA161: 16 | AB161: 16 | AC161: 16 | AD161: 16 | AE161: 16 | AF161: 16 | AG161: 16 | AH161: 16 | AI161: 16 | AJ161: 16 | AK161: 16 | AL161: 16 | AM161: =+IF(NOT(ISBLANK($U161)),$U161,"") -> 16
C162: Aseman kunnossapitokustannukset (EURm) | E162: =IF(ISBLANK($F162),LOOKUP($E$6,$I$6:$XN$6,$I162:$XN162),$F162) -> 1.4 | G162: 1.4 | I162: 1.4 | J162: 1.4 | K162: 1.4 | L162: 1.4 | M162: 1.4 | N162: 1.4 | O162: 1.4 | P162: 1.4 | Q162: 1.4 | R162: 1.4 | S162: 1.4 | U162: =+LOOKUP(U$3,$I$6:$DI$6,$I162:DI162) -> 1.4 | W162: 1.4 | X162: 1.4 | Y162: 1.4 | Z162: 1.4 | AA162: 1.4 | AB162: 1.4 | AC162: 1.4 | AD162: 1.4 | AE162: 1.4 | AF162: 1.4 | AG162: 1.4 | AH162: 1.4 | AI162: 1.4 | AJ162: 1.4 | AK162: 1.4 | AL162: 1.4 | AM162: 1.4
C164: Kerava-Tampere -ratakäytävä
C166: Junaoletukset
C167: SR2-veturin paino (t) | E167: =IF(ISBLANK($F167),LOOKUP($E$6,$I$6:$XN$6,$I167:$XN167),$F167) -> 83 | G167: 83 | I167: =$G167 -> 83 | J167: 83 | K167: 83 | L167: 83 | M167: 83 | N167: 83 | O167: 83 | P167: 83 | Q167: 83 | R167: 83 | S167: 83 | U167: =+LOOKUP(U$3,$I$6:$DI$6,$I167:DI167) -> 83 | W167: =+IF(NOT(ISBLANK($U167)),$U167,"") -> 83 | X167: 83 | Y167: 83 | Z167: 83 | AA167: 83 | AB167: 83 | AC167: 83 | AD167: 83 | AE167: 83 | AF167: 83 | AG167: 83 | AH167: 83 | AI167: 83 | AJ167: 83 | AK167: 83 | AL167: 83 | AM167: =+IF(NOT(ISBLANK($U167)),$U167,"") -> 83
C168: Intercity-vaunun paino (t) | E168: =IF(ISBLANK($F168),LOOKUP($E$6,$I$6:$XN$6,$I168:$XN168),$F168) -> 53 | G168: 53 | I168: 53 | J168: 53 | K168: 53 | L168: 53 | M168: 53 | N168: 53 | O168: 53 | P168: 53 | Q168: 53 | R168: 53 | S168: 53 | U168: =+LOOKUP(U$3,$I$6:$DI$6,$I168:DI168) -> 53 | W168: 53 | X168: 53 | Y168: 53 | Z168: 53 | AA168: 53 | AB168: 53 | AC168: 53 | AD168: 53 | AE168: 53 | AF168: 53 | AG168: 53 | AH168: 53 | AI168: 53 | AJ168: 53 | AK168: 53 | AL168: 53 | AM168: 53
C169: Intercity-vaunujen määrä perusyksikössä | E169: =IF(ISBLANK($F169),LOOKUP($E$6,$I$6:$XN$6,$I169:$XN169),$F169) -> 3 | G169: 3 | I169: 3 | J169: 3 | K169: 3 | L169: 3 | M169: 3 | N169: 3 | O169: 3 | P169: 3 | Q169: 3 | R169: 3 | S169: 3 | U169: =+LOOKUP(U$3,$I$6:$DI$6,$I169:DI169) -> 3 | W169: 3 | X169: 3 | Y169: 3 | Z169: 3 | AA169: 3 | AB169: 3 | AC169: 3 | AD169: 3 | AE169: 3 | AF169: 3 | AG169: 3 | AH169: 3 | AI169: 3 | AJ169: 3 | AK169: 3 | AL169: 3 | AM169: 3
C170: Intercity-junan kapasiteetti | E170: =IF(ISBLANK($F170),LOOKUP($E$6,$I$6:$XN$6,$I170:$XN170),$F170) -> 100 | G170: 100 | I170: 100 | J170: 100 | K170: 100 | L170: 100 | M170: 100 | N170: 100 | O170: 100 | P170: 100 | Q170: 100 | R170: 100 | S170: 100 | U170: =+LOOKUP(U$3,$I$6:$DI$6,$I170:DI170) -> 100 | W170: 100 | X170: 100 | Y170: 100 | Z170: 100 | AA170: 100 | AB170: 100 | AC170: 100 | AD170: 100 | AE170: 100 | AF170: 100 | AG170: 100 | AH170: 100 | AI170: 100 | AJ170: 100 | AK170: 100 | AL170: 100 | AM170: 100
C171: Lisäyksiköiden määrä per juna | E171: =IF(ISBLANK($F171),LOOKUP($E$6,$I$6:$XN$6,$I171:$XN171),$F171) -> 2 | G171: 2 | I171: 2 | J171: 2 | K171: 2 | L171: 2 | M171: 2 | N171: 2 | O171: 2 | P171: 2 | Q171: 2 | R171: 2 | S171: 2 | U171: =+LOOKUP(U$3,$I$6:$DI$6,$I171:DI171) -> 2 | W171: 2 | X171: 2 | Y171: 2 | Z171: 2 | AA171: 2 | AB171: 2 | AC171: 2 | AD171: 2 | AE171: 2 | AF171: 2 | AG171: 2 | AH171: 2 | AI171: 2 | AJ171: 2 | AK171: 2 | AL171: 2 | AM171: 2
C173: Matkustajamäärät
C174: Teoreettinen matkustajamäärä vuonna 2030 (miljoonaa) | E174: =IF(ISBLANK($F174),LOOKUP($E$6,$I$6:$XN$6,$I174:$XN174),$F174) -> 6.105 | G174: 6.105 | I174: =$G174 -> 6.105 | J174: 6.105 | K174: 6.105 | L174: 6.105 | M174: 6.105 | N174: 6.105 | O174: 6.105 | P174: 6.105 | Q174: 6.105 | R174: 6.105 | S174: 6.105 | U174: =+LOOKUP(U$3,$I$6:$DI$6,$I174:DI174) -> 6.105 | W174: =+IF(NOT(ISBLANK($U174)),$U174,"") -> 6.105 | X174: 6.105 | Y174: 6.105 | Z174: 6.105 | AA174: 6.105 | AB174: 6.105 | AC174: 6.105 | AD174: 6.105 | AE174: 6.105 | AF174: 6.105 | AG174: 6.105 | AH174: 6.105 | AI174: 6.105 | AJ174: 6.105 | AK174: 6.105 | AL174: 6.105 | AM174: 6.105
C175: Matkustajamäärän kasvu (väestönkasvun lisäksi) periodilla 1 | E175: 0.01 | G175: 0.01 | I175: 0.01 | J175: 0.01 | K175: 0.01 | L175: 0.01 | M175: 0.01 | N175: 0.01 | O175: 0.01 | P175: 0.01 | Q175: 0.01 | R175: 0.01 | S175: 0.01 | U175: =+LOOKUP(U$3,$I$6:$DI$6,$I175:DI175) -> 0.01 | W175: 0.01 | X175: 0.01 | Y175: 0.01 | Z175: 0.01 | AA175: 0.01 | AB175: 0.01 | AC175: 0.01 | AD175: 0.01 | AE175: 0.01 | AF175: 0.01 | AG175: 0.01 | AH175: 0.01 | AI175: 0.01 | AJ175: 0.01 | AK175: 0.01 | AL175: 0.01 | AM175: 0.01
C176: Periodin 1 kesto (vuotta) (radan valmistumisesta) | E176: 7 | G176: 7 | I176: 7 | J176: 7 | K176: 7 | L176: 7 | M176: 7 | N176: 7 | O176: 7 | P176: 7 | Q176: 7 | R176: 7 | S176: 7 | U176: =+LOOKUP(U$3,$I$6:$DI$6,$I176:DI176) -> 7 | W176: 7 | X176: 7 | Y176: 7 | Z176: 7 | AA176: 7 | AB176: 7 | AC176: 7 | AD176: 7 | AE176: 7 | AF176: 7 | AG176: 7 | AH176: 7 | AI176: 7 | AJ176: 7 | AK176: 7 | AL176: 7 | AM176: 7
C177: Matkustajamäärän kasvu (väestönkasvun lisäksi) periodilal 2 | E177: 0.005 | G177: 0.005 | I177: 0.005 | J177: 0.005 | K177: 0.005 | L177: 0.005 | M177: 0.005 | N177: 0.005 | O177: 0.005 | P177: 0.005 | Q177: 0.005 | R177: 0.005 | S177: 0.005 | U177: =+LOOKUP(U$3,$I$6:$DI$6,$I177:DI177) -> 0.005 | W177: 0.005 | X177: 0.005 | Y177: 0.005 | Z177: 0.005 | AA177: 0.005 | AB177: 0.005 | AC177: 0.005 | AD177: 0.005 | AE177: 0.005 | AF177: 0.005 | AG177: 0.005 | AH177: 0.005 | AI177: 0.005 | AJ177: 0.005 | AK177: 0.005 | AL177: 0.005 | AM177: 0.005
C178: Periodin 2 kesto (vuotta) | E178: 10 | G178: 10 | I178: 10 | J178: 10 | K178: 10 | L178: 10 | M178: 10 | N178: 10 | O178: 10 | P178: 10 | Q178: 10 | R178: 10 | S178: 10 | U178: =+LOOKUP(U$3,$I$6:$DI$6,$I178:DI178) -> 10 | W178: 10 | X178: 10 | Y178: 10 | Z178: 10 | AA178: 10 | AB178: 10 | AC178: 10 | AD178: 10 | AE178: 10 | AF178: 10 | AG178: 10 | AH178: 10 | AI178: 10 | AJ178: 10 | AK178: 10 | AL178: 10 | AM178: 10
C179: Nopean yhteyden osuus kokonaismatkustajamäärästä | E179: 0.7 | G179: 0.7 | I179: 0.7 | J179: 0.7 | K179: 0.7 | L179: 0.7 | M179: 0.7 | N179: 0.7 | O179: 0.7 | P179: 0.7 | Q179: 0.7 | R179: 0.7 | S179: 0.7 | U179: =+LOOKUP(U$3,$I$6:$DI$6,$I179:DI179) -> 0.7 | W179: 0.7 | X179: 0.7 | Y179: 0.7 | Z179: 0.7 | AA179: 0.7 | AB179: 0.7 | AC179: 0.7 | AD179: 0.7 | AE179: 0.7 | AF179: 0.7 | AG179: 0.7 | AH179: 0.7 | AI179: 0.7 | AJ179: 0.7 | AK179: 0.7 | AL179: 0.7 | AM179: 0.7
C180: Matkustajamäärä (herkkyystarkastelu, +/- p.a.) | E180: =IF($E$12=0,IF(ISBLANK($F180),LOOKUP($E$6,$I$6:$XN$6,$I180:$XN180),$F180),Herkkyystarkastelu!D47) -> 0 | G180: 0 | I180: 0 | J180: 0 | K180: 0 | L180: 0 | M180: 0 | N180: 0 | O180: 0 | P180: 0 | Q180: 0 | R180: 0 | S180: 0 | U180: =+LOOKUP(U$3,$I$6:$DI$6,$I180:DI180) -> 0 | W180: 0 | X180: 0 | Y180: 0 | Z180: 0 | AA180: 0 | AB180: 0 | AC180: 0 | AD180: 0 | AE180: 0 | AF180: 0 | AG180: 0 | AH180: 0 | AI180: 0 | AJ180: 0 | AK180: 0 | AL180: 0 | AM180: 0
C182: Lähdöt
C183: Päivittäiset lähdöt (molempiin suuntiin) periodilla 1 | E183: =IF(ISBLANK($F183),LOOKUP($E$6,$I$6:$XN$6,$I183:$XN183),$F183) -> 32 | G183: 32 | I183: =$G183 -> 32 | J183: 32 | K183: 32 | L183: 32 | M183: 32 | N183: 32 | O183: 32 | P183: 32 | Q183: 32 | R183: 32 | S183: 32 | U183: =+LOOKUP(U$3,$I$6:$DI$6,$I183:DI183) -> 32 | W183: =+IF(NOT(ISBLANK($U183)),$U183,"") -> 32 | X183: 32 | Y183: 32 | Z183: 32 | AA183: 32 | AB183: 32 | AC183: 32 | AD183: 32 | AE183: 32 | AF183: 32 | AG183: 32 | AH183: 32 | AI183: 32 | AJ183: 32 | AK183: 32 | AL183: 32 | AM183: =+IF(NOT(ISBLANK($U183)),$U183,"") -> 32
C184: Periodin 1 kesto (vuotta) (radan valmistumisesta) | E184: =IF(ISBLANK($F184),LOOKUP($E$6,$I$6:$XN$6,$I184:$XN184),$F184) -> 18 | G184: 18 | I184: 18 | J184: 18 | K184: 18 | L184: 18 | M184: 18 | N184: 18 | O184: 18 | P184: 18 | Q184: 18 | R184: 18 | S184: 18 | U184: =+LOOKUP(U$3,$I$6:$DI$6,$I184:DI184) -> 18 | W184: 18 | X184: 18 | Y184: 18 | Z184: 18 | AA184: 18 | AB184: 18 | AC184: 18 | AD184: 18 | AE184: 18 | AF184: 18 | AG184: 18 | AH184: 18 | AI184: 18 | AJ184: 18 | AK184: 18 | AL184: 18 | AM184: 18
C185: Päivittäiset lähdöt (molempiin suuntiin) periodin 1 jälkeen | E185: =IF(ISBLANK($F185),LOOKUP($E$6,$I$6:$XN$6,$I185:$XN185),$F185) -> 37 | G185: 37 | I185: 37 | J185: 37 | K185: 37 | L185: 37 | M185: 37 | N185: 37 | O185: 37 | P185: 37 | Q185: 37 | R185: 37 | S185: 37 | U185: =+LOOKUP(U$3,$I$6:$DI$6,$I185:DI185) -> 37 | W185: 37 | X185: 37 | Y185: 37 | Z185: 37 | AA185: 37 | AB185: 37 | AC185: 37 | AD185: 37 | AE185: 37 | AF185: 37 | AG185: 37 | AH185: 37 | AI185: 37 | AJ185: 37 | AK185: 37 | AL185: 37 | AM185: 37
C187: Maksut
C188: Nopeutusmaksu / matkustaja (EUR) (sis. alv) | E188: =IF($E$12=0,IF(ISBLANK($F188),LOOKUP($E$6,$I$6:$XN$6,$I188:$XN188),$F188),Herkkyystarkastelu!D43) -> 8.636337852 | G188: 8.636337852 | I188: =$G188 -> 8.636337852 | J188: 8.636337852 | K188: 8.636337852 | L188: 8.636337852 | M188: 8.636337852 | N188: 8.636337852 | O188: 14.55336233 | P188: 14.55336233 | Q188: 14.55336233 | R188: 14.55336233 | S188: 8.636337852 | U188: =+LOOKUP(U$3,$I$6:$DI$6,$I188:DI188) -> 8.636337852 | W188: =+IF(NOT(ISBLANK($U188)),$U188,"") -> 8.636337852 | X188: 8.636337852 | Y188: 8.636337852 | Z188: 8.636337852 | AA188: 8.636337852 | AB188: 8.636337852 | AC188: 8.636337852 | AD188: 8.636337852 | AE188: 8.636337852 | AF188: 8.636337852 | AG188: 8.636337852 | AH188: 8.636337852 | AI188: 8.636337852 | AJ188: 8.636337852 | AK188: 8.636337852 | AL188: 8.636337852 | AM188: 8.636337852
C189: Investointimaksu (EUR/bruttotonnikilometri) | E189: =IF(ISBLANK($F189),LOOKUP($E$6,$I$6:$XN$6,$I189:$XN189),$F189) -> 0.0027 | G189: 0.0027 | I189: =$G189 -> 0.0027 | J189: 0.0027 | K189: 0.0027 | L189: 0.0027 | M189: 0.0027 | N189: 0.0027 | O189: 0.0027 | P189: 0.0027 | Q189: 0.0027 | R189: 0.0027 | S189: 0.0027 | U189: =+LOOKUP(U$3,$I$6:$DI$6,$I189:DI189) -> 0.0027 | W189: =+IF(NOT(ISBLANK($U189)),$U189,"") -> 0.0027 | X189: 0.0027 | Y189: 0.0027 | Z189: 0.0027 | AA189: 0.0027 | AB189: 0.0027 | AC189: 0.0027 | AD189: 0.0027 | AE189: 0.0027 | AF189: 0.0027 | AG189: 0.0027 | AH189: 0.0027 | AI189: 0.0027 | AJ189: 0.0027 | AK189: 0.0027 | AL189: 0.0027 | AM189: 0.0027
C191: Kustannukset
C192: Radan kunnossapidon kustannus (EUR/btkm) | E192: =IF(ISBLANK($F192),LOOKUP($E$6,$I$6:$XN$6,$I192:$XN192),$F192) -> 0.0019 | G192: 0.0019 | I192: =$G192 -> 0.0019 | J192: 0.0019 | K192: 0.0019 | L192: 0.0019 | M192: 0.0019 | N192: 0.0019 | O192: 0.0019 | P192: 0.0019 | Q192: 0.0019 | R192: 0.0019 | S192: 0.0019 | U192: =+LOOKUP(U$3,$I$6:$DI$6,$I192:DI192) -> 0.0019 | W192: =+IF(NOT(ISBLANK($U192)),$U192,"") -> 0.0019 | X192: 0.0019 | Y192: 0.0019 | Z192: 0.0019 | AA192: 0.0019 | AB192: 0.0019 | AC192: 0.0019 | AD192: 0.0019 | AE192: 0.0019 | AF192: 0.0019 | AG192: 0.0019 | AH192: 0.0019 | AI192: 0.0019 | AJ192: 0.0019 | AK192: 0.0019 | AL192: 0.0019 | AM192: 0.0019
C194: Yleiset
C196: Tonttiomaisuuden tuotot
C197: Tonttimalli käytössä? (1=Kyllä, 0=Ei) | E197: =IF(ISBLANK($F197),LOOKUP($E$6,$I$6:$XN$6,$I197:$XN197),$F197) -> 1 | G197: 1 | I197: =$G197 -> 1 | J197: 1 | K197: 0 | L197: =$G197 -> 1 | M197: 1 | N197: 1 | O197: 1 | P197: 1 | Q197: 1 | R197: 1 | S197: 1 | U197: =+LOOKUP(U$3,$I$6:$DI$6,$I197:DI197) -> 1 | W197: =+IF(NOT(ISBLANK($U197)),$U197,"") -> 1 | X197: 1 | Y197: 1 | Z197: 1 | AA197: 1 | AB197: 1 | AC197: 1 | AD197: 1 | AE197: 1 | AF197: 1 | AG197: 1 | AH197: 1 | AI197: 1 | AJ197: 1 | AK197: 1 | AL197: 1 | AM197: =+IF(NOT(ISBLANK($U197)),$U197,"") -> 1
C198: Operatiivinen nettotuottoprosentti p.a. | E198: =IF($E$12=0,IF(ISBLANK($F198),LOOKUP($E$6,$I$6:$XN$6,$I198:$XN198),$F198),Herkkyystarkastelu!D34) -> 0.045 | G198: 0.045 | I198: 0.045 | J198: 0.045 | K198: =$G198 -> 0.045 | L198: 0.045 | M198: 0.045 | N198: 0.045 | O198: 0.045 | P198: 0.045 | Q198: 0.045 | R198: 0.045 | S198: 0.045 | U198: =+LOOKUP(U$3,$I$6:$DI$6,$I198:DI198) -> 0.045 | W198: 0.045 | X198: 0.045 | Y198: 0.045 | Z198: 0.045 | AA198: 0.045 | AB198: 0.045 | AC198: 0.045 | AD198: 0.045 | AE198: 0.045 | AF198: 0.045 | AG198: 0.045 | AH198: 0.045 | AI198: 0.045 | AJ198: 0.045 | AK198: 0.045 | AL198: 0.045 | AM198: 0.045
C199: Vuosittainen käyvän arvon korotus | E199: =IF($E$12=0,IF(ISBLANK($F199),LOOKUP($E$6,$I$6:$XN$6,$I199:$XN199),$F199),Herkkyystarkastelu!D35) -> 0.02 | G199: 0.02 | I199: 0.02 | J199: 0.02 | K199: 0.02 | L199: 0.02 | M199: 0.02 | N199: 0.02 | O199: 0.02 | P199: 0.02 | Q199: 0.02 | R199: 0.02 | S199: 0.02 | U199: =+LOOKUP(U$3,$I$6:$DI$6,$I199:DI199) -> 0.02 | W199: 0.02 | X199: 0.02 | Y199: 0.02 | Z199: 0.02 | AA199: 0.02 | AB199: 0.02 | AC199: 0.02 | AD199: 0.02 | AE199: 0.02 | AF199: 0.02 | AG199: 0.02 | AH199: 0.02 | AI199: 0.02 | AJ199: 0.02 | AK199: 0.02 | AL199: 0.02 | AM199: 0.02
C201: Konsessiomaksut
C202: Konsessiomaksut käytössä? (1=Kyllä, 0=Ei) | E202: =IF(ISBLANK($F202),LOOKUP($E$6,$I$6:$XN$6,$I202:$XN202),$F202) -> 1 | G202: 0 | I202: =$G202 -> 0 | J202: 0 | K202: 1 | L202: 1 | M202: 1 | N202: 1 | O202: =$G202 -> 0 | P202: 1 | Q202: 1 | R202: 1 | S202: =$G202 -> 0 | U202: =+LOOKUP(U$3,$I$6:$DI$6,$I202:DI202) -> 1 | W202: =+IF(NOT(ISBLANK($U202)),$U202,"") -> 1 | X202: 1 | Y202: 1 | Z202: 1 | AA202: 1 | AB202: 1 | AC202: 1 | AD202: 1 | AE202: 1 | AF202: 1 | AG202: 1 | AH202: 1 | AI202: 1 | AJ202: 1 | AK202: 1 | AL202: 1 | AM202: =+IF(NOT(ISBLANK($U202)),$U202,"") -> 1
C203: Maksujen aloitusajankohta | E203: =IF(ISBLANK($F203),LOOKUP($E$6,$I$6:$XN$6,$I203:$XN203),$F203) -> 2032-01-01 | G203: =E22 -> 2032-01-01 | I203: 2032-01-01 | J203: 2032-01-01 | K203: =$G203 -> 2032-01-01 | L203: =$G203 -> 2032-01-01 | M203: =$G203 -> 2032-01-01 | N203: =$G203 -> 2032-01-01 | O203: 2032-01-01 | P203: =$G203 -> 2032-01-01 | Q203: =$G203 -> 2032-01-01 | R203: =$G203 -> 2032-01-01 | S203: 2032-01-01 | U203: =+LOOKUP(U$3,$I$6:$DI$6,$I203:DI203) -> 2032-01-01 | W203: 2032-01-01 | X203: 2032-01-01 | Y203: 2032-01-01 | Z203: 2032-01-01 | AA203: 2032-01-01 | AB203: 2032-01-01 | AC203: 2032-01-01 | AD203: 2032-01-01 | AE203: 2032-01-01 | AF203: 2032-01-01 | AG203: 2032-01-01 | AH203: 2032-01-01 | AI203: 2032-01-01 | AJ203: 2032-01-01 | AK203: 2032-01-01 | AL203: 2032-01-01 | AM203: 2032-01-01
C204: Maksun määrittäminen (1=Infrastruktuurimaksumalli, 2=Hybridimalli) | E204: =IF(ISBLANK($F204),LOOKUP($E$6,$I$6:$XN$6,$I204:$XN204),$F204) -> 2 | G204: 2 | I204: 2 | J204: 2 | K204: 1 | L204: =$G204 -> 2 | M204: 2 | N204: 2 | O204: 2 | P204: 2 | Q204: 2 | R204: 2 | S204: 2 | U204: =+LOOKUP(U$3,$I$6:$DI$6,$I204:DI204) -> 2 | W204: 2 | X204: 2 | Y204: 2 | Z204: 2 | AA204: 2 | AB204: 2 | AC204: 2 | AD204: 2 | AE204: 2 | AF204: 2 | AG204: 2 | AH204: 2 | AI204: 2 | AJ204: 2 | AK204: 2 | AL204: 2 | AM204: 2
C205: Maksun taso (EURm) (pätee vain Hybridimalliin ja sen variaatioihin) | E205: =IF($E$12=0,IF(ISBLANK($F205),LOOKUP($E$6,$I$6:$XN$6,$I205:$XN205),$F205),Herkkyystarkastelu!D38) -> 30 | G205: 40 | I205: 0 | J205: 0 | K205: 0 | L205: =$G205 -> 40 | M205: 60 | N205: 30 | O205: 0 | P205: 30 | Q205: 45 | R205: 22.5 | S205: 40 | U205: =+LOOKUP(U$3,$I$6:$DI$6,$I205:DI205) -> 30 | W205: 30 | X205: 30 | Y205: 30 | Z205: 30 | AA205: 30 | AB205: 30 | AC205: 30 | AD205: 30 | AE205: 30 | AF205: 30 | AG205: 30 | AH205: 30 | AI205: 30 | AJ205: 30 | AK205: 30 | AL205: 30 | AM205: 30
C206: Maksuperiodi (vuotta) (pätee vain Hybridimalliin ja sen variaatioihin) | E206: =IF($E$12=0,IF(ISBLANK($F206),LOOKUP($E$6,$I$6:$XN$6,$I206:$XN206),$F206),Herkkyystarkastelu!D39) -> 20 | G206: 20 | I206: 0 | J206: 0 | K206: 0 | L206: 20 | M206: 25 | N206: 20 | O206: 0 | P206: 15 | Q206: 20 | R206: 15 | S206: 20 | U206: =+LOOKUP(U$3,$I$6:$DI$6,$I206:DI206) -> 20 | W206: 20 | X206: 20 | Y206: 20 | Z206: 20 | AA206: 20 | AB206: 20 | AC206: 20 | AD206: 20 | AE206: 20 | AF206: 20 | AG206: 20 | AH206: 20 | AI206: 20 | AJ206: 20 | AK206: 20 | AL206: 20 | AM206: 20
U207: =+LOOKUP(U$3,$I$6:$DI$6,$I207:DI207) -> 0
C208: Nettotuotot muista palveluista
C209: Nettotulot muista palveluista käytössä? (1=Kyllä, 0=Ei) | E209: =IF($E$12=0,IF(ISBLANK($F209),LOOKUP($E$6,$I$6:$XN$6,$I209:$XN209),$F209),Herkkyystarkastelu!D50) -> 0 | G209: 0 | I209: =$G209 -> 0 | J209: 0 | K209: 0 | L209: 0 | M209: 0 | N209: 0 | O209: 0 | P209: 0 | Q209: 0 | R209: 0 | S209: 0 | U209: =+LOOKUP(U$3,$I$6:$DI$6,$I209:DI209) -> 0 | W209: 0 | X209: 0 | Y209: 0 | Z209: 0 | AA209: 0 | AB209: 0 | AC209: 0 | AD209: 0 | AE209: 0 | AF209: 0 | AG209: 0 | AH209: 0 | AI209: 0 | AJ209: 0 | AK209: 0 | AL209: 0 | AM209: 0
C210: Nettotulo muista palveluista p.a. (EURm), reaalisesti | E210: =IF($E$12=0,IF(ISBLANK($F210),LOOKUP($E$6,$I$6:$XN$6,$I210:$XN210),$F210),Herkkyystarkastelu!D52) -> 0 | G210: 0 | I210: =$G210 -> 0 | J210: 0 | K210: 0 | L210: 0 | M210: 0 | N210: 0 | O210: 0 | P210: 0 | Q210: 0 | R210: 0 | S210: 0 | U210: =+LOOKUP(U$3,$I$6:$DI$6,$I210:DI210) -> 0 | W210: 0 | X210: 0 | Y210: 0 | Z210: 0 | AA210: 0 | AB210: 0 | AC210: 0 | AD210: 0 | AE210: 0 | AF210: 0 | AG210: 0 | AH210: 0 | AI210: 0 | AJ210: 0 | AK210: 0 | AL210: 0 | AM210: 0
C211: Alkamisajankohta (pvm) | E211: =IF($E$12=0,IF(ISBLANK($F211),LOOKUP($E$6,$I$6:$XN$6,$I211:$XN211),$F211),Herkkyystarkastelu!D51) -> 2035-01-01 | G211: 2035-01-01 | I211: 2035-01-01 | J211: 2035-01-01 | K211: 2035-01-01 | L211: 2035-01-01 | M211: 2035-01-01 | N211: 2035-01-01 | O211: 2035-01-01 | P211: 2035-01-01 | Q211: 2035-01-01 | R211: 2035-01-01 | S211: 2035-01-01 | U211: =+LOOKUP(U$3,$I$6:$DI$6,$I211:DI211) -> 2035-01-01 | W211: 2035-01-01 | X211: 2035-01-01 | Y211: 2035-01-01 | Z211: 2035-01-01 | AA211: =+IF(NOT(ISBLANK($U211)),$U211,"") -> 2035-01-01 | AB211: =+IF(NOT(ISBLANK($U211)),$U211,"") -> 2035-01-01 | AC211: 2035-01-01 | AD211: 2035-01-01 | AE211: 2035-01-01 | AF211: 2035-01-01 | AG211: 2035-01-01 | AH211: 2035-01-01 | AI211: 2035-01-01 | AJ211: 2035-01-01 | AK211: 2035-01-01 | AL211: 2035-01-01 | AM211: 2035-01-01
C213: Kustannukset | U213: =+LOOKUP(U$3,$I$6:$DI$6,$I213:DI213) -> 0
C214: Ratainfrastruktuurin hallinnointikulut (EURm) | E214: =IF(ISBLANK($F214),LOOKUP($E$6,$I$6:$XN$6,$I214:$XN214),$F214) -> 1 | G214: 1 | I214: =$G214 -> 1 | J214: 1 | K214: 1 | L214: 1 | M214: 1 | N214: 1 | O214: 1 | P214: 1 | Q214: 1 | R214: 1 | S214: 1 | U214: =+LOOKUP(U$3,$I$6:$DI$6,$I214:DI214) -> 1 | W214: 1 | X214: 1 | Y214: 1 | Z214: 1 | AA214: 1 | AB214: 1 | AC214: 1 | AD214: 1 | AE214: 1 | AF214: 1 | AG214: 1 | AH214: 1 | AI214: 1 | AJ214: 1 | AK214: 1 | AL214: 1 | AM214: 1
C215: Tonttiportfolion hallinnointikulut (EURm) | E215: =IF(ISBLANK($F215),LOOKUP($E$6,$I$6:$XN$6,$I215:$XN215),$F215) -> 1 | G215: 1 | I215: 1 | J215: 1 | K215: 1 | L215: 1 | M215: 1 | N215: 1 | O215: 1 | P215: 1 | Q215: 1 | R215: 1 | S215: 1 | U215: =+LOOKUP(U$3,$I$6:$DI$6,$I215:DI215) -> 1 | W215: 1 | X215: 1 | Y215: 1 | Z215: 1 | AA215: 1 | AB215: 1 | AC215: 1 | AD215: 1 | AE215: 1 | AF215: 1 | AG215: 1 | AH215: 1 | AI215: 1 | AJ215: 1 | AK215: 1 | AL215: 1 | AM215: 1
C217: Käyttöpääoma
C218: Myyntisaamisten kiertoaika (päivää) | E218: =IF(ISBLANK($F218),LOOKUP($E$6,$I$6:$XN$6,$I218:$XN218),$F218) -> 14 | G218: 14 | I218: =$G218 -> 14 | J218: 14 | K218: 14 | L218: 14 | M218: 14 | N218: 14 | O218: 14 | P218: 14 | Q218: 14 | R218: 14 | S218: 14 | U218: =+LOOKUP(U$3,$I$6:$DI$6,$I218:DI218) -> 14 | W218: =+IF(NOT(ISBLANK($U218)),$U218,"") -> 14 | X218: 14 | Y218: 14 | Z218: 14 | AA218: 14 | AB218: 14 | AC218: 14 | AD218: 14 | AE218: 14 | AF218: 14 | AG218: 14 | AH218: 14 | AI218: 14 | AJ218: 14 | AK218: 14 | AL218: 14 | AM218: =+IF(NOT(ISBLANK($U218)),$U218,"") -> 14
C219: Ostovelkojen kiertoaika (päivää) | E219: =IF(ISBLANK($F219),LOOKUP($E$6,$I$6:$XN$6,$I219:$XN219),$F219) -> 30 | G219: 30 | I219: 30 | J219: 30 | K219: 30 | L219: 30 | M219: 30 | N219: 30 | O219: 30 | P219: 30 | Q219: 30 | R219: 30 | S219: 30 | U219: =+LOOKUP(U$3,$I$6:$DI$6,$I219:DI219) -> 30 | W219: 30 | X219: 30 | Y219: 30 | Z219: 30 | AA219: 30 | AB219: 30 | AC219: 30 | AD219: 30 | AE219: 30 | AF219: 30 | AG219: 30 | AH219: 30 | AI219: 30 | AJ219: 30 | AK219: 30 | AL219: 30 | AM219: 30
C221: Minimikassa (Hankeyhtiö, EURm) | E221: =IF(ISBLANK($F221),LOOKUP($E$6,$I$6:$XN$6,$I221:$XN221),$F221) -> 5 | G221: 5 | I221: =$G221 -> 5 | J221: 5 | K221: 5 | L221: 5 | M221: 5 | N221: 5 | O221: 5 | P221: 5 | Q221: 5 | R221: 5 | S221: 5 | U221: =+LOOKUP(U$3,$I$6:$DI$6,$I221:DI221) -> 5 | W221: =+IF(NOT(ISBLANK($U221)),$U221,"") -> 5 | X221: 5 | Y221: 5 | Z221: 5 | AA221: 5 | AB221: 5 | AC221: 5 | AD221: 5 | AE221: 5 | AF221: 5 | AG221: 5 | AH221: 5 | AI221: 5 | AJ221: 5 | AK221: 5 | AL221: 5 | AM221: =+IF(NOT(ISBLANK($U221)),$U221,"") -> 5
C222: Minimi oma pääoma | E222: =IF(ISBLANK($F222),LOOKUP($E$6,$I$6:$XN$6,$I222:$XN222),$F222) -> 1 | G222: 1 | I222: 1 | J222: 1 | K222: 1 | L222: 1 | M222: 1 | N222: 1 | O222: 1 | P222: 1 | Q222: 1 | R222: 1 | S222: 1 | U222: =+LOOKUP(U$3,$I$6:$DI$6,$I222:DI222) -> 1 | W222: 1 | X222: 1 | Y222: 1 | Z222: 1 | AA222: 1 | AB222: 1 | AC222: 1 | AD222: 1 | AE222: 1 | AF222: 1 | AG222: 1 | AH222: 1 | AI222: 1 | AJ222: 1 | AK222: 1 | AL222: 1 | AM222: 1
C223: Ratainvestointien poistoaika (vuosia) | E223: =IF(ISBLANK($F223),LOOKUP($E$6,$I$6:$XN$6,$I223:$XN223),$F223) -> 60 | G223: 60 | I223: 60 | J223: 60 | K223: 60 | L223: 60 | M223: 60 | N223: 60 | O223: 60 | P223: 60 | Q223: 60 | R223: 60 | S223: 60 | U223: =+LOOKUP(U$3,$I$6:$DI$6,$I223:DI223) -> 60 | W223: 60 | X223: 60 | Y223: 60 | Z223: 60 | AA223: 60 | AB223: 60 | AC223: 60 | AD223: 60 | AE223: 60 | AF223: 60 | AG223: 60 | AH223: 60 | AI223: 60 | AJ223: 60 | AK223: 60 | AL223: 60 | AM223: 60
C224: Maksimi ylipoistot (EURm) | E224: =IF(ISBLANK($F224),LOOKUP($E$6,$I$6:$XN$6,$I224:$XN224),$F224) -> 1.5 | G224: 1.5 | I224: 1.5 | J224: 1.5 | K224: 1.5 | L224: 1.5 | M224: 1.5 | N224: 1.5 | O224: 1.5 | P224: 1.5 | Q224: 1.5 | R224: 1.5 | S224: 1.5 | U224: =+LOOKUP(U$3,$I$6:$DI$6,$I224:DI224) -> 1.5 | W224: 1.5 | X224: 1.5 | Y224: 1.5 | Z224: 1.5 | AA224: 1.5 | AB224: 1.5 | AC224: 1.5 | AD224: 1.5 | AE224: 1.5 | AF224: 1.5 | AG224: 1.5 | AH224: 1.5 | AI224: 1.5 | AJ224: 1.5 | AK224: 1.5 | AL224: 1.5 | AM224: 1.5
C226: Verotus- ja kirjanpito-oletukset
C228: Osinkojen jako ilman kirjanpitorajoituksia? | E228: =IF($E$12=0,IF(ISBLANK($F228),LOOKUP($E$6,$I$6:$XN$6,$I228:$XN228),$F228),Herkkyystarkastelu!D56) -> 1 | G228: 1 | I228: =$G228 -> 1 | J228: 1 | K228: 1 | L228: 1 | M228: 1 | N228: 1 | O228: 1 | P228: 1 | Q228: 1 | R228: 1 | S228: 1 | U228: =+LOOKUP(U$3,$I$6:$DI$6,$I228:DI228) -> 1 | W228: =+IF(NOT(ISBLANK($U228)),$U228,"") -> 1 | X228: 1 | Y228: 1 | Z228: 1 | AA228: 1 | AB228: 1 | AC228: 1 | AD228: 1 | AE228: 1 | AF228: 1 | AG228: 1 | AH228: 1 | AI228: 1 | AJ228: 1 | AK228: 1 | AL228: 1 | AM228: 1
C230: Verotuksen poistot = Kirjanpidon poistot | E230: =IF(ISBLANK($F230),LOOKUP($E$6,$I$6:$XN$6,$I230:$XN230),$F230) -> 1 | G230: 1 | I230: 1 | J230: 1 | K230: 1 | L230: 1 | M230: 1 | N230: 1 | O230: 1 | P230: 1 | Q230: 1 | R230: 1 | S230: 1 | U230: =+LOOKUP(U$3,$I$6:$DI$6,$I230:DI230) -> 1 | W230: =+IF(NOT(ISBLANK($U230)),$U230,"") -> 1 | X230: 1 | Y230: 1 | Z230: 1 | AA230: 1 | AB230: 1 | AC230: 1 | AD230: 1 | AE230: 1 | AF230: 1 | AG230: 1 | AH230: 1 | AI230: 1 | AJ230: 1 | AK230: 1 | AL230: 1 | AM230: =+IF(NOT(ISBLANK($U230)),$U230,"") -> 1
C231: Vuosittainen menojäännöspoisto (poistoerolaskelmiin) | E231: =IF(ISBLANK($F231),LOOKUP($E$6,$I$6:$XN$6,$I231:$XN231),$F231) -> 0.2 | G231: 0.2 | I231: 0.2 | J231: 0.2 | K231: 0.2 | L231: 0.2 | M231: 0.2 | N231: 0.2 | O231: 0.2 | P231: 0.2 | Q231: 0.2 | R231: 0.2 | S231: 0.2 | U231: =+LOOKUP(U$3,$I$6:$DI$6,$I231:DI231) -> 0.2 | W231: 0.2 | X231: 0.2 | Y231: 0.2 | Z231: 0.2 | AA231: 0.2 | AB231: 0.2 | AC231: 0.2 | AD231: 0.2 | AE231: 0.2 | AF231: 0.2 | AG231: 0.2 | AH231: 0.2 | AI231: 0.2 | AJ231: 0.2 | AK231: 0.2 | AL231: 0.2 | AM231: 0.2
C233: Korkovähennysrajoitukset
C234: Korkovähennysrajoitukset käytössä? | E234: =IF(ISBLANK($F234),LOOKUP($E$6,$I$6:$XN$6,$I234:$XN234),$F234) -> 1 | G234: 1 | I234: =$G234 -> 1 | J234: 1 | K234: 1 | L234: 1 | M234: 1 | N234: 1 | O234: 1 | P234: 1 | Q234: 1 | R234: 1 | S234: 1 | U234: =+LOOKUP(U$3,$I$6:$DI$6,$I234:DI234) -> 1 | W234: =+IF(NOT(ISBLANK($U234)),$U234,"") -> 1 | X234: 1 | Y234: 1 | Z234: 1 | AA234: 1 | AB234: 1 | AC234: 1 | AD234: 1 | AE234: 1 | AF234: 1 | AG234: 1 | AH234: 1 | AI234: 1 | AJ234: 1 | AK234: 1 | AL234: 1 | AM234: =+IF(NOT(ISBLANK($U234)),$U234,"") -> 1
C235: Korkovähennysrajoitus | E235: =IF(ISBLANK($F235),LOOKUP($E$6,$I$6:$XN$6,$I235:$XN235),$F235) -> 0.25 | G235: 0.25 | I235: =$G235 -> 0.25 | J235: 0.25 | K235: 0.25 | L235: 0.25 | M235: 0.25 | N235: 0.25 | O235: 0.25 | P235: 0.25 | Q235: 0.25 | R235: 0.25 | S235: 0.25 | U235: =+LOOKUP(U$3,$I$6:$DI$6,$I235:DI235) -> 0.25 | W235: 0.25 | X235: 0.25 | Y235: 0.25 | Z235: 0.25 | AA235: 0.25 | AB235: 0.25 | AC235: 0.25 | AD235: 0.25 | AE235: 0.25 | AF235: 0.25 | AG235: 0.25 | AH235: 0.25 | AI235: 0.25 | AJ235: 0.25 | AK235: 0.25 | AL235: 0.25 | AM235: 0.25
C236: Korkovähennysrajoitus pätee kaikkiin korkokuluihin? | E236: =IF(ISBLANK($F236),LOOKUP($E$6,$I$6:$XN$6,$I236:$XN236),$F236) -> 1 | G236: 1 | I236: 1 | J236: 1 | K236: 1 | L236: 1 | M236: 1 | N236: 1 | O236: 1 | P236: 1 | Q236: 1 | R236: 1 | S236: 1 | U236: =+LOOKUP(U$3,$I$6:$DI$6,$I236:DI236) -> 1 | W236: 1 | X236: 1 | Y236: 1 | Z236: 1 | AA236: 1 | AB236: 1 | AC236: 1 | AD236: 1 | AE236: 1 | AF236: 1 | AG236: 1 | AH236: 1 | AI236: 1 | AJ236: 1 | AK236: 1 | AL236: 1 | AM236: 1
C237: Nettokorkokuluraja korkovähennysrajoitukseen | E237: =IF(ISBLANK($F237),LOOKUP($E$6,$I$6:$XN$6,$I237:$XN237),$F237) -> 0.5 | G237: 0.5 | I237: 0.5 | J237: 0.5 | K237: 0.5 | L237: 0.5 | M237: 0.5 | N237: 0.5 | O237: 0.5 | P237: 0.5 | Q237: 0.5 | R237: 0.5 | S237: 0.5 | U237: =+LOOKUP(U$3,$I$6:$DI$6,$I237:DI237) -> 0.5 | W237: 0.5 | X237: 0.5 | Y237: 0.5 | Z237: 0.5 | AA237: 0.5 | AB237: 0.5 | AC237: 0.5 | AD237: 0.5 | AE237: 0.5 | AF237: 0.5 | AG237: 0.5 | AH237: 0.5 | AI237: 0.5 | AJ237: 0.5 | AK237: 0.5 | AL237: 0.5 | AM237: 0.5
C239: Omistusosuudet
C241: Osakesarja A
C242: [Sijoittaja 1] | E242: =IF($E$12=0,IF(ISBLANK($F242),LOOKUP($E$6,$I$6:$XN$6,$I242:$XN242),$F242),Herkkyystarkastelu!D61) -> 0.5 | G242: 0.5 | I242: =$G242 -> 0.5 | J242: 0.5 | K242: 0.2 | L242: 0.5 | M242: 0.5 | N242: 0.6 | O242: 0.5 | P242: 0.5 | Q242: 0.5 | R242: 0.6 | S242: 0.5 | U242: =+LOOKUP(U$3,$I$6:$DI$6,$I242:DI242) -> 0.6 | W242: =+IF(NOT(ISBLANK($U242)),$U242,"") -> 0.6 | X242: 0.6 | Y242: 0.6 | Z242: 0.6 | AA242: 0.6 | AB242: 0.6 | AC242: 0.6 | AD242: 0.6 | AE242: 0.6 | AF242: 0.6 | AG242: 0.6 | AH242: 0.6 | AI242: 0.6 | AJ242: 0.6 | AK242: 0.6 | AL242: 0.6 | AM242: =+IF(NOT(ISBLANK($U242)),$U242,"") -> 0.6
C243: [Sijoittaja 2] | E243: =IF($E$12=0,IF(ISBLANK($F243),LOOKUP($E$6,$I$6:$XN$6,$I243:$XN243),$F243),Herkkyystarkastelu!D62) -> 0.5 | G243: 0.5 | I243: 0.5 | J243: 0.5 | K243: 0 | L243: 0.5 | M243: 0.5 | N243: 0 | O243: 0.5 | P243: 0.5 | Q243: 0.5 | R243: 0 | S243: 0.5 | U243: =+LOOKUP(U$3,$I$6:$DI$6,$I243:DI243) -> 0 | W243: 0 | X243: 0 | Y243: 0 | Z243: 0 | AA243: 0 | AB243: 0 | AC243: 0 | AD243: 0 | AE243: 0 | AF243: 0 | AG243: 0 | AH243: 0 | AI243: 0 | AJ243: 0 | AK243: 0 | AL243: 0 | AM243: 0
C244: [Sijoittaja 3] | E244: =IF($E$12=0,IF(ISBLANK($F244),LOOKUP($E$6,$I$6:$XN$6,$I244:$XN244),$F244),Herkkyystarkastelu!D63) -> 0 | G244: 0 | I244: 0 | J244: 0 | K244: 0.2 | L244: 0 | M244: 0 | N244: 0.1 | O244: 0 | P244: 0 | Q244: 0 | R244: 0.1 | S244: 0 | U244: =+LOOKUP(U$3,$I$6:$DI$6,$I244:DI244) -> 0.1 | W244: 0.1 | X244: 0.1 | Y244: 0.1 | Z244: 0.1 | AA244: 0.1 | AB244: 0.1 | AC244: 0.1 | AD244: 0.1 | AE244: 0.1 | AF244: 0.1 | AG244: 0.1 | AH244: 0.1 | AI244: 0.1 | AJ244: 0.1 | AK244: 0.1 | AL244: 0.1 | AM244: 0.1
C245: [Sijoittaja 4] | E245: =IF($E$12=0,IF(ISBLANK($F245),LOOKUP($E$6,$I$6:$XN$6,$I245:$XN245),$F245),Herkkyystarkastelu!D64) -> 0 | G245: 0 | I245: 0 | J245: 0 | K245: 0.2 | L245: 0 | M245: 0 | N245: 0.1 | O245: 0 | P245: 0 | Q245: 0 | R245: 0.1 | S245: 0 | U245: =+LOOKUP(U$3,$I$6:$DI$6,$I245:DI245) -> 0.1 | W245: 0.1 | X245: 0.1 | Y245: 0.1 | Z245: 0.1 | AA245: 0.1 | AB245: 0.1 | AC245: 0.1 | AD245: 0.1 | AE245: 0.1 | AF245: 0.1 | AG245: 0.1 | AH245: 0.1 | AI245: 0.1 | AJ245: 0.1 | AK245: 0.1 | AL245: 0.1 | AM245: 0.1
C246: [Sijoittaja 5] | E246: =IF($E$12=0,IF(ISBLANK($F246),LOOKUP($E$6,$I$6:$XN$6,$I246:$XN246),$F246),Herkkyystarkastelu!D65) -> 0 | G246: 0 | I246: 0 | J246: 0 | K246: 0.2 | L246: 0 | M246: 0 | N246: 0.1 | O246: 0 | P246: 0 | Q246: 0 | R246: 0.1 | S246: 0 | U246: =+LOOKUP(U$3,$I$6:$DI$6,$I246:DI246) -> 0.1 | W246: 0.1 | X246: 0.1 | Y246: 0.1 | Z246: 0.1 | AA246: 0.1 | AB246: 0.1 | AC246: 0.1 | AD246: 0.1 | AE246: 0.1 | AF246: 0.1 | AG246: 0.1 | AH246: 0.1 | AI246: 0.1 | AJ246: 0.1 | AK246: 0.1 | AL246: 0.1 | AM246: 0.1
C247: [Sijoittaja 6] | E247: =IF($E$12=0,IF(ISBLANK($F247),LOOKUP($E$6,$I$6:$XN$6,$I247:$XN247),$F247),Herkkyystarkastelu!D66) -> 0 | G247: 0 | I247: 0 | J247: 0 | K247: 0.2 | L247: 0 | M247: 0 | N247: 0.1 | O247: 0 | P247: 0 | Q247: 0 | R247: 0.1 | S247: 0 | U247: =+LOOKUP(U$3,$I$6:$DI$6,$I247:DI247) -> 0.1 | W247: 0.1 | X247: 0.1 | Y247: 0.1 | Z247: 0.1 | AA247: 0.1 | AB247: 0.1 | AC247: 0.1 | AD247: 0.1 | AE247: 0.1 | AF247: 0.1 | AG247: 0.1 | AH247: 0.1 | AI247: 0.1 | AJ247: 0.1 | AK247: 0.1 | AL247: 0.1 | AM247: 0.1
C249: Osakesarja B
... 20 more rows

Sheet Herkkyysmallin ohje
B2: Ohje
B3: Hankeyhtiömallin oletuksia voi muokata "Herkkyystarkastelu"-välilehdellä. Mallin perusoletukset ovat kolumnissa F. Oletuksia voi muokata syöttämällä numeroita kolumniin E, ja kolumnissa D (vihreät solut) ovat ne oletukset jotka ovat mallissa kulloinkin käytössä.
B4: Mallin perusoletuksina on Pienempi Hybridimalli ja suurempi OPO peruskysyntäennusteella -skenaariossa käytetyt oletukset.
B5: "Sijoittajat"-kohtaan (rivit 56-61) voi kirjoittaa erilaisia hankkeen rahoittajia ja rahoitusosuuksia ja näin tarkastella, miltä yhtiön omistusrakenne näyttäisi erilaisilla sijoittajaoletuksilla.
B6: Välilehdeltä löytyvät myös olennaisimmat outputit, joita voi tarkastella oletuksien muuttamisen yhteydessä.
B7: Solussa H5 ("Yhtiön kestävyys") lukee "OK", mikäli yhtiön talous on kestävällä pohjalla. Soluun ilmestyy teksti "KASSAVAJE", mikäli asetettujen oletusten seurauksena yhtiön kassa laskee negatiiviseksi ennusteperiodin aikana.
B9: Käsitteistöä
B11: Tulonlähde | C11: Kuvaus
B12: Ratamaksu | C12: Ratamaksua peritään radan kustannusten kattamiseksi sekä rataverkon toimivuuden varmistamiseksi. Ratamaksua säännellään laeilla sekä EU-tasolla että kansallisesti. Vuodesta 2019 alkaen ratamaksu on asetettu tasolle 0,1653 snt/bruttotonnikilometri
B13: Investointimaksu | C13: Investointimaksua kerätään radan rakennusinvestoinnista aiheutuneiden menojen kattamiseksi. Investointimaksun tasoksi on oletettu 0,270 snt/bruttotonnikilometri
B14: Lentoasemamaksu | C14: Lentoasemamaksua peritään kaikilta Helsinki-Vantaan lentokentällä jääviltä ja sieltä poistuvilta matkustajilta. Lentoasemamaksun tasoksi on oletettu 7,08 euroa per matkustaja.
B15: Nopeutusmaksu | C15: Nopeutusmaksua peritään kaikilta nopealla Helsinki-Tampere-radalla kulkevilta junamatkustajilta. Nopeutusmaksun tasoksi on oletettu 8,6 euroa per matkustaja.
B16: Infrastruktuurimaksu | C16: Hyötyjien hankeyhtiölle vuosittain maksama maksu. Infrastruktuurimaksun tarkoitus on auttaa yhtiötä maksamaan niitä kuluja, joita operatiiviset tulot eivät riitä kattamaan.
B17: Tonttiportfolion vuokratuotto | C17: Hankeyhtiön eteenpäin vuokraamista tonteista vuosittain kertyvä vuokratuotto. Perustuu oletettuun operatiiviseen nettovuokratuottoon (NOI) tonttien käyvälle arvolle.
B18: Nettotuotot muista palveluista | C18: Tällä haavaa määrittelemätön nettotulo (esim. 5G-verkkoon liittyvä), jonka voi halutessaan laittaa päälle.

Sheet Herkkyystarkastelu
F1: ALUSTAVA SELVITYS VUODELTA 2018 (päivitys tammikuu 2019)
B2: =Kontrolli!B2 -> Skenaario: Pienempi Hybridimalli + OPO + peruskysyntä
H4: Yhtiön kestävyys
C5: Avainoletukset | D5: Valittu oletus | E5: Syöttösolu herkkyyksille | F5: Perusoletus | H5: =IF(MIN(Q145:BU145)>=0,"OK","KASSAVAJE") -> OK | N5: Hankeyhtiön rahavirrat (pl. sijoitukset)
C7: Yleiset oletukset
C9: Vuosittainen inflaatio (alk. 2019) | D9: =IF(ISBLANK($E9),$F9,E9) -> 0.02 | F9: 0.02
C11: Rakennusinvestointi
C13: Rakennusinvestointi (Lentorata) | D13: =IF(ISBLANK($E13),$F13,E13) -> 2650 | F13: 2650 | G13: Maanrakennuskustannusindeksi 2018
C14: Rakennusinvestointi Kerava-Tampere -rata | D14: 2800 | F14: 2800 | G14: Maanrakennuskustannusindeksi 2018
C16: Rahoitusrakenne
C18: EU-tuki
C19: EU-tuen osuus kokonaisinvestoinnista | D19: =IF(ISBLANK($E19),$F19,E19) -> 0.2 | F19: 0.2
C21: Vieras pääoma
C22: Vieraan pääoman osuus rahoituksesta (EU-tuen jälkeen) | D22: =IF(ISBLANK($E22),$F22,E22) -> 0.65 | F22: 0.65
C23: Pitkän aikavälin viitekorko | D23: 0.025 | F23: 0.025
C24: Marginaali | D24: 0.005 | F24: 0.005
C26: Pääomalaina
C27: Määrä (reaalinen) | D27: =IF(ISBLANK($E27),$F27,E27) -> 192.3430769 | F27: 192.3430769
C28: Korko | D28: 0.05 | F28: 0.05
C30: Operatiiviset oletukset
C32: Tonttiomaisuus
C33: Tonttiapporttisijoituksen arvo (EURm) | D33: =IF(ISBLANK($E33),$F33,E33) -> 400 | F33: 400
C34: Vuotuinen operatiivinen nettotuotto-% | D34: 0.045 | F34: 0.045
C35: Vuotuinen käyvän arvon nousu | D35: 0.02 | F35: 0.02
C37: Infrastruktuurimaksu
C38: Infrastruktuurimaksun vuosittainen määrä (EURm) | D38: =IF(ISBLANK($E38),$F38,E38) -> 30 | F38: 30
C39: Infrastruktuurimaksun maksuperiodi (vuotta) | D39: 20 | F39: 20 | G39: Alkaen vuodesta 2032
C41: Lippujen hinnat
C42: Lentoasemamaksu / matkustaja (EUR) | D42: =IF(ISBLANK($E42),$F42,E42) -> 7.08 | F42: 7.08 | G42: Reaalinen
C43: Nopeutusmaksu / matkustaja (EUR) | D43: 8.636337852 | F43: 8.636337852 | G43: Reaalinen
C45: Matkustajamäärät
C46: Lentoradan lentomatkustajamäärät - +/- vuodessa | D46: =IF(ISBLANK($E46),$F46,E46) -> 0 | F46: 0 | G46: Muutos vrt. nykyinen ennuste vuosittain
C47: Kerava-Tampere -ratadan matkustajamäärät - +/- vuodessa | D47: 0 | F47: 0 | G47: Muutos vrt. nykyinen ennuste vuosittain
C49: Nettotuotot muista palveluista
C50: Käytössä? (1=Kyllä, 0= Ei) | D50: =IF(ISBLANK($E50),$F50,E50) -> 0 | F50: 0
C51: Alkamisajankohta | D51: =IF(ISBLANK($E51),$F51,E51) -> 2035-01-01 | F51: 2035-01-01
C52: Nettotulo muista palveluista p.a. (EURm), reaalinen | D52: 0 | F52: 0
C54: Kirjanpito-oletukset
C56: Osinkojen jako ilman kirjanpitorajoituksia? (1=Kyllä, 0=Ei) | D56: =IF(ISBLANK($E56),$F56,E56) -> 1 | F56: 1 | G56: Sallii oman pääoman päätymisen negatiiviseksi osingonjaon helpottamiseksi
C58: Sijoittajat
N59: Hankeyhtiön tuloslaskelma (EURm) | Q59: ='Hankeyhtiö - Talous'!L5 -> 2019-12-31 | R59: ='Hankeyhtiö - Talous'!M5 -> 2020-12-31 | S59: ='Hankeyhtiö - Talous'!N5 -> 2021-12-31 | T59: ='Hankeyhtiö - Talous'!O5 -> 2022-12-31 | U59: ='Hankeyhtiö - Talous'!P5 -> 2023-12-31 | V59: ='Hankeyhtiö - Talous'!Q5 -> 2024-12-31 | W59: ='Hankeyhtiö - Talous'!R5 -> 2025-12-31 | X59: ='Hankeyhtiö - Talous'!S5 -> 2026-12-31 | Y59: ='Hankeyhtiö - Talous'!T5 -> 2027-12-31 | Z59: ='Hankeyhtiö - Talous'!U5 -> 2028-12-31 | AA59: ='Hankeyhtiö - Talous'!V5 -> 2029-12-31 | AB59: ='Hankeyhtiö - Talous'!W5 -> 2030-12-31 | AC59: ='Hankeyhtiö - Talous'!X5 -> 2031-12-31 | AD59: ='Hankeyhtiö - Talous'!Y5 -> 2032-12-31 | AE59: ='Hankeyhtiö - Talous'!Z5 -> 2033-12-31 | AF59: ='Hankeyhtiö - Talous'!AA5 -> 2034-12-31 | AG59: ='Hankeyhtiö - Talous'!AB5 -> 2035-12-31 | AH59: ='Hankeyhtiö - Talous'!AC5 -> 2036-12-31 | AI59: ='Hankeyhtiö - Talous'!AD5 -> 2037-12-31 | AJ59: ='Hankeyhtiö - Talous'!AE5 -> 2038-12-31 | AK59: ='Hankeyhtiö - Talous'!AF5 -> 2039-12-31 | AL59: ='Hankeyhtiö - Talous'!AG5 -> 2040-12-31 | AM59: ='Hankeyhtiö - Talous'!AH5 -> 2041-12-31 | AN59: ='Hankeyhtiö - Talous'!AI5 -> 2042-12-31 | AO59: ='Hankeyhtiö - Talous'!AJ5 -> 2043-12-31 | AP59: ='Hankeyhtiö - Talous'!AK5 -> 2044-12-31 | AQ59: ='Hankeyhtiö - Talous'!AL5 -> 2045-12-31 | AR59: ='Hankeyhtiö - Talous'!AM5 -> 2046-12-31 | AS59: ='Hankeyhtiö - Talous'!AN5 -> 2047-12-31 | AT59: ='Hankeyhtiö - Talous'!AO5 -> 2048-12-31 | AU59: ='Hankeyhtiö - Talous'!AP5 -> 2049-12-31 | AV59: ='Hankeyhtiö - Talous'!AQ5 -> 2050-12-31 | AW59: ='Hankeyhtiö - Talous'!AR5 -> 2051-12-31 | AX59: ='Hankeyhtiö - Talous'!AS5 -> 2052-12-31 | AY59: ='Hankeyhtiö - Talous'!AT5 -> 2053-12-31 | AZ59: ='Hankeyhtiö - Talous'!AU5 -> 2054-12-31 | BA59: ='Hankeyhtiö - Talous'!AV5 -> 2055-12-31 | BB59: ='Hankeyhtiö - Talous'!AW5 -> 2056-12-31 | BC59: ='Hankeyhtiö - Talous'!AX5 -> 2057-12-31 | BD59: ='Hankeyhtiö - Talous'!AY5 -> 2058-12-31 | BE59: ='Hankeyhtiö - Talous'!AZ5 -> 2059-12-31 | BF59: ='Hankeyhtiö - Talous'!BA5 -> 2060-12-31 | BG59: ='Hankeyhtiö - Talous'!BB5 -> 2061-12-31 | BH59: ='Hankeyhtiö - Talous'!BC5 -> 2062-12-31 | BI59: ='Hankeyhtiö - Talous'!BD5 -> 2063-12-31 | BJ59: ='Hankeyhtiö - Talous'!BE5 -> 2064-12-31 | BK59: ='Hankeyhtiö - Talous'!BF5 -> 2065-12-31 | BL59: ='Hankeyhtiö - Talous'!BG5 -> 2066-12-31 | BM59: ='Hankeyhtiö - Talous'!BH5 -> 2067-12-31 | BN59: ='Hankeyhtiö - Talous'!BI5 -> 2068-12-31 | BO59: ='Hankeyhtiö - Talous'!BJ5 -> 2069-12-31 | BP59: ='Hankeyhtiö - Talous'!BK5 -> 2070-12-31 | BQ59: ='Hankeyhtiö - Talous'!BL5 -> 2071-12-31 | BR59: ='Hankeyhtiö - Talous'!BM5 -> 2072-12-31 | BS59: ='Hankeyhtiö - Talous'!BN5 -> 2073-12-31 | BT59: ='Hankeyhtiö - Talous'!BO5 -> 2074-12-31 | BU59: ='Hankeyhtiö - Talous'!BP5 -> 2075-12-31
C60: Osakesarja A | D60: =IF(SUM(D61:D66)=100%,"OK","CHECK") -> OK | G60: Osuudet raha-OPO sijoituksesta
C61: =Kontrolli!C242 -> [Sijoittaja 1] | D61: =IF(ISBLANK($E61),$F61,E61) -> 0.5 | F61: 0.5 | G61: Syötetään sijoittava taho ja osuus sijoitettavista A-sarjan osakkeista | N61: Lentoasemamaksut | Q61: ='Hankeyhtiö - Talous'!L10 -> 0 | R61: ='Hankeyhtiö - Talous'!M10 -> 0 | S61: ='Hankeyhtiö - Talous'!N10 -> 0 | T61: ='Hankeyhtiö - Talous'!O10 -> 0 | U61: ='Hankeyhtiö - Talous'!P10 -> 0 | V61: ='Hankeyhtiö - Talous'!Q10 -> 0 | W61: ='Hankeyhtiö - Talous'!R10 -> 0 | X61: ='Hankeyhtiö - Talous'!S10 -> 0 | Y61: ='Hankeyhtiö - Talous'!T10 -> 0 | Z61: ='Hankeyhtiö - Talous'!U10 -> 0 | AA61: ='Hankeyhtiö - Talous'!V10 -> 0 | AB61: ='Hankeyhtiö - Talous'!W10 -> 0 | AC61: ='Hankeyhtiö - Talous'!X10 -> 0 | AD61: ='Hankeyhtiö - Talous'!Y10 -> 13.25970368 | AE61: ='Hankeyhtiö - Talous'!Z10 -> 13.61661483 | AF61: ='Hankeyhtiö - Talous'!AA10 -> 13.98313296 | AG61: ='Hankeyhtiö - Talous'!AB10 -> 14.35951664 | AH61: ='Hankeyhtiö - Talous'!AC10 -> 14.74603143 | AI61: ='Hankeyhtiö - Talous'!AD10 -> 15.14295004 | AJ61: ='Hankeyhtiö - Talous'!AE10 -> 15.55055249 | AK61: ='Hankeyhtiö - Talous'!AF10 -> 15.96912637 | AL61: ='Hankeyhtiö - Talous'!AG10 -> 16.398967 | AM61: ='Hankeyhtiö - Talous'!AH10 -> 16.81968206 | AN61: ='Hankeyhtiö - Talous'!AI10 -> 17.25119056 | AO61: ='Hankeyhtiö - Talous'!AJ10 -> 17.69376939 | AP61: ='Hankeyhtiö - Talous'!AK10 -> 18.14770258 | AQ61: ='Hankeyhtiö - Talous'!AL10 -> 18.6132814 | AR61: ='Hankeyhtiö - Talous'!AM10 -> 19.09080464 | AS61: ='Hankeyhtiö - Talous'!AN10 -> 19.58057873 | AT61: ='Hankeyhtiö - Talous'!AO10 -> 20.08291796 | AU61: ='Hankeyhtiö - Talous'!AP10 -> 20.59814469 | AV61: ='Hankeyhtiö - Talous'!AQ10 -> 21.12658954 | AW61: ='Hankeyhtiö - Talous'!AR10 -> 21.66859163 | AX61: ='Hankeyhtiö - Talous'!AS10 -> 22.22449878 | AY61: ='Hankeyhtiö - Talous'!AT10 -> 22.7946677 | AZ61: ='Hankeyhtiö - Talous'!AU10 -> 23.3794643 | BA61: ='Hankeyhtiö - Talous'!AV10 -> 23.97926384 | BB61: ='Hankeyhtiö - Talous'!AW10 -> 24.59445121 | BC61: ='Hankeyhtiö - Talous'!AX10 -> 25.22542121 | BD61: ='Hankeyhtiö - Talous'!AY10 -> 25.87257872 | BE61: ='Hankeyhtiö - Talous'!AZ10 -> 26.53633904 | BF61: ='Hankeyhtiö - Talous'!BA10 -> 27.21712811 | BG61: ='Hankeyhtiö - Talous'!BB10 -> 27.91538281 | BH61: ='Hankeyhtiö - Talous'!BC10 -> 28.63155122 | BI61: ='Hankeyhtiö - Talous'!BD10 -> 29.3660929 | BJ61: ='Hankeyhtiö - Talous'!BE10 -> 30.11947924 | BK61: ='Hankeyhtiö - Talous'!BF10 -> 30.89219368 | BL61: ='Hankeyhtiö - Talous'!BG10 -> 31.68473209 | BM61: ='Hankeyhtiö - Talous'!BH10 -> 32.49760305 | BN61: ='Hankeyhtiö - Talous'!BI10 -> 33.33132819 | BO61: ='Hankeyhtiö - Talous'!BJ10 -> 34.18644253 | BP61: ='Hankeyhtiö - Talous'!BK10 -> 35.06349481 | BQ61: ='Hankeyhtiö - Talous'!BL10 -> 35.96304784 | BR61: ='Hankeyhtiö - Talous'!BM10 -> 36.88567887 | BS61: ='Hankeyhtiö - Talous'!BN10 -> 37.83197999 | BT61: ='Hankeyhtiö - Talous'!BO10 -> 38.80255843 | BU61: ='Hankeyhtiö - Talous'!BP10 -> 39.79803704
C62: =Kontrolli!C243 -> [Sijoittaja 2] | D62: 0.5 | F62: 0.5 | G62: Syötetään sijoittava taho ja osuus sijoitettavista A-sarjan osakkeista | N62: Nopeutusmaksut | Q62: ='Hankeyhtiö - Talous'!L11 -> 0 | R62: ='Hankeyhtiö - Talous'!M11 -> 0 | S62: ='Hankeyhtiö - Talous'!N11 -> 0 | T62: ='Hankeyhtiö - Talous'!O11 -> 0 | U62: ='Hankeyhtiö - Talous'!P11 -> 0 | V62: ='Hankeyhtiö - Talous'!Q11 -> 0 | W62: ='Hankeyhtiö - Talous'!R11 -> 0 | X62: ='Hankeyhtiö - Talous'!S11 -> 0 | Y62: ='Hankeyhtiö - Talous'!T11 -> 0 | Z62: ='Hankeyhtiö - Talous'!U11 -> 0 | AA62: ='Hankeyhtiö - Talous'!V11 -> 0 | AB62: ='Hankeyhtiö - Talous'!W11 -> 0 | AC62: ='Hankeyhtiö - Talous'!X11 -> 0 | AD62: ='Hankeyhtiö - Talous'!Y11 -> 0 | AE62: ='Hankeyhtiö - Talous'!Z11 -> 0 | AF62: ='Hankeyhtiö - Talous'!AA11 -> 0 | AG62: ='Hankeyhtiö - Talous'!AB11 -> 45.33304751 | AH62: ='Hankeyhtiö - Talous'!AC11 -> 47.04295447 | AI62: ='Hankeyhtiö - Talous'!AD11 -> 48.81741967 | AJ62: ='Hankeyhtiö - Talous'!AE11 -> 50.658883 | AK62: ='Hankeyhtiö - Talous'!AF11 -> 52.56987666 | AL62: ='Hankeyhtiö - Talous'!AG11 -> 54.55302866 | AM62: ='Hankeyhtiö - Talous'!AH11 -> 56.50902605 | AN62: ='Hankeyhtiö - Talous'!AI11 -> 58.53515568 | AO62: ='Hankeyhtiö - Talous'!AJ11 -> 60.33540284 | AP62: ='Hankeyhtiö - Talous'!AK11 -> 62.19101656 | AQ62: ='Hankeyhtiö - Talous'!AL11 -> 64.10369962 | AR62: ='Hankeyhtiö - Talous'!AM11 -> 66.0752072 | AS62: ='Hankeyhtiö - Talous'!AN11 -> 68.10734844 | AT62: ='Hankeyhtiö - Talous'!AO11 -> 70.20198814 | AU62: ='Hankeyhtiö - Talous'!AP11 -> 72.36104842 | AV62: ='Hankeyhtiö - Talous'!AQ11 -> 74.58651054 | AW62: ='Hankeyhtiö - Talous'!AR11 -> 76.8804167 | AX62: ='Hankeyhtiö - Talous'!AS11 -> 79.24487187 | AY62: ='Hankeyhtiö - Talous'!AT11 -> 81.27789696 | AZ62: ='Hankeyhtiö - Talous'!AU11 -> 83.36307925 | BA62: ='Hankeyhtiö - Talous'!AV11 -> 85.50175683 | BB62: ='Hankeyhtiö - Talous'!AW11 -> 87.69530214 | BC62: ='Hankeyhtiö - Talous'!AX11 -> 89.94512278 | BD62: ='Hankeyhtiö - Talous'!AY11 -> 92.25266252 | BE62: ='Hankeyhtiö - Talous'!AZ11 -> 94.61940213 | BF62: ='Hankeyhtiö - Talous'!BA11 -> 97.04686038 | BG62: ='Hankeyhtiö - Talous'!BB11 -> 99.53659501 | BH62: ='Hankeyhtiö - Talous'!BC11 -> 102.0902037 | BI62: ='Hankeyhtiö - Talous'!BD11 -> 104.7093252 | BJ62: ='Hankeyhtiö - Talous'!BE11 -> 107.3956401 | BK62: ='Hankeyhtiö - Talous'!BF11 -> 110.1508724 | BL62: ='Hankeyhtiö - Talous'!BG11 -> 112.9767901 | BM62: ='Hankeyhtiö - Talous'!BH11 -> 115.8752067 | BN62: ='Hankeyhtiö - Talous'!BI11 -> 118.8479821 | BO62: ='Hankeyhtiö - Talous'!BJ11 -> 121.8970239 | BP62: ='Hankeyhtiö - Talous'!BK11 -> 125.0242888 | BQ62: ='Hankeyhtiö - Talous'!BL11 -> 128.2317836 | BR62: ='Hankeyhtiö - Talous'!BM11 -> 131.5215666 | BS62: ='Hankeyhtiö - Talous'!BN11 -> 134.8957489 | BT62: ='Hankeyhtiö - Talous'!BO11 -> 138.3564958 | BU62: ='Hankeyhtiö - Talous'!BP11 -> 141.906028
C63: =Kontrolli!C244 -> [Sijoittaja 3] | D63: =IF(ISBLANK($E63),$F63,E63) -> 0 | F63: 0 | G63: Syötetään sijoittava taho ja osuus sijoitettavista A-sarjan osakkeista | N63: Investointimaksut | Q63: ='Hankeyhtiö - Talous'!L12 -> 0 | R63: ='Hankeyhtiö - Talous'!M12 -> 0 | S63: ='Hankeyhtiö - Talous'!N12 -> 0 | T63: ='Hankeyhtiö - Talous'!O12 -> 0 | U63: ='Hankeyhtiö - Talous'!P12 -> 0 | V63: ='Hankeyhtiö - Talous'!Q12 -> 0 | W63: ='Hankeyhtiö - Talous'!R12 -> 0 | X63: ='Hankeyhtiö - Talous'!S12 -> 0 | Y63: ='Hankeyhtiö - Talous'!T12 -> 0 | Z63: ='Hankeyhtiö - Talous'!U12 -> 0 | AA63: ='Hankeyhtiö - Talous'!V12 -> 0 | AB63: ='Hankeyhtiö - Talous'!W12 -> 0 | AC63: ='Hankeyhtiö - Talous'!X12 -> 0 | AD63: ='Hankeyhtiö - Talous'!Y12 -> 2.369463278 | AE63: ='Hankeyhtiö - Talous'!Z12 -> 2.410249121 | AF63: ='Hankeyhtiö - Talous'!AA12 -> 2.458454104 | AG63: ='Hankeyhtiö - Talous'!AB12 -> 4.659001598 | AH63: ='Hankeyhtiö - Talous'!AC12 -> 4.765201306 | AI63: ='Hankeyhtiö - Talous'!AD12 -> 4.847225263 | AJ63: ='Hankeyhtiö - Talous'!AE12 -> 4.944169768 | AK63: ='Hankeyhtiö - Talous'!AF12 -> 5.043053164 | AL63: ='Hankeyhtiö - Talous'!AG12 -> 5.158007142 | AM63: ='Hankeyhtiö - Talous'!AH12 -> 5.246792511 | AN63: ='Hankeyhtiö - Talous'!AI12 -> 5.351728362 | AO63: ='Hankeyhtiö - Talous'!AJ12 -> 5.458762929 | AP63: ='Hankeyhtiö - Talous'!AK12 -> 5.583192813 | AQ63: ='Hankeyhtiö - Talous'!AL12 -> 5.679296951 | AR63: ='Hankeyhtiö - Talous'!AM12 -> 5.79288289 | AS63: ='Hankeyhtiö - Talous'!AN12 -> 5.908740548 | AT63: ='Hankeyhtiö - Talous'!AO12 -> 6.043427456 | AU63: ='Hankeyhtiö - Talous'!AP12 -> 6.147453666 | AV63: ='Hankeyhtiö - Talous'!AQ12 -> 6.270402739 | AW63: ='Hankeyhtiö - Talous'!AR12 -> 6.395810794 | AX63: ='Hankeyhtiö - Talous'!AS12 -> 6.541600235 | AY63: ='Hankeyhtiö - Talous'!AT12 -> 7.134310635 | AZ63: ='Hankeyhtiö - Talous'!AU12 -> 7.276996848 | BA63: ='Hankeyhtiö - Talous'!AV12 -> 7.422536785 | BB63: ='Hankeyhtiö - Talous'!AW12 -> 7.591729952 | BC63: ='Hankeyhtiö - Talous'!AX12 -> 7.722407271 | BD63: ='Hankeyhtiö - Talous'!AY12 -> 7.876855417 | BE63: ='Hankeyhtiö - Talous'!AZ12 -> 8.034392525 | BF63: ='Hankeyhtiö - Talous'!BA12 -> 8.21753265 | BG63: ='Hankeyhtiö - Talous'!BB12 -> 8.358981983 | BH63: ='Hankeyhtiö - Talous'!BC12 -> 8.526161623 | BI63: ='Hankeyhtiö - Talous'!BD12 -> 8.696684855 | BJ63: ='Hankeyhtiö - Talous'!BE12 -> 8.894921617 | BK63: ='Hankeyhtiö - Talous'!BF12 -> 9.048030923 | BL63: ='Hankeyhtiö - Talous'!BG12 -> 9.228991542 | BM63: ='Hankeyhtiö - Talous'!BH12 -> 9.413571373 | BN63: ='Hankeyhtiö - Talous'!BI12 -> 9.628149219 | BO63: ='Hankeyhtiö - Talous'!BJ12 -> 9.793879656 | BP63: ='Hankeyhtiö - Talous'!BK12 -> 9.989757249 | BQ63: ='Hankeyhtiö - Talous'!BL12 -> 10.18955239 | BR63: ='Hankeyhtiö - Talous'!BM12 -> 10.42181836 | BS63: ='Hankeyhtiö - Talous'!BN12 -> 10.60121031 | BT63: ='Hankeyhtiö - Talous'!BO12 -> 10.81323452 | BU63: ='Hankeyhtiö - Talous'!BP12 -> 11.02949921
C64: =Kontrolli!C245 -> [Sijoittaja 4] | D64: 0 | F64: 0 | G64: Syötetään sijoittava taho ja osuus sijoitettavista A-sarjan osakkeista | N64: Ratamaksut | Q64: ='Hankeyhtiö - Talous'!L13 -> 0 | R64: ='Hankeyhtiö - Talous'!M13 -> 0 | S64: ='Hankeyhtiö - Talous'!N13 -> 0 | T64: ='Hankeyhtiö - Talous'!O13 -> 0 | U64: ='Hankeyhtiö - Talous'!P13 -> 0 | V64: ='Hankeyhtiö - Talous'!Q13 -> 0 | W64: ='Hankeyhtiö - Talous'!R13 -> 0 | X64: ='Hankeyhtiö - Talous'!S13 -> 0 | Y64: ='Hankeyhtiö - Talous'!T13 -> 0 | Z64: ='Hankeyhtiö - Talous'!U13 -> 0 | AA64: ='Hankeyhtiö - Talous'!V13 -> 0 | AB64: ='Hankeyhtiö - Talous'!W13 -> 0 | AC64: ='Hankeyhtiö - Talous'!X13 -> 0 | AD64: ='Hankeyhtiö - Talous'!Y13 -> 1.450638073 | AE64: ='Hankeyhtiö - Talous'!Z13 -> 1.475608073 | AF64: ='Hankeyhtiö - Talous'!AA13 -> 1.505120235 | AG64: ='Hankeyhtiö - Talous'!AB13 -> 2.852344312 | AH64: ='Hankeyhtiö - Talous'!AC13 -> 2.917362133 | AI64: ='Hankeyhtiö - Talous'!AD13 -> 2.967579022 | AJ64: ='Hankeyhtiö - Talous'!AE13 -> 3.026930603 | AK64: ='Hankeyhtiö - Talous'!AF13 -> 3.087469215 | AL64: ='Hankeyhtiö - Talous'!AG13 -> 3.157846595 | AM64: ='Hankeyhtiö - Talous'!AH13 -> 3.212202971 | AN64: ='Hankeyhtiö - Talous'!AI13 -> 3.27644703 | AO64: ='Hankeyhtiö - Talous'!AJ13 -> 3.341975971 | AP64: ='Hankeyhtiö - Talous'!AK13 -> 3.418154711 | AQ64: ='Hankeyhtiö - Talous'!AL13 -> 3.4769918 | AR64: ='Hankeyhtiö - Talous'!AM13 -> 3.546531636 | AS64: ='Hankeyhtiö - Talous'!AN13 -> 3.617462269 | AT64: ='Hankeyhtiö - Talous'!AO13 -> 3.699920587 | AU64: ='Hankeyhtiö - Talous'!AP13 -> 3.763607744 | AV64: ='Hankeyhtiö - Talous'!AQ13 -> 3.838879899 | AW64: ='Hankeyhtiö - Talous'!AR13 -> 3.915657497 | AX64: ='Hankeyhtiö - Talous'!AS13 -> 4.004913033 | AY64: ='Hankeyhtiö - Talous'!AT13 -> 4.367783511 | AZ64: ='Hankeyhtiö - Talous'!AU13 -> 4.455139181 | BA64: ='Hankeyhtiö - Talous'!AV13 -> 4.544241965 | BB64: ='Hankeyhtiö - Talous'!AW13 -> 4.647825782 | BC64: ='Hankeyhtiö - Talous'!AX13 -> 4.72782934 | BD64: ='Hankeyhtiö - Talous'!AY13 -> 4.822385927 | BE64: ='Hankeyhtiö - Talous'!AZ13 -> 4.918833646 | BF64: ='Hankeyhtiö - Talous'!BA13 -> 5.0309561 | BG64: ='Hankeyhtiö - Talous'!BB13 -> 5.117554525 | BH64: ='Hankeyhtiö - Talous'!BC13 -> 5.219905616 | BI64: ='Hankeyhtiö - Talous'!BD13 -> 5.324303728 | BJ64: ='Hankeyhtiö - Talous'!BE13 -> 5.445668679 | BK64: ='Hankeyhtiö - Talous'!BF13 -> 5.539405599 | BL64: ='Hankeyhtiö - Talous'!BG13 -> 5.650193711 | BM64: ='Hankeyhtiö - Talous'!BH13 -> 5.763197585 | BN64: ='Hankeyhtiö - Talous'!BI13 -> 5.894566911 | BO64: ='Hankeyhtiö - Talous'!BJ13 -> 5.996030767 | BP64: ='Hankeyhtiö - Talous'!BK13 -> 6.115951383 | BQ64: ='Hankeyhtiö - Talous'!BL13 -> 6.23827041 | BR64: ='Hankeyhtiö - Talous'!BM13 -> 6.380468793 | BS64: ='Hankeyhtiö - Talous'!BN13 -> 6.490296535 | BT64: ='Hankeyhtiö - Talous'!BO13 -> 6.620102465 | BU64: ='Hankeyhtiö - Talous'!BP13 -> 6.752504515
C65: =Kontrolli!C246 -> [Sijoittaja 5] | D65: =IF(ISBLANK($E65),$F65,E65) -> 0 | F65: 0 | G65: Syötetään sijoittava taho ja osuus sijoitettavista A-sarjan osakkeista | N65: Tonttiportfolion vuokratuotot | Q65: ='Hankeyhtiö - Talous'!L14 -> 0 | R65: ='Hankeyhtiö - Talous'!M14 -> 0 | S65: ='Hankeyhtiö - Talous'!N14 -> 0 | T65: ='Hankeyhtiö - Talous'!O14 -> 1.87272 | U65: ='Hankeyhtiö - Talous'!P14 -> 3.8203488 | V65: ='Hankeyhtiö - Talous'!Q14 -> 5.845133664 | W65: ='Hankeyhtiö - Talous'!R14 -> 7.949381783 | X65: ='Hankeyhtiö - Talous'!S14 -> 10.13546177 | Y65: ='Hankeyhtiö - Talous'!T14 -> 12.40580521 | Z65: ='Hankeyhtiö - Talous'!U14 -> 14.7629082 | AA65: ='Hankeyhtiö - Talous'!V14 -> 17.20933299 | AB65: ='Hankeyhtiö - Talous'!W14 -> 19.7477096 | AC65: ='Hankeyhtiö - Talous'!X14 -> 22.38073755 | AD65: ='Hankeyhtiö - Talous'!Y14 -> 22.8283523 | AE65: ='Hankeyhtiö - Talous'!Z14 -> 23.28491935 | AF65: ='Hankeyhtiö - Talous'!AA14 -> 23.75061774 | AG65: ='Hankeyhtiö - Talous'!AB14 -> 24.22563009 | AH65: ='Hankeyhtiö - Talous'!AC14 -> 24.71014269 | AI65: ='Hankeyhtiö - Talous'!AD14 -> 25.20434555 | AJ65: ='Hankeyhtiö - Talous'!AE14 -> 25.70843246 | AK65: ='Hankeyhtiö - Talous'!AF14 -> 26.22260111 | AL65: ='Hankeyhtiö - Talous'!AG14 -> 26.74705313 | AM65: ='Hankeyhtiö - Talous'!AH14 -> 27.28199419 | AN65: ='Hankeyhtiö - Talous'!AI14 -> 27.82763407 | AO65: ='Hankeyhtiö - Talous'!AJ14 -> 28.38418676 | AP65: ='Hankeyhtiö - Talous'!AK14 -> 28.95187049 | AQ65: ='Hankeyhtiö - Talous'!AL14 -> 29.5309079 | AR65: ='Hankeyhtiö - Talous'!AM14 -> 30.12152606 | AS65: ='Hankeyhtiö - Talous'!AN14 -> 30.72395658 | AT65: ='Hankeyhtiö - Talous'!AO14 -> 31.33843571 | AU65: ='Hankeyhtiö - Talous'!AP14 -> 31.96520443 | AV65: ='Hankeyhtiö - Talous'!AQ14 -> 32.60450851 | AW65: ='Hankeyhtiö - Talous'!AR14 -> 33.25659868 | AX65: ='Hankeyhtiö - Talous'!AS14 -> 33.92173066 | AY65: ='Hankeyhtiö - Talous'!AT14 -> 34.60016527 | AZ65: ='Hankeyhtiö - Talous'!AU14 -> 35.29216858 | BA65: ='Hankeyhtiö - Talous'!AV14 -> 35.99801195 | BB65: ='Hankeyhtiö - Talous'!AW14 -> 36.71797219 | BC65: ='Hankeyhtiö - Talous'!AX14 -> 37.45233163 | BD65: ='Hankeyhtiö - Talous'!AY14 -> 38.20137826 | BE65: ='Hankeyhtiö - Talous'!AZ14 -> 38.96540583 | BF65: ='Hankeyhtiö - Talous'!BA14 -> 39.74471395 | BG65: ='Hankeyhtiö - Talous'!BB14 -> 40.53960822 | BH65: ='Hankeyhtiö - Talous'!BC14 -> 41.35040039 | BI65: ='Hankeyhtiö - Talous'!BD14 -> 42.1774084 | BJ65: ='Hankeyhtiö - Talous'!BE14 -> 43.02095656 | BK65: ='Hankeyhtiö - Talous'!BF14 -> 43.8813757 | BL65: ='Hankeyhtiö - Talous'!BG14 -> 44.75900321 | BM65: ='Hankeyhtiö - Talous'!BH14 -> 45.65418327 | BN65: ='Hankeyhtiö - Talous'!BI14 -> 46.56726694 | BO65: ='Hankeyhtiö - Talous'!BJ14 -> 47.49861228 | BP65: ='Hankeyhtiö - Talous'!BK14 -> 48.44858452 | BQ65: ='Hankeyhtiö - Talous'!BL14 -> 49.41755621 | BR65: ='Hankeyhtiö - Talous'!BM14 -> 50.40590734 | BS65: ='Hankeyhtiö - Talous'!BN14 -> 51.41402548 | BT65: ='Hankeyhtiö - Talous'!BO14 -> 52.44230599 | BU65: ='Hankeyhtiö - Talous'!BP14 -> 53.49115211
C66: =Kontrolli!C247 -> [Sijoittaja 6] | D66: 0 | F66: 0 | G66: Syötetään sijoittava taho ja osuus sijoitettavista A-sarjan osakkeista | N66: Infrastruktuurimaksut | Q66: ='Hankeyhtiö - Talous'!L15 -> 0 | R66: ='Hankeyhtiö - Talous'!M15 -> 0 | S66: ='Hankeyhtiö - Talous'!N15 -> 0 | T66: ='Hankeyhtiö - Talous'!O15 -> 0 | U66: ='Hankeyhtiö - Talous'!P15 -> 0 | V66: ='Hankeyhtiö - Talous'!Q15 -> 0 | W66: ='Hankeyhtiö - Talous'!R15 -> 0 | X66: ='Hankeyhtiö - Talous'!S15 -> 0 | Y66: ='Hankeyhtiö - Talous'!T15 -> 0 | Z66: ='Hankeyhtiö - Talous'!U15 -> 0 | AA66: ='Hankeyhtiö - Talous'!V15 -> 0 | AB66: ='Hankeyhtiö - Talous'!W15 -> 0 | AC66: ='Hankeyhtiö - Talous'!X15 -> 0 | AD66: ='Hankeyhtiö - Talous'!Y15 -> 38.04725384 | AE66: ='Hankeyhtiö - Talous'!Z15 -> 38.80819891 | AF66: ='Hankeyhtiö - Talous'!AA15 -> 39.58436289 | AG66: ='Hankeyhtiö - Talous'!AB15 -> 40.37605015 | AH66: ='Hankeyhtiö - Talous'!AC15 -> 41.18357115 | AI66: ='Hankeyhtiö - Talous'!AD15 -> 42.00724258 | AJ66: ='Hankeyhtiö - Talous'!AE15 -> 42.84738743 | AK66: ='Hankeyhtiö - Talous'!AF15 -> 43.70433518 | AL66: ='Hankeyhtiö - Talous'!AG15 -> 44.57842188 | AM66: ='Hankeyhtiö - Talous'!AH15 -> 45.46999032 | AN66: ='Hankeyhtiö - Talous'!AI15 -> 46.37939012 | AO66: ='Hankeyhtiö - Talous'!AJ15 -> 47.30697793 | AP66: ='Hankeyhtiö - Talous'!AK15 -> 48.25311748 | AQ66: ='Hankeyhtiö - Talous'!AL15 -> 49.21817983 | AR66: ='Hankeyhtiö - Talous'!AM15 -> 50.20254343 | AS66: ='Hankeyhtiö - Talous'!AN15 -> 51.2065943 | AT66: ='Hankeyhtiö - Talous'!AO15 -> 52.23072619 | AU66: ='Hankeyhtiö - Talous'!AP15 -> 53.27534071 | AV66: ='Hankeyhtiö - Talous'!AQ15 -> 54.34084752 | AW66: ='Hankeyhtiö - Talous'!AR15 -> 55.42766447 | AX66: ='Hankeyhtiö - Talous'!AS15 -> 0 | AY66: ='Hankeyhtiö - Talous'!AT15 -> 0 | AZ66: ='Hankeyhtiö - Talous'!AU15 -> 0 | BA66: ='Hankeyhtiö - Talous'!AV15 -> 0 | BB66: ='Hankeyhtiö - Talous'!AW15 -> 0 | BC66: ='Hankeyhtiö - Talous'!AX15 -> 0 | BD66: ='Hankeyhtiö - Talous'!AY15 -> 0 | BE66: ='Hankeyhtiö - Talous'!AZ15 -> 0 | BF66: ='Hankeyhtiö - Talous'!BA15 -> 0 | BG66: ='Hankeyhtiö - Talous'!BB15 -> 0 | BH66: ='Hankeyhtiö - Talous'!BC15 -> 0 | BI66: ='Hankeyhtiö - Talous'!BD15 -> 0 | BJ66: ='Hankeyhtiö - Talous'!BE15 -> 0 | BK66: ='Hankeyhtiö - Talous'!BF15 -> 0 | BL66: ='Hankeyhtiö - Talous'!BG15 -> 0 | BM66: ='Hankeyhtiö - Talous'!BH15 -> 0 | BN66: ='Hankeyhtiö - Talous'!BI15 -> 0 | BO66: ='Hankeyhtiö - Talous'!BJ15 -> 0 | BP66: ='Hankeyhtiö - Talous'!BK15 -> 0 | BQ66: ='Hankeyhtiö - Talous'!BL15 -> 0 | BR66: ='Hankeyhtiö - Talous'!BM15 -> 0 | BS66: ='Hankeyhtiö - Talous'!BN15 -> 0 | BT66: ='Hankeyhtiö - Talous'!BO15 -> 0 | BU66: ='Hankeyhtiö - Talous'!BP15 -> 0
N67: Nettotuotot muista palveluista | Q67: ='Hankeyhtiö - Talous'!L16 -> 0 | R67: ='Hankeyhtiö - Talous'!M16 -> 0 | S67: ='Hankeyhtiö - Talous'!N16 -> 0 | T67: ='Hankeyhtiö - Talous'!O16 -> 0 | U67: ='Hankeyhtiö - Talous'!P16 -> 0 | V67: ='Hankeyhtiö - Talous'!Q16 -> 0 | W67: ='Hankeyhtiö - Talous'!R16 -> 0 | X67: ='Hankeyhtiö - Talous'!S16 -> 0 | Y67: ='Hankeyhtiö - Talous'!T16 -> 0 | Z67: ='Hankeyhtiö - Talous'!U16 -> 0 | AA67: ='Hankeyhtiö - Talous'!V16 -> 0 | AB67: ='Hankeyhtiö - Talous'!W16 -> 0 | AC67: ='Hankeyhtiö - Talous'!X16 -> 0 | AD67: ='Hankeyhtiö - Talous'!Y16 -> 0 | AE67: ='Hankeyhtiö - Talous'!Z16 -> 0 | AF67: ='Hankeyhtiö - Talous'!AA16 -> 0 | AG67: ='Hankeyhtiö - Talous'!AB16 -> 0 | AH67: ='Hankeyhtiö - Talous'!AC16 -> 0 | AI67: ='Hankeyhtiö - Talous'!AD16 -> 0 | AJ67: ='Hankeyhtiö - Talous'!AE16 -> 0 | AK67: ='Hankeyhtiö - Talous'!AF16 -> 0 | AL67: ='Hankeyhtiö - Talous'!AG16 -> 0 | AM67: ='Hankeyhtiö - Talous'!AH16 -> 0 | AN67: ='Hankeyhtiö - Talous'!AI16 -> 0 | AO67: ='Hankeyhtiö - Talous'!AJ16 -> 0 | AP67: ='Hankeyhtiö - Talous'!AK16 -> 0 | AQ67: ='Hankeyhtiö - Talous'!AL16 -> 0 | AR67: ='Hankeyhtiö - Talous'!AM16 -> 0 | AS67: ='Hankeyhtiö - Talous'!AN16 -> 0 | AT67: ='Hankeyhtiö - Talous'!AO16 -> 0 | AU67: ='Hankeyhtiö - Talous'!AP16 -> 0 | AV67: ='Hankeyhtiö - Talous'!AQ16 -> 0 | AW67: ='Hankeyhtiö - Talous'!AR16 -> 0 | AX67: ='Hankeyhtiö - Talous'!AS16 -> 0 | AY67: ='Hankeyhtiö - Talous'!AT16 -> 0 | AZ67: ='Hankeyhtiö - Talous'!AU16 -> 0 | BA67: ='Hankeyhtiö - Talous'!AV16 -> 0 | BB67: ='Hankeyhtiö - Talous'!AW16 -> 0 | BC67: ='Hankeyhtiö - Talous'!AX16 -> 0 | BD67: ='Hankeyhtiö - Talous'!AY16 -> 0 | BE67: ='Hankeyhtiö - Talous'!AZ16 -> 0 | BF67: ='Hankeyhtiö - Talous'!BA16 -> 0 | BG67: ='Hankeyhtiö - Talous'!BB16 -> 0 | BH67: ='Hankeyhtiö - Talous'!BC16 -> 0 | BI67: ='Hankeyhtiö - Talous'!BD16 -> 0 | BJ67: ='Hankeyhtiö - Talous'!BE16 -> 0 | BK67: ='Hankeyhtiö - Talous'!BF16 -> 0 | BL67: ='Hankeyhtiö - Talous'!BG16 -> 0 | BM67: ='Hankeyhtiö - Talous'!BH16 -> 0 | BN67: ='Hankeyhtiö - Talous'!BI16 -> 0 | BO67: ='Hankeyhtiö - Talous'!BJ16 -> 0 | BP67: ='Hankeyhtiö - Talous'!BK16 -> 0 | BQ67: ='Hankeyhtiö - Talous'!BL16 -> 0 | BR67: ='Hankeyhtiö - Talous'!BM16 -> 0 | BS67: ='Hankeyhtiö - Talous'!BN16 -> 0 | BT67: ='Hankeyhtiö - Talous'!BO16 -> 0 | BU67: ='Hankeyhtiö - Talous'!BP16 -> 0
C68: Osakesarja B (tonttisijoitus) | D68: =IF(SUM(D69:D74)=100%,"OK","CHECK") -> OK | G68: Osuudet tonttiapportista | N68: Liikevaihto | Q68: =SUM(Q61:Q67) -> 0 | R68: =SUM(R61:R67) -> 0 | S68: 0 | T68: 1.87272 | U68: 3.8203488 | V68: 5.845133664 | W68: 7.949381783 | X68: 10.13546177 | Y68: 12.40580521 | Z68: 14.7629082 | AA68: 17.20933299 | AB68: 19.7477096 | AC68: 22.38073755 | AD68: 77.95541117 | AE68: 79.59559029 | AF68: 81.28168792 | AG68: 131.8055903 | AH68: 135.3652632 | AI68: 138.9867621 | AJ68: 142.7363557 | AK68: 146.5964617 | AL68: 150.5933244 | AM68: 154.5396881 | AN68: 158.6215458 | AO68: 162.5210758 | AP68: 166.5450546 | AQ68: 170.6223575 | AR68: 174.8294959 | AS68: 179.1446809 | AT68: 183.597416 | AU68: 188.1107997 | AV68: 192.7677388 | AW68: 197.5447398 | AX68: 145.9376146 | AY68: 150.1748241 | AZ68: 153.7668482 | BA68: 157.4458114 | BB68: 161.2472813 | BC68: 165.0731122 | BD68: 169.0258608 | BE68: 173.0743732 | BF68: 177.2571912 | BG68: 181.4681226 | BH68: 185.8182226 | BI68: 190.2738151 | BJ68: 194.8766662 | BK68: 199.5118783 | BL68: 204.2997107 | BM68: 209.203762 | BN68: 214.2692933 | BO68: 219.3719891 | BP68: 224.6420768 | BQ68: 230.0402105 | BR68: 235.61544 | BS68: 241.2332612 | BT68: 247.0346972 | BU68: 252.9772209
C69: =C61 -> [Sijoittaja 1] | D69: =IF(ISBLANK($E69),$F69,E69) -> 0.2 | F69: 0.2 | G69: Syötetään osuus sijoitettavista B-sarjan osakkeista | N69: Kasvu-% | Q69: =IFERROR(Q68/P68-1,0) -> 0 | R69: 0 | S69: 0 | T69: =IFERROR(T68/S68-1,0) -> 0 | U69: =IFERROR(U68/T68-1,0) -> 1.04 | V69: 0.53 | W69: 0.36 | X69: 0.275 | Y69: 0.224 | Z69: 0.19 | AA69: 0.1657142857 | AB69: 0.1475 | AC69: 0.1333333333 | AD69: 2.48314755 | AE69: 0.02103996495 | AF69: 0.02118330457 | AG69: 0.6215902213 | AH69: 0.02700699473 | AI69: 0.02675353219 | AJ69: 0.02697806306 | AK69: 0.02704360727 | AL69: 0.0272643873 | AM69: 0.02620543586 | AN69: 0.02641300611 | AO69: 0.0245838607 | AP69: 0.02475973528 | AQ69: 0.02448168088 | AR69: 0.02465760298 | AS69: 0.02468224821 | AT69: 0.0248555254 | AU69: 0.02458304541 | AV69: 0.02475636231 | AW69: 0.02478112287 | AX69: -0.2612427203 | AY69: 0.02903438922 | AZ69: 0.02391894976 | BA69: 0.02392559423 | BB69: 0.02414462392 | BC69: 0.02372648353 | BD69: 0.02394544188 | BE69: 0.023952029 | BF69: 0.02416774907 | BG69: 0.02375605376 | BH69: 0.02397170336 | BI69: 0.0239782323 | BJ69: 0.02419067054 | BK69: 0.02378536223 | BL69: 0.02399773088 | BM69: 0.02400420082 | BN69: 0.02421338549 | BO69: 0.02381440532 | BP69: 0.02402352125 | BQ69: 0.02402993144 | BR69: 0.0242358912 | BS69: 0.02384317962 | BT69: 0.0240490715 | BU69: 0.02405542121
C70: =C62 -> [Sijoittaja 2] | D70: =IF(ISBLANK($E70),$F70,E70) -> 0 | F70: 0 | G70: Syötetään osuus sijoitettavista B-sarjan osakkeista
C71: [Sijoittaja 3] | D71: 0.2 | F71: 0.2 | G71: Syötetään osuus sijoitettavista B-sarjan osakkeista | N71: Operatiiviset kustannukset | Q71: ='Hankeyhtiö - Talous'!L20+'Hankeyhtiö - Talous'!L21 -> 0 | R71: ='Hankeyhtiö - Talous'!M20+'Hankeyhtiö - Talous'!M21 -> 0 | S71: ='Hankeyhtiö - Talous'!N20+'Hankeyhtiö - Talous'!N21 -> 0 | T71: ='Hankeyhtiö - Talous'!O20+'Hankeyhtiö - Talous'!O21 -> -1.0404 | U71: ='Hankeyhtiö - Talous'!P20+'Hankeyhtiö - Talous'!P21 -> -1.061208 | V71: ='Hankeyhtiö - Talous'!Q20+'Hankeyhtiö - Talous'!Q21 -> -1.08243216 | W71: ='Hankeyhtiö - Talous'!R20+'Hankeyhtiö - Talous'!R21 -> -1.104080803 | X71: ='Hankeyhtiö - Talous'!S20+'Hankeyhtiö - Talous'!S21 -> -1.126162419 | Y71: ='Hankeyhtiö - Talous'!T20+'Hankeyhtiö - Talous'!T21 -> -1.148685668 | Z71: ='Hankeyhtiö - Talous'!U20+'Hankeyhtiö - Talous'!U21 -> -1.171659381 | AA71: ='Hankeyhtiö - Talous'!V20+'Hankeyhtiö - Talous'!V21 -> -1.195092569 | AB71: ='Hankeyhtiö - Talous'!W20+'Hankeyhtiö - Talous'!W21 -> -1.21899442 | AC71: ='Hankeyhtiö - Talous'!X20+'Hankeyhtiö - Talous'!X21 -> -1.243374308 | AD71: ='Hankeyhtiö - Talous'!Y20+'Hankeyhtiö - Talous'!Y21 -> -5.566006829 | AE71: ='Hankeyhtiö - Talous'!Z20+'Hankeyhtiö - Talous'!Z21 -> -5.677326966 | AF71: ='Hankeyhtiö - Talous'!AA20+'Hankeyhtiö - Talous'!AA21 -> -5.790873505 | AG71: ='Hankeyhtiö - Talous'!AB20+'Hankeyhtiö - Talous'!AB21 -> -7.420623932 | AH71: ='Hankeyhtiö - Talous'!AC20+'Hankeyhtiö - Talous'!AC21 -> -7.573267128 | AI71: ='Hankeyhtiö - Talous'!AD20+'Hankeyhtiö - Talous'!AD21 -> -7.720417139 | AJ71: ='Hankeyhtiö - Talous'!AE20+'Hankeyhtiö - Talous'!AE21 -> -7.874825482 | AK71: ='Hankeyhtiö - Talous'!AF20+'Hankeyhtiö - Talous'!AF21 -> -8.032321991 | AL71: ='Hankeyhtiö - Talous'!AG20+'Hankeyhtiö - Talous'!AG21 -> -8.197547895 | AM71: ='Hankeyhtiö - Talous'!AH20+'Hankeyhtiö - Talous'!AH21 -> -8.3568278 | AN71: ='Hankeyhtiö - Talous'!AI20+'Hankeyhtiö - Talous'!AI21 -> -8.523964356 | AO71: ='Hankeyhtiö - Talous'!AJ20+'Hankeyhtiö - Talous'!AJ21 -> -8.694443643 | AP71: ='Hankeyhtiö - Talous'!AK20+'Hankeyhtiö - Talous'!AK21 -> -8.873289475 | AQ71: ='Hankeyhtiö - Talous'!AL20+'Hankeyhtiö - Talous'!AL21 -> -9.045699166 | AR71: ='Hankeyhtiö - Talous'!AM20+'Hankeyhtiö - Talous'!AM21 -> -9.226613149 | AS71: ='Hankeyhtiö - Talous'!AN20+'Hankeyhtiö - Talous'!AN21 -> -9.411145412 | AT71: ='Hankeyhtiö - Talous'!AO20+'Hankeyhtiö - Talous'!AO21 -> -9.604733893 | AU71: ='Hankeyhtiö - Talous'!AP20+'Hankeyhtiö - Talous'!AP21 -> -9.791355687 | AV71: ='Hankeyhtiö - Talous'!AQ20+'Hankeyhtiö - Talous'!AQ21 -> -9.987182801 | AW71: ='Hankeyhtiö - Talous'!AR20+'Hankeyhtiö - Talous'!AR21 -> -10.18692646 | AX71: ='Hankeyhtiö - Talous'!AS20+'Hankeyhtiö - Talous'!AS21 -> -10.39647285 | AY71: ='Hankeyhtiö - Talous'!AT20+'Hankeyhtiö - Talous'!AT21 -> -10.93633283 | AZ71: ='Hankeyhtiö - Talous'!AU20+'Hankeyhtiö - Talous'!AU21 -> -11.15505948 | BA71: ='Hankeyhtiö - Talous'!AV20+'Hankeyhtiö - Talous'!AV21 -> -11.37816067 | BB71: ='Hankeyhtiö - Talous'!AW20+'Hankeyhtiö - Talous'!AW21 -> -11.61299279 | BC71: ='Hankeyhtiö - Talous'!AX20+'Hankeyhtiö - Talous'!AX21 -> -11.83783836 | BD71: ='Hankeyhtiö - Talous'!AY20+'Hankeyhtiö - Talous'!AY21 -> -12.07459513 | BE71: ='Hankeyhtiö - Talous'!AZ20+'Hankeyhtiö - Talous'!AZ21 -> -12.31608703 | BF71: ='Hankeyhtiö - Talous'!BA20+'Hankeyhtiö - Talous'!BA21 -> -12.57027687 | BG71: ='Hankeyhtiö - Talous'!BB20+'Hankeyhtiö - Talous'!BB21 -> -12.81365695 | BH71: ='Hankeyhtiö - Talous'!BC20+'Hankeyhtiö - Talous'!BC21 -> -13.06993009 | BI71: ='Hankeyhtiö - Talous'!BD20+'Hankeyhtiö - Talous'!BD21 -> -13.33132869 | BJ71: ='Hankeyhtiö - Talous'!BE20+'Hankeyhtiö - Talous'!BE21 -> -13.60647195 | BK71: ='Hankeyhtiö - Talous'!BF20+'Hankeyhtiö - Talous'!BF21 -> -13.86991437 | BL71: ='Hankeyhtiö - Talous'!BG20+'Hankeyhtiö - Talous'!BG21 -> -14.14731266 | BM71: ='Hankeyhtiö - Talous'!BH20+'Hankeyhtiö - Talous'!BH21 -> -14.43025891 | BN71: ='Hankeyhtiö - Talous'!BI20+'Hankeyhtiö - Talous'!BI21 -> -14.72808282 | BO71: ='Hankeyhtiö - Talous'!BJ20+'Hankeyhtiö - Talous'!BJ21 -> -15.01324137 | BP71: ='Hankeyhtiö - Talous'!BK20+'Hankeyhtiö - Talous'!BK21 -> -15.3135062 | BQ71: ='Hankeyhtiö - Talous'!BL20+'Hankeyhtiö - Talous'!BL21 -> -15.61977632 | BR71: ='Hankeyhtiö - Talous'!BM20+'Hankeyhtiö - Talous'!BM21 -> -15.9421505 | BS71: ='Hankeyhtiö - Talous'!BN20+'Hankeyhtiö - Talous'!BN21 -> -16.25081529 | BT71: ='Hankeyhtiö - Talous'!BO20+'Hankeyhtiö - Talous'!BO21 -> -16.57583159 | BU71: ='Hankeyhtiö - Talous'!BP20+'Hankeyhtiö - Talous'!BP21 -> -16.90734822
C72: [Sijoittaja 4] | D72: 0.2 | F72: 0.2 | G72: Syötetään osuus sijoitettavista B-sarjan osakkeista
C73: [Sijoittaja 5] | D73: 0.2 | F73: 0.2 | G73: Syötetään osuus sijoitettavista B-sarjan osakkeista | N73: Käyttökate | Q73: =Q71+Q68 -> 0 | R73: =R71+R68 -> 0 | S73: =S71+S68 -> 0 | T73: 0.83232 | U73: 2.7591408 | V73: 4.762701504 | W73: 6.84530098 | X73: 9.009299354 | Y73: 11.25711954 | Z73: 13.59124882 | AA73: 16.01424042 | AB73: 18.52871518 | AC73: 21.13736324 | AD73: 72.38940434 | AE73: 73.91826332 | AF73: 75.49081442 | AG73: 124.3849664 | AH73: 127.7919961 | AI73: 131.266345 | AJ73: 134.8615303 | AK73: 138.5641397 | AL73: 142.3957765 | AM73: 146.1828603 | AN73: 150.0975815 | AO73: 153.8266322 | AP73: 157.6717652 | AQ73: 161.5766583 | AR73: 165.6028827 | AS73: 169.7335355 | AT73: 173.9926821 | AU73: 178.319444 | AV73: 182.780556 | AW73: 187.3578133 | AX73: 135.5411417 | AY73: 139.2384913 | AZ73: 142.6117887 | BA73: 146.0676507 | BB73: 149.6342885 | BC73: 153.2352739 | BD73: 156.9512657 | BE73: 160.7582861 | BF73: 164.6869143 | BG73: 168.6544656 | BH73: 172.7482925 | BI73: 176.9424864 | BJ73: 181.2701943 | BK73: 185.641964 | BL73: 190.152398 | BM73: 194.7735031 | BN73: 199.5412105 | BO73: 204.3587477 | BP73: 209.3285706 | BQ73: 214.4204341 | BR73: 219.6732895 | BS73: 224.9824459 | BT73: 230.4588656 | BU73: 236.0698726
C74: [Sijoittaja 6] | D74: 0.2 | F74: 0.2 | G74: Syötetään osuus sijoitettavista B-sarjan osakkeista | N74: Marginaali | Q74: =IFERROR(Q73/Q68,0) -> 0 | R74: =IFERROR(R73/R68,0) -> 0 | S74: =IFERROR(S73/S68,0) -> 0 | T74: 0.4444444444 | U74: 0.7222222222 | V74: 0.8148148148 | W74: 0.8611111111 | X74: 0.8888888889 | Y74: 0.9074074074 | Z74: 0.9206349206 | AA74: 0.9305555556 | AB74: 0.9382716049 | AC74: 0.9444444444 | AD74: 0.9286001222 | AE74: 0.9286728455 | AF74: 0.9287554964 | AG74: 0.9437002337 | AH74: 0.9440530979 | AI74: 0.9444521405 | AJ74: 0.9448295745 | AK74: 0.9452079409 | AL74: 0.9455649981 | AM74: 0.9459243907 | AN74: 0.9462622539 | AO74: 0.9465026699 | AP74: 0.9467213872 | AQ74: 0.9469840922 | AR74: 0.9472250772 | AS74: 0.9474662303 | AT74: 0.9476858983 | AU74: 0.9479489976 | AV74: 0.9481905901 | AW74: 0.9484323072 | AX74: 0.9287608415 | AY74: 0.9271759904 | AZ74: 0.9274547172 | BA74: 0.9277328461 | BB74: 0.9279802258 | BC74: 0.9282873013 | BD74: 0.9285636229 | BE74: 0.9288393376 | BF74: 0.9290845308 | BG74: 0.9293889375 | BH74: 0.9296628183 | BI74: 0.9299360835 | BJ74: 0.9301790604 | BK74: 0.9304807589 | BL74: 0.930752165 | BM74: 0.9310229473 | BN74: 0.9312636795 | BO74: 0.9315626328 | BP74: 0.9318315321 | BQ74: 0.9320997999 | BR74: 0.9323382606 | BS74: 0.9326344336 | BT74: 0.9329007958 | BU74: 0.9331665192
C76: Pääomalaina | D76: =IF(SUM(D77:D82)=100%,"OK","CHECK") -> OK | G76: Osuudet tonttiapportista | N76: Tonttien käyvän arvon muutos | Q76: ='Hankeyhtiö - Talous'!L26 -> 0 | R76: ='Hankeyhtiö - Talous'!M26 -> 0 | S76: ='Hankeyhtiö - Talous'!N26 -> 8 | T76: ='Hankeyhtiö - Talous'!O26 -> 8.16 | U76: ='Hankeyhtiö - Talous'!P26 -> 8.3232 | V76: ='Hankeyhtiö - Talous'!Q26 -> 8.489664 | W76: ='Hankeyhtiö - Talous'!R26 -> 8.65945728 | X76: ='Hankeyhtiö - Talous'!S26 -> 8.832646426 | Y76: ='Hankeyhtiö - Talous'!T26 -> 9.009299354 | Z76: ='Hankeyhtiö - Talous'!U26 -> 9.189485341 | AA76: ='Hankeyhtiö - Talous'!V26 -> 9.373275048 | AB76: ='Hankeyhtiö - Talous'!W26 -> 9.560740549 | AC76: ='Hankeyhtiö - Talous'!X26 -> 9.75195536 | AD76: ='Hankeyhtiö - Talous'!Y26 -> 9.946994467 | AE76: ='Hankeyhtiö - Talous'!Z26 -> 10.14593436 | AF76: ='Hankeyhtiö - Talous'!AA26 -> 10.34885304 | AG76: ='Hankeyhtiö - Talous'!AB26 -> 10.5558301 | AH76: ='Hankeyhtiö - Talous'!AC26 -> 10.76694671 | AI76: ='Hankeyhtiö - Talous'!AD26 -> 10.98228564 | AJ76: ='Hankeyhtiö - Talous'!AE26 -> 11.20193135 | AK76: ='Hankeyhtiö - Talous'!AF26 -> 11.42596998 | AL76: ='Hankeyhtiö - Talous'!AG26 -> 11.65448938 | AM76: ='Hankeyhtiö - Talous'!AH26 -> 11.88757917 | AN76: ='Hankeyhtiö - Talous'!AI26 -> 12.12533075 | AO76: ='Hankeyhtiö - Talous'!AJ26 -> 12.36783737 | AP76: ='Hankeyhtiö - Talous'!AK26 -> 12.61519411 | AQ76: ='Hankeyhtiö - Talous'!AL26 -> 12.867498 | AR76: ='Hankeyhtiö - Talous'!AM26 -> 13.12484796 | AS76: ='Hankeyhtiö - Talous'!AN26 -> 13.38734491 | AT76: ='Hankeyhtiö - Talous'!AO26 -> 13.65509181 | AU76: ='Hankeyhtiö - Talous'!AP26 -> 13.92819365 | AV76: ='Hankeyhtiö - Talous'!AQ26 -> 14.20675752 | AW76: ='Hankeyhtiö - Talous'!AR26 -> 14.49089267 | AX76: ='Hankeyhtiö - Talous'!AS26 -> 14.78071053 | AY76: ='Hankeyhtiö - Talous'!AT26 -> 15.07632474 | AZ76: ='Hankeyhtiö - Talous'!AU26 -> 15.37785123 | BA76: ='Hankeyhtiö - Talous'!AV26 -> 15.68540826 | BB76: ='Hankeyhtiö - Talous'!AW26 -> 15.99911642 | BC76: ='Hankeyhtiö - Talous'!AX26 -> 16.31909875 | BD76: ='Hankeyhtiö - Talous'!AY26 -> 16.64548072 | BE76: ='Hankeyhtiö - Talous'!AZ26 -> 16.97839034 | BF76: ='Hankeyhtiö - Talous'!BA26 -> 17.31795815 | BG76: ='Hankeyhtiö - Talous'!BB26 -> 17.66431731 | BH76: ='Hankeyhtiö - Talous'!BC26 -> 18.01760366 | BI76: ='Hankeyhtiö - Talous'!BD26 -> 18.37795573 | BJ76: ='Hankeyhtiö - Talous'!BE26 -> 18.74551484 | BK76: ='Hankeyhtiö - Talous'!BF26 -> 19.12042514 | BL76: ='Hankeyhtiö - Talous'!BG26 -> 19.50283364 | BM76: ='Hankeyhtiö - Talous'!BH26 -> 19.89289032 | BN76: ='Hankeyhtiö - Talous'!BI26 -> 20.29074812 | BO76: ='Hankeyhtiö - Talous'!BJ26 -> 20.69656308 | BP76: ='Hankeyhtiö - Talous'!BK26 -> 21.11049435 | BQ76: ='Hankeyhtiö - Talous'!BL26 -> 21.53270423 | BR76: ='Hankeyhtiö - Talous'!BM26 -> 21.96335832 | BS76: ='Hankeyhtiö - Talous'!BN26 -> 22.40262548 | BT76: ='Hankeyhtiö - Talous'!BO26 -> 22.85067799 | BU76: ='Hankeyhtiö - Talous'!BP26 -> 23.30769155
C77: =C61 -> [Sijoittaja 1] | D77: =IF(ISBLANK($E77),$F77,E77) -> 0 | F77: 0 | G77: Syötetään osuus sijoitettavista pääomalainasta | N77: Poistot | Q77: ='Hankeyhtiö - Talous'!L27 -> 0 | R77: ='Hankeyhtiö - Talous'!M27 -> 0 | S77: ='Hankeyhtiö - Talous'!N27 -> 0 | T77: ='Hankeyhtiö - Talous'!O27 -> 0 | U77: ='Hankeyhtiö - Talous'!P27 -> 0 | V77: ='Hankeyhtiö - Talous'!Q27 -> 0 | W77: ='Hankeyhtiö - Talous'!R27 -> 0 | X77: ='Hankeyhtiö - Talous'!S27 -> 0 | Y77: ='Hankeyhtiö - Talous'!T27 -> 0 | Z77: ='Hankeyhtiö - Talous'!U27 -> 0 | AA77: ='Hankeyhtiö - Talous'!V27 -> 0 | AB77: ='Hankeyhtiö - Talous'!W27 -> 0 | AC77: ='Hankeyhtiö - Talous'!X27 -> 0 | AD77: ='Hankeyhtiö - Talous'!Y27 -> -43.59414394 | AE77: ='Hankeyhtiö - Talous'!Z27 -> -43.59414394 | AF77: ='Hankeyhtiö - Talous'!AA27 -> -43.59414394 | AG77: ='Hankeyhtiö - Talous'!AB27 -> -100.103675 | AH77: ='Hankeyhtiö - Talous'!AC27 -> -100.103675 | AI77: ='Hankeyhtiö - Talous'!AD27 -> -100.103675 | AJ77: ='Hankeyhtiö - Talous'!AE27 -> -100.103675 | AK77: ='Hankeyhtiö - Talous'!AF27 -> -100.103675 | AL77: ='Hankeyhtiö - Talous'!AG27 -> -100.103675 | AM77: ='Hankeyhtiö - Talous'!AH27 -> -100.103675 | AN77: ='Hankeyhtiö - Talous'!AI27 -> -100.103675 | AO77: ='Hankeyhtiö - Talous'!AJ27 -> -100.103675 | AP77: ='Hankeyhtiö - Talous'!AK27 -> -100.103675 | AQ77: ='Hankeyhtiö - Talous'!AL27 -> -100.103675 | AR77: ='Hankeyhtiö - Talous'!AM27 -> -100.103675 | AS77: ='Hankeyhtiö - Talous'!AN27 -> -100.103675 | AT77: ='Hankeyhtiö - Talous'!AO27 -> -100.103675 | AU77: ='Hankeyhtiö - Talous'!AP27 -> -100.103675 | AV77: ='Hankeyhtiö - Talous'!AQ27 -> -100.103675 | AW77: ='Hankeyhtiö - Talous'!AR27 -> -100.103675 | AX77: ='Hankeyhtiö - Talous'!AS27 -> -100.103675 | AY77: ='Hankeyhtiö - Talous'!AT27 -> -100.103675 | AZ77: ='Hankeyhtiö - Talous'!AU27 -> -100.103675 | BA77: ='Hankeyhtiö - Talous'!AV27 -> -100.103675 | BB77: ='Hankeyhtiö - Talous'!AW27 -> -100.103675 | BC77: ='Hankeyhtiö - Talous'!AX27 -> -100.103675 | BD77: ='Hankeyhtiö - Talous'!AY27 -> -100.103675 | BE77: ='Hankeyhtiö - Talous'!AZ27 -> -100.103675 | BF77: ='Hankeyhtiö - Talous'!BA27 -> -100.103675 | BG77: ='Hankeyhtiö - Talous'!BB27 -> -100.103675 | BH77: ='Hankeyhtiö - Talous'!BC27 -> -100.103675 | BI77: ='Hankeyhtiö - Talous'!BD27 -> -100.103675 | BJ77: ='Hankeyhtiö - Talous'!BE27 -> -100.103675 | BK77: ='Hankeyhtiö - Talous'!BF27 -> -100.103675 | BL77: ='Hankeyhtiö - Talous'!BG27 -> -100.103675 | BM77: ='Hankeyhtiö - Talous'!BH27 -> -100.103675 | BN77: ='Hankeyhtiö - Talous'!BI27 -> -100.103675 | BO77: ='Hankeyhtiö - Talous'!BJ27 -> -100.103675 | BP77: ='Hankeyhtiö - Talous'!BK27 -> -100.103675 | BQ77: ='Hankeyhtiö - Talous'!BL27 -> -100.103675 | BR77: ='Hankeyhtiö - Talous'!BM27 -> -100.103675 | BS77: ='Hankeyhtiö - Talous'!BN27 -> -100.103675 | BT77: ='Hankeyhtiö - Talous'!BO27 -> -100.103675 | BU77: ='Hankeyhtiö - Talous'!BP27 -> -100.103675
C78: =C62 -> [Sijoittaja 2] | D78: 1 | F78: 1 | G78: Syötetään osuus sijoitettavista pääomalainasta
C79: [Sijoittaja 3] | D79: 0 | F79: 0 | G79: Syötetään osuus sijoitettavista pääomalainasta | N79: Liikevoitto | Q79: =Q73+SUM(Q76:Q77) -> 0 | R79: =R73+SUM(R76:R77) -> 0 | S79: =S73+SUM(S76:S77) -> 8 | T79: 8.99232 | U79: 11.0823408 | V79: 13.2523655 | W79: 15.50475826 | X79: 17.84194578 | Y79: 20.2664189 | Z79: 22.78073416 | AA79: 25.38751547 | AB79: 28.08945573 | AC79: 30.8893186 | AD79: 38.74225487 | AE79: 40.47005374 | AF79: 42.24552352 | AG79: 34.83712145 | AH79: 38.45526774 | AI79: 42.14495559 | AJ79: 45.95978659 | AK79: 49.88643466 | AL79: 53.94659086 | AM79: 57.96676445 | AN79: 62.1192372 | AO79: 66.09079451 | AP79: 70.18328424 | AQ79: 74.34048131 | AR79: 78.62405564 | AS79: 83.01720535 | AT79: 87.54409893 | AU79: 92.14396259 | AV79: 96.88363846 | AW79: 101.745031 | AX79: 50.21817722 | AY79: 54.21114097 | AZ79: 57.88596488 | BA79: 61.64938393 | BB79: 65.52972987 | BC79: 69.45069759 | BD79: 73.49307142 | BE79: 77.63300145 | BF79: 81.90119744 | BG79: 86.21510789 | BH79: 90.6622211 | BI79: 95.21676708 | BJ79: 99.91203411 | BK79: 104.6587141 | BL79: 109.5515567 | BM79: 114.5627184 | BN79: 119.7282836 | BO79: 124.9516358 | BP79: 130.3353899 | BQ79: 135.8494633 | BR79: 141.5329728 | BS79: 147.2813964 | BT79: 153.2058686 | BU79: 159.2738892
C80: [Sijoittaja 4] | D80: 0 | F80: 0 | G80: Syötetään osuus sijoitettavista pääomalainasta | N80: Marginaali
C81: [Sijoittaja 5] | D81: 0 | F81: 0 | G81: Syötetään osuus sijoitettavista pääomalainasta
C82: [Sijoittaja 6] | D82: =IF(ISBLANK($E82),$F82,E82) -> 0 | F82: 0 | G82: Syötetään osuus sijoitettavista pääomalainasta | N82: Saadut osingot | Q82: ='Hankeyhtiö - Talous'!L33 -> 0 | R82: ='Hankeyhtiö - Talous'!M33 -> 0 | S82: ='Hankeyhtiö - Talous'!N33 -> 0 | T82: ='Hankeyhtiö - Talous'!O33 -> 0 | U82: ='Hankeyhtiö - Talous'!P33 -> 0 | V82: ='Hankeyhtiö - Talous'!Q33 -> 0 | W82: ='Hankeyhtiö - Talous'!R33 -> 0 | X82: ='Hankeyhtiö - Talous'!S33 -> 0 | Y82: ='Hankeyhtiö - Talous'!T33 -> 0 | Z82: ='Hankeyhtiö - Talous'!U33 -> 0 | AA82: ='Hankeyhtiö - Talous'!V33 -> 0 | AB82: ='Hankeyhtiö - Talous'!W33 -> 0 | AC82: ='Hankeyhtiö - Talous'!X33 -> 0 | AD82: ='Hankeyhtiö - Talous'!Y33 -> 0 | AE82: ='Hankeyhtiö - Talous'!Z33 -> 0 | AF82: ='Hankeyhtiö - Talous'!AA33 -> 0 | AG82: ='Hankeyhtiö - Talous'!AB33 -> 0 | AH82: ='Hankeyhtiö - Talous'!AC33 -> 0 | AI82: ='Hankeyhtiö - Talous'!AD33 -> 0 | AJ82: ='Hankeyhtiö - Talous'!AE33 -> 0 | AK82: ='Hankeyhtiö - Talous'!AF33 -> 0 | AL82: ='Hankeyhtiö - Talous'!AG33 -> 0 | AM82: ='Hankeyhtiö - Talous'!AH33 -> 0 | AN82: ='Hankeyhtiö - Talous'!AI33 -> 0 | AO82: ='Hankeyhtiö - Talous'!AJ33 -> 0 | AP82: ='Hankeyhtiö - Talous'!AK33 -> 0 | AQ82: ='Hankeyhtiö - Talous'!AL33 -> 0 | AR82: ='Hankeyhtiö - Talous'!AM33 -> 0 | AS82: ='Hankeyhtiö - Talous'!AN33 -> 0 | AT82: ='Hankeyhtiö - Talous'!AO33 -> 0 | AU82: ='Hankeyhtiö - Talous'!AP33 -> 0 | AV82: ='Hankeyhtiö - Talous'!AQ33 -> 0 | AW82: ='Hankeyhtiö - Talous'!AR33 -> 0 | AX82: ='Hankeyhtiö - Talous'!AS33 -> 0 | AY82: ='Hankeyhtiö - Talous'!AT33 -> 0 | AZ82: ='Hankeyhtiö - Talous'!AU33 -> 0 | BA82: ='Hankeyhtiö - Talous'!AV33 -> 0 | BB82: ='Hankeyhtiö - Talous'!AW33 -> 0 | BC82: ='Hankeyhtiö - Talous'!AX33 -> 0 | BD82: ='Hankeyhtiö - Talous'!AY33 -> 0 | BE82: ='Hankeyhtiö - Talous'!AZ33 -> 0 | BF82: ='Hankeyhtiö - Talous'!BA33 -> 0 | BG82: ='Hankeyhtiö - Talous'!BB33 -> 0 | BH82: ='Hankeyhtiö - Talous'!BC33 -> 0 | BI82: ='Hankeyhtiö - Talous'!BD33 -> 0 | BJ82: ='Hankeyhtiö - Talous'!BE33 -> 0 | BK82: ='Hankeyhtiö - Talous'!BF33 -> 0 | BL82: ='Hankeyhtiö - Talous'!BG33 -> 0 | BM82: ='Hankeyhtiö - Talous'!BH33 -> 0 | BN82: ='Hankeyhtiö - Talous'!BI33 -> 0 | BO82: ='Hankeyhtiö - Talous'!BJ33 -> 0 | BP82: ='Hankeyhtiö - Talous'!BK33 -> 0 | BQ82: ='Hankeyhtiö - Talous'!BL33 -> 0 | BR82: ='Hankeyhtiö - Talous'!BM33 -> 0 | BS82: ='Hankeyhtiö - Talous'!BN33 -> 0 | BT82: ='Hankeyhtiö - Talous'!BO33 -> 0 | BU82: ='Hankeyhtiö - Talous'!BP33 -> 0
N83: Ulkoisen velan korkokustannukset | Q83: ='Hankeyhtiö - Talous'!L34 -> 0 | R83: ='Hankeyhtiö - Talous'!M34 -> 0 | S83: ='Hankeyhtiö - Talous'!N34 -> 0 | T83: ='Hankeyhtiö - Talous'!O34 -> 0 | U83: ='Hankeyhtiö - Talous'!P34 -> 0 | V83: ='Hankeyhtiö - Talous'!Q34 -> 0 | W83: ='Hankeyhtiö - Talous'!R34 -> 0 | X83: ='Hankeyhtiö - Talous'!S34 -> 0 | Y83: ='Hankeyhtiö - Talous'!T34 -> 0 | Z83: ='Hankeyhtiö - Talous'!U34 -> 0 | AA83: ='Hankeyhtiö - Talous'!V34 -> 0 | AB83: ='Hankeyhtiö - Talous'!W34 -> 0 | AC83: ='Hankeyhtiö - Talous'!X34 -> 0 | AD83: ='Hankeyhtiö - Talous'!Y34 -> -44.4820094 | AE83: ='Hankeyhtiö - Talous'!Z34 -> -44.60387792 | AF83: ='Hankeyhtiö - Talous'!AA34 -> -44.60387792 | AG83: ='Hankeyhtiö - Talous'!AB34 -> -95.50810331 | AH83: ='Hankeyhtiö - Talous'!AC34 -> -95.64795008 | AI83: ='Hankeyhtiö - Talous'!AD34 -> -95.64795008 | AJ83: ='Hankeyhtiö - Talous'!AE34 -> -95.64795008 | AK83: ='Hankeyhtiö - Talous'!AF34 -> -95.64795008 | AL83: ='Hankeyhtiö - Talous'!AG34 -> -95.64795008 | AM83: ='Hankeyhtiö - Talous'!AH34 -> -95.64795008 | AN83: ='Hankeyhtiö - Talous'!AI34 -> -95.64795008 | AO83: ='Hankeyhtiö - Talous'!AJ34 -> -95.64795008 | AP83: ='Hankeyhtiö - Talous'!AK34 -> -95.64795008 | AQ83: ='Hankeyhtiö - Talous'!AL34 -> -95.64795008 | AR83: ='Hankeyhtiö - Talous'!AM34 -> -95.64795008 | AS83: ='Hankeyhtiö - Talous'!AN34 -> -95.64795008 | AT83: ='Hankeyhtiö - Talous'!AO34 -> -95.64795008 | AU83: ='Hankeyhtiö - Talous'!AP34 -> -95.64795008 | AV83: ='Hankeyhtiö - Talous'!AQ34 -> -95.64795008 | AW83: ='Hankeyhtiö - Talous'!AR34 -> -95.64795008 | AX83: ='Hankeyhtiö - Talous'!AS34 -> -95.64795008 | AY83: ='Hankeyhtiö - Talous'!AT34 -> -95.64795008 | AZ83: ='Hankeyhtiö - Talous'!AU34 -> -95.64795008 | BA83: ='Hankeyhtiö - Talous'!AV34 -> -95.64795008 | BB83: ='Hankeyhtiö - Talous'!AW34 -> -95.64795008 | BC83: ='Hankeyhtiö - Talous'!AX34 -> -95.64795008 | BD83: ='Hankeyhtiö - Talous'!AY34 -> -95.64795008 | BE83: ='Hankeyhtiö - Talous'!AZ34 -> -95.64795008 | BF83: ='Hankeyhtiö - Talous'!BA34 -> -95.64795008 | BG83: ='Hankeyhtiö - Talous'!BB34 -> -95.64795008 | BH83: ='Hankeyhtiö - Talous'!BC34 -> -95.64795008 | BI83: ='Hankeyhtiö - Talous'!BD34 -> -95.64795008 | BJ83: ='Hankeyhtiö - Talous'!BE34 -> -95.64795008 | BK83: ='Hankeyhtiö - Talous'!BF34 -> -95.64795008 | BL83: ='Hankeyhtiö - Talous'!BG34 -> -95.64795008 | BM83: ='Hankeyhtiö - Talous'!BH34 -> -95.64795008 | BN83: ='Hankeyhtiö - Talous'!BI34 -> -95.64795008 | BO83: ='Hankeyhtiö - Talous'!BJ34 -> -95.64795008 | BP83: ='Hankeyhtiö - Talous'!BK34 -> -95.64795008 | BQ83: ='Hankeyhtiö - Talous'!BL34 -> -95.64795008 | BR83: ='Hankeyhtiö - Talous'!BM34 -> -95.64795008 | BS83: ='Hankeyhtiö - Talous'!BN34 -> -95.64795008 | BT83: ='Hankeyhtiö - Talous'!BO34 -> -95.64795008 | BU83: ='Hankeyhtiö - Talous'!BP34 -> -95.64795008
C84: Infrastruktuurimaksut | D84: =IF(SUM(D85:D90)=100%,"OK","CHECK") -> OK | G84: Osuudet maksettavista infrastruktuurimaksuista | N84: Pääomalainan korkokustannukset | Q84: ='Hankeyhtiö - Talous'!L35 -> 0 | R84: ='Hankeyhtiö - Talous'!M35 -> 0 | S84: ='Hankeyhtiö - Talous'!N35 -> 0 | T84: ='Hankeyhtiö - Talous'!O35 -> 0 | U84: ='Hankeyhtiö - Talous'!P35 -> 0 | V84: ='Hankeyhtiö - Talous'!Q35 -> -0.5548361173 | W84: ='Hankeyhtiö - Talous'!R35 -> -1.148510763 | X84: ='Hankeyhtiö - Talous'!S35 -> -1.783187797 | Y84: ='Hankeyhtiö - Talous'!T35 -> -3.095472015 | Z84: ='Hankeyhtiö - Talous'!U35 -> -4.485133324 | AA84: ='Hankeyhtiö - Talous'!V35 -> -5.968975453 | AB84: ='Hankeyhtiö - Talous'!W35 -> -7.552201398 | AC84: ='Hankeyhtiö - Talous'!X35 -> -9.240284183 | AD84: ='Hankeyhtiö - Talous'!Y35 -> -11.03869394 | AE84: ='Hankeyhtiö - Talous'!Z35 -> -12.29096393 | AF84: ='Hankeyhtiö - Talous'!AA35 -> -13.61985412 | AG84: ='Hankeyhtiö - Talous'!AB35 -> -15.02947567 | AH84: ='Hankeyhtiö - Talous'!AC35 -> -14.65373878 | AI84: ='Hankeyhtiö - Talous'!AD35 -> -14.27800189 | AJ84: ='Hankeyhtiö - Talous'!AE35 -> -13.90226499 | AK84: ='Hankeyhtiö - Talous'!AF35 -> -13.5265281 | AL84: ='Hankeyhtiö - Talous'!AG35 -> -13.15079121 | AM84: ='Hankeyhtiö - Talous'!AH35 -> -12.77505432 | AN84: ='Hankeyhtiö - Talous'!AI35 -> -12.39931743 | AO84: ='Hankeyhtiö - Talous'!AJ35 -> -12.02358054 | AP84: ='Hankeyhtiö - Talous'!AK35 -> -11.64784364 | AQ84: ='Hankeyhtiö - Talous'!AL35 -> -11.27210675 | AR84: ='Hankeyhtiö - Talous'!AM35 -> -10.89636986 | AS84: ='Hankeyhtiö - Talous'!AN35 -> -10.52063297 | AT84: ='Hankeyhtiö - Talous'!AO35 -> -10.14489608 | AU84: ='Hankeyhtiö - Talous'!AP35 -> -9.769159185 | AV84: ='Hankeyhtiö - Talous'!AQ35 -> -9.393422293 | AW84: ='Hankeyhtiö - Talous'!AR35 -> -9.017685401 | AX84: ='Hankeyhtiö - Talous'!AS35 -> -8.64194851 | AY84: ='Hankeyhtiö - Talous'!AT35 -> -8.266211618 | AZ84: ='Hankeyhtiö - Talous'!AU35 -> -7.890474726 | BA84: ='Hankeyhtiö - Talous'!AV35 -> -7.514737834 | BB84: ='Hankeyhtiö - Talous'!AW35 -> -7.139000943 | BC84: ='Hankeyhtiö - Talous'!AX35 -> -6.763264051 | BD84: ='Hankeyhtiö - Talous'!AY35 -> -6.387527159 | BE84: ='Hankeyhtiö - Talous'!AZ35 -> -6.011790268 | BF84: ='Hankeyhtiö - Talous'!BA35 -> -5.636053376 | BG84: ='Hankeyhtiö - Talous'!BB35 -> -5.260316484 | BH84: ='Hankeyhtiö - Talous'!BC35 -> -4.884579592 | BI84: ='Hankeyhtiö - Talous'!BD35 -> -4.508842701 | BJ84: ='Hankeyhtiö - Talous'!BE35 -> -4.133105809 | BK84: ='Hankeyhtiö - Talous'!BF35 -> -3.757368917 | BL84: ='Hankeyhtiö - Talous'!BG35 -> -3.381632026 | BM84: ='Hankeyhtiö - Talous'!BH35 -> -3.005895134 | BN84: ='Hankeyhtiö - Talous'!BI35 -> -2.630158242 | BO84: ='Hankeyhtiö - Talous'!BJ35 -> -2.25442135 | BP84: ='Hankeyhtiö - Talous'!BK35 -> -1.878684459 | BQ84: ='Hankeyhtiö - Talous'!BL35 -> -1.502947567 | BR84: ='Hankeyhtiö - Talous'!BM35 -> -1.127210675 | BS84: ='Hankeyhtiö - Talous'!BN35 -> -0.7514737834 | BT84: ='Hankeyhtiö - Talous'!BO35 -> -0.3757368917 | BU84: ='Hankeyhtiö - Talous'!BP35 -> -3.286260153e-15
C85: =C61 -> [Sijoittaja 1] | D85: =IF(ISBLANK($E85),$F85,E85) -> 0.5830100976 | F85: 0.5830100976 | G85: Syötetään osuus maksettavista infrastruktuurimaksuista
C86: =C62 -> [Sijoittaja 2] | D86: 0 | F86: 0 | G86: Syötetään osuus maksettavista infrastruktuurimaksuista | N86: Voitto (tappio) ennen tilinpäätössiirtoja ja veroja | Q86: =Q79+SUM(Q82:Q84) -> 0 | R86: =R79+SUM(R82:R84) -> 0 | S86: =S79+SUM(S82:S84) -> 8 | T86: 8.99232 | U86: 11.0823408 | V86: 12.69752939 | W86: 14.3562475 | X86: 16.05875798 | Y86: 17.17094688 | Z86: 18.29560084 | AA86: 19.41854001 | AB86: 20.53725434 | AC86: 21.64903442 | AD86: -16.77844847 | AE86: -16.42478811 | AF86: -15.97820853 | AG86: -75.70045753 | AH86: -71.84642112 | AI86: -67.78099638 | AJ86: -63.59042849 | AK86: -59.28804353 | AL86: -54.85215043 | AM86: -50.45623996 | AN86: -45.92803031 | AO86: -41.5807361 | AP86: -37.11250948 | AQ86: -32.57957552 | AR86: -27.9202643 | AS86: -23.1513777 | AT86: -18.24874723 | AU86: -13.27314668 | AV86: -8.157733917 | AW86: -2.920604511 | AX86: -54.07172137 | AY86: -49.70302074 | AZ86: -45.65245993 | BA86: -41.51330399 | BB86: -37.25722115 | BC86: -32.96051654 | BD86: -28.54240583 | BE86: -24.0267389 | BF86: -19.38280602 | BG86: -14.69315868 | BH86: -9.870308576 | BI86: -4.940025707 | BJ86: 0.1309782155 | BK86: 5.253395078 | BL86: 10.52197455 | BM86: 15.90887314 | BN86: 21.45017526 | BO86: 27.04926437 | BP86: 32.80875534 | BQ86: 38.69856569 | BR86: 44.757812 | BS86: 50.88197253 | BT86: 57.18218158 | BU86: 63.62593909
C87: [Sijoittaja 3] | D87: 0.1389966341 | F87: 0.1389966341 | G87: Syötetään osuus maksettavista infrastruktuurimaksuista
C88: [Sijoittaja 4] | D88: 0.1389966341 | F88: 0.1389966341 | G88: Syötetään osuus maksettavista infrastruktuurimaksuista | N88: Välittömät verot | Q88: ='Hankeyhtiö - Talous'!L40 -> 0 | R88: ='Hankeyhtiö - Talous'!M40 -> 0 | S88: ='Hankeyhtiö - Talous'!N40 -> 0 | T88: ='Hankeyhtiö - Talous'!O40 -> -0.166464 | U88: ='Hankeyhtiö - Talous'!P40 -> -0.55182816 | V88: ='Hankeyhtiö - Talous'!Q40 -> -0.8415730773 | W88: ='Hankeyhtiö - Talous'!R40 -> -1.139358043 | X88: ='Hankeyhtiö - Talous'!S40 -> -1.445222311 | Y88: ='Hankeyhtiö - Talous'!T40 -> -1.688567931 | Z88: ='Hankeyhtiö - Talous'!U40 -> -2.038687323 | AA88: ='Hankeyhtiö - Talous'!V40 -> -2.402136063 | AB88: ='Hankeyhtiö - Talous'!W40 -> -2.779307278 | AC88: ='Hankeyhtiö - Talous'!X40 -> -3.170604486 | AD88: ='Hankeyhtiö - Talous'!Y40 -> -2.139581863 | AE88: ='Hankeyhtiö - Talous'!Z40 -> -2.36891071 | AF88: ='Hankeyhtiö - Talous'!AA40 -> -2.604793374 | AG88: ='Hankeyhtiö - Talous'!AB40 -> 0 | AH88: ='Hankeyhtiö - Talous'!AC40 -> 0 | AI88: ='Hankeyhtiö - Talous'!AD40 -> 0 | AJ88: ='Hankeyhtiö - Talous'!AE40 -> -0.2084945343 | AK88: ='Hankeyhtiö - Talous'!AF40 -> -0.7638859501 | AL88: ='Hankeyhtiö - Talous'!AG40 -> -1.338631471 | AM88: ='Hankeyhtiö - Talous'!AH40 -> -1.90669404 | AN88: ='Hankeyhtiö - Talous'!AI40 -> -2.493902216 | AO88: ='Hankeyhtiö - Talous'!AJ40 -> -3.053259821 | AP88: ='Hankeyhtiö - Talous'!AK40 -> -3.630029768 | AQ88: ='Hankeyhtiö - Talous'!AL40 -> -4.215763747 | AR88: ='Hankeyhtiö - Talous'!AM40 -> -4.819697402 | AS88: ='Hankeyhtiö - Talous'!AN40 -> -5.439295314 | AT88: ='Hankeyhtiö - Talous'!AO40 -> -6.078167317 | AU88: ='Hankeyhtiö - Talous'!AP40 -> -6.72718159 | AV88: ='Hankeyhtiö - Talous'!AQ40 -> -7.396348389 | AW88: ='Hankeyhtiö - Talous'!AR40 -> -8.082936994 | AX88: ='Hankeyhtiö - Talous'!AS40 -> -0.3104362536 | AY88: ='Hankeyhtiö - Talous'!AT40 -> -0.8650386831 | AZ88: ='Hankeyhtiö - Talous'!AU40 -> -1.371033296 | BA88: ='Hankeyhtiö - Talous'!AV40 -> -1.889412599 | BB88: ='Hankeyhtiö - Talous'!AW40 -> -2.424408267 | BC88: ='Hankeyhtiö - Talous'!AX40 -> -2.964556076 | BD88: ='Hankeyhtiö - Talous'!AY40 -> -3.521954853 | BE88: ='Hankeyhtiö - Talous'!AZ40 -> -4.093007915 | BF88: ='Hankeyhtiö - Talous'!BA40 -> -4.682302143 | BG88: ='Hankeyhtiö - Talous'!BB40 -> -5.277434836 | BH88: ='Hankeyhtiö - Talous'!BC40 -> -5.891508865 | BI88: ='Hankeyhtiö - Talous'!BD40 -> -6.520637951 | BJ88: ='Hankeyhtiö - Talous'!BE40 -> -7.169794138 | BK88: ='Hankeyhtiö - Talous'!BF40 -> -7.82555959 | BL88: ='Hankeyhtiö - Talous'!BG40 -> -8.502124701 | BM88: ='Hankeyhtiö - Talous'!BH40 -> -9.195290455 | BN88: ='Hankeyhtiö - Talous'!BI40 -> -9.67856114 | BO88: ='Hankeyhtiö - Talous'!BJ40 -> -9.3625369 | BP88: ='Hankeyhtiö - Talous'!BK40 -> -10.33526736 | BQ88: ='Hankeyhtiö - Talous'!BL40 -> -12.14233012 | BR88: ='Hankeyhtiö - Talous'!BM40 -> -12.93025842 | BS88: ='Hankeyhtiö - Talous'!BN40 -> -13.72663189 | BT88: ='Hankeyhtiö - Talous'!BO40 -> -14.54809483 | BU88: ='Hankeyhtiö - Talous'!BP40 -> -15.38974589
C89: [Sijoittaja 5] | D89: 0.1389966341 | F89: 0.1389966341 | G89: Syötetään osuus maksettavista infrastruktuurimaksuista
C90: [Sijoittaja 6] | D90: 0 | F90: 0 | G90: Syötetään osuus maksettavista infrastruktuurimaksuista | N90: Tilikauden voitto (tappio) | Q90: =Q88+Q86 -> 0 | R90: =R88+R86 -> 0 | S90: =S88+S86 -> 8 | T90: 8.825856 | U90: 10.53051264 | V90: 11.85595631 | W90: 13.21688945 | X90: 14.61353567 | Y90: 15.48237895 | Z90: 16.25691351 | AA90: 17.01640395 | AB90: 17.75794706 | AC90: 18.47842993 | AD90: -18.91803034 | AE90: -18.79369882 | AF90: -18.5830019 | AG90: -75.70045753 | AH90: -71.84642112 | AI90: -67.78099638 | AJ90: -63.79892302 | AK90: -60.05192948 | AL90: -56.1907819 | AM90: -52.362934 | AN90: -48.42193253 | AO90: -44.63399592 | AP90: -40.74253925 | AQ90: -36.79533927 | AR90: -32.7399617 | AS90: -28.59067302 | AT90: -24.32691454 | AU90: -20.00032827 | AV90: -15.55408231 | AW90: -11.0035415 | AX90: -54.38215762 | AY90: -50.56805942 | AZ90: -47.02349323 | BA90: -43.40271659 | BB90: -39.68162942 | BC90: -35.92507261 | BD90: -32.06436068 | BE90: -28.11974682 | BF90: -24.06510816 | BG90: -19.97059351 | BH90: -15.76181744 | BI90: -11.46066366 | BJ90: -7.038815923 | BK90: -2.572164511 | BL90: 2.019849847 | BM90: 6.713582687 | BN90: 11.77161412 | BO90: 17.68672747 | BP90: 22.47348798 | BQ90: 26.55623558 | BR90: 31.82755359 | BS90: 37.15534065 | BT90: 42.63408675 | BU90: 48.2361932
C92: Rahan lähteet ja käyttö (EURm)
N93: Hankeyhtiön rahavirta (EURm) | Q93: =Q59 -> 2019-12-31 | R93: 2020-12-31 | S93: 2021-12-31 | T93: 2022-12-31 | U93: 2023-12-31 | V93: 2024-12-31 | W93: 2025-12-31 | X93: 2026-12-31 | Y93: 2027-12-31 | Z93: 2028-12-31 | AA93: 2029-12-31 | AB93: 2030-12-31 | AC93: 2031-12-31 | AD93: 2032-12-31 | AE93: 2033-12-31 | AF93: 2034-12-31 | AG93: 2035-12-31 | AH93: 2036-12-31 | AI93: 2037-12-31 | AJ93: 2038-12-31 | AK93: 2039-12-31 | AL93: 2040-12-31 | AM93: 2041-12-31 | AN93: 2042-12-31 | AO93: 2043-12-31 | AP93: 2044-12-31 | AQ93: 2045-12-31 | AR93: 2046-12-31 | AS93: 2047-12-31 | AT93: 2048-12-31 | AU93: 2049-12-31 | AV93: 2050-12-31 | AW93: =AW59 -> 2051-12-31 | AX93: 2052-12-31 | AY93: 2053-12-31 | AZ93: 2054-12-31 | BA93: 2055-12-31 | BB93: 2056-12-31 | BC93: 2057-12-31 | BD93: 2058-12-31 | BE93: 2059-12-31 | BF93: 2060-12-31 | BG93: 2061-12-31 | BH93: 2062-12-31 | BI93: 2063-12-31 | BJ93: 2064-12-31 | BK93: 2065-12-31 | BL93: 2066-12-31 | BM93: 2067-12-31 | BN93: 2068-12-31 | BO93: 2069-12-31 | BP93: 2070-12-31 | BQ93: 2071-12-31 | BR93: 2072-12-31 | BS93: 2073-12-31 | BT93: 2074-12-31 | BU93: 2075-12-31
C94: Rahan lähteet | G94: Rahan käyttö
N95: Lentoasemamaksut | Q95: =Q61 -> 0 | R95: 0 | S95: 0 | T95: 0 | U95: 0 | V95: 0 | W95: 0 | X95: 0 | Y95: 0 | Z95: 0 | AA95: 0 | AB95: 0 | AC95: 0 | AD95: 13.25970368 | AE95: 13.61661483 | AF95: 13.98313296 | AG95: 14.35951664 | AH95: 14.74603143 | AI95: 15.14295004 | AJ95: 15.55055249 | AK95: 15.96912637 | AL95: 16.398967 | AM95: 16.81968206 | AN95: 17.25119056 | AO95: 17.69376939 | AP95: 18.14770258 | AQ95: 18.6132814 | AR95: 19.09080464 | AS95: 19.58057873 | AT95: 20.08291796 | AU95: 20.59814469 | AV95: 21.12658954 | AW95: =AW61 -> 21.66859163 | AX95: 22.22449878 | AY95: 22.7946677 | AZ95: 23.3794643 | BA95: 23.97926384 | BB95: 24.59445121 | BC95: 25.22542121 | BD95: 25.87257872 | BE95: 26.53633904 | BF95: 27.21712811 | BG95: 27.91538281 | BH95: 28.63155122 | BI95: 29.3660929 | BJ95: 30.11947924 | BK95: 30.89219368 | BL95: 31.68473209 | BM95: 32.49760305 | BN95: 33.33132819 | BO95: 34.18644253 | BP95: 35.06349481 | BQ95: 35.96304784 | BR95: 36.88567887 | BS95: 37.83197999 | BT95: 38.80255843 | BU95: 39.79803704
C96: Oma pääoma | D96: =SUM(D97:D98) -> 1782.983728 | E96: =D96/$D$106 -> 0.2836213367 | G96: Rakennusinvestointi | H96: =SUM(H97:H98) -> 5914.588934 | I96: =H96/$H$106 -> 0.940840678 | N96: Nopeutusmaksut | Q96: =Q62 -> 0 | R96: 0 | S96: 0 | T96: 0 | U96: 0 | V96: 0 | W96: 0 | X96: 0 | Y96: 0 | Z96: 0 | AA96: 0 | AB96: 0 | AC96: 0 | AD96: 0 | AE96: 0 | AF96: 0 | AG96: 45.33304751 | AH96: 47.04295447 | AI96: 48.81741967 | AJ96: 50.658883 | AK96: 52.56987666 | AL96: 54.55302866 | AM96: 56.50902605 | AN96: 58.53515568 | AO96: 60.33540284 | AP96: 62.19101656 | AQ96: 64.10369962 | AR96: 66.0752072 | AS96: 68.10734844 | AT96: 70.20198814 | AU96: 72.36104842 | AV96: 74.58651054 | AW96: =AW62 -> 76.8804167 | AX96: 79.24487187 | AY96: 81.27789696 | AZ96: 83.36307925 | BA96: 85.50175683 | BB96: 87.69530214 | BC96: 89.94512278 | BD96: 92.25266252 | BE96: 94.61940213 | BF96: 97.04686038 | BG96: 99.53659501 | BH96: 102.0902037 | BI96: 104.7093252 | BJ96: 107.3956401 | BK96: 110.1508724 | BL96: 112.9767901 | BM96: 115.8752067 | BN96: 118.8479821 | BO96: 121.8970239 | BP96: 125.0242888 | BQ96: 128.2317836 | BR96: 131.5215666 | BS96: 134.8957489 | BT96: 138.3564958 | BU96: 141.906028
C97: Pääomalaina | D97: ='S&U'!D30 -> 229.8114003 | E97: =D97/$D$106 -> 0.03655637207 | G97: Lentorata | H97: ='S&U'!H30 -> 2789.460047 | I97: =H97/$H$106 -> 0.4437227187 | N97: Investointimaksu | Q97: =Q63 -> 0 | R97: 0 | S97: 0 | T97: 0 | U97: 0 | V97: 0 | W97: 0 | X97: 0 | Y97: 0 | Z97: 0 | AA97: 0 | AB97: 0 | AC97: 0 | AD97: 2.369463278 | AE97: 2.410249121 | AF97: 2.458454104 | AG97: 4.659001598 | AH97: 4.765201306 | AI97: 4.847225263 | AJ97: 4.944169768 | AK97: 5.043053164 | AL97: 5.158007142 | AM97: 5.246792511 | AN97: 5.351728362 | AO97: 5.458762929 | AP97: 5.583192813 | AQ97: 5.679296951 | AR97: 5.79288289 | AS97: 5.908740548 | AT97: 6.043427456 | AU97: 6.147453666 | AV97: 6.270402739 | AW97: =AW63 -> 6.395810794 | AX97: 6.541600235 | AY97: 7.134310635 | AZ97: 7.276996848 | BA97: 7.422536785 | BB97: 7.591729952 | BC97: 7.722407271 | BD97: 7.876855417 | BE97: 8.034392525 | BF97: 8.21753265 | BG97: 8.358981983 | BH97: 8.526161623 | BI97: 8.696684855 | BJ97: 8.894921617 | BK97: 9.048030923 | BL97: 9.228991542 | BM97: 9.413571373 | BN97: 9.628149219 | BO97: 9.793879656 | BP97: 9.989757249 | BQ97: 10.18955239 | BR97: 10.42181836 | BS97: 10.60121031 | BT97: 10.81323452 | BU97: 11.02949921
C98: Osakepääoma (sarja A) | D98: ='S&U'!D31 -> 1553.172328 | E98: =D98/$D$106 -> 0.2470649646 | G98: Tampere-Kerava -ratakäytävä | H98: ='S&U'!H31 -> 3125.128887 | I98: =H98/$H$106 -> 0.4971179593 | N98: Ratamaksu | Q98: =Q64 -> 0 | R98: 0 | S98: 0 | T98: 0 | U98: 0 | V98: 0 | W98: 0 | X98: 0 | Y98: 0 | Z98: 0 | AA98: 0 | AB98: 0 | AC98: 0 | AD98: 1.450638073 | AE98: 1.475608073 | AF98: 1.505120235 | AG98: 2.852344312 | AH98: 2.917362133 | AI98: 2.967579022 | AJ98: 3.026930603 | AK98: 3.087469215 | AL98: 3.157846595 | AM98: 3.212202971 | AN98: 3.27644703 | AO98: 3.341975971 | AP98: 3.418154711 | AQ98: 3.4769918 | AR98: 3.546531636 | AS98: 3.617462269 | AT98: 3.699920587 | AU98: 3.763607744 | AV98: 3.838879899 | AW98: =AW64 -> 3.915657497 | AX98: 4.004913033 | AY98: 4.367783511 | AZ98: 4.455139181 | BA98: 4.544241965 | BB98: 4.647825782 | BC98: 4.72782934 | BD98: 4.822385927 | BE98: 4.918833646 | BF98: 5.0309561 | BG98: 5.117554525 | BH98: 5.219905616 | BI98: 5.324303728 | BJ98: 5.445668679 | BK98: 5.539405599 | BL98: 5.650193711 | BM98: 5.763197585 | BN98: 5.894566911 | BO98: 5.996030767 | BP98: 6.115951383 | BQ98: 6.23827041 | BR98: 6.380468793 | BS98: 6.490296535 | BT98: 6.620102465 | BU98: 6.752504515
N99: Tonttiportfolion vuokratuotot | Q99: =Q65 -> 0 | R99: 0 | S99: 0 | T99: 1.87272 | U99: 3.8203488 | V99: 5.845133664 | W99: 7.949381783 | X99: 10.13546177 | Y99: 12.40580521 | Z99: 14.7629082 | AA99: 17.20933299 | AB99: 19.7477096 | AC99: 22.38073755 | AD99: 22.8283523 | AE99: 23.28491935 | AF99: 23.75061774 | AG99: 24.22563009 | AH99: 24.71014269 | AI99: 25.20434555 | AJ99: 25.70843246 | AK99: 26.22260111 | AL99: 26.74705313 | AM99: 27.28199419 | AN99: 27.82763407 | AO99: 28.38418676 | AP99: 28.95187049 | AQ99: 29.5309079 | AR99: 30.12152606 | AS99: 30.72395658 | AT99: 31.33843571 | AU99: 31.96520443 | AV99: 32.60450851 | AW99: =AW65 -> 33.25659868 | AX99: 33.92173066 | AY99: 34.60016527 | AZ99: 35.29216858 | BA99: 35.99801195 | BB99: 36.71797219 | BC99: 37.45233163 | BD99: 38.20137826 | BE99: 38.96540583 | BF99: 39.74471395 | BG99: 40.53960822 | BH99: 41.35040039 | BI99: 42.1774084 | BJ99: 43.02095656 | BK99: 43.8813757 | BL99: 44.75900321 | BM99: 45.65418327 | BN99: 46.56726694 | BO99: 47.49861228 | BP99: 48.44858452 | BQ99: 49.41755621 | BR99: 50.40590734 | BS99: 51.41402548 | BT99: 52.44230599 | BU99: 53.49115211
C100: Vieras pääoma | D100: =SUM(D101:D102) -> 3354.452905 | E100: =D100/$D$106 -> 0.5335968029 | G100: Rakennusajan korot | H100: ='S&U'!H33 -> 366.9047009 | I100: =H100/$H$106 -> 0.05836396603 | N100: Infrastruktuurimaksut | Q100: =Q66 -> 0 | R100: 0 | S100: 0 | T100: 0 | U100: 0 | V100: 0 | W100: 0 | X100: 0 | Y100: 0 | Z100: 0 | AA100: 0 | AB100: 0 | AC100: 0 | AD100: 38.04725384 | AE100: 38.80819891 | AF100: 39.58436289 | AG100: 40.37605015 | AH100: 41.18357115 | AI100: 42.00724258 | AJ100: 42.84738743 | AK100: 43.70433518 | AL100: 44.57842188 | AM100: 45.46999032 | AN100: 46.37939012 | AO100: 47.30697793 | AP100: 48.25311748 | AQ100: 49.21817983 | AR100: 50.20254343 | AS100: 51.2065943 | AT100: 52.23072619 | AU100: 53.27534071 | AV100: 54.34084752 | AW100: =AW66 -> 55.42766447 | AX100: 0 | AY100: 0 | AZ100: 0 | BA100: 0 | BB100: 0 | BC100: 0 | BD100: 0 | BE100: 0 | BF100: 0 | BG100: 0 | BH100: 0 | BI100: 0 | BJ100: 0 | BK100: 0 | BL100: 0 | BM100: 0 | BN100: 0 | BO100: 0 | BP100: 0 | BQ100: 0 | BR100: 0 | BS100: 0 | BT100: 0 | BU100: 0
C101: Rakennusajan lainat | D101: ='S&U'!D34+'S&U'!D35 -> 2987.548204 | E101: =D101/$D$106 -> 0.4752328369 | N101: Nettotuotot muista palveluista | Q101: =Q67 -> 0 | R101: =R67 -> 0 | S101: 0 | T101: 0 | U101: 0 | V101: 0 | W101: 0 | X101: 0 | Y101: 0 | Z101: 0 | AA101: 0 | AB101: 0 | AC101: 0 | AD101: 0 | AE101: 0 | AF101: 0 | AG101: 0 | AH101: 0 | AI101: 0 | AJ101: 0 | AK101: 0 | AL101: 0 | AM101: 0 | AN101: 0 | AO101: 0 | AP101: 0 | AQ101: 0 | AR101: 0 | AS101: 0 | AT101: 0 | AU101: 0 | AV101: 0 | AW101: 0 | AX101: 0 | AY101: 0 | AZ101: 0 | BA101: 0 | BB101: 0 | BC101: 0 | BD101: 0 | BE101: 0 | BF101: 0 | BG101: 0 | BH101: 0 | BI101: 0 | BJ101: 0 | BK101: 0 | BL101: 0 | BM101: 0 | BN101: 0 | BO101: 0 | BP101: 0 | BQ101: 0 | BR101: 0 | BS101: 0 | BT101: 0 | BU101: 0
C102: Pääomitetut rakennusajan korot | D102: ='S&U'!D36 -> 366.9047009 | E102: =D102/$D$106 -> 0.05836396603 | G102: Alkukassa | H102: ='S&U'!H36 -> 5 | I102: =H102/$H$106 -> 0.0007953559314 | N102: Liikevaihto | Q102: =SUM(Q95:Q101) -> 0 | R102: =SUM(R95:R101) -> 0 | S102: 0 | T102: 1.87272 | U102: 3.8203488 | V102: 5.845133664 | W102: 7.949381783 | X102: 10.13546177 | Y102: 12.40580521 | Z102: 14.7629082 | AA102: 17.20933299 | AB102: 19.7477096 | AC102: 22.38073755 | AD102: 77.95541117 | AE102: 79.59559029 | AF102: 81.28168792 | AG102: 131.8055903 | AH102: 135.3652632 | AI102: 138.9867621 | AJ102: 142.7363557 | AK102: 146.5964617 | AL102: 150.5933244 | AM102: 154.5396881 | AN102: 158.6215458 | AO102: 162.5210758 | AP102: 166.5450546 | AQ102: 170.6223575 | AR102: 174.8294959 | AS102: 179.1446809 | AT102: 183.597416 | AU102: 188.1107997 | AV102: 192.7677388 | AW102: 197.5447398 | AX102: 145.9376146 | AY102: 150.1748241 | AZ102: 153.7668482 | BA102: 157.4458114 | BB102: 161.2472813 | BC102: 165.0731122 | BD102: 169.0258608 | BE102: 173.0743732 | BF102: 177.2571912 | BG102: 181.4681226 | BH102: 185.8182226 | BI102: 190.2738151 | BJ102: 194.8766662 | BK102: 199.5118783 | BL102: 204.2997107 | BM102: 209.203762 | BN102: 214.2692933 | BO102: 219.3719891 | BP102: 224.6420768 | BQ102: 230.0402105 | BR102: 235.61544 | BS102: 241.2332612 | BT102: 247.0346972 | BU102: 252.9772209
C104: EU-tuki | D104: ='S&U'!D38 -> 1149.057002 | E104: =D104/$D$106 -> 0.1827818603 | N104: Operatiiviset kustannukset | Q104: =Q71 -> 0 | R104: 0 | S104: 0 | T104: -1.0404 | U104: -1.061208 | V104: -1.08243216 | W104: -1.104080803 | X104: -1.126162419 | Y104: -1.148685668 | Z104: -1.171659381 | AA104: -1.195092569 | AB104: -1.21899442 | AC104: -1.243374308 | AD104: -5.566006829 | AE104: -5.677326966 | AF104: -5.790873505 | AG104: -7.420623932 | AH104: -7.573267128 | AI104: -7.720417139 | AJ104: -7.874825482 | AK104: -8.032321991 | AL104: -8.197547895 | AM104: -8.3568278 | AN104: -8.523964356 | AO104: -8.694443643 | AP104: -8.873289475 | AQ104: -9.045699166 | AR104: -9.226613149 | AS104: -9.411145412 | AT104: -9.604733893 | AU104: -9.791355687 | AV104: -9.987182801 | AW104: =AW71 -> -10.18692646 | AX104: -10.39647285 | AY104: -10.93633283 | AZ104: -11.15505948 | BA104: -11.37816067 | BB104: -11.61299279 | BC104: -11.83783836 | BD104: -12.07459513 | BE104: -12.31608703 | BF104: -12.57027687 | BG104: -12.81365695 | BH104: -13.06993009 | BI104: -13.33132869 | BJ104: -13.60647195 | BK104: -13.86991437 | BL104: -14.14731266 | BM104: -14.43025891 | BN104: -14.72808282 | BO104: -15.01324137 | BP104: -15.3135062 | BQ104: -15.61977632 | BR104: -15.9421505 | BS104: -16.25081529 | BT104: -16.57583159 | BU104: -16.90734822
C106: Rahan lähteet | D106: =D104+D100+D96 -> 6286.493635 | E106: =D106/$D$106 -> 1 | G106: Rahan lähteet | H106: =H102+H100+H96 -> 6286.493635 | I106: =SUM(I102,I100,I96) -> 1 | N106: Käyttökate | Q106: =Q102+Q104 -> 0 | R106: =R102+R104 -> 0 | S106: 0 | T106: 0.83232 | U106: 2.7591408 | V106: 4.762701504 | W106: 6.84530098 | X106: 9.009299354 | Y106: 11.25711954 | Z106: 13.59124882 | AA106: 16.01424042 | AB106: =AB102+AB104 -> 18.52871518 | AC106: =AC102+AC104 -> 21.13736324 | AD106: 72.38940434 | AE106: 73.91826332 | AF106: 75.49081442 | AG106: 124.3849664 | AH106: 127.7919961 | AI106: 131.266345 | AJ106: 134.8615303 | AK106: 138.5641397 | AL106: 142.3957765 | AM106: 146.1828603 | AN106: 150.0975815 | AO106: 153.8266322 | AP106: 157.6717652 | AQ106: 161.5766583 | AR106: 165.6028827 | AS106: 169.7335355 | AT106: 173.9926821 | AU106: 178.319444 | AV106: 182.780556 | AW106: 187.3578133 | AX106: 135.5411417 | AY106: 139.2384913 | AZ106: 142.6117887 | BA106: 146.0676507 | BB106: 149.6342885 | BC106: 153.2352739 | BD106: 156.9512657 | BE106: 160.7582861 | BF106: 164.6869143 | BG106: 168.6544656 | BH106: 172.7482925 | BI106: 176.9424864 | BJ106: 181.2701943 | BK106: 185.641964 | BL106: 190.152398 | BM106: 194.7735031 | BN106: 199.5412105 | BO106: 204.3587477 | BP106: 209.3285706 | BQ106: 214.4204341 | BR106: 219.6732895 | BS106: 224.9824459 | BT106: 230.4588656 | BU106: 236.0698726
N108: Nettokäyttöpääoman muutos | Q108: ='Hankeyhtiö - Talous'!L82 -> 0 | R108: ='Hankeyhtiö - Talous'!M82 -> 0 | S108: ='Hankeyhtiö - Talous'!N82 -> 0 | T108: ='Hankeyhtiö - Talous'!O82 -> 0.0136819726 | U108: ='Hankeyhtiö - Talous'!P82 -> -0.07299332384 | V108: ='Hankeyhtiö - Talous'!Q82 -> -0.07591852958 | W108: ='Hankeyhtiö - Talous'!R82 -> -0.07893154622 | X108: ='Hankeyhtiö - Talous'!S82 -> -0.08203471612 | Y108: ='Hankeyhtiö - Talous'!T82 -> -0.08523044019 | Z108: ='Hankeyhtiö - Talous'!U82 -> -0.08852117934 | AA108: ='Hankeyhtiö - Talous'!V82 -> -0.09190945588 | AB108: ='Hankeyhtiö - Talous'!W82 -> -0.09539785501 | AC108: ='Hankeyhtiö - Talous'!X82 -> -0.09898902633 | AD108: ='Hankeyhtiö - Talous'!Y82 -> -1.776346452 | AE108: ='Hankeyhtiö - Talous'!Z82 -> -0.05376137963 | AF108: ='Hankeyhtiö - Talous'!AA82 -> -0.05533964566 | AG108: ='Hankeyhtiö - Talous'!AB82 -> -1.803951015 | AH108: ='Hankeyhtiö - Talous'!AC82 -> -0.1239893822 | AI108: ='Hankeyhtiö - Talous'!AD82 -> -0.1268122866 | AJ108: ='Hankeyhtiö - Talous'!AE82 -> -0.1311289331 | AK108: ='Hankeyhtiö - Talous'!AF82 -> -0.1351139397 | AL108: ='Hankeyhtiö - Talous'!AG82 -> -0.1397241118 | AM108: ='Hankeyhtiö - Talous'!AH82 -> -0.1382758759 | AN108: ='Hankeyhtiö - Talous'!AI82 -> -0.1428271548 | AO108: ='Hankeyhtiö - Talous'!AJ82 -> -0.135559017 | AP108: ='Hankeyhtiö - Talous'!AK82 -> -0.1396447355 | AQ108: ='Hankeyhtiö - Talous'!AL82 -> -0.1422190399 | AR108: ='Hankeyhtiö - Talous'!AM82 -> -0.1465000477 | AS108: ='Hankeyhtiö - Talous'!AN82 -> -0.1503469103 | AT108: ='Hankeyhtiö - Talous'!AO82 -> -0.15487846 | AU108: ='Hankeyhtiö - Talous'!AP82 -> -0.1577773062 | AV108: ='Hankeyhtiö - Talous'!AQ82 -> -0.1625269428 | AW108: ='Hankeyhtiö - Talous'!AR82 -> -0.1668101496 | AX108: ='Hankeyhtiö - Talous'!AS82 -> 1.996674369 | AY108: ='Hankeyhtiö - Talous'!AT82 -> -0.1181510516 | AZ108: ='Hankeyhtiö - Talous'!AU82 -> -0.1197987324 | BA108: ='Hankeyhtiö - Talous'!AV82 -> -0.1227738337 | BB108: ='Hankeyhtiö - Talous'!AW82 -> -0.1265085343 | BC108: ='Hankeyhtiö - Talous'!AX82 -> -0.1282637435 | BD108: ='Hankeyhtiö - Talous'!AY82 -> -0.1321528153 | BE108: ='Hankeyhtiö - Talous'!AZ82 -> -0.1354367546 | BF108: ='Hankeyhtiö - Talous'!BA82 -> -0.13954454 | BG108: ='Hankeyhtiö - Talous'!BB82 -> -0.1415113337 | BH108: ='Hankeyhtiö - Talous'!BC82 -> -0.1457896051 | BI108: ='Hankeyhtiö - Talous'!BD82 -> -0.149414622 | BJ108: ='Hankeyhtiö - Talous'!BE82 -> -0.1539332019 | BK108: ='Hankeyhtiö - Talous'!BF82 -> -0.1561361553 | BL108: ='Hankeyhtiö - Talous'!BG82 -> -0.1608430259 | BM108: ='Hankeyhtiö - Talous'!BH82 -> -0.1648447407 | BN108: ='Hankeyhtiö - Talous'!BI82 -> -0.169815675 | BO108: ='Hankeyhtiö - Talous'!BJ82 -> -0.1722821498 | BP108: ='Hankeyhtiö - Talous'!BK82 -> -0.1774610471 | BQ108: ='Hankeyhtiö - Talous'!BL82 -> -0.1818788168 | BR108: ='Hankeyhtiö - Talous'!BM82 -> -0.1873479118 | BS108: ='Hankeyhtiö - Talous'!BN82 -> -0.1901083673 | BT108: ='Hankeyhtiö - Talous'!BO82 -> -0.1958071619 | BU108: ='Hankeyhtiö - Talous'!BP82 -> -0.2006844733
C109: Oman pääoman sijoitukset (EURm) | N109: Välittömät verot | Q109: ='Hankeyhtiö - Talous'!L85 -> 0 | R109: ='Hankeyhtiö - Talous'!M85 -> 0 | S109: ='Hankeyhtiö - Talous'!N85 -> 0 | T109: ='Hankeyhtiö - Talous'!O85 -> -0.166464 | U109: ='Hankeyhtiö - Talous'!P85 -> -0.55182816 | V109: ='Hankeyhtiö - Talous'!Q85 -> -0.8415730773 | W109: ='Hankeyhtiö - Talous'!R85 -> -1.139358043 | X109: ='Hankeyhtiö - Talous'!S85 -> -1.445222311 | Y109: ='Hankeyhtiö - Talous'!T85 -> -1.688567931 | Z109: ='Hankeyhtiö - Talous'!U85 -> -2.038687323 | AA109: ='Hankeyhtiö - Talous'!V85 -> -2.402136063 | AB109: ='Hankeyhtiö - Talous'!W85 -> -2.779307278 | AC109: ='Hankeyhtiö - Talous'!X85 -> -3.170604486 | AD109: ='Hankeyhtiö - Talous'!Y85 -> -2.139581863 | AE109: ='Hankeyhtiö - Talous'!Z85 -> -2.36891071 | AF109: ='Hankeyhtiö - Talous'!AA85 -> -2.604793374 | AG109: ='Hankeyhtiö - Talous'!AB85 -> 0 | AH109: ='Hankeyhtiö - Talous'!AC85 -> 0 | AI109: ='Hankeyhtiö - Talous'!AD85 -> 0 | AJ109: ='Hankeyhtiö - Talous'!AE85 -> -0.2084945343 | AK109: ='Hankeyhtiö - Talous'!AF85 -> -0.7638859501 | AL109: ='Hankeyhtiö - Talous'!AG85 -> -1.338631471 | AM109: ='Hankeyhtiö - Talous'!AH85 -> -1.90669404 | AN109: ='Hankeyhtiö - Talous'!AI85 -> -2.493902216 | AO109: ='Hankeyhtiö - Talous'!AJ85 -> -3.053259821 | AP109: ='Hankeyhtiö - Talous'!AK85 -> -3.630029768 | AQ109: ='Hankeyhtiö - Talous'!AL85 -> -4.215763747 | AR109: ='Hankeyhtiö - Talous'!AM85 -> -4.819697402 | AS109: ='Hankeyhtiö - Talous'!AN85 -> -5.439295314 | AT109: ='Hankeyhtiö - Talous'!AO85 -> -6.078167317 | AU109: ='Hankeyhtiö - Talous'!AP85 -> -6.72718159 | AV109: ='Hankeyhtiö - Talous'!AQ85 -> -7.396348389 | AW109: ='Hankeyhtiö - Talous'!AR85 -> -8.082936994 | AX109: ='Hankeyhtiö - Talous'!AS85 -> -0.3104362536 | AY109: ='Hankeyhtiö - Talous'!AT85 -> -0.8650386831 | AZ109: ='Hankeyhtiö - Talous'!AU85 -> -1.371033296 | BA109: ='Hankeyhtiö - Talous'!AV85 -> -1.889412599 | BB109: ='Hankeyhtiö - Talous'!AW85 -> -2.424408267 | BC109: ='Hankeyhtiö - Talous'!AX85 -> -2.964556076 | BD109: ='Hankeyhtiö - Talous'!AY85 -> -3.521954853 | BE109: ='Hankeyhtiö - Talous'!AZ85 -> -4.093007915 | BF109: ='Hankeyhtiö - Talous'!BA85 -> -4.682302143 | BG109: ='Hankeyhtiö - Talous'!BB85 -> -5.277434836 | BH109: ='Hankeyhtiö - Talous'!BC85 -> -5.891508865 | BI109: ='Hankeyhtiö - Talous'!BD85 -> -6.520637951 | BJ109: ='Hankeyhtiö - Talous'!BE85 -> -7.169794138 | BK109: ='Hankeyhtiö - Talous'!BF85 -> -7.82555959 | BL109: ='Hankeyhtiö - Talous'!BG85 -> -8.502124701 | BM109: ='Hankeyhtiö - Talous'!BH85 -> -9.195290455 | BN109: ='Hankeyhtiö - Talous'!BI85 -> -9.67856114 | BO109: ='Hankeyhtiö - Talous'!BJ85 -> -9.3625369 | BP109: ='Hankeyhtiö - Talous'!BK85 -> -10.33526736 | BQ109: ='Hankeyhtiö - Talous'!BL85 -> -12.14233012 | BR109: ='Hankeyhtiö - Talous'!BM85 -> -12.93025842 | BS109: ='Hankeyhtiö - Talous'!BN85 -> -13.72663189 | BT109: ='Hankeyhtiö - Talous'!BO85 -> -14.54809483 | BU109: ='Hankeyhtiö - Talous'!BP85 -> -15.38974589
N111: Liiketoiminnan rahavirta | Q111: =Q106+SUM(Q108:Q109) -> 0 | R111: =R106+SUM(R108:R109) -> 0 | S111: 0 | T111: 0.6795379726 | U111: 2.134319316 | V111: 3.845209897 | W111: 5.62701139 | X111: 7.482042327 | Y111: 9.483321171 | Z111: 11.46404032 | AA111: 13.5201949 | AB111: =AB106+SUM(AB108:AB109) -> 15.65401005 | AC111: =AC106+SUM(AC108:AC109) -> 17.86776973 | AD111: 68.47347603 | AE111: 71.49559123 | AF111: 72.8306814 | AG111: 122.5810154 | AH111: 127.6680067 | AI111: 131.1395327 | AJ111: 134.5219068 | AK111: 137.6651398 | AL111: 140.9174209 | AM111: 144.1378904 | AN111: 147.4608521 | AO111: 150.6378133 | AP111: 153.9020907 | AQ111: 157.2186756 | AR111: 160.6366853 | AS111: 164.1438932 | AT111: 167.7596364 | AU111: 171.4344851 | AV111: 175.2216806 | AW111: 179.1080662 | AX111: 137.2273798 | AY111: 138.2553015 | AZ111: 141.1209566 | BA111: 144.0554643 | BB111: 147.0833717 | BC111: 150.142454 | BD111: 153.297158 | BE111: 156.5298415 | BF111: 159.8650676 | BG111: 163.2355194 | BH111: 166.710994 | BI111: 170.2724338 | BJ111: 173.9464669 | BK111: 177.6602682 | BL111: 181.4894303 | BM111: 185.4133679 | BN111: 189.6928337 | BO111: 194.8239287 | BP111: 198.8158422 | BQ111: 202.0962252 | BR111: 206.5556831 | BS111: 211.0657057 | BT111: 215.7149636 | BU111: 220.4794423
N113: Investoinnit | Q113: ='Hankeyhtiö - Talous'!L88 -> -26.678 | R113: ='Hankeyhtiö - Talous'!M88 -> -33.94650152 | S113: ='Hankeyhtiö - Talous'!N88 -> -34.62543155 | T113: ='Hankeyhtiö - Talous'!O88 -> -35.31794018 | U113: ='Hankeyhtiö - Talous'!P88 -> -234.591633 | V113: ='Hankeyhtiö - Talous'!Q88 -> -239.2834657 | W113: ='Hankeyhtiö - Talous'!R88 -> -244.069135 | X113: ='Hankeyhtiö - Talous'!S88 -> -489.2499312 | Y113: ='Hankeyhtiö - Talous'!T88 -> -493.9550834 | Z113: ='Hankeyhtiö - Talous'!U88 -> -503.8341851 | AA113: ='Hankeyhtiö - Talous'!V88 -> -513.9108688 | AB113: ='Hankeyhtiö - Talous'!W88 -> -524.1890861 | AC113: ='Hankeyhtiö - Talous'!X88 -> -534.5582192 | AD113: ='Hankeyhtiö - Talous'!Y88 -> -280.134117 | AE113: ='Hankeyhtiö - Talous'!Z88 -> -285.7367993 | AF113: ='Hankeyhtiö - Talous'!AA88 -> -291.4515353 | AG113: ='Hankeyhtiö - Talous'!AB88 -> 0 | AH113: ='Hankeyhtiö - Talous'!AC88 -> 0 | AI113: ='Hankeyhtiö - Talous'!AD88 -> 0 | AJ113: ='Hankeyhtiö - Talous'!AE88 -> 0 | AK113: ='Hankeyhtiö - Talous'!AF88 -> 0 | AL113: ='Hankeyhtiö - Talous'!AG88 -> 0 | AM113: ='Hankeyhtiö - Talous'!AH88 -> 0 | AN113: ='Hankeyhtiö - Talous'!AI88 -> 0 | AO113: ='Hankeyhtiö - Talous'!AJ88 -> 0 | AP113: ='Hankeyhtiö - Talous'!AK88 -> 0 | AQ113: ='Hankeyhtiö - Talous'!AL88 -> 0 | AR113: ='Hankeyhtiö - Talous'!AM88 -> 0 | AS113: ='Hankeyhtiö - Talous'!AN88 -> 0 | AT113: ='Hankeyhtiö - Talous'!AO88 -> 0 | AU113: ='Hankeyhtiö - Talous'!AP88 -> 0 | AV113: ='Hankeyhtiö - Talous'!AQ88 -> 0 | AW113: ='Hankeyhtiö - Talous'!AR88 -> 0 | AX113: ='Hankeyhtiö - Talous'!AS88 -> 0 | AY113: ='Hankeyhtiö - Talous'!AT88 -> 0 | AZ113: ='Hankeyhtiö - Talous'!AU88 -> 0 | BA113: ='Hankeyhtiö - Talous'!AV88 -> 0 | BB113: ='Hankeyhtiö - Talous'!AW88 -> 0 | BC113: ='Hankeyhtiö - Talous'!AX88 -> 0 | BD113: ='Hankeyhtiö - Talous'!AY88 -> 0 | BE113: ='Hankeyhtiö - Talous'!AZ88 -> 0 | BF113: ='Hankeyhtiö - Talous'!BA88 -> 0 | BG113: ='Hankeyhtiö - Talous'!BB88 -> 0 | BH113: ='Hankeyhtiö - Talous'!BC88 -> 0 | BI113: ='Hankeyhtiö - Talous'!BD88 -> 0 | BJ113: ='Hankeyhtiö - Talous'!BE88 -> 0 | BK113: ='Hankeyhtiö - Talous'!BF88 -> 0 | BL113: ='Hankeyhtiö - Talous'!BG88 -> 0 | BM113: ='Hankeyhtiö - Talous'!BH88 -> 0 | BN113: ='Hankeyhtiö - Talous'!BI88 -> 0 | BO113: ='Hankeyhtiö - Talous'!BJ88 -> 0 | BP113: ='Hankeyhtiö - Talous'!BK88 -> 0 | BQ113: ='Hankeyhtiö - Talous'!BL88 -> 0 | BR113: ='Hankeyhtiö - Talous'!BM88 -> 0 | BS113: ='Hankeyhtiö - Talous'!BN88 -> 0 | BT113: ='Hankeyhtiö - Talous'!BO88 -> 0 | BU113: ='Hankeyhtiö - Talous'!BP88 -> 0
N114: Rahavirta investointien jälkeen | Q114: =Q111+Q113 -> -26.678 | R114: =R111+R113 -> -33.94650152 | S114: -34.62543155 | T114: -34.63840221 | U114: -232.4573137 | V114: -235.4382558 | W114: -238.4421236 | X114: -481.7678888 | Y114: -484.4717622 | Z114: -492.3701447 | AA114: -500.3906739 | AB114: -508.5350761 | AC114: -516.6904495 | AD114: -211.660641 | AE114: -214.2412081 | AF114: -218.6208539 | AG114: 122.5810154 | AH114: 127.6680067 | AI114: 131.1395327 | AJ114: 134.5219068 | AK114: 137.6651398 | AL114: 140.9174209 | AM114: 144.1378904 | AN114: 147.4608521 | AO114: 150.6378133 | AP114: 153.9020907 | AQ114: 157.2186756 | AR114: 160.6366853 | AS114: 164.1438932 | AT114: 167.7596364 | AU114: 171.4344851 | AV114: 175.2216806 | AW114: 179.1080662 | AX114: 137.2273798 | AY114: 138.2553015 | AZ114: 141.1209566 | BA114: 144.0554643 | BB114: 147.0833717 | BC114: 150.142454 | BD114: 153.297158 | BE114: 156.5298415 | BF114: 159.8650676 | BG114: 163.2355194 | BH114: 166.710994 | BI114: 170.2724338 | BJ114: 173.9464669 | BK114: 177.6602682 | BL114: 181.4894303 | BM114: 185.4133679 | BN114: 189.6928337 | BO114: 194.8239287 | BP114: 198.8158422 | BQ114: 202.0962252 | BR114: 206.5556831 | BS114: 211.0657057 | BT114: 215.7149636 | BU114: 220.4794423
N116: Ulkoisen velan nostot | Q116: ='Hankeyhtiö - Talous'!L91 -> 0 | R116: ='Hankeyhtiö - Talous'!M91 -> 0 | S116: ='Hankeyhtiö - Talous'!N91 -> 0 | T116: ='Hankeyhtiö - Talous'!O91 -> 0 | U116: ='Hankeyhtiö - Talous'!P91 -> 144.2573905 | V116: ='Hankeyhtiö - Talous'!Q91 -> 147.1425383 | W116: ='Hankeyhtiö - Talous'!R91 -> 150.0853891 | X116: ='Hankeyhtiö - Talous'!S91 -> 318.0124553 | Y116: ='Hankeyhtiö - Talous'!T91 -> 321.0708042 | Z116: ='Hankeyhtiö - Talous'!U91 -> 327.4922203 | AA116: ='Hankeyhtiö - Talous'!V91 -> 334.0420647 | AB116: ='Hankeyhtiö - Talous'!W91 -> 340.722906 | AC116: ='Hankeyhtiö - Talous'!X91 -> 347.4628425 | AD116: ='Hankeyhtiö - Talous'!Y91 -> 1668.883107 | AE116: ='Hankeyhtiö - Talous'!Z91 -> 185.7289196 | AF116: ='Hankeyhtiö - Talous'!AA91 -> 189.443498 | AG116: ='Hankeyhtiö - Talous'!AB91 -> 1701.469072 | AH116: ='Hankeyhtiö - Talous'!AC91 -> 0 | AI116: ='Hankeyhtiö - Talous'!AD91 -> 0 | AJ116: ='Hankeyhtiö - Talous'!AE91 -> 0 | AK116: ='Hankeyhtiö - Talous'!AF91 -> 0 | AL116: ='Hankeyhtiö - Talous'!AG91 -> 0 | AM116: ='Hankeyhtiö - Talous'!AH91 -> 0 | AN116: ='Hankeyhtiö - Talous'!AI91 -> 1486.795931 | AO116: ='Hankeyhtiö - Talous'!AJ91 -> 0 | AP116: ='Hankeyhtiö - Talous'!AK91 -> 0 | AQ116: ='Hankeyhtiö - Talous'!AL91 -> 1701.469072 | AR116: ='Hankeyhtiö - Talous'!AM91 -> 0 | AS116: ='Hankeyhtiö - Talous'!AN91 -> 0 | AT116: ='Hankeyhtiö - Talous'!AO91 -> 0 | AU116: ='Hankeyhtiö - Talous'!AP91 -> 0 | AV116: ='Hankeyhtiö - Talous'!AQ91 -> 0 | AW116: ='Hankeyhtiö - Talous'!AR91 -> 0 | AX116: ='Hankeyhtiö - Talous'!AS91 -> 1486.795931 | AY116: ='Hankeyhtiö - Talous'!AT91 -> 0 | AZ116: ='Hankeyhtiö - Talous'!AU91 -> 0 | BA116: ='Hankeyhtiö - Talous'!AV91 -> 1701.469072 | BB116: ='Hankeyhtiö - Talous'!AW91 -> 0 | BC116: ='Hankeyhtiö - Talous'!AX91 -> 0 | BD116: ='Hankeyhtiö - Talous'!AY91 -> 0 | BE116: ='Hankeyhtiö - Talous'!AZ91 -> 0 | BF116: ='Hankeyhtiö - Talous'!BA91 -> 0 | BG116: ='Hankeyhtiö - Talous'!BB91 -> 0 | BH116: ='Hankeyhtiö - Talous'!BC91 -> 1486.795931 | BI116: ='Hankeyhtiö - Talous'!BD91 -> 0 | BJ116: ='Hankeyhtiö - Talous'!BE91 -> 0 | BK116: ='Hankeyhtiö - Talous'!BF91 -> 1701.469072 | BL116: ='Hankeyhtiö - Talous'!BG91 -> 0 | BM116: ='Hankeyhtiö - Talous'!BH91 -> 0 | BN116: ='Hankeyhtiö - Talous'!BI91 -> 0 | BO116: ='Hankeyhtiö - Talous'!BJ91 -> 0 | BP116: ='Hankeyhtiö - Talous'!BK91 -> 0 | BQ116: ='Hankeyhtiö - Talous'!BL91 -> 0 | BR116: ='Hankeyhtiö - Talous'!BM91 -> 1486.795931 | BS116: ='Hankeyhtiö - Talous'!BN91 -> 0 | BT116: ='Hankeyhtiö - Talous'!BO91 -> 0 | BU116: ='Hankeyhtiö - Talous'!BP91 -> 1701.469072
N117: Ulkoisen velan lyhennykset | Q117: ='Hankeyhtiö - Talous'!L92 -> 0 | R117: ='Hankeyhtiö - Talous'!M92 -> 0 | S117: ='Hankeyhtiö - Talous'!N92 -> 0 | T117: ='Hankeyhtiö - Talous'!O92 -> 0 | U117: ='Hankeyhtiö - Talous'!P92 -> -2.134319316 | V117: ='Hankeyhtiö - Talous'!Q92 -> -3.845209897 | W117: ='Hankeyhtiö - Talous'!R92 -> -5.62701139 | X117: ='Hankeyhtiö - Talous'!S92 -> -7.482042327 | Y117: ='Hankeyhtiö - Talous'!T92 -> -9.483321171 | Z117: ='Hankeyhtiö - Talous'!U92 -> -11.46404032 | AA117: ='Hankeyhtiö - Talous'!V92 -> -13.5201949 | AB117: ='Hankeyhtiö - Talous'!W92 -> -15.65401005 | AC117: ='Hankeyhtiö - Talous'!X92 -> -17.86776973 | AD117: ='Hankeyhtiö - Talous'!Y92 -> -1510.787397 | AE117: ='Hankeyhtiö - Talous'!Z92 -> -26.89171331 | AF117: ='Hankeyhtiö - Talous'!AA92 -> -28.22680348 | AG117: ='Hankeyhtiö - Talous'!AB92 -> -1701.469072 | AH117: ='Hankeyhtiö - Talous'!AC92 -> 0 | AI117: ='Hankeyhtiö - Talous'!AD92 -> 0 | AJ117: ='Hankeyhtiö - Talous'!AE92 -> 0 | AK117: ='Hankeyhtiö - Talous'!AF92 -> 0 | AL117: ='Hankeyhtiö - Talous'!AG92 -> 0 | AM117: ='Hankeyhtiö - Talous'!AH92 -> 0 | AN117: ='Hankeyhtiö - Talous'!AI92 -> -1486.795931 | AO117: ='Hankeyhtiö - Talous'!AJ92 -> 0 | AP117: ='Hankeyhtiö - Talous'!AK92 -> 0 | AQ117: ='Hankeyhtiö - Talous'!AL92 -> -1701.469072 | AR117: ='Hankeyhtiö - Talous'!AM92 -> 0 | AS117: ='Hankeyhtiö - Talous'!AN92 -> 0 | AT117: ='Hankeyhtiö - Talous'!AO92 -> 0 | AU117: ='Hankeyhtiö - Talous'!AP92 -> 0 | AV117: ='Hankeyhtiö - Talous'!AQ92 -> 0 | AW117: ='Hankeyhtiö - Talous'!AR92 -> 0 | AX117: ='Hankeyhtiö - Talous'!AS92 -> -1486.795931 | AY117: ='Hankeyhtiö - Talous'!AT92 -> 0 | AZ117: ='Hankeyhtiö - Talous'!AU92 -> 0 | BA117: ='Hankeyhtiö - Talous'!AV92 -> -1701.469072 | BB117: ='Hankeyhtiö - Talous'!AW92 -> 0 | BC117: ='Hankeyhtiö - Talous'!AX92 -> 0 | BD117: ='Hankeyhtiö - Talous'!AY92 -> 0 | BE117: ='Hankeyhtiö - Talous'!AZ92 -> 0 | BF117: ='Hankeyhtiö - Talous'!BA92 -> 0 | BG117: ='Hankeyhtiö - Talous'!BB92 -> 0 | BH117: ='Hankeyhtiö - Talous'!BC92 -> -1486.795931 | BI117: ='Hankeyhtiö - Talous'!BD92 -> 0 | BJ117: ='Hankeyhtiö - Talous'!BE92 -> 0 | BK117: ='Hankeyhtiö - Talous'!BF92 -> -1701.469072 | BL117: ='Hankeyhtiö - Talous'!BG92 -> 0 | BM117: ='Hankeyhtiö - Talous'!BH92 -> 0 | BN117: ='Hankeyhtiö - Talous'!BI92 -> 0 | BO117: ='Hankeyhtiö - Talous'!BJ92 -> 0 | BP117: ='Hankeyhtiö - Talous'!BK92 -> 0 | BQ117: ='Hankeyhtiö - Talous'!BL92 -> 0 | BR117: ='Hankeyhtiö - Talous'!BM92 -> -1486.795931 | BS117: ='Hankeyhtiö - Talous'!BN92 -> 0 | BT117: ='Hankeyhtiö - Talous'!BO92 -> 0 | BU117: ='Hankeyhtiö - Talous'!BP92 -> -1701.469072
N118: Ulkoisen velan korot | Q118: ='Hankeyhtiö - Talous'!L93 -> 0 | R118: ='Hankeyhtiö - Talous'!M93 -> 0 | S118: ='Hankeyhtiö - Talous'!N93 -> 0 | T118: ='Hankeyhtiö - Talous'!O93 -> 0 | U118: ='Hankeyhtiö - Talous'!P93 -> 0 | V118: ='Hankeyhtiö - Talous'!Q93 -> 0 | W118: ='Hankeyhtiö - Talous'!R93 -> 0 | X118: ='Hankeyhtiö - Talous'!S93 -> 0 | Y118: ='Hankeyhtiö - Talous'!T93 -> 0 | Z118: ='Hankeyhtiö - Talous'!U93 -> 0 | AA118: ='Hankeyhtiö - Talous'!V93 -> 0 | AB118: ='Hankeyhtiö - Talous'!W93 -> 0 | AC118: ='Hankeyhtiö - Talous'!X93 -> 0 | AD118: ='Hankeyhtiö - Talous'!Y93 -> -44.4820094 | AE118: ='Hankeyhtiö - Talous'!Z93 -> -44.60387792 | AF118: ='Hankeyhtiö - Talous'!AA93 -> -44.60387792 | AG118: ='Hankeyhtiö - Talous'!AB93 -> -95.50810331 | AH118: ='Hankeyhtiö - Talous'!AC93 -> -95.64795008 | AI118: ='Hankeyhtiö - Talous'!AD93 -> -95.64795008 | AJ118: ='Hankeyhtiö - Talous'!AE93 -> -95.64795008 | AK118: ='Hankeyhtiö - Talous'!AF93 -> -95.64795008 | AL118: ='Hankeyhtiö - Talous'!AG93 -> -95.64795008 | AM118: ='Hankeyhtiö - Talous'!AH93 -> -95.64795008 | AN118: ='Hankeyhtiö - Talous'!AI93 -> -95.64795008 | AO118: ='Hankeyhtiö - Talous'!AJ93 -> -95.64795008 | AP118: ='Hankeyhtiö - Talous'!AK93 -> -95.64795008 | AQ118: ='Hankeyhtiö - Talous'!AL93 -> -95.64795008 | AR118: ='Hankeyhtiö - Talous'!AM93 -> -95.64795008 | AS118: ='Hankeyhtiö - Talous'!AN93 -> -95.64795008 | AT118: ='Hankeyhtiö - Talous'!AO93 -> -95.64795008 | AU118: ='Hankeyhtiö - Talous'!AP93 -> -95.64795008 | AV118: ='Hankeyhtiö - Talous'!AQ93 -> -95.64795008 | AW118: ='Hankeyhtiö - Talous'!AR93 -> -95.64795008 | AX118: ='Hankeyhtiö - Talous'!AS93 -> -95.64795008 | AY118: ='Hankeyhtiö - Talous'!AT93 -> -95.64795008 | AZ118: ='Hankeyhtiö - Talous'!AU93 -> -95.64795008 | BA118: ='Hankeyhtiö - Talous'!AV93 -> -95.64795008 | BB118: ='Hankeyhtiö - Talous'!AW93 -> -95.64795008 | BC118: ='Hankeyhtiö - Talous'!AX93 -> -95.64795008 | BD118: ='Hankeyhtiö - Talous'!AY93 -> -95.64795008 | BE118: ='Hankeyhtiö - Talous'!AZ93 -> -95.64795008 | BF118: ='Hankeyhtiö - Talous'!BA93 -> -95.64795008 | BG118: ='Hankeyhtiö - Talous'!BB93 -> -95.64795008 | BH118: ='Hankeyhtiö - Talous'!BC93 -> -95.64795008 | BI118: ='Hankeyhtiö - Talous'!BD93 -> -95.64795008 | BJ118: ='Hankeyhtiö - Talous'!BE93 -> -95.64795008 | BK118: ='Hankeyhtiö - Talous'!BF93 -> -95.64795008 | BL118: ='Hankeyhtiö - Talous'!BG93 -> -95.64795008 | BM118: ='Hankeyhtiö - Talous'!BH93 -> -95.64795008 | BN118: ='Hankeyhtiö - Talous'!BI93 -> -95.64795008 | BO118: ='Hankeyhtiö - Talous'!BJ93 -> -95.64795008 | BP118: ='Hankeyhtiö - Talous'!BK93 -> -95.64795008 | BQ118: ='Hankeyhtiö - Talous'!BL93 -> -95.64795008 | BR118: ='Hankeyhtiö - Talous'!BM93 -> -95.64795008 | BS118: ='Hankeyhtiö - Talous'!BN93 -> -95.64795008 | BT118: ='Hankeyhtiö - Talous'!BO93 -> -95.64795008 | BU118: ='Hankeyhtiö - Talous'!BP93 -> -95.64795008
N119: Rahavirta ulkoisen velan hoidon jälkeen | Q119: =Q114+SUM(Q116:Q118) -> -26.678 | R119: =R114+SUM(R116:R118) -> -33.94650152 | S119: -34.62543155 | T119: -34.63840221 | U119: =U114+SUM(U116:U118) -> -90.33424255 | V119: -92.1409274 | W119: -93.98374595 | X119: -171.2374759 | Y119: -172.8842792 | Z119: -176.3419648 | AA119: -179.8688041 | AB119: -183.4661801 | AC119: -187.0953767 | AD119: -98.04694095 | AE119: -100.0078798 | AF119: -102.0080374 | AG119: 27.07291204 | AH119: 32.02005659 | AI119: 35.4915826 | AJ119: 38.87395671 | AK119: 42.01718973 | AL119: 45.26947084 | AM119: 48.4899403 | AN119: 51.81290202 | AO119: 54.98986325 | AP119: 58.25414057 | AQ119: 61.57072547 | AR119: 64.98873518 | AS119: 68.49594315 | AT119: 72.11168628 | AU119: 75.78653498 | AV119: 79.57373055 | AW119: 83.4601161 | AX119: 41.57942976 | AY119: 42.60735143 | AZ119: 45.47300656 | BA119: 48.40751418 | BB119: 51.43542159 | BC119: 54.49450397 | BD119: 57.64920797 | BE119: 60.88189138 | BF119: 64.21711755 | BG119: 67.58756935 | BH119: 71.06304391 | BI119: 74.62448372 | BJ119: 78.29851686 | BK119: 82.01231813 | BL119: 85.84148023 | BM119: 89.76541779 | BN119: 94.04488359 | BO119: 99.17597861 | BP119: 103.1678921 | BQ119: 106.4482751 | BR119: 110.9077331 | BS119: 115.4177556 | BT119: 120.0670135 | BU119: 124.8314922
C120: ='S&U'!D55 -> 1553.172328 | F120: ='S&U'!D54 -> 229.8114003 | J120: ='S&U'!D56 -> 400
N121: Pääomalainan nostot | Q121: ='Hankeyhtiö - Talous'!L96 -> 0 | R121: ='Hankeyhtiö - Talous'!M96 -> 0 | S121: ='Hankeyhtiö - Talous'!N96 -> 0 | T121: ='Hankeyhtiö - Talous'!O96 -> 0 | U121: ='Hankeyhtiö - Talous'!P96 -> 11.09672235 | V121: ='Hankeyhtiö - Talous'!Q96 -> 11.31865679 | W121: ='Hankeyhtiö - Talous'!R96 -> 11.54502993 | X121: ='Hankeyhtiö - Talous'!S96 -> 24.46249656 | Y121: ='Hankeyhtiö - Talous'!T96 -> 24.69775417 | Z121: ='Hankeyhtiö - Talous'!U96 -> 25.19170925 | AA121: ='Hankeyhtiö - Talous'!V96 -> 25.69554344 | AB121: ='Hankeyhtiö - Talous'!W96 -> 26.20945431 | AC121: ='Hankeyhtiö - Talous'!X96 -> 26.72791096 | AD121: ='Hankeyhtiö - Talous'!Y96 -> 14.00670585 | AE121: ='Hankeyhtiö - Talous'!Z96 -> 14.28683997 | AF121: ='Hankeyhtiö - Talous'!AA96 -> 14.57257677 | AG121: ='Hankeyhtiö - Talous'!AB96 -> 0 | AH121: ='Hankeyhtiö - Talous'!AC96 -> 0 | AI121: ='Hankeyhtiö - Talous'!AD96 -> 0 | AJ121: ='Hankeyhtiö - Talous'!AE96 -> 0 | AK121: ='Hankeyhtiö - Talous'!AF96 -> 0 | AL121: ='Hankeyhtiö - Talous'!AG96 -> 0 | AM121: ='Hankeyhtiö - Talous'!AH96 -> 0 | AN121: ='Hankeyhtiö - Talous'!AI96 -> 0 | AO121: ='Hankeyhtiö - Talous'!AJ96 -> 0 | AP121: ='Hankeyhtiö - Talous'!AK96 -> 0 | AQ121: ='Hankeyhtiö - Talous'!AL96 -> 0 | AR121: ='Hankeyhtiö - Talous'!AM96 -> 0 | AS121: ='Hankeyhtiö - Talous'!AN96 -> 0 | AT121: ='Hankeyhtiö - Talous'!AO96 -> 0 | AU121: ='Hankeyhtiö - Talous'!AP96 -> 0 | AV121: ='Hankeyhtiö - Talous'!AQ96 -> 0 | AW121: ='Hankeyhtiö - Talous'!AR96 -> 0 | AX121: ='Hankeyhtiö - Talous'!AS96 -> 0 | AY121: ='Hankeyhtiö - Talous'!AT96 -> 0 | AZ121: ='Hankeyhtiö - Talous'!AU96 -> 0 | BA121: ='Hankeyhtiö - Talous'!AV96 -> 0 | BB121: ='Hankeyhtiö - Talous'!AW96 -> 0 | BC121: ='Hankeyhtiö - Talous'!AX96 -> 0 | BD121: ='Hankeyhtiö - Talous'!AY96 -> 0 | BE121: ='Hankeyhtiö - Talous'!AZ96 -> 0 | BF121: ='Hankeyhtiö - Talous'!BA96 -> 0 | BG121: ='Hankeyhtiö - Talous'!BB96 -> 0 | BH121: ='Hankeyhtiö - Talous'!BC96 -> 0 | BI121: ='Hankeyhtiö - Talous'!BD96 -> 0 | BJ121: ='Hankeyhtiö - Talous'!BE96 -> 0 | BK121: ='Hankeyhtiö - Talous'!BF96 -> 0 | BL121: ='Hankeyhtiö - Talous'!BG96 -> 0 | BM121: ='Hankeyhtiö - Talous'!BH96 -> 0 | BN121: ='Hankeyhtiö - Talous'!BI96 -> 0 | BO121: ='Hankeyhtiö - Talous'!BJ96 -> 0 | BP121: ='Hankeyhtiö - Talous'!BK96 -> 0 | BQ121: ='Hankeyhtiö - Talous'!BL96 -> 0 | BR121: ='Hankeyhtiö - Talous'!BM96 -> 0 | BS121: ='Hankeyhtiö - Talous'!BN96 -> 0 | BT121: ='Hankeyhtiö - Talous'!BO96 -> 0 | BU121: ='Hankeyhtiö - Talous'!BP96 -> 0
N122: Pääomalainan korot | Q122: ='Hankeyhtiö - Talous'!L97 -> 0 | R122: ='Hankeyhtiö - Talous'!M97 -> 0 | S122: ='Hankeyhtiö - Talous'!N97 -> 0 | T122: ='Hankeyhtiö - Talous'!O97 -> 0 | U122: ='Hankeyhtiö - Talous'!P97 -> 0 | V122: ='Hankeyhtiö - Talous'!Q97 -> 0 | W122: ='Hankeyhtiö - Talous'!R97 -> 0 | X122: ='Hankeyhtiö - Talous'!S97 -> 0 | Y122: ='Hankeyhtiö - Talous'!T97 -> 0 | Z122: ='Hankeyhtiö - Talous'!U97 -> 0 | AA122: ='Hankeyhtiö - Talous'!V97 -> 0 | AB122: ='Hankeyhtiö - Talous'!W97 -> 0 | AC122: ='Hankeyhtiö - Talous'!X97 -> 0 | AD122: ='Hankeyhtiö - Talous'!Y97 -> 0 | AE122: ='Hankeyhtiö - Talous'!Z97 -> 0 | AF122: ='Hankeyhtiö - Talous'!AA97 -> 0 | AG122: ='Hankeyhtiö - Talous'!AB97 -> -15.02947567 | AH122: ='Hankeyhtiö - Talous'!AC97 -> -14.65373878 | AI122: ='Hankeyhtiö - Talous'!AD97 -> -14.27800189 | AJ122: ='Hankeyhtiö - Talous'!AE97 -> -13.90226499 | AK122: ='Hankeyhtiö - Talous'!AF97 -> -13.5265281 | AL122: ='Hankeyhtiö - Talous'!AG97 -> -13.15079121 | AM122: ='Hankeyhtiö - Talous'!AH97 -> -12.77505432 | AN122: ='Hankeyhtiö - Talous'!AI97 -> -12.39931743 | AO122: ='Hankeyhtiö - Talous'!AJ97 -> -12.02358054 | AP122: ='Hankeyhtiö - Talous'!AK97 -> -11.64784364 | AQ122: ='Hankeyhtiö - Talous'!AL97 -> -11.27210675 | AR122: ='Hankeyhtiö - Talous'!AM97 -> -10.89636986 | AS122: ='Hankeyhtiö - Talous'!AN97 -> -10.52063297 | AT122: ='Hankeyhtiö - Talous'!AO97 -> -10.14489608 | AU122: ='Hankeyhtiö - Talous'!AP97 -> -9.769159185 | AV122: ='Hankeyhtiö - Talous'!AQ97 -> -9.393422293 | AW122: ='Hankeyhtiö - Talous'!AR97 -> -9.017685401 | AX122: ='Hankeyhtiö - Talous'!AS97 -> -8.64194851 | AY122: ='Hankeyhtiö - Talous'!AT97 -> -8.266211618 | AZ122: ='Hankeyhtiö - Talous'!AU97 -> -7.890474726 | BA122: ='Hankeyhtiö - Talous'!AV97 -> -7.514737834 | BB122: ='Hankeyhtiö - Talous'!AW97 -> -7.139000943 | BC122: ='Hankeyhtiö - Talous'!AX97 -> -6.763264051 | BD122: ='Hankeyhtiö - Talous'!AY97 -> -6.387527159 | BE122: ='Hankeyhtiö - Talous'!AZ97 -> -6.011790268 | BF122: ='Hankeyhtiö - Talous'!BA97 -> -5.636053376 | BG122: ='Hankeyhtiö - Talous'!BB97 -> -5.260316484 | BH122: ='Hankeyhtiö - Talous'!BC97 -> -4.884579592 | BI122: ='Hankeyhtiö - Talous'!BD97 -> -4.508842701 | BJ122: ='Hankeyhtiö - Talous'!BE97 -> -4.133105809 | BK122: ='Hankeyhtiö - Talous'!BF97 -> -3.757368917 | BL122: ='Hankeyhtiö - Talous'!BG97 -> -3.381632026 | BM122: ='Hankeyhtiö - Talous'!BH97 -> -3.005895134 | BN122: ='Hankeyhtiö - Talous'!BI97 -> -2.630158242 | BO122: ='Hankeyhtiö - Talous'!BJ97 -> -2.25442135 | BP122: ='Hankeyhtiö - Talous'!BK97 -> -1.878684459 | BQ122: ='Hankeyhtiö - Talous'!BL97 -> -1.502947567 | BR122: ='Hankeyhtiö - Talous'!BM97 -> -1.127210675 | BS122: ='Hankeyhtiö - Talous'!BN97 -> -0.7514737834 | BT122: ='Hankeyhtiö - Talous'!BO97 -> -0.3757368917 | BU122: ='Hankeyhtiö - Talous'!BP97 -> -3.286260153e-15
N123: Pääomalainan lyhennykset | Q123: ='Hankeyhtiö - Talous'!L100 -> 0 | R123: ='Hankeyhtiö - Talous'!M100 -> 0 | S123: ='Hankeyhtiö - Talous'!N100 -> 0 | T123: ='Hankeyhtiö - Talous'!O100 -> 0 | U123: ='Hankeyhtiö - Talous'!P100 -> 0 | V123: ='Hankeyhtiö - Talous'!Q100 -> 0 | W123: ='Hankeyhtiö - Talous'!R100 -> 0 | X123: ='Hankeyhtiö - Talous'!S100 -> 0 | Y123: ='Hankeyhtiö - Talous'!T100 -> 0 | Z123: ='Hankeyhtiö - Talous'!U100 -> 0 | AA123: ='Hankeyhtiö - Talous'!V100 -> 0 | AB123: ='Hankeyhtiö - Talous'!W100 -> 0 | AC123: ='Hankeyhtiö - Talous'!X100 -> 0 | AD123: ='Hankeyhtiö - Talous'!Y100 -> 0 | AE123: ='Hankeyhtiö - Talous'!Z100 -> 0 | AF123: ='Hankeyhtiö - Talous'!AA100 -> 0 | AG123: ='Hankeyhtiö - Talous'!AB100 -> -7.514737834 | AH123: ='Hankeyhtiö - Talous'!AC100 -> -7.514737834 | AI123: ='Hankeyhtiö - Talous'!AD100 -> -7.514737834 | AJ123: ='Hankeyhtiö - Talous'!AE100 -> -7.514737834 | AK123: ='Hankeyhtiö - Talous'!AF100 -> -7.514737834 | AL123: ='Hankeyhtiö - Talous'!AG100 -> -7.514737834 | AM123: ='Hankeyhtiö - Talous'!AH100 -> -7.514737834 | AN123: ='Hankeyhtiö - Talous'!AI100 -> -7.514737834 | AO123: ='Hankeyhtiö - Talous'!AJ100 -> -7.514737834 | AP123: ='Hankeyhtiö - Talous'!AK100 -> -7.514737834 | AQ123: ='Hankeyhtiö - Talous'!AL100 -> -7.514737834 | AR123: ='Hankeyhtiö - Talous'!AM100 -> -7.514737834 | AS123: ='Hankeyhtiö - Talous'!AN100 -> -7.514737834 | AT123: ='Hankeyhtiö - Talous'!AO100 -> -7.514737834 | AU123: ='Hankeyhtiö - Talous'!AP100 -> -7.514737834 | AV123: ='Hankeyhtiö - Talous'!AQ100 -> -7.514737834 | AW123: ='Hankeyhtiö - Talous'!AR100 -> -7.514737834 | AX123: ='Hankeyhtiö - Talous'!AS100 -> -7.514737834 | AY123: ='Hankeyhtiö - Talous'!AT100 -> -7.514737834 | AZ123: ='Hankeyhtiö - Talous'!AU100 -> -7.514737834 | BA123: ='Hankeyhtiö - Talous'!AV100 -> -7.514737834 | BB123: ='Hankeyhtiö - Talous'!AW100 -> -7.514737834 | BC123: ='Hankeyhtiö - Talous'!AX100 -> -7.514737834 | BD123: ='Hankeyhtiö - Talous'!AY100 -> -7.514737834 | BE123: ='Hankeyhtiö - Talous'!AZ100 -> -7.514737834 | BF123: ='Hankeyhtiö - Talous'!BA100 -> -7.514737834 | BG123: ='Hankeyhtiö - Talous'!BB100 -> -7.514737834 | BH123: ='Hankeyhtiö - Talous'!BC100 -> -7.514737834 | BI123: ='Hankeyhtiö - Talous'!BD100 -> -7.514737834 | BJ123: ='Hankeyhtiö - Talous'!BE100 -> -7.514737834 | BK123: ='Hankeyhtiö - Talous'!BF100 -> -7.514737834 | BL123: ='Hankeyhtiö - Talous'!BG100 -> -7.514737834 | BM123: ='Hankeyhtiö - Talous'!BH100 -> -7.514737834 | BN123: ='Hankeyhtiö - Talous'!BI100 -> -7.514737834 | BO123: ='Hankeyhtiö - Talous'!BJ100 -> -7.514737834 | BP123: ='Hankeyhtiö - Talous'!BK100 -> -7.514737834 | BQ123: ='Hankeyhtiö - Talous'!BL100 -> -7.514737834 | BR123: ='Hankeyhtiö - Talous'!BM100 -> -7.514737834 | BS123: ='Hankeyhtiö - Talous'!BN100 -> -7.514737834 | BT123: ='Hankeyhtiö - Talous'!BO100 -> -7.514737834 | BU123: ='Hankeyhtiö - Talous'!BP100 -> 0
N124: Rahavirta pääomalainan korkojen ja lyhennysten jälkeen | Q124: =Q119+SUM(Q121:Q123) -> -26.678 | R124: =R119+SUM(R121:R123) -> -33.94650152 | S124: -34.62543155 | T124: -34.63840221 | U124: -79.2375202 | V124: -80.82227061 | W124: -82.43871602 | X124: -146.7749794 | Y124: -148.186525 | Z124: -151.1502555 | AA124: -154.1732606 | AB124: -157.2567258 | AC124: -160.3674658 | AD124: -84.0402351 | AE124: -85.7210398 | AF124: -87.43546059 | AG124: 4.52869854 | AH124: 9.851579979 | AI124: 13.69884288 | AJ124: 17.45695388 | AK124: 20.97592379 | AL124: 24.60394179 | AM124: 28.20014815 | AN124: 31.89884676 | AO124: 35.45154488 | AP124: 39.09155909 | AQ124: 42.78388089 | AR124: 46.57762748 | AS124: 50.46057235 | AT124: 54.45205237 | AU124: 58.50263797 | AV124: 62.66557042 | AW124: 66.92769286 | AX124: 25.42274341 | AY124: 26.82640198 | AZ124: 30.067794 | BA124: 33.37803851 | BB124: 36.78168281 | BC124: 40.21650208 | BD124: 43.74694297 | BE124: 47.35536328 | BF124: 51.06632634 | BG124: 54.81251503 | BH124: 58.66372649 | BI124: 62.60090318 | BJ124: 66.65067322 | BK124: 70.74021138 | BL124: 74.94511037 | BM124: 79.24478482 | BN124: 83.89998752 | BO124: 89.40681942 | BP124: 93.77446977 | BQ124: 97.43058972 | BR124: 102.2657845 | BS124: 107.151544 | BT124: 112.1765388 | BU124: 124.8314922
N126: Oman pääoman sijoitukset | Q126: ='Hankeyhtiö - Talous'!L103 -> 31.678 | R126: ='Hankeyhtiö - Talous'!M103 -> 33.94650152 | S126: ='Hankeyhtiö - Talous'!N103 -> 34.62543155 | T126: ='Hankeyhtiö - Talous'!O103 -> 35.31794018 | U126: ='Hankeyhtiö - Talous'!P103 -> 79.2375202 | V126: ='Hankeyhtiö - Talous'!Q103 -> 80.82227061 | W126: ='Hankeyhtiö - Talous'!R103 -> 82.43871602 | X126: ='Hankeyhtiö - Talous'!S103 -> 146.7749794 | Y126: ='Hankeyhtiö - Talous'!T103 -> 148.186525 | Z126: ='Hankeyhtiö - Talous'!U103 -> 151.1502555 | AA126: ='Hankeyhtiö - Talous'!V103 -> 154.1732606 | AB126: ='Hankeyhtiö - Talous'!W103 -> 157.2567258 | AC126: ='Hankeyhtiö - Talous'!X103 -> 160.3674658 | AD126: ='Hankeyhtiö - Talous'!Y103 -> 84.0402351 | AE126: ='Hankeyhtiö - Talous'!Z103 -> 85.7210398 | AF126: ='Hankeyhtiö - Talous'!AA103 -> 87.43546059 | AG126: ='Hankeyhtiö - Talous'!AB103 -> 0 | AH126: ='Hankeyhtiö - Talous'!AC103 -> 0 | AI126: ='Hankeyhtiö - Talous'!AD103 -> 0 | AJ126: ='Hankeyhtiö - Talous'!AE103 -> 0 | AK126: ='Hankeyhtiö - Talous'!AF103 -> 0 | AL126: ='Hankeyhtiö - Talous'!AG103 -> 0 | AM126: ='Hankeyhtiö - Talous'!AH103 -> 0 | AN126: ='Hankeyhtiö - Talous'!AI103 -> 0 | AO126: ='Hankeyhtiö - Talous'!AJ103 -> 0 | AP126: ='Hankeyhtiö - Talous'!AK103 -> 0 | AQ126: ='Hankeyhtiö - Talous'!AL103 -> 0 | AR126: ='Hankeyhtiö - Talous'!AM103 -> 0 | AS126: ='Hankeyhtiö - Talous'!AN103 -> 0 | AT126: ='Hankeyhtiö - Talous'!AO103 -> 0 | AU126: ='Hankeyhtiö - Talous'!AP103 -> 0 | AV126: ='Hankeyhtiö - Talous'!AQ103 -> 0 | AW126: ='Hankeyhtiö - Talous'!AR103 -> 0 | AX126: ='Hankeyhtiö - Talous'!AS103 -> 0 | AY126: ='Hankeyhtiö - Talous'!AT103 -> 0 | AZ126: ='Hankeyhtiö - Talous'!AU103 -> 0 | BA126: ='Hankeyhtiö - Talous'!AV103 -> 0 | BB126: ='Hankeyhtiö - Talous'!AW103 -> 0 | BC126: ='Hankeyhtiö - Talous'!AX103 -> 0 | BD126: ='Hankeyhtiö - Talous'!AY103 -> 0 | BE126: ='Hankeyhtiö - Talous'!AZ103 -> 0 | BF126: ='Hankeyhtiö - Talous'!BA103 -> 0 | BG126: ='Hankeyhtiö - Talous'!BB103 -> 0 | BH126: ='Hankeyhtiö - Talous'!BC103 -> 0 | BI126: ='Hankeyhtiö - Talous'!BD103 -> 0 | BJ126: ='Hankeyhtiö - Talous'!BE103 -> 0 | BK126: ='Hankeyhtiö - Talous'!BF103 -> 0 | BL126: ='Hankeyhtiö - Talous'!BG103 -> 0 | BM126: ='Hankeyhtiö - Talous'!BH103 -> 0 | BN126: ='Hankeyhtiö - Talous'!BI103 -> 0 | BO126: ='Hankeyhtiö - Talous'!BJ103 -> 0 | BP126: ='Hankeyhtiö - Talous'!BK103 -> 0 | BQ126: ='Hankeyhtiö - Talous'!BL103 -> 0 | BR126: ='Hankeyhtiö - Talous'!BM103 -> 0 | BS126: ='Hankeyhtiö - Talous'!BN103 -> 0 | BT126: ='Hankeyhtiö - Talous'!BO103 -> 0 | BU126: ='Hankeyhtiö - Talous'!BP103 -> 0
N128: Omistajille jaettavat osingot | Q128: =-'Hankeyhtiö - Talous'!L104 -> 0 | R128: =-'Hankeyhtiö - Talous'!M104 -> 0 | S128: =-'Hankeyhtiö - Talous'!N104 -> 0 | T128: =-'Hankeyhtiö - Talous'!O104 -> 0 | U128: =-'Hankeyhtiö - Talous'!P104 -> 0 | V128: =-'Hankeyhtiö - Talous'!Q104 -> 0 | W128: =-'Hankeyhtiö - Talous'!R104 -> 0 | X128: =-'Hankeyhtiö - Talous'!S104 -> 0 | Y128: =-'Hankeyhtiö - Talous'!T104 -> 0 | Z128: =-'Hankeyhtiö - Talous'!U104 -> 0 | AA128: =-'Hankeyhtiö - Talous'!V104 -> 0 | AB128: =-'Hankeyhtiö - Talous'!W104 -> 0 | AC128: =-'Hankeyhtiö - Talous'!X104 -> 0 | AD128: =-'Hankeyhtiö - Talous'!Y104 -> 0 | AE128: =-'Hankeyhtiö - Talous'!Z104 -> 0 | AF128: =-'Hankeyhtiö - Talous'!AA104 -> 0 | AG128: =-'Hankeyhtiö - Talous'!AB104 -> 5.208236512 | AH128: =-'Hankeyhtiö - Talous'!AC104 -> 9.851579979 | AI128: =-'Hankeyhtiö - Talous'!AD104 -> 13.69884288 | AJ128: =-'Hankeyhtiö - Talous'!AE104 -> 17.45695388 | AK128: =-'Hankeyhtiö - Talous'!AF104 -> 20.97592379 | AL128: =-'Hankeyhtiö - Talous'!AG104 -> 24.60394179 | AM128: =-'Hankeyhtiö - Talous'!AH104 -> 28.20014815 | AN128: =-'Hankeyhtiö - Talous'!AI104 -> 31.89884676 | AO128: =-'Hankeyhtiö - Talous'!AJ104 -> 35.45154488 | AP128: =-'Hankeyhtiö - Talous'!AK104 -> 39.09155909 | AQ128: =-'Hankeyhtiö - Talous'!AL104 -> 42.78388089 | AR128: =-'Hankeyhtiö - Talous'!AM104 -> 46.57762748 | AS128: =-'Hankeyhtiö - Talous'!AN104 -> 50.46057235 | AT128: =-'Hankeyhtiö - Talous'!AO104 -> 54.45205237 | AU128: =-'Hankeyhtiö - Talous'!AP104 -> 58.50263797 | AV128: =-'Hankeyhtiö - Talous'!AQ104 -> 62.66557042 | AW128: =-'Hankeyhtiö - Talous'!AR104 -> 66.92769286 | AX128: =-'Hankeyhtiö - Talous'!AS104 -> 25.42274341 | AY128: =-'Hankeyhtiö - Talous'!AT104 -> 26.82640198 | AZ128: =-'Hankeyhtiö - Talous'!AU104 -> 30.067794 | BA128: =-'Hankeyhtiö - Talous'!AV104 -> 33.37803851 | BB128: =-'Hankeyhtiö - Talous'!AW104 -> 36.78168281 | BC128: =-'Hankeyhtiö - Talous'!AX104 -> 40.21650208 | BD128: =-'Hankeyhtiö - Talous'!AY104 -> 43.74694297 | BE128: =-'Hankeyhtiö - Talous'!AZ104 -> 47.35536328 | BF128: =-'Hankeyhtiö - Talous'!BA104 -> 51.06632634 | BG128: =-'Hankeyhtiö - Talous'!BB104 -> 54.81251503 | BH128: =-'Hankeyhtiö - Talous'!BC104 -> 58.66372649 | BI128: =-'Hankeyhtiö - Talous'!BD104 -> 62.60090318 | BJ128: =-'Hankeyhtiö - Talous'!BE104 -> 66.65067322 | BK128: =-'Hankeyhtiö - Talous'!BF104 -> 70.74021138 | BL128: =-'Hankeyhtiö - Talous'!BG104 -> 74.94511037 | BM128: =-'Hankeyhtiö - Talous'!BH104 -> 79.24478482 | BN128: =-'Hankeyhtiö - Talous'!BI104 -> 83.89998752 | BO128: =-'Hankeyhtiö - Talous'!BJ104 -> 89.40681942 | BP128: =-'Hankeyhtiö - Talous'!BK104 -> 93.77446977 | BQ128: =-'Hankeyhtiö - Talous'!BL104 -> 97.43058972 | BR128: =-'Hankeyhtiö - Talous'!BM104 -> 102.2657845 | BS128: =-'Hankeyhtiö - Talous'!BN104 -> 107.151544 | BT128: =-'Hankeyhtiö - Talous'!BO104 -> 112.1765388 | BU128: =-'Hankeyhtiö - Talous'!BP104 -> 124.8314922
N130: Alkuperäinen SVOP-sijoitus | Q130: ='S&U'!$D$55+'S&U'!$D$56 -> 1953.172328 | R130: ='S&U'!$D$55+'S&U'!$D$56 -> 1953.172328 | S130: ='S&U'!$D$55+'S&U'!$D$56 -> 1953.172328 | T130: ='S&U'!$D$55+'S&U'!$D$56 -> 1953.172328 | U130: ='S&U'!$D$55+'S&U'!$D$56 -> 1953.172328 | V130: ='S&U'!$D$55+'S&U'!$D$56 -> 1953.172328 | W130: ='S&U'!$D$55+'S&U'!$D$56 -> 1953.172328 | X130: ='S&U'!$D$55+'S&U'!$D$56 -> 1953.172328 | Y130: ='S&U'!$D$55+'S&U'!$D$56 -> 1953.172328 | Z130: ='S&U'!$D$55+'S&U'!$D$56 -> 1953.172328 | AA130: ='S&U'!$D$55+'S&U'!$D$56 -> 1953.172328 | AB130: ='S&U'!$D$55+'S&U'!$D$56 -> 1953.172328 | AC130: ='S&U'!$D$55+'S&U'!$D$56 -> 1953.172328 | AD130: ='S&U'!$D$55+'S&U'!$D$56 -> 1953.172328 | AE130: ='S&U'!$D$55+'S&U'!$D$56 -> 1953.172328 | AF130: ='S&U'!$D$55+'S&U'!$D$56 -> 1953.172328 | AG130: ='S&U'!$D$55+'S&U'!$D$56 -> 1953.172328 | AH130: ='S&U'!$D$55+'S&U'!$D$56 -> 1953.172328 | AI130: ='S&U'!$D$55+'S&U'!$D$56 -> 1953.172328 | AJ130: ='S&U'!$D$55+'S&U'!$D$56 -> 1953.172328 | AK130: ='S&U'!$D$55+'S&U'!$D$56 -> 1953.172328 | AL130: ='S&U'!$D$55+'S&U'!$D$56 -> 1953.172328 | AM130: ='S&U'!$D$55+'S&U'!$D$56 -> 1953.172328 | AN130: ='S&U'!$D$55+'S&U'!$D$56 -> 1953.172328 | AO130: ='S&U'!$D$55+'S&U'!$D$56 -> 1953.172328 | AP130: ='S&U'!$D$55+'S&U'!$D$56 -> 1953.172328 | AQ130: ='S&U'!$D$55+'S&U'!$D$56 -> 1953.172328 | AR130: ='S&U'!$D$55+'S&U'!$D$56 -> 1953.172328 | AS130: ='S&U'!$D$55+'S&U'!$D$56 -> 1953.172328 | AT130: ='S&U'!$D$55+'S&U'!$D$56 -> 1953.172328 | AU130: ='S&U'!$D$55+'S&U'!$D$56 -> 1953.172328 | AV130: ='S&U'!$D$55+'S&U'!$D$56 -> 1953.172328 | AW130: ='S&U'!$D$55+'S&U'!$D$56 -> 1953.172328 | AX130: ='S&U'!$D$55+'S&U'!$D$56 -> 1953.172328 | AY130: ='S&U'!$D$55+'S&U'!$D$56 -> 1953.172328 | AZ130: ='S&U'!$D$55+'S&U'!$D$56 -> 1953.172328 | BA130: ='S&U'!$D$55+'S&U'!$D$56 -> 1953.172328 | BB130: ='S&U'!$D$55+'S&U'!$D$56 -> 1953.172328 | BC130: ='S&U'!$D$55+'S&U'!$D$56 -> 1953.172328 | BD130: ='S&U'!$D$55+'S&U'!$D$56 -> 1953.172328 | BE130: ='S&U'!$D$55+'S&U'!$D$56 -> 1953.172328 | BF130: ='S&U'!$D$55+'S&U'!$D$56 -> 1953.172328 | BG130: ='S&U'!$D$55+'S&U'!$D$56 -> 1953.172328 | BH130: ='S&U'!$D$55+'S&U'!$D$56 -> 1953.172328 | BI130: ='S&U'!$D$55+'S&U'!$D$56 -> 1953.172328 | BJ130: ='S&U'!$D$55+'S&U'!$D$56 -> 1953.172328 | BK130: ='S&U'!$D$55+'S&U'!$D$56 -> 1953.172328 | BL130: ='S&U'!$D$55+'S&U'!$D$56 -> 1953.172328 | BM130: ='S&U'!$D$55+'S&U'!$D$56 -> 1953.172328 | BN130: ='S&U'!$D$55+'S&U'!$D$56 -> 1953.172328 | BO130: ='S&U'!$D$55+'S&U'!$D$56 -> 1953.172328 | BP130: ='S&U'!$D$55+'S&U'!$D$56 -> 1953.172328 | BQ130: ='S&U'!$D$55+'S&U'!$D$56 -> 1953.172328 | BR130: ='S&U'!$D$55+'S&U'!$D$56 -> 1953.172328 | BS130: ='S&U'!$D$55+'S&U'!$D$56 -> 1953.172328 | BT130: ='S&U'!$D$55+'S&U'!$D$56 -> 1953.172328 | BU130: ='S&U'!$D$55+'S&U'!$D$56 -> 1953.172328
C132: Hankeyhtiön omistus | N132: Vuotuinen tuotto sijoitetulle omalle pääomalle | Q132: =Q128/Q130 -> 0 | R132: =R128/R130 -> 0 | S132: =S128/S130 -> 0 | T132: 0 | U132: 0 | V132: 0 | W132: 0 | X132: 0 | Y132: 0 | Z132: 0 | AA132: 0 | AB132: =AB128/AB130 -> 0 | AC132: =AC128/AC130 -> 0 | AD132: 0 | AE132: 0 | AF132: 0 | AG132: 0.002666552479 | AH132: 0.005043886727 | AI132: 0.007013637602 | AJ132: 0.00893774381 | AK132: 0.01073941275 | AL132: 0.01259691295 | AM132: 0.01443812599 | AN132: 0.01633181379 | AO132: 0.01815075115 | AP132: 0.02001439327 | AQ132: 0.02190481622 | AR132: 0.02384716741 | AS132: 0.02583518701 | AT132: 0.02787877526 | AU132: 0.02995262483 | AV132: 0.0320839946 | AW132: 0.03426614842 | AX132: 0.01301612922 | AY132: 0.013734785 | AZ132: 0.01539433749 | BA132: 0.01708914162 | BB132: 0.01883176527 | BC132: 0.02059035012 | BD132: 0.02239789206 | BE132: 0.02424535849 | BF132: 0.02614532554 | BG132: 0.02806332767 | BH132: 0.03003510016 | BI132: 0.03205088578 | BJ132: 0.0341243178 | BK132: 0.0362181106 | BL132: 0.03837096671 | BM132: 0.04057234669 | BN132: 0.04295575271 | BO132: 0.04577518233 | BP132: 0.04801136512 | BQ132: 0.04988325318 | BR132: 0.05235881294 | BS132: 0.05486026116 | BT132: 0.05743299615 | BU132: 0.0639121753
N135: Hankeyhtiön tuloslaskelma (EURm) | Q135: =Q182 -> 2019-12-31 | R135: 2020-12-31 | S135: 2021-12-31 | T135: 2022-12-31 | U135: 2023-12-31 | V135: 2024-12-31 | W135: 2025-12-31 | X135: 2026-12-31 | Y135: 2027-12-31 | Z135: 2028-12-31 | AA135: 2029-12-31 | AB135: 2030-12-31 | AC135: 2031-12-31 | AD135: 2032-12-31 | AE135: 2033-12-31 | AF135: 2034-12-31 | AG135: 2035-12-31 | AH135: 2036-12-31 | AI135: 2037-12-31 | AJ135: 2038-12-31 | AK135: 2039-12-31 | AL135: 2040-12-31 | AM135: 2041-12-31 | AN135: 2042-12-31 | AO135: 2043-12-31 | AP135: 2044-12-31 | AQ135: 2045-12-31 | AR135: 2046-12-31 | AS135: 2047-12-31 | AT135: 2048-12-31 | AU135: 2049-12-31 | AV135: 2050-12-31 | AW135: =AW182 -> 2051-12-31 | AX135: 2052-12-31 | AY135: 2053-12-31 | AZ135: 2054-12-31 | BA135: 2055-12-31 | BB135: 2056-12-31 | BC135: 2057-12-31 | BD135: 2058-12-31 | BE135: 2059-12-31 | BF135: 2060-12-31 | BG135: 2061-12-31 | BH135: 2062-12-31 | BI135: 2063-12-31 | BJ135: 2064-12-31 | BK135: 2065-12-31 | BL135: 2066-12-31 | BM135: 2067-12-31 | BN135: 2068-12-31 | BO135: 2069-12-31 | BP135: 2070-12-31 | BQ135: 2071-12-31 | BR135: 2072-12-31 | BS135: 2073-12-31 | BT135: 2074-12-31 | BU135: 2075-12-31
N137: Vastaavaa
BV138: ='Hankeyhtiö - Talous'!BQ49 -> 1212.466115
N139: Pysyvät vastaavat | BV139: ='Hankeyhtiö - Talous'!BQ50 -> 797.2998505
N140: Maa- ja vesialueet | Q140: ='Hankeyhtiö - Talous'!L49 -> 0 | R140: ='Hankeyhtiö - Talous'!M49 -> 400 | S140: ='Hankeyhtiö - Talous'!N49 -> 408 | T140: ='Hankeyhtiö - Talous'!O49 -> 416.16 | U140: ='Hankeyhtiö - Talous'!P49 -> 424.4832 | V140: ='Hankeyhtiö - Talous'!Q49 -> 432.972864 | W140: ='Hankeyhtiö - Talous'!R49 -> 441.6323213 | X140: ='Hankeyhtiö - Talous'!S49 -> 450.4649677 | Y140: ='Hankeyhtiö - Talous'!T49 -> 459.4742671 | Z140: ='Hankeyhtiö - Talous'!U49 -> 468.6637524 | AA140: ='Hankeyhtiö - Talous'!V49 -> 478.0370274 | AB140: ='Hankeyhtiö - Talous'!W49 -> 487.597768 | AC140: ='Hankeyhtiö - Talous'!X49 -> 497.3497234 | AD140: ='Hankeyhtiö - Talous'!Y49 -> 507.2967178 | AE140: ='Hankeyhtiö - Talous'!Z49 -> 517.4426522 | AF140: ='Hankeyhtiö - Talous'!AA49 -> 527.7915052 | AG140: ='Hankeyhtiö - Talous'!AB49 -> 538.3473353 | AH140: ='Hankeyhtiö - Talous'!AC49 -> 549.114282 | AI140: ='Hankeyhtiö - Talous'!AD49 -> 560.0965677 | AJ140: ='Hankeyhtiö - Talous'!AE49 -> 571.298499 | AK140: ='Hankeyhtiö - Talous'!AF49 -> 582.724469 | AL140: ='Hankeyhtiö - Talous'!AG49 -> 594.3789584 | AM140: ='Hankeyhtiö - Talous'!AH49 -> 606.2665376 | AN140: ='Hankeyhtiö - Talous'!AI49 -> 618.3918683 | AO140: ='Hankeyhtiö - Talous'!AJ49 -> 630.7597057 | AP140: ='Hankeyhtiö - Talous'!AK49 -> 643.3748998 | AQ140: ='Hankeyhtiö - Talous'!AL49 -> 656.2423978 | AR140: ='Hankeyhtiö - Talous'!AM49 -> 669.3672457 | AS140: ='Hankeyhtiö - Talous'!AN49 -> 682.7545907 | AT140: ='Hankeyhtiö - Talous'!AO49 -> 696.4096825 | AU140: ='Hankeyhtiö - Talous'!AP49 -> 710.3378761 | AV140: ='Hankeyhtiö - Talous'!AQ49 -> 724.5446336 | AW140: ='Hankeyhtiö - Talous'!AR49 -> 739.0355263 | AX140: ='Hankeyhtiö - Talous'!AS49 -> 753.8162368 | AY140: ='Hankeyhtiö - Talous'!AT49 -> 768.8925616 | AZ140: ='Hankeyhtiö - Talous'!AU49 -> 784.2704128 | BA140: ='Hankeyhtiö - Talous'!AV49 -> 799.9558211 | BB140: ='Hankeyhtiö - Talous'!AW49 -> 815.9549375 | BC140: ='Hankeyhtiö - Talous'!AX49 -> 832.2740362 | BD140: ='Hankeyhtiö - Talous'!AY49 -> 848.919517 | BE140: ='Hankeyhtiö - Talous'!AZ49 -> 865.8979073 | BF140: ='Hankeyhtiö - Talous'!BA49 -> 883.2158654 | BG140: ='Hankeyhtiö - Talous'!BB49 -> 900.8801828 | BH140: ='Hankeyhtiö - Talous'!BC49 -> 918.8977864 | BI140: ='Hankeyhtiö - Talous'!BD49 -> 937.2757421 | BJ140: ='Hankeyhtiö - Talous'!BE49 -> 956.021257 | BK140: ='Hankeyhtiö - Talous'!BF49 -> 975.1416821 | BL140: ='Hankeyhtiö - Talous'!BG49 -> 994.6445158 | BM140: ='Hankeyhtiö - Talous'!BH49 -> 1014.537406 | BN140: ='Hankeyhtiö - Talous'!BI49 -> 1034.828154 | BO140: ='Hankeyhtiö - Talous'!BJ49 -> 1055.524717 | BP140: ='Hankeyhtiö - Talous'!BK49 -> 1076.635212 | BQ140: ='Hankeyhtiö - Talous'!BL49 -> 1098.167916 | BR140: ='Hankeyhtiö - Talous'!BM49 -> 1120.131274 | BS140: ='Hankeyhtiö - Talous'!BN49 -> 1142.5339 | BT140: ='Hankeyhtiö - Talous'!BO49 -> 1165.384578 | BU140: ='Hankeyhtiö - Talous'!BP49 -> 1188.692269 | BV140: =SUM(BV138:BV139) -> 2009.765965
N141: Rakennukset ja rakennelmat | Q141: ='Hankeyhtiö - Talous'!L50 -> 26.678 | R141: ='Hankeyhtiö - Talous'!M50 -> 60.62450152 | S141: ='Hankeyhtiö - Talous'!N50 -> 95.24993308 | T141: ='Hankeyhtiö - Talous'!O50 -> 130.5678733 | U141: ='Hankeyhtiö - Talous'!P50 -> 368.3975559 | V141: ='Hankeyhtiö - Talous'!Q50 -> 611.1528266 | W141: ='Hankeyhtiö - Talous'!R50 -> 862.518499 | X141: ='Hankeyhtiö - Talous'!S50 -> 1367.360663 | Y141: ='Hankeyhtiö - Talous'!T50 -> 1884.415981 | Z141: ='Hankeyhtiö - Talous'!U50 -> 2421.391032 | AA141: ='Hankeyhtiö - Talous'!V50 -> 2978.917838 | AB141: ='Hankeyhtiö - Talous'!W50 -> 3557.646996 | AC141: ='Hankeyhtiö - Talous'!X50 -> 4158.133556 | AD141: ='Hankeyhtiö - Talous'!Y50 -> 4427.863694 | AE141: ='Hankeyhtiö - Talous'!Z50 -> 4708.93509 | AF141: ='Hankeyhtiö - Talous'!AA50 -> 5001.654201 | AG141: ='Hankeyhtiö - Talous'!AB50 -> 4901.550526 | AH141: ='Hankeyhtiö - Talous'!AC50 -> 4801.446851 | AI141: ='Hankeyhtiö - Talous'!AD50 -> 4701.343176 | AJ141: ='Hankeyhtiö - Talous'!AE50 -> 4601.239501 | AK141: ='Hankeyhtiö - Talous'!AF50 -> 4501.135826 | AL141: ='Hankeyhtiö - Talous'!AG50 -> 4401.032151 | AM141: ='Hankeyhtiö - Talous'!AH50 -> 4300.928476 | AN141: ='Hankeyhtiö - Talous'!AI50 -> 4200.824801 | AO141: ='Hankeyhtiö - Talous'!AJ50 -> 4100.721126 | AP141: ='Hankeyhtiö - Talous'!AK50 -> 4000.617451 | AQ141: ='Hankeyhtiö - Talous'!AL50 -> 3900.513776 | AR141: ='Hankeyhtiö - Talous'!AM50 -> 3800.410101 | AS141: ='Hankeyhtiö - Talous'!AN50 -> 3700.306426 | AT141: ='Hankeyhtiö - Talous'!AO50 -> 3600.202751 | AU141: ='Hankeyhtiö - Talous'!AP50 -> 3500.099076 | AV141: ='Hankeyhtiö - Talous'!AQ50 -> 3399.995401 | AW141: ='Hankeyhtiö - Talous'!AR50 -> 3299.891726 | AX141: ='Hankeyhtiö - Talous'!AS50 -> 3199.788051 | AY141: ='Hankeyhtiö - Talous'!AT50 -> 3099.684376 | AZ141: ='Hankeyhtiö - Talous'!AU50 -> 2999.580701 | BA141: ='Hankeyhtiö - Talous'!AV50 -> 2899.477026 | BB141: ='Hankeyhtiö - Talous'!AW50 -> 2799.373351 | BC141: ='Hankeyhtiö - Talous'!AX50 -> 2699.269676 | BD141: ='Hankeyhtiö - Talous'!AY50 -> 2599.166001 | BE141: ='Hankeyhtiö - Talous'!AZ50 -> 2499.062326 | BF141: ='Hankeyhtiö - Talous'!BA50 -> 2398.958651 | BG141: ='Hankeyhtiö - Talous'!BB50 -> 2298.854976 | BH141: ='Hankeyhtiö - Talous'!BC50 -> 2198.751301 | BI141: ='Hankeyhtiö - Talous'!BD50 -> 2098.647626 | BJ141: ='Hankeyhtiö - Talous'!BE50 -> 1998.543951 | BK141: ='Hankeyhtiö - Talous'!BF50 -> 1898.440276 | BL141: ='Hankeyhtiö - Talous'!BG50 -> 1798.336601 | BM141: ='Hankeyhtiö - Talous'!BH50 -> 1698.232926 | BN141: ='Hankeyhtiö - Talous'!BI50 -> 1598.129251 | BO141: ='Hankeyhtiö - Talous'!BJ50 -> 1498.025576 | BP141: ='Hankeyhtiö - Talous'!BK50 -> 1397.921901 | BQ141: ='Hankeyhtiö - Talous'!BL50 -> 1297.818226 | BR141: ='Hankeyhtiö - Talous'!BM50 -> 1197.714551 | BS141: ='Hankeyhtiö - Talous'!BN50 -> 1097.610876 | BT141: ='Hankeyhtiö - Talous'!BO50 -> 997.5072005 | BU141: ='Hankeyhtiö - Talous'!BP50 -> 897.4035255
N142: Pysyvät vastaavat | Q142: 26.678 | R142: 460.6245015 | S142: 503.2499331 | T142: 546.7278733 | U142: 792.8807559 | V142: 1044.125691 | W142: 1304.15082 | X142: 1817.825631 | Y142: 2343.890248 | Z142: 2890.054784 | AA142: 3456.954865 | AB142: 4045.244764 | AC142: 4655.483279 | AD142: 4935.160411 | AE142: 5226.377743 | AF142: 5529.445707 | AG142: 5439.897862 | AH142: 5350.561133 | AI142: 5261.439744 | AJ142: 5172.538 | AK142: 5083.860295 | AL142: 4995.41111 | AM142: 4907.195014 | AN142: 4819.21667 | AO142: 4731.480832 | AP142: 4643.992351 | AQ142: 4556.756174 | AR142: 4469.777347 | AS142: 4383.061017 | AT142: 4296.612434 | AU142: 4210.436952 | AV142: 4124.540035 | AW142: 4038.927252 | AX142: 3953.604288 | AY142: 3868.576938 | AZ142: 3783.851114 | BA142: 3699.432847 | BB142: 3615.328288 | BC142: 3531.543712 | BD142: 3448.085518 | BE142: 3364.960233 | BF142: 3282.174516 | BG142: 3199.735159 | BH142: 3117.649087 | BI142: 3035.923368 | BJ142: 2954.565208 | BK142: 2873.581958 | BL142: 2792.981116 | BM142: 2712.770332 | BN142: 2632.957405 | BO142: 2553.550293 | BP142: 2474.557112 | BQ142: 2395.986141 | BR142: 2317.845825 | BS142: 2240.144775 | BT142: 2162.891778 | BU142: 2086.095795
BV143: ='Hankeyhtiö - Talous'!BQ53 -> 5
N144: Vaihtuvat vastaavat | BV144: ='Hankeyhtiö - Talous'!BQ54 -> 9.938618761
N145: Rahat ja pankkisaamiset | Q145: ='Hankeyhtiö - Talous'!L53 -> 5 | R145: ='Hankeyhtiö - Talous'!M53 -> 5 | S145: ='Hankeyhtiö - Talous'!N53 -> 5 | T145: ='Hankeyhtiö - Talous'!O53 -> 5.679537973 | U145: ='Hankeyhtiö - Talous'!P53 -> 5.679537973 | V145: ='Hankeyhtiö - Talous'!Q53 -> 5.679537973 | W145: ='Hankeyhtiö - Talous'!R53 -> 5.679537973 | X145: ='Hankeyhtiö - Talous'!S53 -> 5.679537973 | Y145: ='Hankeyhtiö - Talous'!T53 -> 5.679537973 | Z145: ='Hankeyhtiö - Talous'!U53 -> 5.679537973 | AA145: ='Hankeyhtiö - Talous'!V53 -> 5.679537973 | AB145: ='Hankeyhtiö - Talous'!W53 -> 5.679537973 | AC145: ='Hankeyhtiö - Talous'!X53 -> 5.679537973 | AD145: ='Hankeyhtiö - Talous'!Y53 -> 5.679537973 | AE145: ='Hankeyhtiö - Talous'!Z53 -> 5.679537973 | AF145: ='Hankeyhtiö - Talous'!AA53 -> 5.679537973 | AG145: ='Hankeyhtiö - Talous'!AB53 -> 5 | AH145: ='Hankeyhtiö - Talous'!AC53 -> 5 | AI145: ='Hankeyhtiö - Talous'!AD53 -> 5 | AJ145: ='Hankeyhtiö - Talous'!AE53 -> 5 | AK145: ='Hankeyhtiö - Talous'!AF53 -> 5 | AL145: ='Hankeyhtiö - Talous'!AG53 -> 5 | AM145: ='Hankeyhtiö - Talous'!AH53 -> 5 | AN145: ='Hankeyhtiö - Talous'!AI53 -> 5 | AO145: ='Hankeyhtiö - Talous'!AJ53 -> 5 | AP145: ='Hankeyhtiö - Talous'!AK53 -> 5 | AQ145: ='Hankeyhtiö - Talous'!AL53 -> 5 | AR145: ='Hankeyhtiö - Talous'!AM53 -> 5 | AS145: ='Hankeyhtiö - Talous'!AN53 -> 5 | AT145: ='Hankeyhtiö - Talous'!AO53 -> 5 | AU145: ='Hankeyhtiö - Talous'!AP53 -> 5 | AV145: ='Hankeyhtiö - Talous'!AQ53 -> 5 | AW145: ='Hankeyhtiö - Talous'!AR53 -> 5 | AX145: ='Hankeyhtiö - Talous'!AS53 -> 5 | AY145: ='Hankeyhtiö - Talous'!AT53 -> 5 | AZ145: ='Hankeyhtiö - Talous'!AU53 -> 5 | BA145: ='Hankeyhtiö - Talous'!AV53 -> 5 | BB145: ='Hankeyhtiö - Talous'!AW53 -> 5 | BC145: ='Hankeyhtiö - Talous'!AX53 -> 5 | BD145: ='Hankeyhtiö - Talous'!AY53 -> 5 | BE145: ='Hankeyhtiö - Talous'!AZ53 -> 5 | BF145: ='Hankeyhtiö - Talous'!BA53 -> 5 | BG145: ='Hankeyhtiö - Talous'!BB53 -> 5 | BH145: ='Hankeyhtiö - Talous'!BC53 -> 5 | BI145: ='Hankeyhtiö - Talous'!BD53 -> 5 | BJ145: ='Hankeyhtiö - Talous'!BE53 -> 5 | BK145: ='Hankeyhtiö - Talous'!BF53 -> 5 | BL145: ='Hankeyhtiö - Talous'!BG53 -> 5 | BM145: ='Hankeyhtiö - Talous'!BH53 -> 5 | BN145: ='Hankeyhtiö - Talous'!BI53 -> 5 | BO145: ='Hankeyhtiö - Talous'!BJ53 -> 5 | BP145: ='Hankeyhtiö - Talous'!BK53 -> 5 | BQ145: ='Hankeyhtiö - Talous'!BL53 -> 5 | BR145: ='Hankeyhtiö - Talous'!BM53 -> 5 | BS145: ='Hankeyhtiö - Talous'!BN53 -> 5 | BT145: ='Hankeyhtiö - Talous'!BO53 -> 5 | BU145: ='Hankeyhtiö - Talous'!BP53 -> 5 | BV145: =SUM(BV143:BV144) -> 14.93861876
N146: Myyntisaamiset | Q146: ='Hankeyhtiö - Talous'!L54 -> 0 | R146: ='Hankeyhtiö - Talous'!M54 -> 0 | S146: ='Hankeyhtiö - Talous'!N54 -> 0 | T146: ='Hankeyhtiö - Talous'!O54 -> 0.07183035616 | U146: ='Hankeyhtiö - Talous'!P54 -> 0.1465339266 | V146: ='Hankeyhtiö - Talous'!Q54 -> 0.2241969077 | W146: ='Hankeyhtiö - Talous'!R54 -> 0.3049077944 | X146: ='Hankeyhtiö - Talous'!S54 -> 0.3887574379 | Y146: ='Hankeyhtiö - Talous'!T54 -> 0.475839104 | Z146: ='Hankeyhtiö - Talous'!U54 -> 0.5662485337 | AA146: ='Hankeyhtiö - Talous'!V54 -> 0.660084005 | AB146: ='Hankeyhtiö - Talous'!W54 -> 0.7574463958 | AC146: ='Hankeyhtiö - Talous'!X54 -> 0.8584392485 | AD146: ='Hankeyhtiö - Talous'!Y54 -> 2.990070565 | AE146: ='Hankeyhtiö - Talous'!Z54 -> 3.052981545 | AF146: ='Hankeyhtiö - Talous'!AA54 -> 3.117653783 | AG146: ='Hankeyhtiö - Talous'!AB54 -> 5.055556888 | AH146: ='Hankeyhtiö - Talous'!AC54 -> 5.192092286 | AI146: ='Hankeyhtiö - Talous'!AD54 -> 5.330999095 | AJ146: ='Hankeyhtiö - Talous'!AE54 -> 5.474819124 | AK146: ='Hankeyhtiö - Talous'!AF54 -> 5.622877983 | AL146: ='Hankeyhtiö - Talous'!AG54 -> 5.776182306 | AM146: ='Hankeyhtiö - Talous'!AH54 -> 5.927549681 | AN146: ='Hankeyhtiö - Talous'!AI54 -> 6.084114087 | AO146: ='Hankeyhtiö - Talous'!AJ54 -> 6.2336851 | AP146: ='Hankeyhtiö - Talous'!AK54 -> 6.388029493 | AQ146: ='Hankeyhtiö - Talous'!AL54 -> 6.544419192 | AR146: ='Hankeyhtiö - Talous'!AM54 -> 6.705788882 | AS146: ='Hankeyhtiö - Talous'!AN54 -> 6.871302828 | AT146: ='Hankeyhtiö - Talous'!AO54 -> 7.04209267 | AU146: ='Hankeyhtiö - Talous'!AP54 -> 7.215208754 | AV146: ='Hankeyhtiö - Talous'!AQ54 -> 7.393831076 | AW146: ='Hankeyhtiö - Talous'!AR54 -> 7.577058512 | AX146: ='Hankeyhtiö - Talous'!AS54 -> 5.597607134 | AY146: ='Hankeyhtiö - Talous'!AT54 -> 5.760130239 | AZ146: ='Hankeyhtiö - Talous'!AU54 -> 5.897906504 | BA146: ='Hankeyhtiö - Talous'!AV54 -> 6.039017422 | BB146: ='Hankeyhtiö - Talous'!AW54 -> 6.184827227 | BC146: ='Hankeyhtiö - Talous'!AX54 -> 6.331571428 | BD146: ='Hankeyhtiö - Talous'!AY54 -> 6.483183704 | BE146: ='Hankeyhtiö - Talous'!AZ54 -> 6.638469108 | BF146: ='Hankeyhtiö - Talous'!BA54 -> 6.798905963 | BG146: ='Hankeyhtiö - Talous'!BB54 -> 6.960421139 | BH146: ='Hankeyhtiö - Talous'!BC54 -> 7.12727429 | BI146: ='Hankeyhtiö - Talous'!BD54 -> 7.298173728 | BJ146: ='Hankeyhtiö - Talous'!BE54 -> 7.474721445 | BK146: ='Hankeyhtiö - Talous'!BF54 -> 7.652510402 | BL146: ='Hankeyhtiö - Talous'!BG54 -> 7.836153287 | BM146: ='Hankeyhtiö - Talous'!BH54 -> 8.024253884 | BN146: ='Hankeyhtiö - Talous'!BI54 -> 8.218548237 | BO146: ='Hankeyhtiö - Talous'!BJ54 -> 8.414268076 | BP146: ='Hankeyhtiö - Talous'!BK54 -> 8.616408423 | BQ146: ='Hankeyhtiö - Talous'!BL54 -> 8.823460127 | BR146: ='Hankeyhtiö - Talous'!BM54 -> 9.037304547 | BS146: ='Hankeyhtiö - Talous'!BN54 -> 9.252782622 | BT146: ='Hankeyhtiö - Talous'!BO54 -> 9.475303453 | BU146: ='Hankeyhtiö - Talous'!BP54 -> 9.703235869
N147: Vaihtuvat vastaavat | Q147: 5 | R147: 5 | S147: 5 | T147: 5.751368329 | U147: 5.826071899 | V147: 5.90373488 | W147: 5.984445767 | X147: 6.06829541 | Y147: 6.155377077 | Z147: 6.245786506 | AA147: 6.339621978 | AB147: 6.436984368 | AC147: 6.537977221 | AD147: 8.669608538 | AE147: 8.732519518 | AF147: 8.797191756 | AG147: 10.05555689 | AH147: 10.19209229 | AI147: 10.33099909 | AJ147: 10.47481912 | AK147: 10.62287798 | AL147: 10.77618231 | AM147: 10.92754968 | AN147: 11.08411409 | AO147: 11.2336851 | AP147: 11.38802949 | AQ147: 11.54441919 | AR147: 11.70578888 | AS147: 11.87130283 | AT147: 12.04209267 | AU147: 12.21520875 | AV147: 12.39383108 | AW147: 12.57705851 | AX147: 10.59760713 | AY147: 10.76013024 | AZ147: 10.8979065 | BA147: 11.03901742 | BB147: 11.18482723 | BC147: 11.33157143 | BD147: 11.4831837 | BE147: 11.63846911 | BF147: 11.79890596 | BG147: 11.96042114 | BH147: 12.12727429 | BI147: 12.29817373 | BJ147: 12.47472144 | BK147: 12.6525104 | BL147: 12.83615329 | BM147: 13.02425388 | BN147: 13.21854824 | BO147: 13.41426808 | BP147: 13.61640842 | BQ147: 13.82346013 | BR147: 14.03730455 | BS147: 14.25278262 | BT147: 14.47530345 | BU147: 14.70323587 | BV147: ='Hankeyhtiö - Talous'!BQ57 -> 0
N149: Sijoitukset | Q149: ='Hankeyhtiö - Talous'!L57 -> 0 | R149: ='Hankeyhtiö - Talous'!M57 -> 0 | S149: ='Hankeyhtiö - Talous'!N57 -> 0 | T149: ='Hankeyhtiö - Talous'!O57 -> 0 | U149: ='Hankeyhtiö - Talous'!P57 -> 0 | V149: ='Hankeyhtiö - Talous'!Q57 -> 0 | W149: ='Hankeyhtiö - Talous'!R57 -> 0 | X149: ='Hankeyhtiö - Talous'!S57 -> 0 | Y149: ='Hankeyhtiö - Talous'!T57 -> 0 | Z149: ='Hankeyhtiö - Talous'!U57 -> 0 | AA149: ='Hankeyhtiö - Talous'!V57 -> 0 | AB149: ='Hankeyhtiö - Talous'!W57 -> 0 | AC149: ='Hankeyhtiö - Talous'!X57 -> 0 | AD149: ='Hankeyhtiö - Talous'!Y57 -> 0 | AE149: ='Hankeyhtiö - Talous'!Z57 -> 0 | AF149: ='Hankeyhtiö - Talous'!AA57 -> 0 | AG149: ='Hankeyhtiö - Talous'!AB57 -> 0 | AH149: ='Hankeyhtiö - Talous'!AC57 -> 0 | AI149: ='Hankeyhtiö - Talous'!AD57 -> 0 | AJ149: ='Hankeyhtiö - Talous'!AE57 -> 0 | AK149: ='Hankeyhtiö - Talous'!AF57 -> 0 | AL149: ='Hankeyhtiö - Talous'!AG57 -> 0 | AM149: ='Hankeyhtiö - Talous'!AH57 -> 0 | AN149: ='Hankeyhtiö - Talous'!AI57 -> 0 | AO149: ='Hankeyhtiö - Talous'!AJ57 -> 0 | AP149: ='Hankeyhtiö - Talous'!AK57 -> 0 | AQ149: ='Hankeyhtiö - Talous'!AL57 -> 0 | AR149: ='Hankeyhtiö - Talous'!AM57 -> 0 | AS149: ='Hankeyhtiö - Talous'!AN57 -> 0 | AT149: ='Hankeyhtiö - Talous'!AO57 -> 0 | AU149: ='Hankeyhtiö - Talous'!AP57 -> 0 | AV149: ='Hankeyhtiö - Talous'!AQ57 -> 0 | AW149: ='Hankeyhtiö - Talous'!AR57 -> 0 | AX149: ='Hankeyhtiö - Talous'!AS57 -> 0 | AY149: ='Hankeyhtiö - Talous'!AT57 -> 0 | AZ149: ='Hankeyhtiö - Talous'!AU57 -> 0 | BA149: ='Hankeyhtiö - Talous'!AV57 -> 0 | BB149: ='Hankeyhtiö - Talous'!AW57 -> 0 | BC149: ='Hankeyhtiö - Talous'!AX57 -> 0 | BD149: ='Hankeyhtiö - Talous'!AY57 -> 0 | BE149: ='Hankeyhtiö - Talous'!AZ57 -> 0 | BF149: ='Hankeyhtiö - Talous'!BA57 -> 0 | BG149: ='Hankeyhtiö - Talous'!BB57 -> 0 | BH149: ='Hankeyhtiö - Talous'!BC57 -> 0 | BI149: ='Hankeyhtiö - Talous'!BD57 -> 0 | BJ149: ='Hankeyhtiö - Talous'!BE57 -> 0 | BK149: ='Hankeyhtiö - Talous'!BF57 -> 0 | BL149: ='Hankeyhtiö - Talous'!BG57 -> 0 | BM149: ='Hankeyhtiö - Talous'!BH57 -> 0 | BN149: ='Hankeyhtiö - Talous'!BI57 -> 0 | BO149: ='Hankeyhtiö - Talous'!BJ57 -> 0 | BP149: ='Hankeyhtiö - Talous'!BK57 -> 0 | BQ149: ='Hankeyhtiö - Talous'!BL57 -> 0 | BR149: ='Hankeyhtiö - Talous'!BM57 -> 0 | BS149: ='Hankeyhtiö - Talous'!BN57 -> 0 | BT149: ='Hankeyhtiö - Talous'!BO57 -> 0 | BU149: ='Hankeyhtiö - Talous'!BP57 -> 0 | BV149: =BV147+BV145+BV140 -> 2024.704584
C150: Infrastruktuurimaksut
N151: Vastaavaa | Q151: =Q149+Q147+Q142 -> 31.678 | R151: 465.6245015 | S151: 508.2499331 | T151: 552.4792416 | U151: 798.7068278 | V151: 1050.029425 | W151: 1310.135266 | X151: 1823.893926 | Y151: 2350.045625 | Z151: 2896.300571 | AA151: 3463.294487 | AB151: 4051.681748 | AC151: 4662.021256 | AD151: 4943.83002 | AE151: 5235.110262 | AF151: 5538.242898 | AG151: 5449.953419 | AH151: 5360.753226 | AI151: 5271.770743 | AJ151: 5183.01282 | AK151: 5094.483173 | AL151: 5006.187292 | AM151: 4918.122564 | AN151: 4830.300784 | AO151: 4742.714517 | AP151: 4655.380381 | AQ151: 4568.300593 | AR151: 4481.483136 | AS151: 4394.93232 | AT151: 4308.654526 | AU151: 4222.652161 | AV151: 4136.933866 | AW151: 4051.504311 | AX151: 3964.201895 | AY151: 3879.337068 | AZ151: 3794.74902 | BA151: 3710.471864 | BB151: 3626.513116 | BC151: 3542.875284 | BD151: 3459.568702 | BE151: 3376.598702 | BF151: 3293.973422 | BG151: 3211.69558 | BH151: 3129.776362 | BI151: 3048.221542 | BJ151: 2967.039929 | BK151: 2886.234468 | BL151: 2805.81727 | BM151: 2725.794586 | BN151: 2646.175953 | BO151: 2566.964561 | BP151: 2488.173521 | BQ151: 2409.809602 | BR151: 2331.883129 | BS151: 2254.397558 | BT151: 2177.367082 | BU151: 2100.799031
N153: VASTATTAVAA | BV153: ='Hankeyhtiö - Talous'!BQ63 -> 0
N155: Kertynyt poistoero | Q155: ='Hankeyhtiö - Talous'!L63 -> 0 | R155: ='Hankeyhtiö - Talous'!M63 -> 0 | S155: ='Hankeyhtiö - Talous'!N63 -> 0 | T155: ='Hankeyhtiö - Talous'!O63 -> 0 | U155: ='Hankeyhtiö - Talous'!P63 -> 0 | V155: ='Hankeyhtiö - Talous'!Q63 -> 0 | W155: ='Hankeyhtiö - Talous'!R63 -> 0 | X155: ='Hankeyhtiö - Talous'!S63 -> 0 | Y155: ='Hankeyhtiö - Talous'!T63 -> 0 | Z155: ='Hankeyhtiö - Talous'!U63 -> 0 | AA155: ='Hankeyhtiö - Talous'!V63 -> 0 | AB155: ='Hankeyhtiö - Talous'!W63 -> 0 | AC155: ='Hankeyhtiö - Talous'!X63 -> 0 | AD155: ='Hankeyhtiö - Talous'!Y63 -> 0 | AE155: ='Hankeyhtiö - Talous'!Z63 -> 0 | AF155: ='Hankeyhtiö - Talous'!AA63 -> 0 | AG155: ='Hankeyhtiö - Talous'!AB63 -> 0 | AH155: ='Hankeyhtiö - Talous'!AC63 -> 0 | AI155: ='Hankeyhtiö - Talous'!AD63 -> 0 | AJ155: ='Hankeyhtiö - Talous'!AE63 -> 0 | AK155: ='Hankeyhtiö - Talous'!AF63 -> 0 | AL155: ='Hankeyhtiö - Talous'!AG63 -> 0 | AM155: ='Hankeyhtiö - Talous'!AH63 -> 0 | AN155: ='Hankeyhtiö - Talous'!AI63 -> 0 | AO155: ='Hankeyhtiö - Talous'!AJ63 -> 0 | AP155: ='Hankeyhtiö - Talous'!AK63 -> 0 | AQ155: ='Hankeyhtiö - Talous'!AL63 -> 0 | AR155: ='Hankeyhtiö - Talous'!AM63 -> 0 | AS155: ='Hankeyhtiö - Talous'!AN63 -> 0 | AT155: ='Hankeyhtiö - Talous'!AO63 -> 0 | AU155: ='Hankeyhtiö - Talous'!AP63 -> 0 | AV155: ='Hankeyhtiö - Talous'!AQ63 -> 0 | AW155: ='Hankeyhtiö - Talous'!AR63 -> 0 | AX155: ='Hankeyhtiö - Talous'!AS63 -> 0 | AY155: ='Hankeyhtiö - Talous'!AT63 -> 0 | AZ155: ='Hankeyhtiö - Talous'!AU63 -> 0 | BA155: ='Hankeyhtiö - Talous'!AV63 -> 0 | BB155: ='Hankeyhtiö - Talous'!AW63 -> 0 | BC155: ='Hankeyhtiö - Talous'!AX63 -> 0 | BD155: ='Hankeyhtiö - Talous'!AY63 -> 0 | BE155: ='Hankeyhtiö - Talous'!AZ63 -> 0 | BF155: ='Hankeyhtiö - Talous'!BA63 -> 0 | BG155: ='Hankeyhtiö - Talous'!BB63 -> 0 | BH155: ='Hankeyhtiö - Talous'!BC63 -> 0 | BI155: ='Hankeyhtiö - Talous'!BD63 -> 0 | BJ155: ='Hankeyhtiö - Talous'!BE63 -> 0 | BK155: ='Hankeyhtiö - Talous'!BF63 -> 0 | BL155: ='Hankeyhtiö - Talous'!BG63 -> 0 | BM155: ='Hankeyhtiö - Talous'!BH63 -> 0 | BN155: ='Hankeyhtiö - Talous'!BI63 -> 0 | BO155: ='Hankeyhtiö - Talous'!BJ63 -> 0 | BP155: ='Hankeyhtiö - Talous'!BK63 -> 0 | BQ155: ='Hankeyhtiö - Talous'!BL63 -> 0 | BR155: ='Hankeyhtiö - Talous'!BM63 -> 0 | BS155: ='Hankeyhtiö - Talous'!BN63 -> 0 | BT155: ='Hankeyhtiö - Talous'!BO63 -> 0 | BU155: ='Hankeyhtiö - Talous'!BP63 -> 0
BV156: ='Hankeyhtiö - Talous'!BQ66 -> 1.418325732
N157: Vieras pääoma | BV157: ='Hankeyhtiö - Talous'!BQ67 -> 3188.265003
N158: Ostovelat | Q158: ='Hankeyhtiö - Talous'!L66 -> 0 | R158: ='Hankeyhtiö - Talous'!M66 -> 0 | S158: ='Hankeyhtiö - Talous'!N66 -> 0 | T158: ='Hankeyhtiö - Talous'!O66 -> 0.08551232877 | U158: ='Hankeyhtiö - Talous'!P66 -> 0.08722257534 | V158: ='Hankeyhtiö - Talous'!Q66 -> 0.08896702685 | W158: ='Hankeyhtiö - Talous'!R66 -> 0.09074636739 | X158: ='Hankeyhtiö - Talous'!S66 -> 0.09256129473 | Y158: ='Hankeyhtiö - Talous'!T66 -> 0.09441252063 | Z158: ='Hankeyhtiö - Talous'!U66 -> 0.09630077104 | AA158: ='Hankeyhtiö - Talous'!V66 -> 0.09822678646 | AB158: ='Hankeyhtiö - Talous'!W66 -> 0.1001913222 | AC158: ='Hankeyhtiö - Talous'!X66 -> 0.1021951486 | AD158: ='Hankeyhtiö - Talous'!Y66 -> 0.4574800134 | AE158: ='Hankeyhtiö - Talous'!Z66 -> 0.4666296136 | AF158: ='Hankeyhtiö - Talous'!AA66 -> 0.4759622059 | AG158: ='Hankeyhtiö - Talous'!AB66 -> 0.6099142958 | AH158: ='Hankeyhtiö - Talous'!AC66 -> 0.6224603119 | AI158: ='Hankeyhtiö - Talous'!AD66 -> 0.6345548333 | AJ158: ='Hankeyhtiö - Talous'!AE66 -> 0.64724593 | AK158: ='Hankeyhtiö - Talous'!AF66 -> 0.6601908486 | AL158: ='Hankeyhtiö - Talous'!AG66 -> 0.6737710599 | AM158: ='Hankeyhtiö - Talous'!AH66 -> 0.6868625589 | AN158: ='Hankeyhtiö - Talous'!AI66 -> 0.7005998101 | AO158: ='Hankeyhtiö - Talous'!AJ66 -> 0.7146118063 | AP158: ='Hankeyhtiö - Talous'!AK66 -> 0.7293114637 | AQ158: ='Hankeyhtiö - Talous'!AL66 -> 0.7434821232 | AR158: ='Hankeyhtiö - Talous'!AM66 -> 0.7583517657 | AS158: ='Hankeyhtiö - Talous'!AN66 -> 0.773518801 | AT158: ='Hankeyhtiö - Talous'!AO66 -> 0.7894301829 | AU158: ='Hankeyhtiö - Talous'!AP66 -> 0.8047689606 | AV158: ='Hankeyhtiö - Talous'!AQ66 -> 0.8208643398 | AW158: ='Hankeyhtiö - Talous'!AR66 -> 0.8372816266 | AX158: ='Hankeyhtiö - Talous'!AS66 -> 0.8545046181 | AY158: ='Hankeyhtiö - Talous'!AT66 -> 0.8988766707 | AZ158: ='Hankeyhtiö - Talous'!AU66 -> 0.9168542041 | BA158: ='Hankeyhtiö - Talous'!AV66 -> 0.9351912882 | BB158: ='Hankeyhtiö - Talous'!AW66 -> 0.9544925584 | BC158: ='Hankeyhtiö - Talous'!AX66 -> 0.9729730163 | BD158: ='Hankeyhtiö - Talous'!AY66 -> 0.9924324766 | BE158: ='Hankeyhtiö - Talous'!AZ66 -> 1.012281126 | BF158: ='Hankeyhtiö - Talous'!BA66 -> 1.033173442 | BG158: ='Hankeyhtiö - Talous'!BB66 -> 1.053177284 | BH158: ='Hankeyhtiö - Talous'!BC66 -> 1.074240829 | BI158: ='Hankeyhtiö - Talous'!BD66 -> 1.095725646 | BJ158: ='Hankeyhtiö - Talous'!BE66 -> 1.11834016 | BK158: ='Hankeyhtiö - Talous'!BF66 -> 1.139992962 | BL158: ='Hankeyhtiö - Talous'!BG66 -> 1.162792821 | BM158: ='Hankeyhtiö - Talous'!BH66 -> 1.186048678 | BN158: ='Hankeyhtiö - Talous'!BI66 -> 1.210527355 | BO158: ='Hankeyhtiö - Talous'!BJ66 -> 1.233965044 | BP158: ='Hankeyhtiö - Talous'!BK66 -> 1.258644345 | BQ158: ='Hankeyhtiö - Talous'!BL66 -> 1.283817232 | BR158: ='Hankeyhtiö - Talous'!BM66 -> 1.31031374 | BS158: ='Hankeyhtiö - Talous'!BN66 -> 1.335683448 | BT158: ='Hankeyhtiö - Talous'!BO66 -> 1.362397117 | BU158: ='Hankeyhtiö - Talous'!BP66 -> 1.389645059 | BV158: ='Hankeyhtiö - Talous'!BQ68 -> 6.572520306e-14
N159: Ulkoiset velat | Q159: ='Hankeyhtiö - Talous'!L67 -> 0 | R159: ='Hankeyhtiö - Talous'!M67 -> 0 | S159: ='Hankeyhtiö - Talous'!N67 -> 0 | T159: ='Hankeyhtiö - Talous'!O67 -> 0 | U159: ='Hankeyhtiö - Talous'!P67 -> 145.3611208 | V159: ='Hankeyhtiö - Talous'!Q67 -> 292.1302542 | W159: ='Hankeyhtiö - Talous'!R67 -> 443.8851692 | X159: ='Hankeyhtiö - Talous'!S67 -> 770.0078151 | Y159: ='Hankeyhtiö - Talous'!T67 -> 1104.695533 | Z159: ='Hankeyhtiö - Talous'!U67 -> 1453.864578 | AA159: ='Hankeyhtiö - Talous'!V67 -> 1818.002386 | AB159: ='Hankeyhtiö - Talous'!W67 -> 2197.611353 | AC159: ='Hankeyhtiö - Talous'!X67 -> 2593.134766 | AD159: ='Hankeyhtiö - Talous'!Y67 -> 2784.420641 | AE159: ='Hankeyhtiö - Talous'!Z67 -> 2982.186589 | AF159: ='Hankeyhtiö - Talous'!AA67 -> 3188.265003 | AG159: ='Hankeyhtiö - Talous'!AB67 -> 3188.265003 | AH159: ='Hankeyhtiö - Talous'!AC67 -> 3188.265003 | AI159: ='Hankeyhtiö - Talous'!AD67 -> 3188.265003 | AJ159: ='Hankeyhtiö - Talous'!AE67 -> 3188.265003 | AK159: ='Hankeyhtiö - Talous'!AF67 -> 3188.265003 | AL159: ='Hankeyhtiö - Talous'!AG67 -> 3188.265003 | AM159: ='Hankeyhtiö - Talous'!AH67 -> 3188.265003 | AN159: ='Hankeyhtiö - Talous'!AI67 -> 3188.265003 | AO159: ='Hankeyhtiö - Talous'!AJ67 -> 3188.265003 | AP159: ='Hankeyhtiö - Talous'!AK67 -> 3188.265003 | AQ159: ='Hankeyhtiö - Talous'!AL67 -> 3188.265003 | AR159: ='Hankeyhtiö - Talous'!AM67 -> 3188.265003 | AS159: ='Hankeyhtiö - Talous'!AN67 -> 3188.265003 | AT159: ='Hankeyhtiö - Talous'!AO67 -> 3188.265003 | AU159: ='Hankeyhtiö - Talous'!AP67 -> 3188.265003 | AV159: ='Hankeyhtiö - Talous'!AQ67 -> 3188.265003 | AW159: ='Hankeyhtiö - Talous'!AR67 -> 3188.265003 | AX159: ='Hankeyhtiö - Talous'!AS67 -> 3188.265003 | AY159: ='Hankeyhtiö - Talous'!AT67 -> 3188.265003 | AZ159: ='Hankeyhtiö - Talous'!AU67 -> 3188.265003 | BA159: ='Hankeyhtiö - Talous'!AV67 -> 3188.265003 | BB159: ='Hankeyhtiö - Talous'!AW67 -> 3188.265003 | BC159: ='Hankeyhtiö - Talous'!AX67 -> 3188.265003 | BD159: ='Hankeyhtiö - Talous'!AY67 -> 3188.265003 | BE159: ='Hankeyhtiö - Talous'!AZ67 -> 3188.265003 | BF159: ='Hankeyhtiö - Talous'!BA67 -> 3188.265003 | BG159: ='Hankeyhtiö - Talous'!BB67 -> 3188.265003 | BH159: ='Hankeyhtiö - Talous'!BC67 -> 3188.265003 | BI159: ='Hankeyhtiö - Talous'!BD67 -> 3188.265003 | BJ159: ='Hankeyhtiö - Talous'!BE67 -> 3188.265003 | BK159: ='Hankeyhtiö - Talous'!BF67 -> 3188.265003 | BL159: ='Hankeyhtiö - Talous'!BG67 -> 3188.265003 | BM159: ='Hankeyhtiö - Talous'!BH67 -> 3188.265003 | BN159: ='Hankeyhtiö - Talous'!BI67 -> 3188.265003 | BO159: ='Hankeyhtiö - Talous'!BJ67 -> 3188.265003 | BP159: ='Hankeyhtiö - Talous'!BK67 -> 3188.265003 | BQ159: ='Hankeyhtiö - Talous'!BL67 -> 3188.265003 | BR159: ='Hankeyhtiö - Talous'!BM67 -> 3188.265003 | BS159: ='Hankeyhtiö - Talous'!BN67 -> 3188.265003 | BT159: ='Hankeyhtiö - Talous'!BO67 -> 3188.265003 | BU159: ='Hankeyhtiö - Talous'!BP67 -> 3188.265003 | BV159: =SUM(BV156:BV158) -> 3189.683328
N160: Pääomalaina | Q160: ='Hankeyhtiö - Talous'!L68 -> 0 | R160: ='Hankeyhtiö - Talous'!M68 -> 0 | S160: ='Hankeyhtiö - Talous'!N68 -> 0 | T160: ='Hankeyhtiö - Talous'!O68 -> 0 | U160: ='Hankeyhtiö - Talous'!P68 -> 11.09672235 | V160: ='Hankeyhtiö - Talous'!Q68 -> 22.97021525 | W160: ='Hankeyhtiö - Talous'!R68 -> 35.66375595 | X160: ='Hankeyhtiö - Talous'!S68 -> 61.9094403 | Y160: ='Hankeyhtiö - Talous'!T68 -> 89.70266649 | Z160: ='Hankeyhtiö - Talous'!U68 -> 119.3795091 | AA160: ='Hankeyhtiö - Talous'!V68 -> 151.044028 | AB160: ='Hankeyhtiö - Talous'!W68 -> 184.8056837 | AC160: ='Hankeyhtiö - Talous'!X68 -> 220.7738788 | AD160: ='Hankeyhtiö - Talous'!Y68 -> 245.8192786 | AE160: ='Hankeyhtiö - Talous'!Z68 -> 272.3970825 | AF160: ='Hankeyhtiö - Talous'!AA68 -> 300.5895134 | AG160: ='Hankeyhtiö - Talous'!AB68 -> 293.0747755 | AH160: ='Hankeyhtiö - Talous'!AC68 -> 285.5600377 | AI160: ='Hankeyhtiö - Talous'!AD68 -> 278.0452999 | AJ160: ='Hankeyhtiö - Talous'!AE68 -> 270.530562 | AK160: ='Hankeyhtiö - Talous'!AF68 -> 263.0158242 | AL160: ='Hankeyhtiö - Talous'!AG68 -> 255.5010864 | AM160: ='Hankeyhtiö - Talous'!AH68 -> 247.9863485 | AN160: ='Hankeyhtiö - Talous'!AI68 -> 240.4716107 | AO160: ='Hankeyhtiö - Talous'!AJ68 -> 232.9568729 | AP160: ='Hankeyhtiö - Talous'!AK68 -> 225.442135 | AQ160: ='Hankeyhtiö - Talous'!AL68 -> 217.9273972 | AR160: ='Hankeyhtiö - Talous'!AM68 -> 210.4126594 | AS160: ='Hankeyhtiö - Talous'!AN68 -> 202.8979215 | AT160: ='Hankeyhtiö - Talous'!AO68 -> 195.3831837 | AU160: ='Hankeyhtiö - Talous'!AP68 -> 187.8684459 | AV160: ='Hankeyhtiö - Talous'!AQ68 -> 180.353708 | AW160: ='Hankeyhtiö - Talous'!AR68 -> 172.8389702 | AX160: ='Hankeyhtiö - Talous'!AS68 -> 165.3242324 | AY160: ='Hankeyhtiö - Talous'!AT68 -> 157.8094945 | AZ160: ='Hankeyhtiö - Talous'!AU68 -> 150.2947567 | BA160: ='Hankeyhtiö - Talous'!AV68 -> 142.7800189 | BB160: ='Hankeyhtiö - Talous'!AW68 -> 135.265281 | BC160: ='Hankeyhtiö - Talous'!AX68 -> 127.7505432 | BD160: ='Hankeyhtiö - Talous'!AY68 -> 120.2358054 | BE160: ='Hankeyhtiö - Talous'!AZ68 -> 112.7210675 | BF160: ='Hankeyhtiö - Talous'!BA68 -> 105.2063297 | BG160: ='Hankeyhtiö - Talous'!BB68 -> 97.69159185 | BH160: ='Hankeyhtiö - Talous'!BC68 -> 90.17685401 | BI160: ='Hankeyhtiö - Talous'!BD68 -> 82.66211618 | BJ160: ='Hankeyhtiö - Talous'!BE68 -> 75.14737834 | BK160: ='Hankeyhtiö - Talous'!BF68 -> 67.63264051 | BL160: ='Hankeyhtiö - Talous'!BG68 -> 60.11790268 | BM160: ='Hankeyhtiö - Talous'!BH68 -> 52.60316484 | BN160: ='Hankeyhtiö - Talous'!BI68 -> 45.08842701 | BO160: ='Hankeyhtiö - Talous'!BJ68 -> 37.57368917 | BP160: ='Hankeyhtiö - Talous'!BK68 -> 30.05895134 | BQ160: ='Hankeyhtiö - Talous'!BL68 -> 22.5442135 | BR160: ='Hankeyhtiö - Talous'!BM68 -> 15.02947567 | BS160: ='Hankeyhtiö - Talous'!BN68 -> 7.514737834 | BT160: ='Hankeyhtiö - Talous'!BO68 -> 6.572520306e-14 | BU160: ='Hankeyhtiö - Talous'!BP68 -> 6.572520306e-14
D161: =Kontrolli!E205 -> 30 | N161: Vieras pääoma | Q161: 0 | R161: 0 | S161: 0 | T161: 0.08551232877 | U161: 156.5450657 | V161: 315.1894365 | W161: 479.6396715 | X161: 832.0098167 | Y161: 1194.492612 | Z161: 1573.340388 | AA161: 1969.14464 | AB161: 2382.517228 | AC161: 2814.01084 | AD161: 3030.6974 | AE161: 3255.050301 | AF161: 3489.330478 | AG161: 3481.949693 | AH161: 3474.447501 | AI161: 3466.944857 | AJ161: 3459.442811 | AK161: 3451.941018 | AL161: 3444.43986 | AM161: 3436.938214 | AN161: 3429.437213 | AO161: 3421.936487 | AP161: 3414.436449 | AQ161: 3406.935882 | AR161: 3399.436014 | AS161: 3391.936443 | AT161: 3384.437617 | AU161: 3376.938218 | AV161: 3369.439575 | AW161: 3361.941255 | AX161: 3354.44374 | AY161: 3346.973374 | AZ161: 3339.476614 | BA161: 3331.980213 | BB161: 3324.484776 | BC161: 3316.988519 | BD161: 3309.493241 | BE161: 3301.998351 | BF161: 3294.504506 | BG161: 3287.009772 | BH161: 3279.516098 | BI161: 3272.022845 | BJ161: 3264.530721 | BK161: 3257.037636 | BL161: 3249.545698 | BM161: 3242.054216 | BN161: 3234.563957 | BO161: 3227.072657 | BP161: 3219.582598 | BQ161: 3212.093033 | BR161: 3204.604792 | BS161: 3197.115424 | BT161: 3189.6274 | BU161: 3189.654648 | BV161: ='Hankeyhtiö - Talous'!BQ71 -> -1164.978745
BV162: =SUM(BV161) -> -1164.978745
N163: Oma pääoma | Q163: ='Hankeyhtiö - Talous'!L71 -> 31.678 | R163: ='Hankeyhtiö - Talous'!M71 -> 465.6245015 | S163: ='Hankeyhtiö - Talous'!N71 -> 508.2499331 | T163: ='Hankeyhtiö - Talous'!O71 -> 552.3937293 | U163: ='Hankeyhtiö - Talous'!P71 -> 642.1617621 | V163: ='Hankeyhtiö - Talous'!Q71 -> 734.839989 | W163: ='Hankeyhtiö - Talous'!R71 -> 830.4955945 | X163: ='Hankeyhtiö - Talous'!S71 -> 991.8841095 | Y163: ='Hankeyhtiö - Talous'!T71 -> 1155.553013 | Z163: ='Hankeyhtiö - Talous'!U71 -> 1322.960183 | AA163: ='Hankeyhtiö - Talous'!V71 -> 1494.149847 | AB163: ='Hankeyhtiö - Talous'!W71 -> 1669.16452 | AC163: ='Hankeyhtiö - Talous'!X71 -> 1848.010416 | AD163: ='Hankeyhtiö - Talous'!Y71 -> 1913.13262 | AE163: ='Hankeyhtiö - Talous'!Z71 -> 1980.059961 | AF163: ='Hankeyhtiö - Talous'!AA71 -> 2048.91242 | AG163: ='Hankeyhtiö - Talous'!AB71 -> 1968.003726 | AH163: ='Hankeyhtiö - Talous'!AC71 -> 1886.305725 | AI163: ='Hankeyhtiö - Talous'!AD71 -> 1804.825886 | AJ163: ='Hankeyhtiö - Talous'!AE71 -> 1723.570009 | AK163: ='Hankeyhtiö - Talous'!AF71 -> 1642.542156 | AL163: ='Hankeyhtiö - Talous'!AG71 -> 1561.747432 | AM163: ='Hankeyhtiö - Talous'!AH71 -> 1481.18435 | AN163: ='Hankeyhtiö - Talous'!AI71 -> 1400.86357 | AO163: ='Hankeyhtiö - Talous'!AJ71 -> 1320.77803 | AP163: ='Hankeyhtiö - Talous'!AK71 -> 1240.943931 | AQ163: ='Hankeyhtiö - Talous'!AL71 -> 1161.364711 | AR163: ='Hankeyhtiö - Talous'!AM71 -> 1082.047122 | AS163: ='Hankeyhtiö - Talous'!AN71 -> 1002.995877 | AT163: ='Hankeyhtiö - Talous'!AO71 -> 924.2169096 | AU163: ='Hankeyhtiö - Talous'!AP71 -> 845.7139434 | AV163: ='Hankeyhtiö - Talous'!AQ71 -> 767.4942907 | AW163: ='Hankeyhtiö - Talous'!AR71 -> 689.5630563 | AX163: ='Hankeyhtiö - Talous'!AS71 -> 609.7581553 | AY163: ='Hankeyhtiö - Talous'!AT71 -> 532.3636939 | AZ163: ='Hankeyhtiö - Talous'!AU71 -> 455.2724067 | BA163: ='Hankeyhtiö - Talous'!AV71 -> 378.4916516 | BB163: ='Hankeyhtiö - Talous'!AW71 -> 302.0283393 | BC163: ='Hankeyhtiö - Talous'!AX71 -> 225.8867646 | BD163: ='Hankeyhtiö - Talous'!AY71 -> 150.075461 | BE163: ='Hankeyhtiö - Talous'!AZ71 -> 74.60035089 | BF163: ='Hankeyhtiö - Talous'!BA71 -> -0.5310836101 | BG163: ='Hankeyhtiö - Talous'!BB71 -> -75.31419216 | BH163: ='Hankeyhtiö - Talous'!BC71 -> -149.7397361 | BI163: ='Hankeyhtiö - Talous'!BD71 -> -223.8013029 | BJ163: ='Hankeyhtiö - Talous'!BE71 -> -297.4907921 | BK163: ='Hankeyhtiö - Talous'!BF71 -> -370.803168 | BL163: ='Hankeyhtiö - Talous'!BG71 -> -443.7284285 | BM163: ='Hankeyhtiö - Talous'!BH71 -> -516.2596306 | BN163: ='Hankeyhtiö - Talous'!BI71 -> -588.388004 | BO163: ='Hankeyhtiö - Talous'!BJ71 -> -660.108096 | BP163: ='Hankeyhtiö - Talous'!BK71 -> -731.4090778 | BQ163: ='Hankeyhtiö - Talous'!BL71 -> -802.2834319 | BR163: ='Hankeyhtiö - Talous'!BM71 -> -872.7216629 | BS163: ='Hankeyhtiö - Talous'!BN71 -> -942.7178662 | BT163: ='Hankeyhtiö - Talous'!BO71 -> -1012.260318 | BU163: ='Hankeyhtiö - Talous'!BP71 -> -1088.855617
N164: Oma pääoma | Q164: 31.678 | R164: 465.6245015 | S164: 508.2499331 | T164: 552.3937293 | U164: 642.1617621 | V164: 734.839989 | W164: 830.4955945 | X164: 991.8841095 | Y164: 1155.553013 | Z164: 1322.960183 | AA164: 1494.149847 | AB164: 1669.16452 | AC164: 1848.010416 | AD164: 1913.13262 | AE164: 1980.059961 | AF164: 2048.91242 | AG164: 1968.003726 | AH164: 1886.305725 | AI164: 1804.825886 | AJ164: 1723.570009 | AK164: 1642.542156 | AL164: 1561.747432 | AM164: 1481.18435 | AN164: 1400.86357 | AO164: 1320.77803 | AP164: 1240.943931 | AQ164: 1161.364711 | AR164: 1082.047122 | AS164: 1002.995877 | AT164: 924.2169096 | AU164: 845.7139434 | AV164: 767.4942907 | AW164: 689.5630563 | AX164: 609.7581553 | AY164: 532.3636939 | AZ164: 455.2724067 | BA164: 378.4916516 | BB164: 302.0283393 | BC164: 225.8867646 | BD164: 150.075461 | BE164: 74.60035089 | BF164: -0.5310836101 | BG164: -75.31419216 | BH164: -149.7397361 | BI164: -223.8013029 | BJ164: -297.4907921 | BK164: -370.803168 | BL164: -443.7284285 | BM164: -516.2596306 | BN164: -588.388004 | BO164: -660.108096 | BP164: -731.4090778 | BQ164: -802.2834319 | BR164: -872.7216629 | BS164: -942.7178662 | BT164: -1012.260318 | BU164: -1088.855617 | BV164: =BV159+BV162+BV153 -> 2024.704584
N166: Vastattavaa | Q166: 31.678 | R166: 465.6245015 | S166: 508.2499331 | T166: 552.4792416 | U166: 798.7068278 | V166: 1050.029425 | W166: 1310.135266 | X166: 1823.893926 | Y166: 2350.045625 | Z166: 2896.300571 | AA166: 3463.294487 | AB166: 4051.681748 | AC166: 4662.021256 | AD166: 4943.83002 | AE166: 5235.110262 | AF166: 5538.242898 | AG166: 5449.953419 | AH166: 5360.753226 | AI166: 5271.770743 | AJ166: 5183.01282 | AK166: 5094.483173 | AL166: 5006.187292 | AM166: 4918.122564 | AN166: 4830.300784 | AO166: 4742.714517 | AP166: 4655.380381 | AQ166: 4568.300593 | AR166: 4481.483136 | AS166: 4394.93232 | AT166: 4308.654526 | AU166: 4222.652161 | AV166: 4136.933866 | AW166: 4051.504311 | AX166: 3964.201895 | AY166: 3879.337068 | AZ166: 3794.74902 | BA166: 3710.471864 | BB166: 3626.513116 | BC166: 3542.875284 | BD166: 3459.568702 | BE166: 3376.598702 | BF166: 3293.973422 | BG166: 3211.69558 | BH166: 3129.776362 | BI166: 3048.221542 | BJ166: 2967.039929 | BK166: 2886.234468 | BL166: 2805.81727 | BM166: 2725.794586 | BN166: 2646.175953 | BO166: 2566.964561 | BP166: 2488.173521 | BQ166: 2409.809602 | BR166: 2331.883129 | BS166: 2254.397558 | BT166: 2177.367082 | BU166: 2100.799031
N168: Kassa-check | O168: =IF(MIN(Q145:BU145)>=0,"OK","KASSAVAJE") -> OK
N170: Sijoitukset ja tuotot per sijoittaja
C171: Maksujen päättymisvuosi | D171: =YEAR('Hankeyhtiö - Operaatiot'!D103) -> 2051
N172: Hyötyjä | O172: Sijoitettu OPO (sarja A) | P172: Tonttisijoitus (sarja B) | Q172: Sijoitettu pääomalaina | R172: Maksetut infrastruktuuri-maksut | S172: Saadut osingot | T172: Saadut pääomalainan korot ja lyhennykset | U172: Netto
N173: =C61 -> [Sijoittaja 1] | O173: =SUM('Sijoittajien tuotot'!L140:BK140) -> -776.5861638 | P173: =SUM('Sijoittajien tuotot'!L142:BK142) -> -80 | Q173: =SUM('Sijoittajien tuotot'!L144:BK144) -> 0 | R173: =SUM('Sijoittajien tuotot'!L146:BK146) -> -538.9626331 | S173: =SUM('Sijoittajien tuotot'!L141:BK141)+SUM('Sijoittajien tuotot'!L143:BK143) -> 736.0853782 | T173: =SUM('Sijoittajien tuotot'!L145:BK145) -> 0 | U173: =SUM(O173:T173) -> -659.4634188
N174: [Sijoittaja 2] | O174: =SUM('Sijoittajien tuotot'!L157:BK157) -> -776.5861638 | P174: =SUM('Sijoittajien tuotot'!L159:BK159) -> 0 | Q174: =SUM('Sijoittajien tuotot'!L161:BK161) -> -229.8114003 | R174: =SUM('Sijoittajien tuotot'!L163:BK163) -> 0 | S174: =SUM('Sijoittajien tuotot'!L158:BK158)+SUM('Sijoittajien tuotot'!L160:BK160) -> 667.3394274 | T174: =SUM('Sijoittajien tuotot'!L162:BK162) -> 574.8774443 | U174: =SUM(O174:T174) -> 235.8193075
C175: Hankeyhtiön liikevaihto | N175: [Sijoittaja 3] | O175: =SUM('Sijoittajien tuotot'!L174:BK174) -> 0 | P175: =SUM('Sijoittajien tuotot'!L176:BK176) -> -80 | Q175: =SUM('Sijoittajien tuotot'!L178:BK178) -> 0 | R175: =SUM('Sijoittajien tuotot'!L180:BK180) -> -128.4951877 | S175: =SUM('Sijoittajien tuotot'!L175:BK175)+SUM('Sijoittajien tuotot'!L177:BK177) -> 68.74595077 | T175: =SUM('Sijoittajien tuotot'!L179:BK179) -> 0 | U175: -139.7492369
N176: [Sijoittaja 4] | O176: =SUM('Sijoittajien tuotot'!L191:BK191) -> 0 | P176: =SUM('Sijoittajien tuotot'!$L193:$BK193) -> -80 | Q176: =SUM('Sijoittajien tuotot'!$L195:$BK195) -> 0 | R176: =SUM('Sijoittajien tuotot'!$L197:$BK197) -> -128.4951877 | S176: =SUM('Sijoittajien tuotot'!L192:BK192)+SUM('Sijoittajien tuotot'!L194:BK194) -> 68.74595077 | T176: =SUM('Sijoittajien tuotot'!L196:BK196) -> 0 | U176: -139.7492369
N177: [Sijoittaja 5] | O177: =SUM('Sijoittajien tuotot'!$L208:$BK208) -> 0 | P177: =SUM('Sijoittajien tuotot'!$L210:$BK210) -> -80 | Q177: =SUM('Sijoittajien tuotot'!$L212:$BK212) -> 0 | R177: =SUM('Sijoittajien tuotot'!$L214:$BK214) -> -128.4951877 | S177: =SUM('Sijoittajien tuotot'!L209:BK209)+SUM('Sijoittajien tuotot'!L211:BK211) -> 68.74595077 | T177: =SUM('Sijoittajien tuotot'!L213:BK213) -> 0 | U177: -139.7492369
N178: [Sijoittaja 6] | O178: =SUM('Sijoittajien tuotot'!$L225:$BK225) -> 0 | P178: =SUM('Sijoittajien tuotot'!$L227:$BK227) -> -80 | Q178: =SUM('Sijoittajien tuotot'!$L229:$BK229) -> 0 | R178: =SUM('Sijoittajien tuotot'!$L231:$BK231) -> 0 | S178: =SUM('Sijoittajien tuotot'!L226:BK226)+SUM('Sijoittajien tuotot'!L228:BK228) -> 68.74595077 | T178: =SUM('Sijoittajien tuotot'!L230:BK230) -> 0 | U178: -11.25404923
N179: Yhteensä | O179: =SUM(O173:O178) -> -1553.172328 | P179: =SUM(P173:P178) -> -400 | Q179: -229.8114003 | R179: -924.4481963 | S179: 1678.408609 | T179: 574.8774443 | U179: =SUM(U173:U178) -> -854.1458714
N180: Check | O180: =SUM(O179:T179)-U179 -> 0
N182: Matkustajamäärät (miljoonaa vuodessa) | Q182: =Q93 -> 2019-12-31 | R182: 2020-12-31 | S182: 2021-12-31 | T182: 2022-12-31 | U182: 2023-12-31 | V182: 2024-12-31 | W182: 2025-12-31 | X182: 2026-12-31 | Y182: 2027-12-31 | Z182: 2028-12-31 | AA182: 2029-12-31 | AB182: 2030-12-31 | AC182: 2031-12-31 | AD182: 2032-12-31 | AE182: 2033-12-31 | AF182: 2034-12-31 | AG182: 2035-12-31 | AH182: 2036-12-31 | AI182: 2037-12-31 | AJ182: 2038-12-31 | AK182: 2039-12-31 | AL182: 2040-12-31 | AM182: 2041-12-31 | AN182: 2042-12-31 | AO182: 2043-12-31 | AP182: 2044-12-31 | AQ182: 2045-12-31 | AR182: 2046-12-31 | AS182: 2047-12-31 | AT182: 2048-12-31 | AU182: 2049-12-31 | AV182: 2050-12-31 | AW182: =AW93 -> 2051-12-31 | AX182: 2052-12-31 | AY182: 2053-12-31 | AZ182: 2054-12-31 | BA182: 2055-12-31 | BB182: 2056-12-31 | BC182: 2057-12-31 | BD182: 2058-12-31 | BE182: 2059-12-31 | BF182: 2060-12-31 | BG182: 2061-12-31 | BH182: 2062-12-31 | BI182: 2063-12-31 | BJ182: 2064-12-31 | BK182: 2065-12-31 | BL182: 2066-12-31 | BM182: 2067-12-31 | BN182: 2068-12-31 | BO182: 2069-12-31 | BP182: 2070-12-31 | BQ182: 2071-12-31 | BR182: 2072-12-31 | BS182: 2073-12-31 | BT182: 2074-12-31 | BU182: 2075-12-31
N184: Matkustajamäärä
N185: Lentorataa käyttävät lentomatkustajat | Q185: =Matkustajamäärät!L54 -> 0 | R185: =Matkustajamäärät!M54 -> 0 | S185: =Matkustajamäärät!N54 -> 0 | T185: =Matkustajamäärät!O54 -> 0 | U185: =Matkustajamäärät!P54 -> 0 | V185: =Matkustajamäärät!Q54 -> 0 | W185: =Matkustajamäärät!R54 -> 0 | X185: =Matkustajamäärät!S54 -> 0 | Y185: =Matkustajamäärät!T54 -> 0 | Z185: =Matkustajamäärät!U54 -> 0 | AA185: =Matkustajamäärät!V54 -> 0 | AB185: =Matkustajamäärät!W54 -> 0 | AC185: =Matkustajamäärät!X54 -> 0 | AD185: =Matkustajamäärät!Y54 -> 1.819715749 | AE185: =Matkustajamäärät!Z54 -> 1.83205588 | AF185: =Matkustajamäärät!AA54 -> 1.844479694 | AG185: =Matkustajamäärät!AB54 -> 1.856987759 | AH185: =Matkustajamäärät!AC54 -> 1.869580645 | AI185: =Matkustajamäärät!AD54 -> 1.882258927 | AJ185: =Matkustajamäärät!AE54 -> 1.895023186 | AK185: =Matkustajamäärät!AF54 -> 1.907874003 | AL185: =Matkustajamäärät!AG54 -> 1.920811966 | AM185: =Matkustajamäärät!AH54 -> 1.931461124 | AN185: =Matkustajamäärät!AI54 -> 1.942169321 | AO185: =Matkustajamäärät!AJ54 -> 1.952936886 | AP185: =Matkustajamäärät!AK54 -> 1.963764147 | AQ185: =Matkustajamäärät!AL54 -> 1.974651436 | AR185: =Matkustajamäärät!AM54 -> 1.985599084 | AS185: =Matkustajamäärät!AN54 -> 1.996607427 | AT185: =Matkustajamäärät!AO54 -> 2.007676802 | AU185: =Matkustajamäärät!AP54 -> 2.018807546 | AV185: =Matkustajamäärät!AQ54 -> 2.03 | AW185: =Matkustajamäärät!AR54 -> 2.041254506 | AX185: =Matkustajamäärät!AS54 -> 2.052571408 | AY185: =Matkustajamäärät!AT54 -> 2.063951052 | AZ185: =Matkustajamäärät!AU54 -> 2.075393786 | BA185: =Matkustajamäärät!AV54 -> 2.086899959 | BB185: =Matkustajamäärät!AW54 -> 2.098469924 | BC185: =Matkustajamäärät!AX54 -> 2.110104033 | BD185: =Matkustajamäärät!AY54 -> 2.121802643 | BE185: =Matkustajamäärät!AZ54 -> 2.133566112 | BF185: =Matkustajamäärät!BA54 -> 2.145394798 | BG185: =Matkustajamäärät!BB54 -> 2.157289063 | BH185: =Matkustajamäärät!BC54 -> 2.169249271 | BI185: =Matkustajamäärät!BD54 -> 2.181275788 | BJ185: =Matkustajamäärät!BE54 -> 2.193368981 | BK185: =Matkustajamäärät!BF54 -> 2.205529219 | BL185: =Matkustajamäärät!BG54 -> 2.217756875 | BM185: =Matkustajamäärät!BH54 -> 2.230052323 | BN185: =Matkustajamäärät!BI54 -> 2.242415937 | BO185: =Matkustajamäärät!BJ54 -> 2.254848097 | BP185: =Matkustajamäärät!BK54 -> 2.267349181 | BQ185: =Matkustajamäärät!BL54 -> 2.279919573 | BR185: =Matkustajamäärät!BM54 -> 2.292559656 | BS185: =Matkustajamäärät!BN54 -> 2.305269817 | BT185: =Matkustajamäärät!BO54 -> 2.318050444 | BU185: =Matkustajamäärät!BP54 -> 2.330901928
N186: Kerava-Tampere -ratakäytävän matkustajat | Q186: =Matkustajamäärät!L134 -> 0 | R186: =Matkustajamäärät!M134 -> 0 | S186: =Matkustajamäärät!N134 -> 0 | T186: =Matkustajamäärät!O134 -> 0 | U186: =Matkustajamäärät!P134 -> 0 | V186: =Matkustajamäärät!Q134 -> 0 | W186: =Matkustajamäärät!R134 -> 0 | X186: =Matkustajamäärät!S134 -> 0 | Y186: =Matkustajamäärät!T134 -> 0 | Z186: =Matkustajamäärät!U134 -> 0 | AA186: =Matkustajamäärät!V134 -> 0 | AB186: =Matkustajamäärät!W134 -> 0 | AC186: =Matkustajamäärät!X134 -> 0 | AD186: =Matkustajamäärät!Y134 -> 0 | AE186: =Matkustajamäärät!Z134 -> 0 | AF186: =Matkustajamäärät!AA134 -> 0 | AG186: =Matkustajamäärät!AB134 -> 4.657714769 | AH186: =Matkustajamäärät!AC134 -> 4.738625547 | AI186: =Matkustajamäärät!AD134 -> 4.820948041 | AJ186: =Matkustajamäärät!AE134 -> 4.904706999 | AK186: =Matkustajamäärät!AF134 -> 4.989927607 | AL186: =Matkustajamäärät!AG134 -> 5.076635494 | AM186: =Matkustajamäärät!AH134 -> 5.155547181 | AN186: =Matkustajamäärät!AI134 -> 5.235685479 | AO186: =Matkustajamäärät!AJ134 -> 5.290891026 | AP186: =Matkustajamäärät!AK134 -> 5.346678666 | AQ186: =Matkustajamäärät!AL134 -> 5.403054536 | AR186: =Matkustajamäärät!AM134 -> 5.460024838 | AS186: =Matkustajamäärät!AN134 -> 5.51759584 | AT186: =Matkustajamäärät!AO134 -> 5.575773876 | AU186: =Matkustajamäärät!AP134 -> 5.634565347 | AV186: =Matkustajamäärät!AQ134 -> 5.69397672 | AW186: =Matkustajamäärät!AR134 -> 5.754014532 | AX186: =Matkustajamäärät!AS134 -> 5.814685389 | AY186: =Matkustajamäärät!AT134 -> 5.846922537 | AZ186: =Matkustajamäärät!AU134 -> 5.879338412 | BA186: =Matkustajamäärät!AV134 -> 5.911934003 | BB186: =Matkustajamäärät!AW134 -> 5.944710306 | BC186: =Matkustajamäärät!AX134 -> 5.977668325 | BD186: =Matkustajamäärät!AY134 -> 6.010809066 | BE186: =Matkustajamäärät!AZ134 -> 6.044133542 | BF186: =Matkustajamäärät!BA134 -> 6.077642772 | BG186: =Matkustajamäärät!BB134 -> 6.111337781 | BH186: =Matkustajamäärät!BC134 -> 6.145219597 | BI186: =Matkustajamäärät!BD134 -> 6.179289258 | BJ186: =Matkustajamäärät!BE134 -> 6.213547804 | BK186: =Matkustajamäärät!BF134 -> 6.247996282 | BL186: =Matkustajamäärät!BG134 -> 6.282635746 | BM186: =Matkustajamäärät!BH134 -> 6.317467254 | BN186: =Matkustajamäärät!BI134 -> 6.352491872 | BO186: =Matkustajamäärät!BJ134 -> 6.387710669 | BP186: =Matkustajamäärät!BK134 -> 6.423124722 | BQ186: =Matkustajamäärät!BL134 -> 6.458735114 | BR186: =Matkustajamäärät!BM134 -> 6.494542933 | BS186: =Matkustajamäärät!BN134 -> 6.530549274 | BT186: =Matkustajamäärät!BO134 -> 6.566755238 | BU186: =Matkustajamäärät!BP134 -> 6.603161931
N187: Yhteensä | Q187: =SUM(Q185:Q186) -> 0 | R187: 0 | S187: 0 | T187: 0 | U187: 0 | V187: 0 | W187: 0 | X187: 0 | Y187: 0 | Z187: 0 | AA187: 0 | AB187: 0 | AC187: 0 | AD187: 1.819715749 | AE187: 1.83205588 | AF187: 1.844479694 | AG187: 6.514702527 | AH187: 6.608206191 | AI187: 6.703206968 | AJ187: 6.799730185 | AK187: 6.897801611 | AL187: 6.99744746 | AM187: 7.087008305 | AN187: 7.1778548 | AO187: 7.243827912 | AP187: 7.310442813 | AQ187: 7.377705971 | AR187: 7.445623922 | AS187: 7.514203267 | AT187: 7.583450678 | AU187: 7.653372893 | AV187: 7.72397672 | AW187: =SUM(AW185:AW186) -> 7.795269038 | AX187: 7.867256797 | AY187: 7.910873589 | AZ187: 7.954732197 | BA187: 7.998833962 | BB187: 8.04318023 | BC187: 8.087772358 | BD187: 8.132611709 | BE187: 8.177699654 | BF187: 8.22303757 | BG187: 8.268626844 | BH187: 8.314468869 | BI187: 8.360565046 | BJ187: 8.406916785 | BK187: 8.453525502 | BL187: 8.500392622 | BM187: 8.547519577 | BN187: 8.594907809 | BO187: 8.642558765 | BP187: 8.690473903 | BQ187: 8.738654687 | BR187: 8.787102589 | BS187: 8.835819091 | BT187: 8.884805682 | BU187: 8.934063858
C203: Hankeyhtiön investoinnit

Sheet Sijoittajien tuotot (hidden)
B2: =Kontrolli!B2 -> Skenaario: Pienempi Hybridimalli + OPO + peruskysyntä
E5: Yksikkö | F5: Kommentit / lähde | I5: 2016-12-31 | J5: 2017-12-31 | K5: 2018-12-31 | L5: 2019-12-31 | M5: 2020-12-31 | N5: 2021-12-31 | O5: 2022-12-31 | P5: 2023-12-31 | Q5: 2024-12-31 | R5: 2025-12-31 | S5: 2026-12-31 | T5: 2027-12-31 | U5: 2028-12-31 | V5: 2029-12-31 | W5: 2030-12-31 | X5: 2031-12-31 | Y5: 2032-12-31 | Z5: 2033-12-31 | AA5: 2034-12-31 | AB5: 2035-12-31 | AC5: 2036-12-31 | AD5: 2037-12-31 | AE5: 2038-12-31 | AF5: 2039-12-31 | AG5: 2040-12-31 | AH5: =EOMONTH(AG5,12) -> 2041-12-31 | AI5: =EOMONTH(AH5,12) -> 2042-12-31 | AJ5: 2043-12-31 | AK5: 2044-12-31 | AL5: 2045-12-31 | AM5: 2046-12-31 | AN5: 2047-12-31 | AO5: 2048-12-31 | AP5: 2049-12-31 | AQ5: 2050-12-31 | AR5: 2051-12-31 | AS5: 2052-12-31 | AT5: 2053-12-31 | AU5: 2054-12-31 | AV5: 2055-12-31 | AW5: 2056-12-31 | AX5: 2057-12-31 | AY5: 2058-12-31 | AZ5: 2059-12-31 | BA5: 2060-12-31 | BB5: 2061-12-31 | BC5: 2062-12-31 | BD5: 2063-12-31 | BE5: 2064-12-31 | BF5: 2065-12-31 | BG5: 2066-12-31 | BH5: 2067-12-31 | BI5: =EOMONTH(BH5,12) -> 2068-12-31 | BJ5: =EOMONTH(BI5,12) -> 2069-12-31 | BK5: =EOMONTH(BJ5,12) -> 2070-12-31 | BL5: =EOMONTH(BK5,12) -> 2071-12-31 | BM5: =EOMONTH(BL5,12) -> 2072-12-31 | BN5: =EOMONTH(BM5,12) -> 2073-12-31 | BO5: =EOMONTH(BN5,12) -> 2074-12-31 | BP5: =EOMONTH(BO5,12) -> 2075-12-31 | BQ5: =EOMONTH(BP5,12) -> 2076-12-31 | BR5: =EOMONTH(BQ5,12) -> 2077-12-31 | BS5: =EOMONTH(BR5,12) -> 2078-12-31 | BT5: =EOMONTH(BS5,12) -> 2079-12-31 | BU5: =EOMONTH(BT5,12) -> 2080-12-31
B6: Päiviä vuodessa | I6: =DATE( YEAR( I$5 ) + 1, 1, 1 ) - DATE( YEAR( I$5 ), 1, 1 ) -> 366 | J6: =DATE( YEAR( J$5 ) + 1, 1, 1 ) - DATE( YEAR( J$5 ), 1, 1 ) -> 365 | K6: =DATE( YEAR( K$5 ) + 1, 1, 1 ) - DATE( YEAR( K$5 ), 1, 1 ) -> 365 | L6: =DATE( YEAR( L$5 ) + 1, 1, 1 ) - DATE( YEAR( L$5 ), 1, 1 ) -> 365 | M6: 366 | N6: 365 | O6: 365 | P6: 365 | Q6: 366 | R6: 365 | S6: 365 | T6: 365 | U6: 366 | V6: 365 | W6: 365 | X6: 365 | Y6: 366 | Z6: 365 | AA6: 365 | AB6: 365 | AC6: 366 | AD6: 365 | AE6: 365 | AF6: 365 | AG6: 366 | AH6: 365 | AI6: 365 | AJ6: 365 | AK6: 366 | AL6: 365 | AM6: 365 | AN6: 365 | AO6: 366 | AP6: 365 | AQ6: 365 | AR6: 365 | AS6: 366 | AT6: 365 | AU6: 365 | AV6: 365 | AW6: 366 | AX6: 365 | AY6: 365 | AZ6: 365 | BA6: 366 | BB6: 365 | BC6: 365 | BD6: 365 | BE6: 366 | BF6: 365 | BG6: 365 | BH6: 365 | BI6: 366 | BJ6: 365 | BK6: 365 | BL6: 365 | BM6: 366 | BN6: 365 | BO6: 365 | BP6: 365 | BQ6: 366 | BR6: 365 | BS6: 365 | BT6: 365 | BU6: 366
B10: 1 | C10: Kaikkien sijoitusten rahavirrat
B12: Sijoitukset
B13: Ulkoiset lainat | L13: =-'Hankeyhtiö - Talous'!L91 -> 0 | M13: =-'Hankeyhtiö - Talous'!M91 -> 0 | N13: =-'Hankeyhtiö - Talous'!N91 -> 0 | O13: =-'Hankeyhtiö - Talous'!O91 -> 0 | P13: =-'Hankeyhtiö - Talous'!P91 -> -144.2573905 | Q13: =-'Hankeyhtiö - Talous'!Q91 -> -147.1425383 | R13: =-'Hankeyhtiö - Talous'!R91 -> -150.0853891 | S13: =-'Hankeyhtiö - Talous'!S91 -> -318.0124553 | T13: =-'Hankeyhtiö - Talous'!T91 -> -321.0708042 | U13: =-'Hankeyhtiö - Talous'!U91 -> -327.4922203 | V13: =-'Hankeyhtiö - Talous'!V91 -> -334.0420647 | W13: =-'Hankeyhtiö - Talous'!W91 -> -340.722906 | X13: =-'Hankeyhtiö - Talous'!X91 -> -347.4628425 | Y13: =-'Hankeyhtiö - Talous'!Y91 -> -1668.883107 | Z13: =-'Hankeyhtiö - Talous'!Z91 -> -185.7289196 | AA13: =-'Hankeyhtiö - Talous'!AA91 -> -189.443498 | AB13: =-'Hankeyhtiö - Talous'!AB91 -> -1701.469072 | AC13: =-'Hankeyhtiö - Talous'!AC91 -> 0 | AD13: =-'Hankeyhtiö - Talous'!AD91 -> 0 | AE13: =-'Hankeyhtiö - Talous'!AE91 -> 0 | AF13: =-'Hankeyhtiö - Talous'!AF91 -> 0 | AG13: =-'Hankeyhtiö - Talous'!AG91 -> 0 | AH13: =-'Hankeyhtiö - Talous'!AH91 -> 0 | AI13: =-'Hankeyhtiö - Talous'!AI91 -> -1486.795931 | AJ13: =-'Hankeyhtiö - Talous'!AJ91 -> 0 | AK13: =-'Hankeyhtiö - Talous'!AK91 -> 0 | AL13: =-'Hankeyhtiö - Talous'!AL91 -> -1701.469072 | AM13: =-'Hankeyhtiö - Talous'!AM91 -> 0 | AN13: =-'Hankeyhtiö - Talous'!AN91 -> 0 | AO13: =-'Hankeyhtiö - Talous'!AO91 -> 0 | AP13: =-'Hankeyhtiö - Talous'!AP91 -> 0 | AQ13: =-'Hankeyhtiö - Talous'!AQ91 -> 0 | AR13: =-'Hankeyhtiö - Talous'!AR91 -> 0 | AS13: =-'Hankeyhtiö - Talous'!AS91 -> -1486.795931 | AT13: =-'Hankeyhtiö - Talous'!AT91 -> 0 | AU13: =-'Hankeyhtiö - Talous'!AU91 -> 0 | AV13: =-'Hankeyhtiö - Talous'!AV91 -> -1701.469072 | AW13: =-'Hankeyhtiö - Talous'!AW91 -> 0 | AX13: =-'Hankeyhtiö - Talous'!AX91 -> 0 | AY13: =-'Hankeyhtiö - Talous'!AY91 -> 0 | AZ13: =-'Hankeyhtiö - Talous'!AZ91 -> 0 | BA13: =-'Hankeyhtiö - Talous'!BA91 -> 0 | BB13: =-'Hankeyhtiö - Talous'!BB91 -> 0 | BC13: =-'Hankeyhtiö - Talous'!BC91 -> -1486.795931 | BD13: =-'Hankeyhtiö - Talous'!BD91 -> 0 | BE13: =-'Hankeyhtiö - Talous'!BE91 -> 0 | BF13: =-'Hankeyhtiö - Talous'!BF91 -> -1701.469072 | BG13: =-'Hankeyhtiö - Talous'!BG91 -> 0 | BH13: =-'Hankeyhtiö - Talous'!BH91 -> 0 | BI13: =-'Hankeyhtiö - Talous'!BI91 -> 0 | BJ13: =-'Hankeyhtiö - Talous'!BJ91 -> 0 | BK13: =-'Hankeyhtiö - Talous'!BK91 -> 0 | BL13: =-'Hankeyhtiö - Talous'!BL91 -> 0 | BM13: =-'Hankeyhtiö - Talous'!BM91 -> -1486.795931 | BN13: =-'Hankeyhtiö - Talous'!BN91 -> 0 | BO13: =-'Hankeyhtiö - Talous'!BO91 -> 0 | BP13: =-'Hankeyhtiö - Talous'!BP91 -> -1701.469072 | BQ13: =-'Hankeyhtiö - Talous'!BQ91 -> 0 | BR13: =-'Hankeyhtiö - Talous'!BR91 -> 0 | BS13: =-'Hankeyhtiö - Talous'!BS91 -> 0 | BT13: =-'Hankeyhtiö - Talous'!BT91 -> 0 | BU13: =-'Hankeyhtiö - Talous'!BU91 -> 0
B14: Pääomalaina | L14: =-'Hankeyhtiö - Talous'!L187 -> 0 | M14: =-'Hankeyhtiö - Talous'!M187 -> 0 | N14: =-'Hankeyhtiö - Talous'!N187 -> 0 | O14: =-'Hankeyhtiö - Talous'!O187 -> 0 | P14: =-'Hankeyhtiö - Talous'!P187 -> -11.09672235 | Q14: =-'Hankeyhtiö - Talous'!Q187 -> -11.31865679 | R14: =-'Hankeyhtiö - Talous'!R187 -> -11.54502993 | S14: =-'Hankeyhtiö - Talous'!S187 -> -24.46249656 | T14: =-'Hankeyhtiö - Talous'!T187 -> -24.69775417 | U14: =-'Hankeyhtiö - Talous'!U187 -> -25.19170925 | V14: =-'Hankeyhtiö - Talous'!V187 -> -25.69554344 | W14: =-'Hankeyhtiö - Talous'!W187 -> -26.20945431 | X14: =-'Hankeyhtiö - Talous'!X187 -> -26.72791096 | Y14: =-'Hankeyhtiö - Talous'!Y187 -> -14.00670585 | Z14: =-'Hankeyhtiö - Talous'!Z187 -> -14.28683997 | AA14: =-'Hankeyhtiö - Talous'!AA187 -> -14.57257677 | AB14: =-'Hankeyhtiö - Talous'!AB187 -> 0 | AC14: =-'Hankeyhtiö - Talous'!AC187 -> 0 | AD14: =-'Hankeyhtiö - Talous'!AD187 -> 0 | AE14: =-'Hankeyhtiö - Talous'!AE187 -> 0 | AF14: =-'Hankeyhtiö - Talous'!AF187 -> 0 | AG14: =-'Hankeyhtiö - Talous'!AG187 -> 0 | AH14: =-'Hankeyhtiö - Talous'!AH187 -> 0 | AI14: =-'Hankeyhtiö - Talous'!AI187 -> 0 | AJ14: =-'Hankeyhtiö - Talous'!AJ187 -> 0 | AK14: =-'Hankeyhtiö - Talous'!AK187 -> 0 | AL14: =-'Hankeyhtiö - Talous'!AL187 -> 0 | AM14: =-'Hankeyhtiö - Talous'!AM187 -> 0 | AN14: =-'Hankeyhtiö - Talous'!AN187 -> 0 | AO14: =-'Hankeyhtiö - Talous'!AO187 -> 0 | AP14: =-'Hankeyhtiö - Talous'!AP187 -> 0 | AQ14: =-'Hankeyhtiö - Talous'!AQ187 -> 0 | AR14: =-'Hankeyhtiö - Talous'!AR187 -> 0 | AS14: =-'Hankeyhtiö - Talous'!AS187 -> 0 | AT14: =-'Hankeyhtiö - Talous'!AT187 -> 0 | AU14: =-'Hankeyhtiö - Talous'!AU187 -> 0 | AV14: =-'Hankeyhtiö - Talous'!AV187 -> 0 | AW14: =-'Hankeyhtiö - Talous'!AW187 -> 0 | AX14: =-'Hankeyhtiö - Talous'!AX187 -> 0 | AY14: =-'Hankeyhtiö - Talous'!AY187 -> 0 | AZ14: =-'Hankeyhtiö - Talous'!AZ187 -> 0 | BA14: =-'Hankeyhtiö - Talous'!BA187 -> 0 | BB14: =-'Hankeyhtiö - Talous'!BB187 -> 0 | BC14: =-'Hankeyhtiö - Talous'!BC187 -> 0 | BD14: =-'Hankeyhtiö - Talous'!BD187 -> 0 | BE14: =-'Hankeyhtiö - Talous'!BE187 -> 0 | BF14: =-'Hankeyhtiö - Talous'!BF187 -> 0 | BG14: =-'Hankeyhtiö - Talous'!BG187 -> 0 | BH14: =-'Hankeyhtiö - Talous'!BH187 -> 0 | BI14: =-'Hankeyhtiö - Talous'!BI187 -> 0 | BJ14: =-'Hankeyhtiö - Talous'!BJ187 -> 0 | BK14: =-'Hankeyhtiö - Talous'!BK187 -> 0 | BL14: =-'Hankeyhtiö - Talous'!BL187 -> 0 | BM14: =-'Hankeyhtiö - Talous'!BM187 -> 0 | BN14: =-'Hankeyhtiö - Talous'!BN187 -> 0 | BO14: =-'Hankeyhtiö - Talous'!BO187 -> 0 | BP14: =-'Hankeyhtiö - Talous'!BP187 -> 0 | BQ14: =-'Hankeyhtiö - Talous'!BQ187 -> 0 | BR14: =-'Hankeyhtiö - Talous'!BR187 -> 0 | BS14: =-'Hankeyhtiö - Talous'!BS187 -> 0 | BT14: =-'Hankeyhtiö - Talous'!BT187 -> 0 | BU14: =-'Hankeyhtiö - Talous'!BU187 -> 0
B15: Osakesarja A | L15: =-'Hankeyhtiö - Talous'!L212 -> -31.678 | M15: =-'Hankeyhtiö - Talous'!M212 -> -33.94650152 | N15: =-'Hankeyhtiö - Talous'!N212 -> -34.62543155 | O15: =-'Hankeyhtiö - Talous'!O212 -> -35.31794018 | P15: =-'Hankeyhtiö - Talous'!P212 -> -79.2375202 | Q15: =-'Hankeyhtiö - Talous'!Q212 -> -80.82227061 | R15: =-'Hankeyhtiö - Talous'!R212 -> -82.43871602 | S15: =-'Hankeyhtiö - Talous'!S212 -> -146.7749794 | T15: =-'Hankeyhtiö - Talous'!T212 -> -148.186525 | U15: =-'Hankeyhtiö - Talous'!U212 -> -151.1502555 | V15: =-'Hankeyhtiö - Talous'!V212 -> -154.1732606 | W15: =-'Hankeyhtiö - Talous'!W212 -> -157.2567258 | X15: =-'Hankeyhtiö - Talous'!X212 -> -160.3674658 | Y15: =-'Hankeyhtiö - Talous'!Y212 -> -84.0402351 | Z15: =-'Hankeyhtiö - Talous'!Z212 -> -85.7210398 | AA15: =-'Hankeyhtiö - Talous'!AA212 -> -87.43546059 | AB15: =-'Hankeyhtiö - Talous'!AB212 -> 0 | AC15: =-'Hankeyhtiö - Talous'!AC212 -> 0 | AD15: =-'Hankeyhtiö - Talous'!AD212 -> 0 | AE15: =-'Hankeyhtiö - Talous'!AE212 -> 0 | AF15: =-'Hankeyhtiö - Talous'!AF212 -> 0 | AG15: =-'Hankeyhtiö - Talous'!AG212 -> 0 | AH15: =-'Hankeyhtiö - Talous'!AH212 -> 0 | AI15: =-'Hankeyhtiö - Talous'!AI212 -> 0 | AJ15: =-'Hankeyhtiö - Talous'!AJ212 -> 0 | AK15: =-'Hankeyhtiö - Talous'!AK212 -> 0 | AL15: =-'Hankeyhtiö - Talous'!AL212 -> 0 | AM15: =-'Hankeyhtiö - Talous'!AM212 -> 0 | AN15: =-'Hankeyhtiö - Talous'!AN212 -> 0 | AO15: =-'Hankeyhtiö - Talous'!AO212 -> 0 | AP15: =-'Hankeyhtiö - Talous'!AP212 -> 0 | AQ15: =-'Hankeyhtiö - Talous'!AQ212 -> 0 | AR15: =-'Hankeyhtiö - Talous'!AR212 -> 0 | AS15: =-'Hankeyhtiö - Talous'!AS212 -> 0 | AT15: =-'Hankeyhtiö - Talous'!AT212 -> 0 | AU15: =-'Hankeyhtiö - Talous'!AU212 -> 0 | AV15: =-'Hankeyhtiö - Talous'!AV212 -> 0 | AW15: =-'Hankeyhtiö - Talous'!AW212 -> 0 | AX15: =-'Hankeyhtiö - Talous'!AX212 -> 0 | AY15: =-'Hankeyhtiö - Talous'!AY212 -> 0 | AZ15: =-'Hankeyhtiö - Talous'!AZ212 -> 0 | BA15: =-'Hankeyhtiö - Talous'!BA212 -> 0 | BB15: =-'Hankeyhtiö - Talous'!BB212 -> 0 | BC15: =-'Hankeyhtiö - Talous'!BC212 -> 0 | BD15: =-'Hankeyhtiö - Talous'!BD212 -> 0 | BE15: =-'Hankeyhtiö - Talous'!BE212 -> 0 | BF15: =-'Hankeyhtiö - Talous'!BF212 -> 0 | BG15: =-'Hankeyhtiö - Talous'!BG212 -> 0 | BH15: =-'Hankeyhtiö - Talous'!BH212 -> 0 | BI15: =-'Hankeyhtiö - Talous'!BI212 -> 0 | BJ15: =-'Hankeyhtiö - Talous'!BJ212 -> 0 | BK15: =-'Hankeyhtiö - Talous'!BK212 -> 0 | BL15: =-'Hankeyhtiö - Talous'!BL212 -> 0 | BM15: =-'Hankeyhtiö - Talous'!BM212 -> 0 | BN15: =-'Hankeyhtiö - Talous'!BN212 -> 0 | BO15: =-'Hankeyhtiö - Talous'!BO212 -> 0 | BP15: =-'Hankeyhtiö - Talous'!BP212 -> 0 | BQ15: =-'Hankeyhtiö - Talous'!BQ212 -> 0 | BR15: =-'Hankeyhtiö - Talous'!BR212 -> 0 | BS15: =-'Hankeyhtiö - Talous'!BS212 -> 0 | BT15: =-'Hankeyhtiö - Talous'!BT212 -> 0 | BU15: =-'Hankeyhtiö - Talous'!BU212 -> 0
B16: Osakesarja B | L16: =-'Hankeyhtiö - Talous'!L213 -> 0 | M16: =-'Hankeyhtiö - Talous'!M213 -> -400 | N16: =-'Hankeyhtiö - Talous'!N213 -> 0 | O16: =-'Hankeyhtiö - Talous'!O213 -> 0 | P16: =-'Hankeyhtiö - Talous'!P213 -> 0 | Q16: =-'Hankeyhtiö - Talous'!Q213 -> 0 | R16: =-'Hankeyhtiö - Talous'!R213 -> 0 | S16: =-'Hankeyhtiö - Talous'!S213 -> 0 | T16: =-'Hankeyhtiö - Talous'!T213 -> 0 | U16: =-'Hankeyhtiö - Talous'!U213 -> 0 | V16: =-'Hankeyhtiö - Talous'!V213 -> 0 | W16: =-'Hankeyhtiö - Talous'!W213 -> 0 | X16: =-'Hankeyhtiö - Talous'!X213 -> 0 | Y16: =-'Hankeyhtiö - Talous'!Y213 -> 0 | Z16: =-'Hankeyhtiö - Talous'!Z213 -> 0 | AA16: =-'Hankeyhtiö - Talous'!AA213 -> 0 | AB16: =-'Hankeyhtiö - Talous'!AB213 -> 0 | AC16: =-'Hankeyhtiö - Talous'!AC213 -> 0 | AD16: =-'Hankeyhtiö - Talous'!AD213 -> 0 | AE16: =-'Hankeyhtiö - Talous'!AE213 -> 0 | AF16: =-'Hankeyhtiö - Talous'!AF213 -> 0 | AG16: =-'Hankeyhtiö - Talous'!AG213 -> 0 | AH16: =-'Hankeyhtiö - Talous'!AH213 -> 0 | AI16: =-'Hankeyhtiö - Talous'!AI213 -> 0 | AJ16: =-'Hankeyhtiö - Talous'!AJ213 -> 0 | AK16: =-'Hankeyhtiö - Talous'!AK213 -> 0 | AL16: =-'Hankeyhtiö - Talous'!AL213 -> 0 | AM16: =-'Hankeyhtiö - Talous'!AM213 -> 0 | AN16: =-'Hankeyhtiö - Talous'!AN213 -> 0 | AO16: =-'Hankeyhtiö - Talous'!AO213 -> 0 | AP16: =-'Hankeyhtiö - Talous'!AP213 -> 0 | AQ16: =-'Hankeyhtiö - Talous'!AQ213 -> 0 | AR16: =-'Hankeyhtiö - Talous'!AR213 -> 0 | AS16: =-'Hankeyhtiö - Talous'!AS213 -> 0 | AT16: =-'Hankeyhtiö - Talous'!AT213 -> 0 | AU16: =-'Hankeyhtiö - Talous'!AU213 -> 0 | AV16: =-'Hankeyhtiö - Talous'!AV213 -> 0 | AW16: =-'Hankeyhtiö - Talous'!AW213 -> 0 | AX16: =-'Hankeyhtiö - Talous'!AX213 -> 0 | AY16: =-'Hankeyhtiö - Talous'!AY213 -> 0 | AZ16: =-'Hankeyhtiö - Talous'!AZ213 -> 0 | BA16: =-'Hankeyhtiö - Talous'!BA213 -> 0 | BB16: =-'Hankeyhtiö - Talous'!BB213 -> 0 | BC16: =-'Hankeyhtiö - Talous'!BC213 -> 0 | BD16: =-'Hankeyhtiö - Talous'!BD213 -> 0 | BE16: =-'Hankeyhtiö - Talous'!BE213 -> 0 | BF16: =-'Hankeyhtiö - Talous'!BF213 -> 0 | BG16: =-'Hankeyhtiö - Talous'!BG213 -> 0 | BH16: =-'Hankeyhtiö - Talous'!BH213 -> 0 | BI16: =-'Hankeyhtiö - Talous'!BI213 -> 0 | BJ16: =-'Hankeyhtiö - Talous'!BJ213 -> 0 | BK16: =-'Hankeyhtiö - Talous'!BK213 -> 0 | BL16: =-'Hankeyhtiö - Talous'!BL213 -> 0 | BM16: =-'Hankeyhtiö - Talous'!BM213 -> 0 | BN16: =-'Hankeyhtiö - Talous'!BN213 -> 0 | BO16: =-'Hankeyhtiö - Talous'!BO213 -> 0 | BP16: =-'Hankeyhtiö - Talous'!BP213 -> 0 | BQ16: =-'Hankeyhtiö - Talous'!BQ213 -> 0 | BR16: =-'Hankeyhtiö - Talous'!BR213 -> 0 | BS16: =-'Hankeyhtiö - Talous'!BS213 -> 0 | BT16: =-'Hankeyhtiö - Talous'!BT213 -> 0 | BU16: =-'Hankeyhtiö - Talous'!BU213 -> 0
B17: Sijoitukset | L17: =SUM(L13:L16) -> -31.678 | M17: =SUM(M13:M16) -> -433.9465015 | N17: -34.62543155 | O17: -35.31794018 | P17: -234.591633 | Q17: -239.2834657 | R17: -244.069135 | S17: -489.2499312 | T17: -493.9550834 | U17: -503.8341851 | V17: -513.9108688 | W17: -524.1890861 | X17: -534.5582192 | Y17: -1766.930048 | Z17: -285.7367993 | AA17: -291.4515353 | AB17: -1701.469072 | AC17: 0 | AD17: 0 | AE17: 0 | AF17: 0 | AG17: 0 | AH17: 0 | AI17: -1486.795931 | AJ17: 0 | AK17: 0 | AL17: -1701.469072 | AM17: 0 | AN17: 0 | AO17: 0 | AP17: 0 | AQ17: 0 | AR17: 0 | AS17: =SUM(AS13:AS16) -> -1486.795931 | AT17: 0 | AU17: 0 | AV17: -1701.469072 | AW17: 0 | AX17: 0 | AY17: 0 | AZ17: 0 | BA17: 0 | BB17: 0 | BC17: -1486.795931 | BD17: 0 | BE17: 0 | BF17: -1701.469072 | BG17: 0 | BH17: 0 | BI17: 0 | BJ17: 0 | BK17: 0 | BL17: 0 | BM17: -1486.795931 | BN17: 0 | BO17: 0 | BP17: -1701.469072 | BQ17: 0 | BR17: 0 | BS17: 0 | BT17: 0 | BU17: 0
B19: Tuotot
B20: Ulkoisten lainojen lyhennykset | L20: =-'Hankeyhtiö - Talous'!L92 -> 0 | M20: =-'Hankeyhtiö - Talous'!M92 -> 0 | N20: =-'Hankeyhtiö - Talous'!N92 -> 0 | O20: =-'Hankeyhtiö - Talous'!O92 -> 0 | P20: =-'Hankeyhtiö - Talous'!P92 -> 2.134319316 | Q20: =-'Hankeyhtiö - Talous'!Q92 -> 3.845209897 | R20: =-'Hankeyhtiö - Talous'!R92 -> 5.62701139 | S20: =-'Hankeyhtiö - Talous'!S92 -> 7.482042327 | T20: =-'Hankeyhtiö - Talous'!T92 -> 9.483321171 | U20: =-'Hankeyhtiö - Talous'!U92 -> 11.46404032 | V20: =-'Hankeyhtiö - Talous'!V92 -> 13.5201949 | W20: =-'Hankeyhtiö - Talous'!W92 -> 15.65401005 | X20: =-'Hankeyhtiö - Talous'!X92 -> 17.86776973 | Y20: =-'Hankeyhtiö - Talous'!Y92 -> 1510.787397 | Z20: =-'Hankeyhtiö - Talous'!Z92 -> 26.89171331 | AA20: =-'Hankeyhtiö - Talous'!AA92 -> 28.22680348 | AB20: =-'Hankeyhtiö - Talous'!AB92 -> 1701.469072 | AC20: =-'Hankeyhtiö - Talous'!AC92 -> 0 | AD20: =-'Hankeyhtiö - Talous'!AD92 -> 0 | AE20: =-'Hankeyhtiö - Talous'!AE92 -> 0 | AF20: =-'Hankeyhtiö - Talous'!AF92 -> 0 | AG20: =-'Hankeyhtiö - Talous'!AG92 -> 0 | AH20: =-'Hankeyhtiö - Talous'!AH92 -> 0 | AI20: =-'Hankeyhtiö - Talous'!AI92 -> 1486.795931 | AJ20: =-'Hankeyhtiö - Talous'!AJ92 -> 0 | AK20: =-'Hankeyhtiö - Talous'!AK92 -> 0 | AL20: =-'Hankeyhtiö - Talous'!AL92 -> 1701.469072 | AM20: =-'Hankeyhtiö - Talous'!AM92 -> 0 | AN20: =-'Hankeyhtiö - Talous'!AN92 -> 0 | AO20: =-'Hankeyhtiö - Talous'!AO92 -> 0 | AP20: =-'Hankeyhtiö - Talous'!AP92 -> 0 | AQ20: =-'Hankeyhtiö - Talous'!AQ92 -> 0 | AR20: =-'Hankeyhtiö - Talous'!AR92 -> 0 | AS20: =-'Hankeyhtiö - Talous'!AS92 -> 1486.795931 | AT20: =-'Hankeyhtiö - Talous'!AT92 -> 0 | AU20: =-'Hankeyhtiö - Talous'!AU92 -> 0 | AV20: =-'Hankeyhtiö - Talous'!AV92 -> 1701.469072 | AW20: =-'Hankeyhtiö - Talous'!AW92 -> 0 | AX20: =-'Hankeyhtiö - Talous'!AX92 -> 0 | AY20: =-'Hankeyhtiö - Talous'!AY92 -> 0 | AZ20: =-'Hankeyhtiö - Talous'!AZ92 -> 0 | BA20: =-'Hankeyhtiö - Talous'!BA92 -> 0 | BB20: =-'Hankeyhtiö - Talous'!BB92 -> 0 | BC20: =-'Hankeyhtiö - Talous'!BC92 -> 1486.795931 | BD20: =-'Hankeyhtiö - Talous'!BD92 -> 0 | BE20: =-'Hankeyhtiö - Talous'!BE92 -> 0 | BF20: =-'Hankeyhtiö - Talous'!BF92 -> 1701.469072 | BG20: =-'Hankeyhtiö - Talous'!BG92 -> 0 | BH20: =-'Hankeyhtiö - Talous'!BH92 -> 0 | BI20: =-'Hankeyhtiö - Talous'!BI92 -> 0 | BJ20: =-'Hankeyhtiö - Talous'!BJ92 -> 0 | BK20: =-'Hankeyhtiö - Talous'!BK92 -> 0 | BL20: =-'Hankeyhtiö - Talous'!BL92 -> 0 | BM20: =-'Hankeyhtiö - Talous'!BM92 -> 1486.795931 | BN20: =-'Hankeyhtiö - Talous'!BN92 -> 0 | BO20: =-'Hankeyhtiö - Talous'!BO92 -> 0 | BP20: =-'Hankeyhtiö - Talous'!BP92 -> 1701.469072 | BQ20: =-'Hankeyhtiö - Talous'!BQ92 -> 0 | BR20: =-'Hankeyhtiö - Talous'!BR92 -> 0 | BS20: =-'Hankeyhtiö - Talous'!BS92 -> 0 | BT20: =-'Hankeyhtiö - Talous'!BT92 -> 0 | BU20: =-'Hankeyhtiö - Talous'!BU92 -> 0
B21: Ulkoisten lainojen hoitokulut | L21: =-'Hankeyhtiö - Talous'!L93 -> 0 | M21: =-'Hankeyhtiö - Talous'!M93 -> 0 | N21: =-'Hankeyhtiö - Talous'!N93 -> 0 | O21: =-'Hankeyhtiö - Talous'!O93 -> 0 | P21: =-'Hankeyhtiö - Talous'!P93 -> 0 | Q21: =-'Hankeyhtiö - Talous'!Q93 -> 0 | R21: =-'Hankeyhtiö - Talous'!R93 -> 0 | S21: =-'Hankeyhtiö - Talous'!S93 -> 0 | T21: =-'Hankeyhtiö - Talous'!T93 -> 0 | U21: =-'Hankeyhtiö - Talous'!U93 -> 0 | V21: =-'Hankeyhtiö - Talous'!V93 -> 0 | W21: =-'Hankeyhtiö - Talous'!W93 -> 0 | X21: =-'Hankeyhtiö - Talous'!X93 -> 0 | Y21: =-'Hankeyhtiö - Talous'!Y93 -> 44.4820094 | Z21: =-'Hankeyhtiö - Talous'!Z93 -> 44.60387792 | AA21: =-'Hankeyhtiö - Talous'!AA93 -> 44.60387792 | AB21: =-'Hankeyhtiö - Talous'!AB93 -> 95.50810331 | AC21: =-'Hankeyhtiö - Talous'!AC93 -> 95.64795008 | AD21: =-'Hankeyhtiö - Talous'!AD93 -> 95.64795008 | AE21: =-'Hankeyhtiö - Talous'!AE93 -> 95.64795008 | AF21: =-'Hankeyhtiö - Talous'!AF93 -> 95.64795008 | AG21: =-'Hankeyhtiö - Talous'!AG93 -> 95.64795008 | AH21: =-'Hankeyhtiö - Talous'!AH93 -> 95.64795008 | AI21: =-'Hankeyhtiö - Talous'!AI93 -> 95.64795008 | AJ21: =-'Hankeyhtiö - Talous'!AJ93 -> 95.64795008 | AK21: =-'Hankeyhtiö - Talous'!AK93 -> 95.64795008 | AL21: =-'Hankeyhtiö - Talous'!AL93 -> 95.64795008 | AM21: =-'Hankeyhtiö - Talous'!AM93 -> 95.64795008 | AN21: =-'Hankeyhtiö - Talous'!AN93 -> 95.64795008 | AO21: =-'Hankeyhtiö - Talous'!AO93 -> 95.64795008 | AP21: =-'Hankeyhtiö - Talous'!AP93 -> 95.64795008 | AQ21: =-'Hankeyhtiö - Talous'!AQ93 -> 95.64795008 | AR21: =-'Hankeyhtiö - Talous'!AR93 -> 95.64795008 | AS21: =-'Hankeyhtiö - Talous'!AS93 -> 95.64795008 | AT21: =-'Hankeyhtiö - Talous'!AT93 -> 95.64795008 | AU21: =-'Hankeyhtiö - Talous'!AU93 -> 95.64795008 | AV21: =-'Hankeyhtiö - Talous'!AV93 -> 95.64795008 | AW21: =-'Hankeyhtiö - Talous'!AW93 -> 95.64795008 | AX21: =-'Hankeyhtiö - Talous'!AX93 -> 95.64795008 | AY21: =-'Hankeyhtiö - Talous'!AY93 -> 95.64795008 | AZ21: =-'Hankeyhtiö - Talous'!AZ93 -> 95.64795008 | BA21: =-'Hankeyhtiö - Talous'!BA93 -> 95.64795008 | BB21: =-'Hankeyhtiö - Talous'!BB93 -> 95.64795008 | BC21: =-'Hankeyhtiö - Talous'!BC93 -> 95.64795008 | BD21: =-'Hankeyhtiö - Talous'!BD93 -> 95.64795008 | BE21: =-'Hankeyhtiö - Talous'!BE93 -> 95.64795008 | BF21: =-'Hankeyhtiö - Talous'!BF93 -> 95.64795008 | BG21: =-'Hankeyhtiö - Talous'!BG93 -> 95.64795008 | BH21: =-'Hankeyhtiö - Talous'!BH93 -> 95.64795008 | BI21: =-'Hankeyhtiö - Talous'!BI93 -> 95.64795008 | BJ21: =-'Hankeyhtiö - Talous'!BJ93 -> 95.64795008 | BK21: =-'Hankeyhtiö - Talous'!BK93 -> 95.64795008 | BL21: =-'Hankeyhtiö - Talous'!BL93 -> 95.64795008 | BM21: =-'Hankeyhtiö - Talous'!BM93 -> 95.64795008 | BN21: =-'Hankeyhtiö - Talous'!BN93 -> 95.64795008 | BO21: =-'Hankeyhtiö - Talous'!BO93 -> 95.64795008 | BP21: =-'Hankeyhtiö - Talous'!BP93 -> 95.64795008 | BQ21: =-'Hankeyhtiö - Talous'!BQ93 -> 95.64795008 | BR21: =-'Hankeyhtiö - Talous'!BR93 -> 95.64795008 | BS21: =-'Hankeyhtiö - Talous'!BS93 -> 95.64795008 | BT21: =-'Hankeyhtiö - Talous'!BT93 -> 95.64795008 | BU21: =-'Hankeyhtiö - Talous'!BU93 -> 95.64795008
B22: Pääomalainan lyhennykset | L22: =-'Hankeyhtiö - Talous'!L100 -> 0 | M22: =-'Hankeyhtiö - Talous'!M100 -> 0 | N22: =-'Hankeyhtiö - Talous'!N100 -> 0 | O22: =-'Hankeyhtiö - Talous'!O100 -> 0 | P22: =-'Hankeyhtiö - Talous'!P100 -> 0 | Q22: =-'Hankeyhtiö - Talous'!Q100 -> 0 | R22: =-'Hankeyhtiö - Talous'!R100 -> 0 | S22: =-'Hankeyhtiö - Talous'!S100 -> 0 | T22: =-'Hankeyhtiö - Talous'!T100 -> 0 | U22: =-'Hankeyhtiö - Talous'!U100 -> 0 | V22: =-'Hankeyhtiö - Talous'!V100 -> 0 | W22: =-'Hankeyhtiö - Talous'!W100 -> 0 | X22: =-'Hankeyhtiö - Talous'!X100 -> 0 | Y22: =-'Hankeyhtiö - Talous'!Y100 -> 0 | Z22: =-'Hankeyhtiö - Talous'!Z100 -> 0 | AA22: =-'Hankeyhtiö - Talous'!AA100 -> 0 | AB22: =-'Hankeyhtiö - Talous'!AB100 -> 7.514737834 | AC22: =-'Hankeyhtiö - Talous'!AC100 -> 7.514737834 | AD22: =-'Hankeyhtiö - Talous'!AD100 -> 7.514737834 | AE22: =-'Hankeyhtiö - Talous'!AE100 -> 7.514737834 | AF22: =-'Hankeyhtiö - Talous'!AF100 -> 7.514737834 | AG22: =-'Hankeyhtiö - Talous'!AG100 -> 7.514737834 | AH22: =-'Hankeyhtiö - Talous'!AH100 -> 7.514737834 | AI22: =-'Hankeyhtiö - Talous'!AI100 -> 7.514737834 | AJ22: =-'Hankeyhtiö - Talous'!AJ100 -> 7.514737834 | AK22: =-'Hankeyhtiö - Talous'!AK100 -> 7.514737834 | AL22: =-'Hankeyhtiö - Talous'!AL100 -> 7.514737834 | AM22: =-'Hankeyhtiö - Talous'!AM100 -> 7.514737834 | AN22: =-'Hankeyhtiö - Talous'!AN100 -> 7.514737834 | AO22: =-'Hankeyhtiö - Talous'!AO100 -> 7.514737834 | AP22: =-'Hankeyhtiö - Talous'!AP100 -> 7.514737834 | AQ22: =-'Hankeyhtiö - Talous'!AQ100 -> 7.514737834 | AR22: =-'Hankeyhtiö - Talous'!AR100 -> 7.514737834 | AS22: =-'Hankeyhtiö - Talous'!AS100 -> 7.514737834 | AT22: =-'Hankeyhtiö - Talous'!AT100 -> 7.514737834 | AU22: =-'Hankeyhtiö - Talous'!AU100 -> 7.514737834 | AV22: =-'Hankeyhtiö - Talous'!AV100 -> 7.514737834 | AW22: =-'Hankeyhtiö - Talous'!AW100 -> 7.514737834 | AX22: =-'Hankeyhtiö - Talous'!AX100 -> 7.514737834 | AY22: =-'Hankeyhtiö - Talous'!AY100 -> 7.514737834 | AZ22: =-'Hankeyhtiö - Talous'!AZ100 -> 7.514737834 | BA22: =-'Hankeyhtiö - Talous'!BA100 -> 7.514737834 | BB22: =-'Hankeyhtiö - Talous'!BB100 -> 7.514737834 | BC22: =-'Hankeyhtiö - Talous'!BC100 -> 7.514737834 | BD22: =-'Hankeyhtiö - Talous'!BD100 -> 7.514737834 | BE22: =-'Hankeyhtiö - Talous'!BE100 -> 7.514737834 | BF22: =-'Hankeyhtiö - Talous'!BF100 -> 7.514737834 | BG22: =-'Hankeyhtiö - Talous'!BG100 -> 7.514737834 | BH22: =-'Hankeyhtiö - Talous'!BH100 -> 7.514737834 | BI22: =-'Hankeyhtiö - Talous'!BI100 -> 7.514737834 | BJ22: =-'Hankeyhtiö - Talous'!BJ100 -> 7.514737834 | BK22: =-'Hankeyhtiö - Talous'!BK100 -> 7.514737834 | BL22: =-'Hankeyhtiö - Talous'!BL100 -> 7.514737834 | BM22: =-'Hankeyhtiö - Talous'!BM100 -> 7.514737834 | BN22: =-'Hankeyhtiö - Talous'!BN100 -> 7.514737834 | BO22: =-'Hankeyhtiö - Talous'!BO100 -> 7.514737834 | BP22: =-'Hankeyhtiö - Talous'!BP100 -> 0 | BQ22: =-'Hankeyhtiö - Talous'!BQ100 -> 0 | BR22: =-'Hankeyhtiö - Talous'!BR100 -> 0 | BS22: =-'Hankeyhtiö - Talous'!BS100 -> 0 | BT22: =-'Hankeyhtiö - Talous'!BT100 -> 0 | BU22: =-'Hankeyhtiö - Talous'!BU100 -> 0
B23: Pääomalainan korkokulut | D23: Osuudet normaalista OPOsta | L23: =-'Hankeyhtiö - Talous'!L97 -> 0 | M23: =-'Hankeyhtiö - Talous'!M97 -> 0 | N23: =-'Hankeyhtiö - Talous'!N97 -> 0 | O23: =-'Hankeyhtiö - Talous'!O97 -> 0 | P23: =-'Hankeyhtiö - Talous'!P97 -> 0 | Q23: =-'Hankeyhtiö - Talous'!Q97 -> 0 | R23: =-'Hankeyhtiö - Talous'!R97 -> 0 | S23: =-'Hankeyhtiö - Talous'!S97 -> 0 | T23: =-'Hankeyhtiö - Talous'!T97 -> 0 | U23: =-'Hankeyhtiö - Talous'!U97 -> 0 | V23: =-'Hankeyhtiö - Talous'!V97 -> 0 | W23: =-'Hankeyhtiö - Talous'!W97 -> 0 | X23: =-'Hankeyhtiö - Talous'!X97 -> 0 | Y23: =-'Hankeyhtiö - Talous'!Y97 -> 0 | Z23: =-'Hankeyhtiö - Talous'!Z97 -> 0 | AA23: =-'Hankeyhtiö - Talous'!AA97 -> 0 | AB23: =-'Hankeyhtiö - Talous'!AB97 -> 15.02947567 | AC23: =-'Hankeyhtiö - Talous'!AC97 -> 14.65373878 | AD23: =-'Hankeyhtiö - Talous'!AD97 -> 14.27800189 | AE23: =-'Hankeyhtiö - Talous'!AE97 -> 13.90226499 | AF23: =-'Hankeyhtiö - Talous'!AF97 -> 13.5265281 | AG23: =-'Hankeyhtiö - Talous'!AG97 -> 13.15079121 | AH23: =-'Hankeyhtiö - Talous'!AH97 -> 12.77505432 | AI23: =-'Hankeyhtiö - Talous'!AI97 -> 12.39931743 | AJ23: =-'Hankeyhtiö - Talous'!AJ97 -> 12.02358054 | AK23: =-'Hankeyhtiö - Talous'!AK97 -> 11.64784364 | AL23: =-'Hankeyhtiö - Talous'!AL97 -> 11.27210675 | AM23: =-'Hankeyhtiö - Talous'!AM97 -> 10.89636986 | AN23: =-'Hankeyhtiö - Talous'!AN97 -> 10.52063297 | AO23: =-'Hankeyhtiö - Talous'!AO97 -> 10.14489608 | AP23: =-'Hankeyhtiö - Talous'!AP97 -> 9.769159185 | AQ23: =-'Hankeyhtiö - Talous'!AQ97 -> 9.393422293 | AR23: =-'Hankeyhtiö - Talous'!AR97 -> 9.017685401 | AS23: =-'Hankeyhtiö - Talous'!AS97 -> 8.64194851 | AT23: =-'Hankeyhtiö - Talous'!AT97 -> 8.266211618 | AU23: =-'Hankeyhtiö - Talous'!AU97 -> 7.890474726 | AV23: =-'Hankeyhtiö - Talous'!AV97 -> 7.514737834 | AW23: =-'Hankeyhtiö - Talous'!AW97 -> 7.139000943 | AX23: =-'Hankeyhtiö - Talous'!AX97 -> 6.763264051 | AY23: =-'Hankeyhtiö - Talous'!AY97 -> 6.387527159 | AZ23: =-'Hankeyhtiö - Talous'!AZ97 -> 6.011790268 | BA23: =-'Hankeyhtiö - Talous'!BA97 -> 5.636053376 | BB23: =-'Hankeyhtiö - Talous'!BB97 -> 5.260316484 | BC23: =-'Hankeyhtiö - Talous'!BC97 -> 4.884579592 | BD23: =-'Hankeyhtiö - Talous'!BD97 -> 4.508842701 | BE23: =-'Hankeyhtiö - Talous'!BE97 -> 4.133105809 | BF23: =-'Hankeyhtiö - Talous'!BF97 -> 3.757368917 | BG23: =-'Hankeyhtiö - Talous'!BG97 -> 3.381632026 | BH23: =-'Hankeyhtiö - Talous'!BH97 -> 3.005895134 | BI23: =-'Hankeyhtiö - Talous'!BI97 -> 2.630158242 | BJ23: =-'Hankeyhtiö - Talous'!BJ97 -> 2.25442135 | BK23: =-'Hankeyhtiö - Talous'!BK97 -> 1.878684459 | BL23: =-'Hankeyhtiö - Talous'!BL97 -> 1.502947567 | BM23: =-'Hankeyhtiö - Talous'!BM97 -> 1.127210675 | BN23: =-'Hankeyhtiö - Talous'!BN97 -> 0.7514737834 | BO23: =-'Hankeyhtiö - Talous'!BO97 -> 0.3757368917 | BP23: =-'Hankeyhtiö - Talous'!BP97 -> 3.286260153e-15 | BQ23: =-'Hankeyhtiö - Talous'!BQ97 -> 3.286260153e-15 | BR23: =-'Hankeyhtiö - Talous'!BR97 -> 3.286260153e-15 | BS23: =-'Hankeyhtiö - Talous'!BS97 -> 3.286260153e-15 | BT23: =-'Hankeyhtiö - Talous'!BT97 -> 3.286260153e-15 | BU23: =-'Hankeyhtiö - Talous'!BU97 -> 3.286260153e-15
B24: Osakesarja A | D24: ='S&U'!D55/(SUM('S&U'!D55,'S&U'!D56)) -> 0.7952049625 | L24: =-'Hankeyhtiö - Talous'!L104*$D$24 -> 0 | M24: =-'Hankeyhtiö - Talous'!M104*$D$24 -> 0 | N24: =-'Hankeyhtiö - Talous'!N104*$D$24 -> 0 | O24: =-'Hankeyhtiö - Talous'!O104*$D$24 -> 0 | P24: =-'Hankeyhtiö - Talous'!P104*$D$24 -> 0 | Q24: =-'Hankeyhtiö - Talous'!Q104*$D$24 -> 0 | R24: =-'Hankeyhtiö - Talous'!R104*$D$24 -> 0 | S24: =-'Hankeyhtiö - Talous'!S104*$D$24 -> 0 | T24: =-'Hankeyhtiö - Talous'!T104*$D$24 -> 0 | U24: =-'Hankeyhtiö - Talous'!U104*$D$24 -> 0 | V24: =-'Hankeyhtiö - Talous'!V104*$D$24 -> 0 | W24: =-'Hankeyhtiö - Talous'!W104*$D$24 -> 0 | X24: =-'Hankeyhtiö - Talous'!X104*$D$24 -> 0 | Y24: =-'Hankeyhtiö - Talous'!Y104*$D$24 -> 0 | Z24: =-'Hankeyhtiö - Talous'!Z104*$D$24 -> 0 | AA24: =-'Hankeyhtiö - Talous'!AA104*$D$24 -> 0 | AB24: =-'Hankeyhtiö - Talous'!AB104*$D$24 -> 4.141615521 | AC24: =-'Hankeyhtiö - Talous'!AC104*$D$24 -> 7.834025288 | AD24: =-'Hankeyhtiö - Talous'!AD104*$D$24 -> 10.89338784 | AE24: =-'Hankeyhtiö - Talous'!AE104*$D$24 -> 13.88185636 | AF24: =-'Hankeyhtiö - Talous'!AF104*$D$24 -> 16.68015869 | AG24: =-'Hankeyhtiö - Talous'!AG104*$D$24 -> 19.56517661 | AH24: =-'Hankeyhtiö - Talous'!AH104*$D$24 -> 22.42489775 | AI24: =-'Hankeyhtiö - Talous'!AI104*$D$24 -> 25.36612124 | AJ24: =-'Hankeyhtiö - Talous'!AJ104*$D$24 -> 28.19124442 | AK24: =-'Hankeyhtiö - Talous'!AK104*$D$24 -> 31.08580178 | AL24: =-'Hankeyhtiö - Talous'!AL104*$D$24 -> 34.0219544 | AM24: =-'Hankeyhtiö - Talous'!AM104*$D$24 -> 37.03876052 | AN24: =-'Hankeyhtiö - Talous'!AN104*$D$24 -> 40.12649754 | AO24: =-'Hankeyhtiö - Talous'!AO104*$D$24 -> 43.30054227 | AP24: =-'Hankeyhtiö - Talous'!AP104*$D$24 -> 46.52158803 | AQ24: =-'Hankeyhtiö - Talous'!AQ104*$D$24 -> 49.83197258 | AR24: =-'Hankeyhtiö - Talous'!AR104*$D$24 -> 53.2212335 | AS24: =-'Hankeyhtiö - Talous'!AS104*$D$24 -> 20.21629172 | AT24: =-'Hankeyhtiö - Talous'!AT104*$D$24 -> 21.33248798 | AU24: =-'Hankeyhtiö - Talous'!AU104*$D$24 -> 23.910059 | AV24: =-'Hankeyhtiö - Talous'!AV104*$D$24 -> 26.54238186 | AW24: =-'Hankeyhtiö - Talous'!AW104*$D$24 -> 29.24897671 | AX24: =-'Hankeyhtiö - Talous'!AX104*$D$24 -> 31.98036203 | AY24: =-'Hankeyhtiö - Talous'!AY104*$D$24 -> 34.78778615 | AZ24: =-'Hankeyhtiö - Talous'!AZ104*$D$24 -> 37.65721988 | BA24: =-'Hankeyhtiö - Talous'!BA104*$D$24 -> 40.60819613 | BB24: =-'Hankeyhtiö - Talous'!BB104*$D$24 -> 43.58718396 | BC24: =-'Hankeyhtiö - Talous'!BC104*$D$24 -> 46.64968642 | BD24: =-'Hankeyhtiö - Talous'!BD104*$D$24 -> 49.78054887 | BE24: =-'Hankeyhtiö - Talous'!BE104*$D$24 -> 53.0009461 | BF24: =-'Hankeyhtiö - Talous'!BF104*$D$24 -> 56.25296714 | BG24: =-'Hankeyhtiö - Talous'!BG104*$D$24 -> 59.59672368 | BH24: =-'Hankeyhtiö - Talous'!BH104*$D$24 -> 63.01584615 | BI24: =-'Hankeyhtiö - Talous'!BI104*$D$24 -> 66.71768643 | BJ24: =-'Hankeyhtiö - Talous'!BJ104*$D$24 -> 71.09674649 | BK24: =-'Hankeyhtiö - Talous'!BK104*$D$24 -> 74.56992372 | BL24: =-'Hankeyhtiö - Talous'!BL104*$D$24 -> 77.47728845 | BM24: =-'Hankeyhtiö - Talous'!BM104*$D$24 -> 81.32225937 | BN24: =-'Hankeyhtiö - Talous'!BN104*$D$24 -> 85.20743952 | BO24: =-'Hankeyhtiö - Talous'!BO104*$D$24 -> 89.20334032 | BP24: =-'Hankeyhtiö - Talous'!BP104*$D$24 -> 99.26662208 | BQ24: =-'Hankeyhtiö - Talous'!BQ104*$D$24 -> 103.1739645 | BR24: =-'Hankeyhtiö - Talous'!BR104*$D$24 -> 107.1265968 | BS24: =-'Hankeyhtiö - Talous'!BS104*$D$24 -> 111.200888 | BT24: =-'Hankeyhtiö - Talous'!BT104*$D$24 -> 115.3054991 | BU24: =-'Hankeyhtiö - Talous'!BU104*$D$24+$D$34*D24 -> 1613.535275
B25: Osakesarja B | D25: =1-D24 -> 0.2047950375 | L25: =-'Hankeyhtiö - Talous'!L104*$D$25 -> 0 | M25: =-'Hankeyhtiö - Talous'!M104*$D$25 -> 0 | N25: =-'Hankeyhtiö - Talous'!N104*$D$25 -> 0 | O25: =-'Hankeyhtiö - Talous'!O104*$D$25 -> 0 | P25: =-'Hankeyhtiö - Talous'!P104*$D$25 -> 0 | Q25: =-'Hankeyhtiö - Talous'!Q104*$D$25 -> 0 | R25: =-'Hankeyhtiö - Talous'!R104*$D$25 -> 0 | S25: =-'Hankeyhtiö - Talous'!S104*$D$25 -> 0 | T25: =-'Hankeyhtiö - Talous'!T104*$D$25 -> 0 | U25: =-'Hankeyhtiö - Talous'!U104*$D$25 -> 0 | V25: =-'Hankeyhtiö - Talous'!V104*$D$25 -> 0 | W25: =-'Hankeyhtiö - Talous'!W104*$D$25 -> 0 | X25: =-'Hankeyhtiö - Talous'!X104*$D$25 -> 0 | Y25: =-'Hankeyhtiö - Talous'!Y104*$D$25 -> 0 | Z25: =-'Hankeyhtiö - Talous'!Z104*$D$25 -> 0 | AA25: =-'Hankeyhtiö - Talous'!AA104*$D$25 -> 0 | AB25: =-'Hankeyhtiö - Talous'!AB104*$D$25 -> 1.066620992 | AC25: =-'Hankeyhtiö - Talous'!AC104*$D$25 -> 2.017554691 | AD25: =-'Hankeyhtiö - Talous'!AD104*$D$25 -> 2.805455041 | AE25: =-'Hankeyhtiö - Talous'!AE104*$D$25 -> 3.575097524 | AF25: =-'Hankeyhtiö - Talous'!AF104*$D$25 -> 4.295765098 | AG25: =-'Hankeyhtiö - Talous'!AG104*$D$25 -> 5.038765181 | AH25: =-'Hankeyhtiö - Talous'!AH104*$D$25 -> 5.775250396 | AI25: =-'Hankeyhtiö - Talous'!AI104*$D$25 -> 6.532725516 | AJ25: =-'Hankeyhtiö - Talous'!AJ104*$D$25 -> 7.260300462 | AK25: =-'Hankeyhtiö - Talous'!AK104*$D$25 -> 8.005757308 | AL25: =-'Hankeyhtiö - Talous'!AL104*$D$25 -> 8.761926489 | AM25: =-'Hankeyhtiö - Talous'!AM104*$D$25 -> 9.538866965 | AN25: =-'Hankeyhtiö - Talous'!AN104*$D$25 -> 10.3340748 | AO25: =-'Hankeyhtiö - Talous'!AO104*$D$25 -> 11.1515101 | AP25: =-'Hankeyhtiö - Talous'!AP104*$D$25 -> 11.98104993 | AQ25: =-'Hankeyhtiö - Talous'!AQ104*$D$25 -> 12.83359784 | AR25: =-'Hankeyhtiö - Talous'!AR104*$D$25 -> 13.70645937 | AS25: =-'Hankeyhtiö - Talous'!AS104*$D$25 -> 5.206451689 | AT25: =-'Hankeyhtiö - Talous'!AT104*$D$25 -> 5.493913999 | AU25: =-'Hankeyhtiö - Talous'!AU104*$D$25 -> 6.157734998 | AV25: =-'Hankeyhtiö - Talous'!AV104*$D$25 -> 6.835656646 | AW25: =-'Hankeyhtiö - Talous'!AW104*$D$25 -> 7.53270611 | AX25: =-'Hankeyhtiö - Talous'!AX104*$D$25 -> 8.23614005 | AY25: =-'Hankeyhtiö - Talous'!AY104*$D$25 -> 8.959156824 | AZ25: =-'Hankeyhtiö - Talous'!AZ104*$D$25 -> 9.698143396 | BA25: =-'Hankeyhtiö - Talous'!BA104*$D$25 -> 10.45813022 | BB25: =-'Hankeyhtiö - Talous'!BB104*$D$25 -> 11.22533107 | BC25: =-'Hankeyhtiö - Talous'!BC104*$D$25 -> 12.01404006 | BD25: =-'Hankeyhtiö - Talous'!BD104*$D$25 -> 12.82035431 | BE25: =-'Hankeyhtiö - Talous'!BE104*$D$25 -> 13.64972712 | BF25: =-'Hankeyhtiö - Talous'!BF104*$D$25 -> 14.48724424 | BG25: =-'Hankeyhtiö - Talous'!BG104*$D$25 -> 15.34838668 | BH25: =-'Hankeyhtiö - Talous'!BH104*$D$25 -> 16.22893868 | BI25: =-'Hankeyhtiö - Talous'!BI104*$D$25 -> 17.18230109 | BJ25: =-'Hankeyhtiö - Talous'!BJ104*$D$25 -> 18.31007293 | BK25: =-'Hankeyhtiö - Talous'!BK104*$D$25 -> 19.20454605 | BL25: =-'Hankeyhtiö - Talous'!BL104*$D$25 -> 19.95330127 | BM25: =-'Hankeyhtiö - Talous'!BM104*$D$25 -> 20.94352518 | BN25: =-'Hankeyhtiö - Talous'!BN104*$D$25 -> 21.94410446 | BO25: =-'Hankeyhtiö - Talous'!BO104*$D$25 -> 22.97319846 | BP25: =-'Hankeyhtiö - Talous'!BP104*$D$25 -> 25.56487012 | BQ25: =-'Hankeyhtiö - Talous'!BQ104*$D$25 -> 26.57115702 | BR25: =-'Hankeyhtiö - Talous'!BR104*$D$25 -> 27.58910775 | BS25: =-'Hankeyhtiö - Talous'!BS104*$D$25 -> 28.63839022 | BT25: =-'Hankeyhtiö - Talous'!BT104*$D$25 -> 29.69548119 | BU25: =-'Hankeyhtiö - Talous'!BU104*$D$25+$D$34*D25 -> 415.5457178
B26: Tuotot | L26: =SUM(L20:L25) -> 0 | M26: =SUM(M20:M25) -> 0 | N26: 0 | O26: 0 | P26: 2.134319316 | Q26: 3.845209897 | R26: 5.62701139 | S26: 7.482042327 | T26: 9.483321171 | U26: 11.46404032 | V26: 13.5201949 | W26: 15.65401005 | X26: 17.86776973 | Y26: 1555.269407 | Z26: 71.49559123 | AA26: 72.8306814 | AB26: 1824.729625 | AC26: 127.6680067 | AD26: 131.1395327 | AE26: 134.5219068 | AF26: 137.6651398 | AG26: 140.9174209 | AH26: 144.1378904 | AI26: 1634.256783 | AJ26: 150.6378133 | AK26: 153.9020907 | AL26: 1858.687748 | AM26: 160.6366853 | AN26: 164.1438932 | AO26: 167.7596364 | AP26: 171.4344851 | AQ26: 175.2216806 | AR26: 179.1080662 | AS26: =SUM(AS20:AS25) -> 1624.02331 | AT26: 138.2553015 | AU26: 141.1209566 | AV26: 1845.524536 | AW26: 147.0833717 | AX26: 150.142454 | AY26: 153.297158 | AZ26: 156.5298415 | BA26: 159.8650676 | BB26: 163.2355194 | BC26: 1653.506925 | BD26: 170.2724338 | BE26: 173.9464669 | BF26: 1879.12934 | BG26: 181.4894303 | BH26: 185.4133679 | BI26: 189.6928337 | BJ26: 194.8239287 | BK26: 198.8158422 | BL26: 202.0962252 | BM26: 1693.351614 | BN26: 211.0657057 | BO26: 215.7149636 | BP26: 1921.948514 | BQ26: 225.3930716 | BR26: 230.3636546 | BS26: 235.4872283 | BT26: 240.6489304 | BU26: 2124.728943
B28: Kaikkien sijoitusten nettorahavirta | L28: =L26+L17 -> -31.678 | M28: =M26+M17 -> -433.9465015 | N28: -34.62543155 | O28: -35.31794018 | P28: -232.4573137 | Q28: -235.4382558 | R28: -238.4421236 | S28: -481.7678888 | T28: -484.4717622 | U28: -492.3701447 | V28: -500.3906739 | W28: -508.5350761 | X28: -516.6904495 | Y28: -211.660641 | Z28: -214.2412081 | AA28: -218.6208539 | AB28: 123.2605533 | AC28: 127.6680067 | AD28: 131.1395327 | AE28: 134.5219068 | AF28: 137.6651398 | AG28: 140.9174209 | AH28: 144.1378904 | AI28: 147.4608521 | AJ28: 150.6378133 | AK28: 153.9020907 | AL28: 157.2186756 | AM28: 160.6366853 | AN28: 164.1438932 | AO28: 167.7596364 | AP28: 171.4344851 | AQ28: 175.2216806 | AR28: 179.1080662 | AS28: =AS26+AS17 -> 137.2273798 | AT28: 138.2553015 | AU28: 141.1209566 | AV28: 144.0554643 | AW28: 147.0833717 | AX28: 150.142454 | AY28: 153.297158 | AZ28: 156.5298415 | BA28: 159.8650676 | BB28: 163.2355194 | BC28: 166.710994 | BD28: 170.2724338 | BE28: 173.9464669 | BF28: 177.6602682 | BG28: 181.4894303 | BH28: 185.4133679 | BI28: 189.6928337 | BJ28: 194.8239287 | BK28: 198.8158422 | BL28: 202.0962252 | BM28: 206.5556831 | BN28: 211.0657057 | BO28: 215.7149636 | BP28: 220.4794423 | BQ28: 225.3930716 | BR28: 230.3636546 | BS28: 235.4872283 | BT28: 240.6489304 | BU28: 2124.728943
B30: Terminaaliarvon laskenta
B31: Viimeisen vuoden osinko | D31: =-'Hankeyhtiö - Talous'!BU104 -> 150.3022957 | E31: EURm
B32: Terminaalikasvu-% | D32: =Kontrolli!E37 -> 0.02 | E32: %
B33: Oman pääoman tuottovaade | D33: =Kontrolli!E46 -> 0.1 | E33: %
B34: Terminaaliarvo | D34: =D31/(D33-D32) -> 1878.778697 | E34: EURm
B36: =MAX($B$10:B28)+1 -> 2 | C36: SVOPin rahavirta
B38: Osakesarjat A ja B
B40: Nettorahavirta osakesarjalle A | L40: =L15+L24 -> -31.678 | M40: =M15+M24 -> -33.94650152 | N40: -34.62543155 | O40: -35.31794018 | P40: -79.2375202 | Q40: -80.82227061 | R40: -82.43871602 | S40: -146.7749794 | T40: -148.186525 | U40: -151.1502555 | V40: -154.1732606 | W40: -157.2567258 | X40: -160.3674658 | Y40: -84.0402351 | Z40: -85.7210398 | AA40: -87.43546059 | AB40: 4.141615521 | AC40: 7.834025288 | AD40: 10.89338784 | AE40: 13.88185636 | AF40: 16.68015869 | AG40: 19.56517661 | AH40: 22.42489775 | AI40: 25.36612124 | AJ40: 28.19124442 | AK40: 31.08580178 | AL40: 34.0219544 | AM40: 37.03876052 | AN40: 40.12649754 | AO40: 43.30054227 | AP40: 46.52158803 | AQ40: 49.83197258 | AR40: 53.2212335 | AS40: =AS15+AS24 -> 20.21629172 | AT40: 21.33248798 | AU40: 23.910059 | AV40: 26.54238186 | AW40: 29.24897671 | AX40: 31.98036203 | AY40: 34.78778615 | AZ40: 37.65721988 | BA40: 40.60819613 | BB40: 43.58718396 | BC40: 46.64968642 | BD40: 49.78054887 | BE40: 53.0009461 | BF40: 56.25296714 | BG40: 59.59672368 | BH40: 63.01584615 | BI40: 66.71768643 | BJ40: 71.09674649 | BK40: 74.56992372 | BL40: 77.47728845 | BM40: 81.32225937 | BN40: 85.20743952 | BO40: 89.20334032 | BP40: 99.26662208 | BQ40: 103.1739645 | BR40: 107.1265968 | BS40: 111.200888 | BT40: 115.3054991 | BU40: 1613.535275
B41: Nettorahavirta osakesarjalle B | L41: =L16+L25 -> 0 | M41: =M16+M25 -> -400 | N41: 0 | O41: 0 | P41: 0 | Q41: 0 | R41: 0 | S41: 0 | T41: 0 | U41: 0 | V41: 0 | W41: 0 | X41: 0 | Y41: 0 | Z41: 0 | AA41: 0 | AB41: 1.066620992 | AC41: 2.017554691 | AD41: 2.805455041 | AE41: 3.575097524 | AF41: 4.295765098 | AG41: 5.038765181 | AH41: 5.775250396 | AI41: 6.532725516 | AJ41: 7.260300462 | AK41: 8.005757308 | AL41: 8.761926489 | AM41: 9.538866965 | AN41: 10.3340748 | AO41: 11.1515101 | AP41: 11.98104993 | AQ41: 12.83359784 | AR41: 13.70645937 | AS41: =AS16+AS25 -> 5.206451689 | AT41: 5.493913999 | AU41: 6.157734998 | AV41: 6.835656646 | AW41: 7.53270611 | AX41: 8.23614005 | AY41: 8.959156824 | AZ41: 9.698143396 | BA41: 10.45813022 | BB41: 11.22533107 | BC41: 12.01404006 | BD41: 12.82035431 | BE41: 13.64972712 | BF41: 14.48724424 | BG41: 15.34838668 | BH41: 16.22893868 | BI41: 17.18230109 | BJ41: 18.31007293 | BK41: 19.20454605 | BL41: 19.95330127 | BM41: 20.94352518 | BN41: 21.94410446 | BO41: 22.97319846 | BP41: 25.56487012 | BQ41: 26.57115702 | BR41: 27.58910775 | BS41: 28.63839022 | BT41: 29.69548119 | BU41: 415.5457178
B43: Yhteensä | L43: =SUM(L40:L41) -> -31.678 | M43: =SUM(M40:M41) -> -433.9465015 | N43: -34.62543155 | O43: -35.31794018 | P43: -79.2375202 | Q43: -80.82227061 | R43: -82.43871602 | S43: -146.7749794 | T43: -148.186525 | U43: -151.1502555 | V43: -154.1732606 | W43: -157.2567258 | X43: -160.3674658 | Y43: -84.0402351 | Z43: -85.7210398 | AA43: -87.43546059 | AB43: 5.208236512 | AC43: 9.851579979 | AD43: 13.69884288 | AE43: 17.45695388 | AF43: 20.97592379 | AG43: 24.60394179 | AH43: 28.20014815 | AI43: 31.89884676 | AJ43: 35.45154488 | AK43: 39.09155909 | AL43: 42.78388089 | AM43: 46.57762748 | AN43: 50.46057235 | AO43: 54.45205237 | AP43: 58.50263797 | AQ43: 62.66557042 | AR43: 66.92769286 | AS43: =SUM(AS40:AS41) -> 25.42274341 | AT43: 26.82640198 | AU43: 30.067794 | AV43: 33.37803851 | AW43: 36.78168281 | AX43: 40.21650208 | AY43: 43.74694297 | AZ43: 47.35536328 | BA43: 51.06632634 | BB43: 54.81251503 | BC43: 58.66372649 | BD43: 62.60090318 | BE43: 66.65067322 | BF43: 70.74021138 | BG43: 74.94511037 | BH43: 79.24478482 | BI43: 83.89998752 | BJ43: 89.40681942 | BK43: 93.77446977 | BL43: 97.43058972 | BM43: 102.2657845 | BN43: 107.151544 | BO43: 112.1765388 | BP43: 124.8314922 | BQ43: 129.7451215 | BR43: 134.7157045 | BS43: 139.8392782 | BT43: 145.0009803 | BU43: 2029.080992
B45: Sisäinen korkottuotto | D45: =IFERROR(+XIRR(M43:XFD43,$M$5:$XFD$5),0) -> 0.0215484947
B47: Sijoitukset | D47: ='S&U'!D56+'S&U'!D55 -> 1953.172328
B48: Tuotot | L48: =SUM(L24:L25) -> 0 | M48: =SUM(M24:M25) -> 0 | N48: 0 | O48: 0 | P48: 0 | Q48: 0 | R48: 0 | S48: 0 | T48: 0 | U48: 0 | V48: 0 | W48: 0 | X48: 0 | Y48: 0 | Z48: 0 | AA48: 0 | AB48: 5.208236512 | AC48: 9.851579979 | AD48: 13.69884288 | AE48: 17.45695388 | AF48: 20.97592379 | AG48: 24.60394179 | AH48: 28.20014815 | AI48: 31.89884676 | AJ48: 35.45154488 | AK48: 39.09155909 | AL48: 42.78388089 | AM48: 46.57762748 | AN48: 50.46057235 | AO48: 54.45205237 | AP48: 58.50263797 | AQ48: 62.66557042 | AR48: 66.92769286 | AS48: =SUM(AS24:AS25) -> 25.42274341 | AT48: 26.82640198 | AU48: 30.067794 | AV48: 33.37803851 | AW48: 36.78168281 | AX48: 40.21650208 | AY48: 43.74694297 | AZ48: 47.35536328 | BA48: 51.06632634 | BB48: 54.81251503 | BC48: 58.66372649 | BD48: 62.60090318 | BE48: 66.65067322 | BF48: 70.74021138 | BG48: 74.94511037 | BH48: 79.24478482 | BI48: 83.89998752 | BJ48: 89.40681942 | BK48: 93.77446977 | BL48: 97.43058972 | BM48: 102.2657845 | BN48: 107.151544 | BO48: 112.1765388 | BP48: 124.8314922 | BQ48: 129.7451215 | BR48: 134.7157045 | BS48: 139.8392782 | BT48: 145.0009803 | BU48: 2029.080992
B49: Vuosittainen tuotto-% | L49: =L48/$D47 -> 0 | M49: =M48/$D47 -> 0 | N49: 0 | O49: 0 | P49: 0 | Q49: 0 | R49: 0 | S49: 0 | T49: 0 | U49: 0 | V49: 0 | W49: 0 | X49: 0 | Y49: 0 | Z49: 0 | AA49: 0 | AB49: 0.002666552479 | AC49: 0.005043886727 | AD49: 0.007013637602 | AE49: 0.00893774381 | AF49: 0.01073941275 | AG49: 0.01259691295 | AH49: 0.01443812599 | AI49: 0.01633181379 | AJ49: 0.01815075115 | AK49: 0.02001439327 | AL49: 0.02190481622 | AM49: 0.02384716741 | AN49: 0.02583518701 | AO49: 0.02787877526 | AP49: 0.02995262483 | AQ49: 0.0320839946 | AR49: 0.03426614842 | AS49: =AS48/$D47 -> 0.01301612922 | AT49: 0.013734785 | AU49: 0.01539433749 | AV49: 0.01708914162 | AW49: 0.01883176527 | AX49: 0.02059035012 | AY49: 0.02239789206 | AZ49: 0.02424535849 | BA49: 0.02614532554 | BB49: 0.02806332767 | BC49: 0.03003510016 | BD49: 0.03205088578 | BE49: 0.0341243178 | BF49: 0.0362181106 | BG49: 0.03837096671 | BH49: 0.04057234669 | BI49: 0.04295575271 | BJ49: 0.04577518233 | BK49: 0.04801136512 | BL49: 0.04988325318 | BM49: 0.05235881294 | BN49: 0.05486026116 | BO49: 0.05743299615 | BP49: 0.0639121753 | BQ49: 0.06642789255 | BR49: 0.06897276938 | BS49: 0.07159597555 | BT49: 0.07423870298 | BU49: 1.038864295
B51: Osakesarja A
B53: Nettorahavirta osakesarjalle A | L53: =L40 -> -31.678 | M53: =M40 -> -33.94650152 | N53: -34.62543155 | O53: -35.31794018 | P53: -79.2375202 | Q53: -80.82227061 | R53: -82.43871602 | S53: -146.7749794 | T53: -148.186525 | U53: -151.1502555 | V53: -154.1732606 | W53: -157.2567258 | X53: -160.3674658 | Y53: -84.0402351 | Z53: -85.7210398 | AA53: -87.43546059 | AB53: 4.141615521 | AC53: 7.834025288 | AD53: 10.89338784 | AE53: 13.88185636 | AF53: 16.68015869 | AG53: 19.56517661 | AH53: 22.42489775 | AI53: 25.36612124 | AJ53: 28.19124442 | AK53: 31.08580178 | AL53: 34.0219544 | AM53: 37.03876052 | AN53: 40.12649754 | AO53: 43.30054227 | AP53: 46.52158803 | AQ53: 49.83197258 | AR53: 53.2212335 | AS53: =AS40 -> 20.21629172 | AT53: 21.33248798 | AU53: 23.910059 | AV53: 26.54238186 | AW53: 29.24897671 | AX53: 31.98036203 | AY53: 34.78778615 | AZ53: 37.65721988 | BA53: 40.60819613 | BB53: 43.58718396 | BC53: 46.64968642 | BD53: 49.78054887 | BE53: 53.0009461 | BF53: 56.25296714 | BG53: 59.59672368 | BH53: 63.01584615 | BI53: 66.71768643 | BJ53: 71.09674649 | BK53: 74.56992372 | BL53: 77.47728845 | BM53: 81.32225937 | BN53: 85.20743952 | BO53: 89.20334032 | BP53: 99.26662208 | BQ53: 103.1739645 | BR53: 107.1265968 | BS53: 111.200888 | BT53: 115.3054991 | BU53: 1613.535275
B55: Sisäinen korkottuotto | D55: =+IFERROR(XIRR(M53:XFD53,$M$5:$XFD$5,),0%) -> 0.0226374656
B57: Sijoitukset | D57: ='S&U'!D55 -> 1553.172328
B58: Tuotot | L58: =L24 -> 0 | M58: =M24 -> 0 | N58: 0 | O58: 0 | P58: 0 | Q58: 0 | R58: 0 | S58: 0 | T58: 0 | U58: 0 | V58: 0 | W58: 0 | X58: 0 | Y58: 0 | Z58: 0 | AA58: 0 | AB58: 4.141615521 | AC58: 7.834025288 | AD58: 10.89338784 | AE58: 13.88185636 | AF58: 16.68015869 | AG58: 19.56517661 | AH58: 22.42489775 | AI58: 25.36612124 | AJ58: 28.19124442 | AK58: 31.08580178 | AL58: 34.0219544 | AM58: 37.03876052 | AN58: 40.12649754 | AO58: 43.30054227 | AP58: 46.52158803 | AQ58: 49.83197258 | AR58: 53.2212335 | AS58: =AS24 -> 20.21629172 | AT58: 21.33248798 | AU58: 23.910059 | AV58: 26.54238186 | AW58: 29.24897671 | AX58: 31.98036203 | AY58: 34.78778615 | AZ58: 37.65721988 | BA58: 40.60819613 | BB58: 43.58718396 | BC58: 46.64968642 | BD58: 49.78054887 | BE58: 53.0009461 | BF58: 56.25296714 | BG58: 59.59672368 | BH58: 63.01584615 | BI58: 66.71768643 | BJ58: 71.09674649 | BK58: 74.56992372 | BL58: 77.47728845 | BM58: 81.32225937 | BN58: 85.20743952 | BO58: 89.20334032 | BP58: 99.26662208 | BQ58: 103.1739645 | BR58: 107.1265968 | BS58: 111.200888 | BT58: 115.3054991 | BU58: 1613.535275
B59: Vuosittainen tuotto-% | L59: =L58/$D57 -> 0 | M59: =M58/$D57 -> 0 | N59: 0 | O59: 0 | P59: 0 | Q59: 0 | R59: 0 | S59: 0 | T59: 0 | U59: 0 | V59: 0 | W59: 0 | X59: 0 | Y59: 0 | Z59: 0 | AA59: 0 | AB59: 0.002666552479 | AC59: 0.005043886727 | AD59: 0.007013637602 | AE59: 0.00893774381 | AF59: 0.01073941275 | AG59: 0.01259691295 | AH59: 0.01443812599 | AI59: 0.01633181379 | AJ59: 0.01815075115 | AK59: 0.02001439327 | AL59: 0.02190481622 | AM59: 0.02384716741 | AN59: 0.02583518701 | AO59: 0.02787877526 | AP59: 0.02995262483 | AQ59: 0.0320839946 | AR59: 0.03426614842 | AS59: =AS58/$D57 -> 0.01301612922 | AT59: 0.013734785 | AU59: 0.01539433749 | AV59: 0.01708914162 | AW59: 0.01883176527 | AX59: 0.02059035012 | AY59: 0.02239789206 | AZ59: 0.02424535849 | BA59: 0.02614532554 | BB59: 0.02806332767 | BC59: 0.03003510016 | BD59: 0.03205088578 | BE59: 0.0341243178 | BF59: 0.0362181106 | BG59: 0.03837096671 | BH59: 0.04057234669 | BI59: 0.04295575271 | BJ59: 0.04577518233 | BK59: 0.04801136512 | BL59: 0.04988325318 | BM59: 0.05235881294 | BN59: 0.05486026116 | BO59: 0.05743299615 | BP59: 0.0639121753 | BQ59: 0.06642789255 | BR59: 0.06897276938 | BS59: 0.07159597555 | BT59: 0.07423870298 | BU59: 1.038864295
B61: Osakesarja B
B63: Nettorahavirta osakesarjalle B | L63: =L41 -> 0 | M63: =M41 -> -400 | N63: 0 | O63: 0 | P63: 0 | Q63: 0 | R63: 0 | S63: 0 | T63: 0 | U63: 0 | V63: 0 | W63: 0 | X63: 0 | Y63: 0 | Z63: 0 | AA63: 0 | AB63: 1.066620992 | AC63: 2.017554691 | AD63: 2.805455041 | AE63: 3.575097524 | AF63: 4.295765098 | AG63: 5.038765181 | AH63: 5.775250396 | AI63: 6.532725516 | AJ63: 7.260300462 | AK63: 8.005757308 | AL63: 8.761926489 | AM63: 9.538866965 | AN63: 10.3340748 | AO63: 11.1515101 | AP63: 11.98104993 | AQ63: 12.83359784 | AR63: 13.70645937 | AS63: =AS41 -> 5.206451689 | AT63: 5.493913999 | AU63: 6.157734998 | AV63: 6.835656646 | AW63: 7.53270611 | AX63: 8.23614005 | AY63: 8.959156824 | AZ63: 9.698143396 | BA63: 10.45813022 | BB63: 11.22533107 | BC63: 12.01404006 | BD63: 12.82035431 | BE63: 13.64972712 | BF63: 14.48724424 | BG63: 15.34838668 | BH63: 16.22893868 | BI63: 17.18230109 | BJ63: 18.31007293 | BK63: 19.20454605 | BL63: 19.95330127 | BM63: 20.94352518 | BN63: 21.94410446 | BO63: 22.97319846 | BP63: 25.56487012 | BQ63: 26.57115702 | BR63: 27.58910775 | BS63: 28.63839022 | BT63: 29.69548119 | BU63: 415.5457178
B65: Sisäinen korkottuotto | D65: =+IFERROR(XIRR(M63:XFD63,$M$5:$XFD$5,),0%) -> 0.01837482154
B67: Sijoitukset | D67: ='S&U'!D56 -> 400
B68: Tuotot | L68: =L25 -> 0 | M68: =M25 -> 0 | N68: 0 | O68: 0 | P68: 0 | Q68: 0 | R68: 0 | S68: 0 | T68: 0 | U68: 0 | V68: 0 | W68: 0 | X68: 0 | Y68: 0 | Z68: 0 | AA68: 0 | AB68: 1.066620992 | AC68: 2.017554691 | AD68: 2.805455041 | AE68: 3.575097524 | AF68: 4.295765098 | AG68: 5.038765181 | AH68: 5.775250396 | AI68: 6.532725516 | AJ68: 7.260300462 | AK68: 8.005757308 | AL68: 8.761926489 | AM68: 9.538866965 | AN68: 10.3340748 | AO68: 11.1515101 | AP68: 11.98104993 | AQ68: 12.83359784 | AR68: 13.70645937 | AS68: =AS25 -> 5.206451689 | AT68: 5.493913999 | AU68: 6.157734998 | AV68: 6.835656646 | AW68: 7.53270611 | AX68: 8.23614005 | AY68: 8.959156824 | AZ68: 9.698143396 | BA68: 10.45813022 | BB68: 11.22533107 | BC68: 12.01404006 | BD68: 12.82035431 | BE68: 13.64972712 | BF68: 14.48724424 | BG68: 15.34838668 | BH68: 16.22893868 | BI68: 17.18230109 | BJ68: 18.31007293 | BK68: 19.20454605 | BL68: 19.95330127 | BM68: 20.94352518 | BN68: 21.94410446 | BO68: 22.97319846 | BP68: 25.56487012 | BQ68: 26.57115702 | BR68: 27.58910775 | BS68: 28.63839022 | BT68: 29.69548119 | BU68: 415.5457178
